Workbook

Sheet Intro
A3: Monte Carlo Dynamic Simulation of an Economy
A5: You can customize this template by filling in a simple form, without editing a spreadsheet.
A6: This is a small and somewhat simplified working sample of the template.
A8: A customized template is a flexible model that you can adapt to your situation by filling in a simple form, without editing a spreadsheet or its formulas. For example, you can specify time range and time grain; number and names of items in a dimension (such as your products and product families); and include or exclude major features. The resulting spreadsheet matches your needs better than any standard template.
A9: Get a customized version of this template on our website.
A11: ModelSheet provides you with customized templates in three ways.
A13: 1. Order a customized version of this template.
A14: Click "+" for more information.
A15: • You can specify custom features by filling out a simple form. (Click on "+" for more information.)
A16: Precise customizations vary from template to template. Examples:
A17: − Specify the starting time, time range, time grain and rollup time grains (such as annual sums).
A18: − Specify the items in a dimension and levels of hierarchy (such as product families and products).
A19: − Include or exclude entire sub-models in the template.
A20: − These features address the most serious problem with conventional spreadsheet templates: You can customize a template in many ways without having to interpret and edit numerous cell formulas.
A22: • You can edit many aspects of your Excel template after receiving it. (Click on "+" for more information.)
A23: − Edit input data in clearly marked input cells.
A24: − Edit the model start date of a template, so your template is not out of date when the start date changes.
A25: − Edit names of dimension items in once place (such as products, departments, expense accounts).
A27: • ModelSheet Excel templates are easier to understand. (Click on "+" for more information.)
A28: − Each table has an Excel comment that provides a variable name and explains the variable.
A29: − Worksheet "Formulas" expresses the entire model with named variables and symbolic formulas. Although the symbolic formulas are not executable in Excel, they are what the model is made from in ModelSheet.
A30: − You never need to read inscrutable cell formulas to understand a ModelSheet customized template.
A31: Click "+" for more information.
A32: Explore our customized templates.
A34: 2. If you want more customizations, retain ModelSheet Software to build them for you.
A35: Click "+" for more information.
A36: • Our staff has extensive experience in many areas of business and engineering analysis.
A37: • ModelSheet technology enables us to offer you more value for your consulting dollar.
A38: Click "+" for more information.
A39: Learn more about consulting services.
A41: 3. Use the ModelSheet Authoring Environment to build and customize your spreadsheet models.
A43: The ModelSheet Authoring Environment is a SaaS application for developing and maintaining business models and delivering them in conventional spreadsheets.
A44: Click "+" to learn more about ModelSheet technology that makes customized template possible.
A46: This Excel workbook was generated using ModelSheet, a revolutionary new spreadsheet technology. ModelSheet allows you to develop business models using readable formulas, while avoiding the details of cell addresses and hard-to-change sheet layouts. The end result is a conventional Excel workbook just like this one. We built ModelSheet because we believe that spreadsheets are a great way of communicating results but we think it's just too hard to use them to develop reliable, maintainable, expressive and collaborative models.
A48: You'll get a glimpse of ModelSheet's advantages when you take a look at the "Formulas" tab and realize how few separate, readable formulas are needed to produce all of the other worksheets. In addition to formulas, ModelSheet knows about the "dimensions" in your model (e.g., products, locations, departments) as well as the time series that you're using (e.g., 5 years in quarters.) ModelSheet raises the level of thinking and acting from individual cells to natural modeling concepts. It enhances model reliabilty, auditability and maintainability; it enables you to build models that better reflect your intentions; it allows easier collaboration between modelers, developers, and report users; and it improves productivity, especially when making changes to a model.
A50: The ModelSheet authoring environment raises the level of thinking and acting from individual cells to natural modeling concepts like variables, dimensions, time series and accounting types. It enhances model reliabilty, auditability and maintainability; it enables you to build models that better reflect your intentions; it allows easier collaboration between modelers, developers, and report users; and it improves productivity, especially when making changes to a model.
A52: We have more to tell you about ModelSheet and we'd like to hear about your needs for templates and models.
A53: Please visit our website at www.modelsheetsoft.com
A54: or contact us at info@modelsheetsoft.com.
A58: Description of the Macro-Economic Model
A60: This model perfroms Monte Carlo simulation to a dynamic macro-economic model of a national economy. It reports mean and standard deviation over time for economic variables, and optionally the values of the variables for each Monte Carlo trial.
A62: It uses one of four economic models of increasing complexity in "A Dynamic Synthesis of Basic Macroeconomic Theory: Implications for Stabilization and Policy Analysis," by Nathan B. Forrester, thesis at M.I.T. Sloan School of Management, 1982.
A64: ModelSheet Software is solely responsible for any errors in this derivative work.
A66: The second model extends the first macro-economic model by adding a rudimentary financial market to the production economy. It has a variable interest rate and a variable demand for capital. The financial market model is based on the IS-LM model presented by Hicks in 1937.
A68: The third model extends the second model by adding a variable price level with a constant money supply to the production and financial markets. It is based on the aggregate supply aggregate demand model.
A70: This fourth model adds an inventory adjustment mechanism. Adjustment of inventory is a significant factor in short-term business cycles. Meltzer outlined early macroeconomic inventory adjustment models in 1941.
A71: This model also includes a lagged unemployment variable which does not affect the rest of the model and is used only for analysis.
A73: As you explore the model, we suggest that you
A74: • Read some of the Excel comments that are attached to Analysis Variables throughout the workbook. These comments also appear in ModelSheet in convenient places.
A75: • View worksheet "Formulas" which shows the named variables and symbolic formulas of the model in a compact and readable form. The symbolic formulas are not active in this Excel workbook, but they give you some idea how the model works, and how it looks in ModelSheet.
A77: Suggestions for using this model
A79: 1. Use this workbook as-is, if it fits your situation. You can change the data in the dark blue input cells. You can change the display names of dimension items and variables in dark blue cells on worksheet "Labels."
A81: 2. Customize this Excel workbook to make a job evaluation model that fits your needs.
A83: 3. Use ModelSheet Authoring to edit the formulas in this model, using named variables, symbolic formulas (and far fewer formulas), segmentation dimensions and time series, without ever touching a cell address -- and end up with a conventional Excel workbook.
A84: Please contact us for access to ModelSheet Authoring.
A88: Technical notes: Overview of Modified Multiplier-Accelerator Model
A90: Purple indicates a change in the second model compared to the first model.
A91: Green indicates a change in the third model compared to the second model.
A92: Red indicates a change in the fourth model compared to the third model.
A94: 1. Ten time-evolution variables
A96: employment(t)
A97: demand_expected_short(t)
A98: income_permanent(t)
A99: demand_expected_long(t)
A100: capital(t)
A101: demand_expected_long(t)
A102: output_average(t)
A103: prices(t)
A104: money_supply(t)
A105: inventory(t)
A106: unemployment_rate_lagged(t)
A108: 2. Ten time-evolution equations
A110: • d employment(t) /dt = (employment_desired(t) - employment(t)) / time_adjust_employment
A111: • d demand_expected_short(t) / dt = (demand_aggregate(t) - demand_expected_short(t)) / time_smooth_short_demand
A112: • d income_permanent(t) / dt = (income_current_disposable(t) - income_permanent(t) )/ time_smooth_income
A113: • Δ capital(t) = capital_investment(t) - capital_depreciation(t)
A114: • d demand_expected_long(t) / dt = (demand_aggregate(t) - demand_expected_long(t) ) / time_smooth_long_demand
A115: • d output_average(t) / dt = (output(t) - output_average(t) ) / time_smooth_output_average
A116: • d prices(t) / dt = prices(t)* Phillips_slope * (unemployment_rate_natural / unemployment_rate(t) - 1)
A117: • d money_supply(t) / dt = 0
A118: • Δ inventory(t) = output(t) - final_sales(t)
A119: • d unemployment_rate_lagged(t) / dt = (unemployment_rate(t) - unemployment_rate_lagged(t)) / time_smooth_unemployment
A121: 3. Five types of auxiliary functions appear in the evolution equations
A123: • Output
A124: output(t) := output_potential(t) * (1-flexibility_capacity_utilization) + demand_expected_short(t) * flexibility_capacity_utilization + output_noise(t)
A125: output_potential(t):= output_equilib * (employment(t) / employment_equilib) ^ (1-capital_expon) * (capital / capital_equilib) ^ capital_expon
A126: desired inventory(t) := natural_inventory_coverage * long_expected_demand
A127: desired inventory_investment(t) := (desired inventory - inventory) / time_adjust_inventory
A128: The inventory variables are added in this fourth Forrester model.
A129: • Labor Market
A130: employment_desired(t) := (1-capital_expon) * demand_expected_short(t) / real_wage
A131: unemployment_rate(t):= (employment_equilib / (1 – unemployment_rate_natural) - employment) / (employment)equilib / (1 – unemployment_rate_natural))
A132: • Demand
A133: demand_aggregate(t):= final_sales(t) + desired_inventory_investment(t) + demand_aggregate_noise(t)
A134: Aggregate demand is altered to include desired inventory investment in this fourth Forrester model.
A135: final_sales(t) :=consumption(t) + capital_invest(t) + gov_spending(t)
A136: consumption(t) := consumption_avg_propensity * income_permanent
A137: income_current_disposable(t):=output(t) - ( tax(t) - gov_transfers(t) )
A138: • Capital Investment
A139: interest_rate(t) := interest_rate_long * ( (output / output_average) ^ (- money_income_elasticity) ) ^ (1/money_interest_elasticity)
A140: The time-varying interest rate is added in the second Forrester model.
A141: interest_rate(t) := interest_rate_long * ( money_supply * (money_equilib_velocity/output_equilib/prices ) * ( (output_equilib / output_average) ^ money_income_elasticity ) ^ (1/money_interest_elasticity)
A142: The time-varying interest rate is changed in the third model to use prices and money supply.
A143: capital_investment(t) :=capital_depreciation(t) + ( capital_desired(t) – capital(t) ) / time_adjust_capital
A144: capital_depreciation(t) := capital / capital_avg_life
A145: capital_desired(t) := capital_expon * demand_expected_long(t) / (1/capital_avg_life + interest_rate)
A146: Desired capital is changed in the second Forrester model to use time-varying interest rate.
A147: • Government Sector
A148: tax(t) := tax_rate * output(t)
A149: gov_transfers(t) := gov_transfers_equilib
A150: gov_spending(t) := gov_spend_equilib
A152: 4. Numerical parameters
A154: • Demand
A155: Average propensity to consume: consumption_avg_propensity = 0.78
A156: Time to smooth income: time_smooth_income = 2.5
A157: Time to smooth short run demand: time_smooth_short_demand : 0.5
A158: Time to smooth long run demand: time_smooth_long_demand : 3.0
A159: • Labor
A160: Expected labor (million man-years per year): employment_equilib = 100
A161: Real wage $ million per million-man-year (set so that wages are 75% of national income): real_wage = 0.75 * output_equilib / employment_equilib
A162: Time to adjust employment : time_adjust_employment = 0.4
A163: Time to smooth unemployment: time_smooth_unemployment = 1.0
A164: Time to smooth unemployment is added in this fourth Forrester model.
A165: • Capital Investment
A166: Exponent on capital in the production function: capital_expon = 0.25
A167: long run interest rate: interest_rate_long = 3.0%
A168: Average life of capital: capital_avg_life = 14.0
A169: Equilibrium capital: capital_equilib = capital_expon * output_equilib / (1/capital_avg_life + interest_rate_long)
A170: Time to adjust capital: time_adjust_capital = 3.0
A171: Flexibility of capacity utilization: flexibility_capacity_utilization = 3.0
A172: Income elasticity of money demand: demand_income_elasticity = 0.7
A173: Interest elasticity of money: money_interest_elasticity = -1.0
A174: • Output
A175: Annual equilibrium national output: output_equilib = $ 14.0 * 10^6 millions
A176: Time to smooth average output: time_smooth_output_average = 3.0
A177: (Added in the second Forrester model)
A178: Ratio of inventory to sales: net_inventory_coverage = 0.3
A179: Time to adjust inventory: time_adjust_inventory = 0.4
A180: • Government Spending
A181: Equilibrium government spending pct: gov_spend_equilib_pct = 20% (gov_spend_equilib : 0.2 * output_equilib)
A182: Equilibrium government transfers pct: gov_transfers_equilib_pct = 10% (gov_transfers_equilib : 0.1 * output_equilib)
A183: Tax rate (set to cover government spending and transfers with no surplus or deficit): tax_rate : (equilibrium_govt_spend+equilibrium_govt_transfers) / output_equilib
A184: • Prices and Money
A185: natural rate of unemployment: unemployment_rate_natural = 5%
A186: slope of the Phillips curve: phillips_slope = 0.175
A187: equilibrium income velocity of money: equilib_velocity_money = 6.0
A188: The equilibrium price level determines the ratio of the money to output: prices_equilib = 1.0
A190: 5. Initial conditions
A192: Average output: output_average(t=0) = output_equilib
A193: output_average was added in the second Forrester model.
A194: Employment: employment(t=0) = employment_equilib
A195: Short run equilibrium demand: demand_expected_short(t=0) = output_equilib
A196: Permanent income: income_permanent(t=0) = output_equilib - equilibrium_govt_spend
A197: Capital: capital(t=0) = capital_expon * output_equilib * (1/capital_avg_life +interest_rate_long)
A198: The initial condition for capital is changed to include the interest rate in the second Forrester model.
A199: Long run equilibrium demand: demand_expected_long(t=0) = output_equilib
A200: Prices: prices(t=0) = prices_equilib
A201: Money supply: money(t=0) = income_equilib * prices_equilib / equilib_velocity_money
A202: Inventory: inventory(t=0) = output_equilib * net_inventory_coverage
A204: This Excel workbook was generated by ModelSheet on January 22, 2010, except for this worksheet of comments.
A206: Copyright © 2009, 2010 ModelSheet Software, LLC
A207: ModelSheet and the ModelSheet logo are registered trademarks of ModelSheet Software, LLC.

Sheet Graphs

Sheet Inputs
A1: ="Equilibrium Economy with Shocks" -> Equilibrium Economy with Shocks
A2: ="Model: "&B8 -> Model: Test Model
A3: ="$ millions" -> $ millions
A4: ="Inputs" -> Inputs
A5: ="" -> 
A6: ="Shaded cells are input cells. You can enter data in them." -> Shaded cells are input cells. You can enter data in them.
A7: ="Excel formulas in shaded cells are starting suggestions. You can overwrite them." -> Excel formulas in shaded cells are starting suggestions. You can overwrite them.
A8: =Labels!B63 -> Model Name | B8: Test Model
A11: ="Demand" -> Demand
A12: =" " -> 
A13: =Labels!B91 -> Time Smooth Long Demand | B13: 3.00
A14: =Labels!B92 -> Time Smooth Short Demand | B14: 0.50
A17: ="Capital" -> Capital
A18: =" " -> 
A19: =Labels!B10 -> Avg Life Capital | B19: 14.00
A20: =Labels!B18 -> Capital Exponent | B20: 0.25
A21: =Labels!B48 -> Flexibility Capacity Utilization | B21: 0.50
A22: =Labels!B88 -> Time Adjust Capital | B22: 3.00
A25: ="Employment" -> Employment
A26: =" " -> 
A27: =Labels!B42 -> Equilibrium Employment | B27: 140.00
A28: =Labels!B89 -> Time Adjust Employment | B28: 0.40
A29: =Labels!B73 -> Equilibrium Real Wage % | B29: 75%
A32: ="Income" -> Income
A33: =" " -> 
A34: =Labels!B25 -> Avg Propensity Consume | B34: 78%
A35: =Labels!B90 -> Time Smooth Income | B35: 2.50
A38: ="Output" -> Output
A39: =" " -> 
A40: =Labels!B66 -> Equilibrium Annual Output | B40: =14*10^6 -> $14,000,000
A43: ="Money and Prices" -> Money and Prices
A44: =" " -> 
A45: =Labels!B62 -> Long Annual Interest Rate | B45: 3.0%
A48: ="Government" -> Government
A49: =" " -> 
A50: =Labels!B50 -> Equilibrium Gov Spend % | B50: 20%
A51: =Labels!B54 -> Equilibrium Gov Transfers % | B51: 10%
A52: =Labels!B85 -> Tax Rate | B52: =('(Other Computations)'!B11+'(Other Computations)'!B14)/'(Other Computations)'!B8 -> 30%
A55: ="Stochastic Shocks" -> Stochastic Shocks
A56: =" " -> 
A57: =Labels!B82 -> Shock Std Deviation % | B57: 10%
A58: =Labels!B77 -> Shock_Cutoff | B58: 3.0%

Sheet Statistical Moments
A1: ="Equilibrium Economy with Shocks" -> Equilibrium Economy with Shocks
A2: ="Model: "&Inputs!B8 -> Model: Test Model
A3: ="$ millions" -> $ millions
A4: ="Statistical Moments" -> Statistical Moments
A5: ="" -> 
A6: ="Mean followed by standard deviation for each variable" -> Mean followed by standard deviation for each variable
A7: =" " -> 
A9: ="Demand" -> Demand
A10: =" " -> 
B11: =ZZZ__FnCalls!F7 -> Jan 2010 | C11: =ZZZ__FnCalls!F8 -> Feb 2010 | D11: =ZZZ__FnCalls!F9 -> Mar 2010 | E11: =ZZZ__FnCalls!F10 -> Apr 2010 | F11: =ZZZ__FnCalls!F11 -> May 2010 | G11: =ZZZ__FnCalls!F12 -> Jun 2010 | H11: =ZZZ__FnCalls!F13 -> Jul 2010 | I11: =ZZZ__FnCalls!F14 -> Aug 2010 | J11: =ZZZ__FnCalls!F15 -> Sep 2010 | K11: =ZZZ__FnCalls!F16 -> Oct 2010 | L11: =ZZZ__FnCalls!F17 -> Nov 2010 | M11: =ZZZ__FnCalls!F18 -> Dec 2010 | N11: =ZZZ__FnCalls!H7 -> 2010 | O11: =ZZZ__FnCalls!F19 -> Jan 2011 | P11: =ZZZ__FnCalls!F20 -> Feb 2011 | Q11: =ZZZ__FnCalls!F21 -> Mar 2011 | R11: =ZZZ__FnCalls!F22 -> Apr 2011 | S11: =ZZZ__FnCalls!F23 -> May 2011 | T11: =ZZZ__FnCalls!F24 -> Jun 2011 | U11: =ZZZ__FnCalls!F25 -> Jul 2011 | V11: =ZZZ__FnCalls!F26 -> Aug 2011 | W11: =ZZZ__FnCalls!F27 -> Sep 2011 | X11: =ZZZ__FnCalls!F28 -> Oct 2011 | Y11: =ZZZ__FnCalls!F29 -> Nov 2011 | Z11: =ZZZ__FnCalls!F30 -> Dec 2011 | AA11: =ZZZ__FnCalls!H19 -> 2011 | AB11: =ZZZ__FnCalls!F31 -> Jan 2012 | AC11: =ZZZ__FnCalls!F32 -> Feb 2012 | AD11: =ZZZ__FnCalls!F33 -> Mar 2012 | AE11: =ZZZ__FnCalls!F34 -> Apr 2012 | AF11: =ZZZ__FnCalls!F35 -> May 2012 | AG11: =ZZZ__FnCalls!F36 -> Jun 2012 | AH11: =ZZZ__FnCalls!F37 -> Jul 2012 | AI11: =ZZZ__FnCalls!F38 -> Aug 2012 | AJ11: =ZZZ__FnCalls!F39 -> Sep 2012 | AK11: =ZZZ__FnCalls!F40 -> Oct 2012 | AL11: =ZZZ__FnCalls!F41 -> Nov 2012 | AM11: =ZZZ__FnCalls!F42 -> Dec 2012 | AN11: =ZZZ__FnCalls!H31 -> 2012 | AO11: =ZZZ__FnCalls!F43 -> Jan 2013 | AP11: =ZZZ__FnCalls!F44 -> Feb 2013 | AQ11: =ZZZ__FnCalls!F45 -> Mar 2013 | AR11: =ZZZ__FnCalls!F46 -> Apr 2013 | AS11: =ZZZ__FnCalls!F47 -> May 2013 | AT11: =ZZZ__FnCalls!F48 -> Jun 2013 | AU11: =ZZZ__FnCalls!F49 -> Jul 2013 | AV11: =ZZZ__FnCalls!F50 -> Aug 2013 | AW11: =ZZZ__FnCalls!F51 -> Sep 2013 | AX11: =ZZZ__FnCalls!F52 -> Oct 2013 | AY11: =ZZZ__FnCalls!F53 -> Nov 2013 | AZ11: =ZZZ__FnCalls!F54 -> Dec 2013 | BA11: =ZZZ__FnCalls!H43 -> 2013 | BB11: =ZZZ__FnCalls!F55 -> Jan 2014 | BC11: =ZZZ__FnCalls!F56 -> Feb 2014 | BD11: =ZZZ__FnCalls!F57 -> Mar 2014 | BE11: =ZZZ__FnCalls!F58 -> Apr 2014 | BF11: =ZZZ__FnCalls!F59 -> May 2014 | BG11: =ZZZ__FnCalls!F60 -> Jun 2014 | BH11: =ZZZ__FnCalls!F61 -> Jul 2014 | BI11: =ZZZ__FnCalls!F62 -> Aug 2014 | BJ11: =ZZZ__FnCalls!F63 -> Sep 2014 | BK11: =ZZZ__FnCalls!F64 -> Oct 2014 | BL11: =ZZZ__FnCalls!F65 -> Nov 2014 | BM11: =ZZZ__FnCalls!F66 -> Dec 2014 | BN11: =ZZZ__FnCalls!H55 -> 2014 | BO11: =ZZZ__FnCalls!F67 -> Jan 2015 | BP11: =ZZZ__FnCalls!F68 -> Feb 2015 | BQ11: =ZZZ__FnCalls!F69 -> Mar 2015 | BR11: =ZZZ__FnCalls!F70 -> Apr 2015 | BS11: =ZZZ__FnCalls!F71 -> May 2015 | BT11: =ZZZ__FnCalls!F72 -> Jun 2015 | BU11: =ZZZ__FnCalls!F73 -> Jul 2015 | BV11: =ZZZ__FnCalls!F74 -> Aug 2015 | BW11: =ZZZ__FnCalls!F75 -> Sep 2015 | BX11: =ZZZ__FnCalls!F76 -> Oct 2015 | BY11: =ZZZ__FnCalls!F77 -> Nov 2015 | BZ11: =ZZZ__FnCalls!F78 -> Dec 2015 | CA11: =ZZZ__FnCalls!H67 -> 2015 | CB11: =ZZZ__FnCalls!F79 -> Jan 2016 | CC11: =ZZZ__FnCalls!F80 -> Feb 2016 | CD11: =ZZZ__FnCalls!F81 -> Mar 2016 | CE11: =ZZZ__FnCalls!F82 -> Apr 2016 | CF11: =ZZZ__FnCalls!F83 -> May 2016 | CG11: =ZZZ__FnCalls!F84 -> Jun 2016 | CH11: =ZZZ__FnCalls!F85 -> Jul 2016 | CI11: =ZZZ__FnCalls!F86 -> Aug 2016 | CJ11: =ZZZ__FnCalls!F87 -> Sep 2016 | CK11: =ZZZ__FnCalls!F88 -> Oct 2016 | CL11: =ZZZ__FnCalls!F89 -> Nov 2016 | CM11: =ZZZ__FnCalls!F90 -> Dec 2016 | CN11: =ZZZ__FnCalls!H79 -> 2016 | CO11: =ZZZ__FnCalls!F91 -> Jan 2017 | CP11: =ZZZ__FnCalls!F92 -> Feb 2017 | CQ11: =ZZZ__FnCalls!F93 -> Mar 2017 | CR11: =ZZZ__FnCalls!F94 -> Apr 2017 | CS11: =ZZZ__FnCalls!F95 -> May 2017 | CT11: =ZZZ__FnCalls!F96 -> Jun 2017 | CU11: =ZZZ__FnCalls!F97 -> Jul 2017 | CV11: =ZZZ__FnCalls!F98 -> Aug 2017 | CW11: =ZZZ__FnCalls!F99 -> Sep 2017 | CX11: =ZZZ__FnCalls!F100 -> Oct 2017 | CY11: =ZZZ__FnCalls!F101 -> Nov 2017 | CZ11: =ZZZ__FnCalls!F102 -> Dec 2017 | DA11: =ZZZ__FnCalls!H91 -> 2017 | DB11: =ZZZ__FnCalls!F103 -> Jan 2018 | DC11: =ZZZ__FnCalls!F104 -> Feb 2018 | DD11: =ZZZ__FnCalls!F105 -> Mar 2018 | DE11: =ZZZ__FnCalls!F106 -> Apr 2018 | DF11: =ZZZ__FnCalls!F107 -> May 2018 | DG11: =ZZZ__FnCalls!F108 -> Jun 2018 | DH11: =ZZZ__FnCalls!F109 -> Jul 2018 | DI11: =ZZZ__FnCalls!F110 -> Aug 2018 | DJ11: =ZZZ__FnCalls!F111 -> Sep 2018 | DK11: =ZZZ__FnCalls!F112 -> Oct 2018 | DL11: =ZZZ__FnCalls!F113 -> Nov 2018 | DM11: =ZZZ__FnCalls!F114 -> Dec 2018 | DN11: =ZZZ__FnCalls!H103 -> 2018 | DO11: =ZZZ__FnCalls!F115 -> Jan 2019 | DP11: =ZZZ__FnCalls!F116 -> Feb 2019 | DQ11: =ZZZ__FnCalls!F117 -> Mar 2019 | DR11: =ZZZ__FnCalls!F118 -> Apr 2019 | DS11: =ZZZ__FnCalls!F119 -> May 2019 | DT11: =ZZZ__FnCalls!F120 -> Jun 2019 | DU11: =ZZZ__FnCalls!F121 -> Jul 2019 | DV11: =ZZZ__FnCalls!F122 -> Aug 2019 | DW11: =ZZZ__FnCalls!F123 -> Sep 2019 | DX11: =ZZZ__FnCalls!F124 -> Oct 2019 | DY11: =ZZZ__FnCalls!F125 -> Nov 2019 | DZ11: =ZZZ__FnCalls!F126 -> Dec 2019 | EA11: =ZZZ__FnCalls!H115 -> 2019 | EB11: =ZZZ__FnCalls!F127 -> Jan 2020 | EC11: =ZZZ__FnCalls!F128 -> Feb 2020 | ED11: =ZZZ__FnCalls!F129 -> Mar 2020 | EE11: =ZZZ__FnCalls!F130 -> Apr 2020 | EF11: =ZZZ__FnCalls!F131 -> May 2020 | EG11: =ZZZ__FnCalls!F132 -> Jun 2020 | EH11: =ZZZ__FnCalls!F133 -> Jul 2020 | EI11: =ZZZ__FnCalls!F134 -> Aug 2020 | EJ11: =ZZZ__FnCalls!F135 -> Sep 2020 | EK11: =ZZZ__FnCalls!F136 -> Oct 2020 | EL11: =ZZZ__FnCalls!F137 -> Nov 2020 | EM11: =ZZZ__FnCalls!F138 -> Dec 2020 | EN11: =ZZZ__FnCalls!H127 -> 2020
A12: =Labels!B29 -> Aggregate Demand | B12: =AVERAGE('Trial 1'!B9,'Trial 2'!B9,'Trial 3'!B9,'Trial 4'!B9,'Trial 5'!B9,'Trial 6'!B9,'Trial 7'!B9,'Trial 8'!B9) -> $936,684 | C12: =AVERAGE('Trial 1'!C9,'Trial 2'!C9,'Trial 3'!C9,'Trial 4'!C9,'Trial 5'!C9,'Trial 6'!C9,'Trial 7'!C9,'Trial 8'!C9) -> $951,066 | D12: =AVERAGE('Trial 1'!D9,'Trial 2'!D9,'Trial 3'!D9,'Trial 4'!D9,'Trial 5'!D9,'Trial 6'!D9,'Trial 7'!D9,'Trial 8'!D9) -> $969,876 | E12: =AVERAGE('Trial 1'!E9,'Trial 2'!E9,'Trial 3'!E9,'Trial 4'!E9,'Trial 5'!E9,'Trial 6'!E9,'Trial 7'!E9,'Trial 8'!E9) -> $977,310 | F12: =AVERAGE('Trial 1'!F9,'Trial 2'!F9,'Trial 3'!F9,'Trial 4'!F9,'Trial 5'!F9,'Trial 6'!F9,'Trial 7'!F9,'Trial 8'!F9) -> $987,074 | G12: =AVERAGE('Trial 1'!G9,'Trial 2'!G9,'Trial 3'!G9,'Trial 4'!G9,'Trial 5'!G9,'Trial 6'!G9,'Trial 7'!G9,'Trial 8'!G9) -> $973,199 | H12: =AVERAGE('Trial 1'!H9,'Trial 2'!H9,'Trial 3'!H9,'Trial 4'!H9,'Trial 5'!H9,'Trial 6'!H9,'Trial 7'!H9,'Trial 8'!H9) -> $954,530 | I12: =AVERAGE('Trial 1'!I9,'Trial 2'!I9,'Trial 3'!I9,'Trial 4'!I9,'Trial 5'!I9,'Trial 6'!I9,'Trial 7'!I9,'Trial 8'!I9) -> $962,727 | J12: =AVERAGE('Trial 1'!J9,'Trial 2'!J9,'Trial 3'!J9,'Trial 4'!J9,'Trial 5'!J9,'Trial 6'!J9,'Trial 7'!J9,'Trial 8'!J9) -> $963,765 | K12: =AVERAGE('Trial 1'!K9,'Trial 2'!K9,'Trial 3'!K9,'Trial 4'!K9,'Trial 5'!K9,'Trial 6'!K9,'Trial 7'!K9,'Trial 8'!K9) -> $963,435 | L12: =AVERAGE('Trial 1'!L9,'Trial 2'!L9,'Trial 3'!L9,'Trial 4'!L9,'Trial 5'!L9,'Trial 6'!L9,'Trial 7'!L9,'Trial 8'!L9) -> $960,918 | M12: =AVERAGE('Trial 1'!M9,'Trial 2'!M9,'Trial 3'!M9,'Trial 4'!M9,'Trial 5'!M9,'Trial 6'!M9,'Trial 7'!M9,'Trial 8'!M9) -> $954,430 | N12: =SUM(B12:M12) -> $11,555,014 | O12: =AVERAGE('Trial 1'!O9,'Trial 2'!O9,'Trial 3'!O9,'Trial 4'!O9,'Trial 5'!O9,'Trial 6'!O9,'Trial 7'!O9,'Trial 8'!O9) -> $965,514 | P12: =AVERAGE('Trial 1'!P9,'Trial 2'!P9,'Trial 3'!P9,'Trial 4'!P9,'Trial 5'!P9,'Trial 6'!P9,'Trial 7'!P9,'Trial 8'!P9) -> $961,766 | Q12: =AVERAGE('Trial 1'!Q9,'Trial 2'!Q9,'Trial 3'!Q9,'Trial 4'!Q9,'Trial 5'!Q9,'Trial 6'!Q9,'Trial 7'!Q9,'Trial 8'!Q9) -> $965,809 | R12: =AVERAGE('Trial 1'!R9,'Trial 2'!R9,'Trial 3'!R9,'Trial 4'!R9,'Trial 5'!R9,'Trial 6'!R9,'Trial 7'!R9,'Trial 8'!R9) -> $969,968 | S12: =AVERAGE('Trial 1'!S9,'Trial 2'!S9,'Trial 3'!S9,'Trial 4'!S9,'Trial 5'!S9,'Trial 6'!S9,'Trial 7'!S9,'Trial 8'!S9) -> $930,744 | T12: =AVERAGE('Trial 1'!T9,'Trial 2'!T9,'Trial 3'!T9,'Trial 4'!T9,'Trial 5'!T9,'Trial 6'!T9,'Trial 7'!T9,'Trial 8'!T9) -> $963,284 | U12: =AVERAGE('Trial 1'!U9,'Trial 2'!U9,'Trial 3'!U9,'Trial 4'!U9,'Trial 5'!U9,'Trial 6'!U9,'Trial 7'!U9,'Trial 8'!U9) -> $939,673 | V12: =AVERAGE('Trial 1'!V9,'Trial 2'!V9,'Trial 3'!V9,'Trial 4'!V9,'Trial 5'!V9,'Trial 6'!V9,'Trial 7'!V9,'Trial 8'!V9) -> $941,982 | W12: =AVERAGE('Trial 1'!W9,'Trial 2'!W9,'Trial 3'!W9,'Trial 4'!W9,'Trial 5'!W9,'Trial 6'!W9,'Trial 7'!W9,'Trial 8'!W9) -> $968,805 | X12: =AVERAGE('Trial 1'!X9,'Trial 2'!X9,'Trial 3'!X9,'Trial 4'!X9,'Trial 5'!X9,'Trial 6'!X9,'Trial 7'!X9,'Trial 8'!X9) -> $946,562 | Y12: =AVERAGE('Trial 1'!Y9,'Trial 2'!Y9,'Trial 3'!Y9,'Trial 4'!Y9,'Trial 5'!Y9,'Trial 6'!Y9,'Trial 7'!Y9,'Trial 8'!Y9) -> $948,061 | Z12: =AVERAGE('Trial 1'!Z9,'Trial 2'!Z9,'Trial 3'!Z9,'Trial 4'!Z9,'Trial 5'!Z9,'Trial 6'!Z9,'Trial 7'!Z9,'Trial 8'!Z9) -> $925,669 | AA12: =SUM(O12:Z12) -> $11,427,837 | AB12: =AVERAGE('Trial 1'!AB9,'Trial 2'!AB9,'Trial 3'!AB9,'Trial 4'!AB9,'Trial 5'!AB9,'Trial 6'!AB9,'Trial 7'!AB9,'Trial 8'!AB9) -> $950,528 | AC12: =AVERAGE('Trial 1'!AC9,'Trial 2'!AC9,'Trial 3'!AC9,'Trial 4'!AC9,'Trial 5'!AC9,'Trial 6'!AC9,'Trial 7'!AC9,'Trial 8'!AC9) -> $959,860 | AD12: =AVERAGE('Trial 1'!AD9,'Trial 2'!AD9,'Trial 3'!AD9,'Trial 4'!AD9,'Trial 5'!AD9,'Trial 6'!AD9,'Trial 7'!AD9,'Trial 8'!AD9) -> $952,272 | AE12: =AVERAGE('Trial 1'!AE9,'Trial 2'!AE9,'Trial 3'!AE9,'Trial 4'!AE9,'Trial 5'!AE9,'Trial 6'!AE9,'Trial 7'!AE9,'Trial 8'!AE9) -> $948,634 | AF12: =AVERAGE('Trial 1'!AF9,'Trial 2'!AF9,'Trial 3'!AF9,'Trial 4'!AF9,'Trial 5'!AF9,'Trial 6'!AF9,'Trial 7'!AF9,'Trial 8'!AF9) -> $931,960 | AG12: =AVERAGE('Trial 1'!AG9,'Trial 2'!AG9,'Trial 3'!AG9,'Trial 4'!AG9,'Trial 5'!AG9,'Trial 6'!AG9,'Trial 7'!AG9,'Trial 8'!AG9) -> $954,086 | AH12: =AVERAGE('Trial 1'!AH9,'Trial 2'!AH9,'Trial 3'!AH9,'Trial 4'!AH9,'Trial 5'!AH9,'Trial 6'!AH9,'Trial 7'!AH9,'Trial 8'!AH9) -> $962,943 | AI12: =AVERAGE('Trial 1'!AI9,'Trial 2'!AI9,'Trial 3'!AI9,'Trial 4'!AI9,'Trial 5'!AI9,'Trial 6'!AI9,'Trial 7'!AI9,'Trial 8'!AI9) -> $929,366 | AJ12: =AVERAGE('Trial 1'!AJ9,'Trial 2'!AJ9,'Trial 3'!AJ9,'Trial 4'!AJ9,'Trial 5'!AJ9,'Trial 6'!AJ9,'Trial 7'!AJ9,'Trial 8'!AJ9) -> $948,925 | AK12: =AVERAGE('Trial 1'!AK9,'Trial 2'!AK9,'Trial 3'!AK9,'Trial 4'!AK9,'Trial 5'!AK9,'Trial 6'!AK9,'Trial 7'!AK9,'Trial 8'!AK9) -> $953,003 | AL12: =AVERAGE('Trial 1'!AL9,'Trial 2'!AL9,'Trial 3'!AL9,'Trial 4'!AL9,'Trial 5'!AL9,'Trial 6'!AL9,'Trial 7'!AL9,'Trial 8'!AL9) -> $956,207 | AM12: =AVERAGE('Trial 1'!AM9,'Trial 2'!AM9,'Trial 3'!AM9,'Trial 4'!AM9,'Trial 5'!AM9,'Trial 6'!AM9,'Trial 7'!AM9,'Trial 8'!AM9) -> $934,720 | AN12: =SUM(AB12:AM12) -> $11,382,502 | AO12: =AVERAGE('Trial 1'!AO9,'Trial 2'!AO9,'Trial 3'!AO9,'Trial 4'!AO9,'Trial 5'!AO9,'Trial 6'!AO9,'Trial 7'!AO9,'Trial 8'!AO9) -> $945,565 | AP12: =AVERAGE('Trial 1'!AP9,'Trial 2'!AP9,'Trial 3'!AP9,'Trial 4'!AP9,'Trial 5'!AP9,'Trial 6'!AP9,'Trial 7'!AP9,'Trial 8'!AP9) -> $957,818 | AQ12: =AVERAGE('Trial 1'!AQ9,'Trial 2'!AQ9,'Trial 3'!AQ9,'Trial 4'!AQ9,'Trial 5'!AQ9,'Trial 6'!AQ9,'Trial 7'!AQ9,'Trial 8'!AQ9) -> $934,102 | AR12: =AVERAGE('Trial 1'!AR9,'Trial 2'!AR9,'Trial 3'!AR9,'Trial 4'!AR9,'Trial 5'!AR9,'Trial 6'!AR9,'Trial 7'!AR9,'Trial 8'!AR9) -> $941,675 | AS12: =AVERAGE('Trial 1'!AS9,'Trial 2'!AS9,'Trial 3'!AS9,'Trial 4'!AS9,'Trial 5'!AS9,'Trial 6'!AS9,'Trial 7'!AS9,'Trial 8'!AS9) -> $954,509 | AT12: =AVERAGE('Trial 1'!AT9,'Trial 2'!AT9,'Trial 3'!AT9,'Trial 4'!AT9,'Trial 5'!AT9,'Trial 6'!AT9,'Trial 7'!AT9,'Trial 8'!AT9) -> $940,976 | AU12: =AVERAGE('Trial 1'!AU9,'Trial 2'!AU9,'Trial 3'!AU9,'Trial 4'!AU9,'Trial 5'!AU9,'Trial 6'!AU9,'Trial 7'!AU9,'Trial 8'!AU9) -> $936,758 | AV12: =AVERAGE('Trial 1'!AV9,'Trial 2'!AV9,'Trial 3'!AV9,'Trial 4'!AV9,'Trial 5'!AV9,'Trial 6'!AV9,'Trial 7'!AV9,'Trial 8'!AV9) -> $942,536 | AW12: =AVERAGE('Trial 1'!AW9,'Trial 2'!AW9,'Trial 3'!AW9,'Trial 4'!AW9,'Trial 5'!AW9,'Trial 6'!AW9,'Trial 7'!AW9,'Trial 8'!AW9) -> $927,621 | AX12: =AVERAGE('Trial 1'!AX9,'Trial 2'!AX9,'Trial 3'!AX9,'Trial 4'!AX9,'Trial 5'!AX9,'Trial 6'!AX9,'Trial 7'!AX9,'Trial 8'!AX9) -> $935,671 | AY12: =AVERAGE('Trial 1'!AY9,'Trial 2'!AY9,'Trial 3'!AY9,'Trial 4'!AY9,'Trial 5'!AY9,'Trial 6'!AY9,'Trial 7'!AY9,'Trial 8'!AY9) -> $941,393 | AZ12: =AVERAGE('Trial 1'!AZ9,'Trial 2'!AZ9,'Trial 3'!AZ9,'Trial 4'!AZ9,'Trial 5'!AZ9,'Trial 6'!AZ9,'Trial 7'!AZ9,'Trial 8'!AZ9) -> $922,583 | BA12: =SUM(AO12:AZ12) -> $11,281,207 | BB12: =AVERAGE('Trial 1'!BB9,'Trial 2'!BB9,'Trial 3'!BB9,'Trial 4'!BB9,'Trial 5'!BB9,'Trial 6'!BB9,'Trial 7'!BB9,'Trial 8'!BB9) -> $924,391 | BC12: =AVERAGE('Trial 1'!BC9,'Trial 2'!BC9,'Trial 3'!BC9,'Trial 4'!BC9,'Trial 5'!BC9,'Trial 6'!BC9,'Trial 7'!BC9,'Trial 8'!BC9) -> $933,777 | BD12: =AVERAGE('Trial 1'!BD9,'Trial 2'!BD9,'Trial 3'!BD9,'Trial 4'!BD9,'Trial 5'!BD9,'Trial 6'!BD9,'Trial 7'!BD9,'Trial 8'!BD9) -> $937,572 | BE12: =AVERAGE('Trial 1'!BE9,'Trial 2'!BE9,'Trial 3'!BE9,'Trial 4'!BE9,'Trial 5'!BE9,'Trial 6'!BE9,'Trial 7'!BE9,'Trial 8'!BE9) -> $933,117 | BF12: =AVERAGE('Trial 1'!BF9,'Trial 2'!BF9,'Trial 3'!BF9,'Trial 4'!BF9,'Trial 5'!BF9,'Trial 6'!BF9,'Trial 7'!BF9,'Trial 8'!BF9) -> $941,234 | BG12: =AVERAGE('Trial 1'!BG9,'Trial 2'!BG9,'Trial 3'!BG9,'Trial 4'!BG9,'Trial 5'!BG9,'Trial 6'!BG9,'Trial 7'!BG9,'Trial 8'!BG9) -> $940,776 | BH12: =AVERAGE('Trial 1'!BH9,'Trial 2'!BH9,'Trial 3'!BH9,'Trial 4'!BH9,'Trial 5'!BH9,'Trial 6'!BH9,'Trial 7'!BH9,'Trial 8'!BH9) -> $920,361 | BI12: =AVERAGE('Trial 1'!BI9,'Trial 2'!BI9,'Trial 3'!BI9,'Trial 4'!BI9,'Trial 5'!BI9,'Trial 6'!BI9,'Trial 7'!BI9,'Trial 8'!BI9) -> $928,098 | BJ12: =AVERAGE('Trial 1'!BJ9,'Trial 2'!BJ9,'Trial 3'!BJ9,'Trial 4'!BJ9,'Trial 5'!BJ9,'Trial 6'!BJ9,'Trial 7'!BJ9,'Trial 8'!BJ9) -> $941,473 | BK12: =AVERAGE('Trial 1'!BK9,'Trial 2'!BK9,'Trial 3'!BK9,'Trial 4'!BK9,'Trial 5'!BK9,'Trial 6'!BK9,'Trial 7'!BK9,'Trial 8'!BK9) -> $929,884 | BL12: =AVERAGE('Trial 1'!BL9,'Trial 2'!BL9,'Trial 3'!BL9,'Trial 4'!BL9,'Trial 5'!BL9,'Trial 6'!BL9,'Trial 7'!BL9,'Trial 8'!BL9) -> $940,902 | BM12: =AVERAGE('Trial 1'!BM9,'Trial 2'!BM9,'Trial 3'!BM9,'Trial 4'!BM9,'Trial 5'!BM9,'Trial 6'!BM9,'Trial 7'!BM9,'Trial 8'!BM9) -> $930,850 | BN12: =SUM(BB12:BM12) -> $11,202,436 | BO12: =AVERAGE('Trial 1'!BO9,'Trial 2'!BO9,'Trial 3'!BO9,'Trial 4'!BO9,'Trial 5'!BO9,'Trial 6'!BO9,'Trial 7'!BO9,'Trial 8'!BO9) -> $929,321 | BP12: =AVERAGE('Trial 1'!BP9,'Trial 2'!BP9,'Trial 3'!BP9,'Trial 4'!BP9,'Trial 5'!BP9,'Trial 6'!BP9,'Trial 7'!BP9,'Trial 8'!BP9) -> $935,234 | BQ12: =AVERAGE('Trial 1'!BQ9,'Trial 2'!BQ9,'Trial 3'!BQ9,'Trial 4'!BQ9,'Trial 5'!BQ9,'Trial 6'!BQ9,'Trial 7'!BQ9,'Trial 8'!BQ9) -> $945,366 | BR12: =AVERAGE('Trial 1'!BR9,'Trial 2'!BR9,'Trial 3'!BR9,'Trial 4'!BR9,'Trial 5'!BR9,'Trial 6'!BR9,'Trial 7'!BR9,'Trial 8'!BR9) -> $941,539 | BS12: =AVERAGE('Trial 1'!BS9,'Trial 2'!BS9,'Trial 3'!BS9,'Trial 4'!BS9,'Trial 5'!BS9,'Trial 6'!BS9,'Trial 7'!BS9,'Trial 8'!BS9) -> $924,218 | BT12: =AVERAGE('Trial 1'!BT9,'Trial 2'!BT9,'Trial 3'!BT9,'Trial 4'!BT9,'Trial 5'!BT9,'Trial 6'!BT9,'Trial 7'!BT9,'Trial 8'!BT9) -> $949,324 | BU12: =AVERAGE('Trial 1'!BU9,'Trial 2'!BU9,'Trial 3'!BU9,'Trial 4'!BU9,'Trial 5'!BU9,'Trial 6'!BU9,'Trial 7'!BU9,'Trial 8'!BU9) -> $921,853 | BV12: =AVERAGE('Trial 1'!BV9,'Trial 2'!BV9,'Trial 3'!BV9,'Trial 4'!BV9,'Trial 5'!BV9,'Trial 6'!BV9,'Trial 7'!BV9,'Trial 8'!BV9) -> $927,894 | BW12: =AVERAGE('Trial 1'!BW9,'Trial 2'!BW9,'Trial 3'!BW9,'Trial 4'!BW9,'Trial 5'!BW9,'Trial 6'!BW9,'Trial 7'!BW9,'Trial 8'!BW9) -> $944,174 | BX12: =AVERAGE('Trial 1'!BX9,'Trial 2'!BX9,'Trial 3'!BX9,'Trial 4'!BX9,'Trial 5'!BX9,'Trial 6'!BX9,'Trial 7'!BX9,'Trial 8'!BX9) -> $919,594 | BY12: =AVERAGE('Trial 1'!BY9,'Trial 2'!BY9,'Trial 3'!BY9,'Trial 4'!BY9,'Trial 5'!BY9,'Trial 6'!BY9,'Trial 7'!BY9,'Trial 8'!BY9) -> $940,724 | BZ12: =AVERAGE('Trial 1'!BZ9,'Trial 2'!BZ9,'Trial 3'!BZ9,'Trial 4'!BZ9,'Trial 5'!BZ9,'Trial 6'!BZ9,'Trial 7'!BZ9,'Trial 8'!BZ9) -> $929,556 | CA12: =SUM(BO12:BZ12) -> $11,208,797 | CB12: =AVERAGE('Trial 1'!CB9,'Trial 2'!CB9,'Trial 3'!CB9,'Trial 4'!CB9,'Trial 5'!CB9,'Trial 6'!CB9,'Trial 7'!CB9,'Trial 8'!CB9) -> $925,901 | CC12: =AVERAGE('Trial 1'!CC9,'Trial 2'!CC9,'Trial 3'!CC9,'Trial 4'!CC9,'Trial 5'!CC9,'Trial 6'!CC9,'Trial 7'!CC9,'Trial 8'!CC9) -> $923,253 | CD12: =AVERAGE('Trial 1'!CD9,'Trial 2'!CD9,'Trial 3'!CD9,'Trial 4'!CD9,'Trial 5'!CD9,'Trial 6'!CD9,'Trial 7'!CD9,'Trial 8'!CD9) -> $934,441 | CE12: =AVERAGE('Trial 1'!CE9,'Trial 2'!CE9,'Trial 3'!CE9,'Trial 4'!CE9,'Trial 5'!CE9,'Trial 6'!CE9,'Trial 7'!CE9,'Trial 8'!CE9) -> $916,311 | CF12: =AVERAGE('Trial 1'!CF9,'Trial 2'!CF9,'Trial 3'!CF9,'Trial 4'!CF9,'Trial 5'!CF9,'Trial 6'!CF9,'Trial 7'!CF9,'Trial 8'!CF9) -> $924,971 | CG12: =AVERAGE('Trial 1'!CG9,'Trial 2'!CG9,'Trial 3'!CG9,'Trial 4'!CG9,'Trial 5'!CG9,'Trial 6'!CG9,'Trial 7'!CG9,'Trial 8'!CG9) -> $953,825 | CH12: =AVERAGE('Trial 1'!CH9,'Trial 2'!CH9,'Trial 3'!CH9,'Trial 4'!CH9,'Trial 5'!CH9,'Trial 6'!CH9,'Trial 7'!CH9,'Trial 8'!CH9) -> $929,650 | CI12: =AVERAGE('Trial 1'!CI9,'Trial 2'!CI9,'Trial 3'!CI9,'Trial 4'!CI9,'Trial 5'!CI9,'Trial 6'!CI9,'Trial 7'!CI9,'Trial 8'!CI9) -> $935,001 | CJ12: =AVERAGE('Trial 1'!CJ9,'Trial 2'!CJ9,'Trial 3'!CJ9,'Trial 4'!CJ9,'Trial 5'!CJ9,'Trial 6'!CJ9,'Trial 7'!CJ9,'Trial 8'!CJ9) -> $930,436 | CK12: =AVERAGE('Trial 1'!CK9,'Trial 2'!CK9,'Trial 3'!CK9,'Trial 4'!CK9,'Trial 5'!CK9,'Trial 6'!CK9,'Trial 7'!CK9,'Trial 8'!CK9) -> $943,656 | CL12: =AVERAGE('Trial 1'!CL9,'Trial 2'!CL9,'Trial 3'!CL9,'Trial 4'!CL9,'Trial 5'!CL9,'Trial 6'!CL9,'Trial 7'!CL9,'Trial 8'!CL9) -> $922,284 | CM12: =AVERAGE('Trial 1'!CM9,'Trial 2'!CM9,'Trial 3'!CM9,'Trial 4'!CM9,'Trial 5'!CM9,'Trial 6'!CM9,'Trial 7'!CM9,'Trial 8'!CM9) -> $940,495 | CN12: =SUM(CB12:CM12) -> $11,180,223 | CO12: =AVERAGE('Trial 1'!CO9,'Trial 2'!CO9,'Trial 3'!CO9,'Trial 4'!CO9,'Trial 5'!CO9,'Trial 6'!CO9,'Trial 7'!CO9,'Trial 8'!CO9) -> $931,543 | CP12: =AVERAGE('Trial 1'!CP9,'Trial 2'!CP9,'Trial 3'!CP9,'Trial 4'!CP9,'Trial 5'!CP9,'Trial 6'!CP9,'Trial 7'!CP9,'Trial 8'!CP9) -> $931,880 | CQ12: =AVERAGE('Trial 1'!CQ9,'Trial 2'!CQ9,'Trial 3'!CQ9,'Trial 4'!CQ9,'Trial 5'!CQ9,'Trial 6'!CQ9,'Trial 7'!CQ9,'Trial 8'!CQ9) -> $929,952 | CR12: =AVERAGE('Trial 1'!CR9,'Trial 2'!CR9,'Trial 3'!CR9,'Trial 4'!CR9,'Trial 5'!CR9,'Trial 6'!CR9,'Trial 7'!CR9,'Trial 8'!CR9) -> $923,777 | CS12: =AVERAGE('Trial 1'!CS9,'Trial 2'!CS9,'Trial 3'!CS9,'Trial 4'!CS9,'Trial 5'!CS9,'Trial 6'!CS9,'Trial 7'!CS9,'Trial 8'!CS9) -> $901,131 | CT12: =AVERAGE('Trial 1'!CT9,'Trial 2'!CT9,'Trial 3'!CT9,'Trial 4'!CT9,'Trial 5'!CT9,'Trial 6'!CT9,'Trial 7'!CT9,'Trial 8'!CT9) -> $911,038 | CU12: =AVERAGE('Trial 1'!CU9,'Trial 2'!CU9,'Trial 3'!CU9,'Trial 4'!CU9,'Trial 5'!CU9,'Trial 6'!CU9,'Trial 7'!CU9,'Trial 8'!CU9) -> $944,841 | CV12: =AVERAGE('Trial 1'!CV9,'Trial 2'!CV9,'Trial 3'!CV9,'Trial 4'!CV9,'Trial 5'!CV9,'Trial 6'!CV9,'Trial 7'!CV9,'Trial 8'!CV9) -> $917,068 | CW12: =AVERAGE('Trial 1'!CW9,'Trial 2'!CW9,'Trial 3'!CW9,'Trial 4'!CW9,'Trial 5'!CW9,'Trial 6'!CW9,'Trial 7'!CW9,'Trial 8'!CW9) -> $918,621 | CX12: =AVERAGE('Trial 1'!CX9,'Trial 2'!CX9,'Trial 3'!CX9,'Trial 4'!CX9,'Trial 5'!CX9,'Trial 6'!CX9,'Trial 7'!CX9,'Trial 8'!CX9) -> $913,937 | CY12: =AVERAGE('Trial 1'!CY9,'Trial 2'!CY9,'Trial 3'!CY9,'Trial 4'!CY9,'Trial 5'!CY9,'Trial 6'!CY9,'Trial 7'!CY9,'Trial 8'!CY9) -> $926,859 | CZ12: =AVERAGE('Trial 1'!CZ9,'Trial 2'!CZ9,'Trial 3'!CZ9,'Trial 4'!CZ9,'Trial 5'!CZ9,'Trial 6'!CZ9,'Trial 7'!CZ9,'Trial 8'!CZ9) -> $914,771 | DA12: =SUM(CO12:CZ12) -> $11,065,418 | DB12: =AVERAGE('Trial 1'!DB9,'Trial 2'!DB9,'Trial 3'!DB9,'Trial 4'!DB9,'Trial 5'!DB9,'Trial 6'!DB9,'Trial 7'!DB9,'Trial 8'!DB9) -> $928,251 | DC12: =AVERAGE('Trial 1'!DC9,'Trial 2'!DC9,'Trial 3'!DC9,'Trial 4'!DC9,'Trial 5'!DC9,'Trial 6'!DC9,'Trial 7'!DC9,'Trial 8'!DC9) -> $906,241 | DD12: =AVERAGE('Trial 1'!DD9,'Trial 2'!DD9,'Trial 3'!DD9,'Trial 4'!DD9,'Trial 5'!DD9,'Trial 6'!DD9,'Trial 7'!DD9,'Trial 8'!DD9) -> $912,894 | DE12: =AVERAGE('Trial 1'!DE9,'Trial 2'!DE9,'Trial 3'!DE9,'Trial 4'!DE9,'Trial 5'!DE9,'Trial 6'!DE9,'Trial 7'!DE9,'Trial 8'!DE9) -> $924,375 | DF12: =AVERAGE('Trial 1'!DF9,'Trial 2'!DF9,'Trial 3'!DF9,'Trial 4'!DF9,'Trial 5'!DF9,'Trial 6'!DF9,'Trial 7'!DF9,'Trial 8'!DF9) -> $916,645 | DG12: =AVERAGE('Trial 1'!DG9,'Trial 2'!DG9,'Trial 3'!DG9,'Trial 4'!DG9,'Trial 5'!DG9,'Trial 6'!DG9,'Trial 7'!DG9,'Trial 8'!DG9) -> $912,996 | DH12: =AVERAGE('Trial 1'!DH9,'Trial 2'!DH9,'Trial 3'!DH9,'Trial 4'!DH9,'Trial 5'!DH9,'Trial 6'!DH9,'Trial 7'!DH9,'Trial 8'!DH9) -> $910,384 | DI12: =AVERAGE('Trial 1'!DI9,'Trial 2'!DI9,'Trial 3'!DI9,'Trial 4'!DI9,'Trial 5'!DI9,'Trial 6'!DI9,'Trial 7'!DI9,'Trial 8'!DI9) -> $906,696 | DJ12: =AVERAGE('Trial 1'!DJ9,'Trial 2'!DJ9,'Trial 3'!DJ9,'Trial 4'!DJ9,'Trial 5'!DJ9,'Trial 6'!DJ9,'Trial 7'!DJ9,'Trial 8'!DJ9) -> $914,945 | DK12: =AVERAGE('Trial 1'!DK9,'Trial 2'!DK9,'Trial 3'!DK9,'Trial 4'!DK9,'Trial 5'!DK9,'Trial 6'!DK9,'Trial 7'!DK9,'Trial 8'!DK9) -> $912,184 | DL12: =AVERAGE('Trial 1'!DL9,'Trial 2'!DL9,'Trial 3'!DL9,'Trial 4'!DL9,'Trial 5'!DL9,'Trial 6'!DL9,'Trial 7'!DL9,'Trial 8'!DL9) -> $904,450 | DM12: =AVERAGE('Trial 1'!DM9,'Trial 2'!DM9,'Trial 3'!DM9,'Trial 4'!DM9,'Trial 5'!DM9,'Trial 6'!DM9,'Trial 7'!DM9,'Trial 8'!DM9) -> $907,079 | DN12: =SUM(DB12:DM12) -> $10,957,140 | DO12: =AVERAGE('Trial 1'!DO9,'Trial 2'!DO9,'Trial 3'!DO9,'Trial 4'!DO9,'Trial 5'!DO9,'Trial 6'!DO9,'Trial 7'!DO9,'Trial 8'!DO9) -> $923,025 | DP12: =AVERAGE('Trial 1'!DP9,'Trial 2'!DP9,'Trial 3'!DP9,'Trial 4'!DP9,'Trial 5'!DP9,'Trial 6'!DP9,'Trial 7'!DP9,'Trial 8'!DP9) -> $906,691 | DQ12: =AVERAGE('Trial 1'!DQ9,'Trial 2'!DQ9,'Trial 3'!DQ9,'Trial 4'!DQ9,'Trial 5'!DQ9,'Trial 6'!DQ9,'Trial 7'!DQ9,'Trial 8'!DQ9) -> $927,150 | DR12: =AVERAGE('Trial 1'!DR9,'Trial 2'!DR9,'Trial 3'!DR9,'Trial 4'!DR9,'Trial 5'!DR9,'Trial 6'!DR9,'Trial 7'!DR9,'Trial 8'!DR9) -> $914,371 | DS12: =AVERAGE('Trial 1'!DS9,'Trial 2'!DS9,'Trial 3'!DS9,'Trial 4'!DS9,'Trial 5'!DS9,'Trial 6'!DS9,'Trial 7'!DS9,'Trial 8'!DS9) -> $912,292 | DT12: =AVERAGE('Trial 1'!DT9,'Trial 2'!DT9,'Trial 3'!DT9,'Trial 4'!DT9,'Trial 5'!DT9,'Trial 6'!DT9,'Trial 7'!DT9,'Trial 8'!DT9) -> $924,875 | DU12: =AVERAGE('Trial 1'!DU9,'Trial 2'!DU9,'Trial 3'!DU9,'Trial 4'!DU9,'Trial 5'!DU9,'Trial 6'!DU9,'Trial 7'!DU9,'Trial 8'!DU9) -> $915,931 | DV12: =AVERAGE('Trial 1'!DV9,'Trial 2'!DV9,'Trial 3'!DV9,'Trial 4'!DV9,'Trial 5'!DV9,'Trial 6'!DV9,'Trial 7'!DV9,'Trial 8'!DV9) -> $919,330 | DW12: =AVERAGE('Trial 1'!DW9,'Trial 2'!DW9,'Trial 3'!DW9,'Trial 4'!DW9,'Trial 5'!DW9,'Trial 6'!DW9,'Trial 7'!DW9,'Trial 8'!DW9) -> $913,335 | DX12: =AVERAGE('Trial 1'!DX9,'Trial 2'!DX9,'Trial 3'!DX9,'Trial 4'!DX9,'Trial 5'!DX9,'Trial 6'!DX9,'Trial 7'!DX9,'Trial 8'!DX9) -> $910,833 | DY12: =AVERAGE('Trial 1'!DY9,'Trial 2'!DY9,'Trial 3'!DY9,'Trial 4'!DY9,'Trial 5'!DY9,'Trial 6'!DY9,'Trial 7'!DY9,'Trial 8'!DY9) -> $911,586 | DZ12: =AVERAGE('Trial 1'!DZ9,'Trial 2'!DZ9,'Trial 3'!DZ9,'Trial 4'!DZ9,'Trial 5'!DZ9,'Trial 6'!DZ9,'Trial 7'!DZ9,'Trial 8'!DZ9) -> $894,124 | EA12: =SUM(DO12:DZ12) -> $10,973,542 | EB12: =AVERAGE('Trial 1'!EB9,'Trial 2'!EB9,'Trial 3'!EB9,'Trial 4'!EB9,'Trial 5'!EB9,'Trial 6'!EB9,'Trial 7'!EB9,'Trial 8'!EB9) -> $915,252 | EC12: =AVERAGE('Trial 1'!EC9,'Trial 2'!EC9,'Trial 3'!EC9,'Trial 4'!EC9,'Trial 5'!EC9,'Trial 6'!EC9,'Trial 7'!EC9,'Trial 8'!EC9) -> $894,998 | ED12: =AVERAGE('Trial 1'!ED9,'Trial 2'!ED9,'Trial 3'!ED9,'Trial 4'!ED9,'Trial 5'!ED9,'Trial 6'!ED9,'Trial 7'!ED9,'Trial 8'!ED9) -> $900,600 | EE12: =AVERAGE('Trial 1'!EE9,'Trial 2'!EE9,'Trial 3'!EE9,'Trial 4'!EE9,'Trial 5'!EE9,'Trial 6'!EE9,'Trial 7'!EE9,'Trial 8'!EE9) -> $909,354 | EF12: =AVERAGE('Trial 1'!EF9,'Trial 2'!EF9,'Trial 3'!EF9,'Trial 4'!EF9,'Trial 5'!EF9,'Trial 6'!EF9,'Trial 7'!EF9,'Trial 8'!EF9) -> $910,727 | EG12: =AVERAGE('Trial 1'!EG9,'Trial 2'!EG9,'Trial 3'!EG9,'Trial 4'!EG9,'Trial 5'!EG9,'Trial 6'!EG9,'Trial 7'!EG9,'Trial 8'!EG9) -> $896,605 | EH12: =AVERAGE('Trial 1'!EH9,'Trial 2'!EH9,'Trial 3'!EH9,'Trial 4'!EH9,'Trial 5'!EH9,'Trial 6'!EH9,'Trial 7'!EH9,'Trial 8'!EH9) -> $900,370 | EI12: =AVERAGE('Trial 1'!EI9,'Trial 2'!EI9,'Trial 3'!EI9,'Trial 4'!EI9,'Trial 5'!EI9,'Trial 6'!EI9,'Trial 7'!EI9,'Trial 8'!EI9) -> $881,391 | EJ12: =AVERAGE('Trial 1'!EJ9,'Trial 2'!EJ9,'Trial 3'!EJ9,'Trial 4'!EJ9,'Trial 5'!EJ9,'Trial 6'!EJ9,'Trial 7'!EJ9,'Trial 8'!EJ9) -> $899,764 | EK12: =AVERAGE('Trial 1'!EK9,'Trial 2'!EK9,'Trial 3'!EK9,'Trial 4'!EK9,'Trial 5'!EK9,'Trial 6'!EK9,'Trial 7'!EK9,'Trial 8'!EK9) -> $910,378 | EL12: =AVERAGE('Trial 1'!EL9,'Trial 2'!EL9,'Trial 3'!EL9,'Trial 4'!EL9,'Trial 5'!EL9,'Trial 6'!EL9,'Trial 7'!EL9,'Trial 8'!EL9) -> $896,488 | EM12: =AVERAGE('Trial 1'!EM9,'Trial 2'!EM9,'Trial 3'!EM9,'Trial 4'!EM9,'Trial 5'!EM9,'Trial 6'!EM9,'Trial 7'!EM9,'Trial 8'!EM9) -> $908,113 | EN12: =SUM(EB12:EM12) -> $10,824,040
A13: =Labels!B30 -> Aggregate Demand std dev | B13: =STDEV('Trial 1'!B9,'Trial 2'!B9,'Trial 3'!B9,'Trial 4'!B9,'Trial 5'!B9,'Trial 6'!B9,'Trial 7'!B9,'Trial 8'!B9) -> $20,429 | C13: =STDEV('Trial 1'!C9,'Trial 2'!C9,'Trial 3'!C9,'Trial 4'!C9,'Trial 5'!C9,'Trial 6'!C9,'Trial 7'!C9,'Trial 8'!C9) -> $33,245 | D13: =STDEV('Trial 1'!D9,'Trial 2'!D9,'Trial 3'!D9,'Trial 4'!D9,'Trial 5'!D9,'Trial 6'!D9,'Trial 7'!D9,'Trial 8'!D9) -> $24,423 | E13: =STDEV('Trial 1'!E9,'Trial 2'!E9,'Trial 3'!E9,'Trial 4'!E9,'Trial 5'!E9,'Trial 6'!E9,'Trial 7'!E9,'Trial 8'!E9) -> $36,623 | F13: =STDEV('Trial 1'!F9,'Trial 2'!F9,'Trial 3'!F9,'Trial 4'!F9,'Trial 5'!F9,'Trial 6'!F9,'Trial 7'!F9,'Trial 8'!F9) -> $24,638 | G13: =STDEV('Trial 1'!G9,'Trial 2'!G9,'Trial 3'!G9,'Trial 4'!G9,'Trial 5'!G9,'Trial 6'!G9,'Trial 7'!G9,'Trial 8'!G9) -> $31,339 | H13: =STDEV('Trial 1'!H9,'Trial 2'!H9,'Trial 3'!H9,'Trial 4'!H9,'Trial 5'!H9,'Trial 6'!H9,'Trial 7'!H9,'Trial 8'!H9) -> $20,813 | I13: =STDEV('Trial 1'!I9,'Trial 2'!I9,'Trial 3'!I9,'Trial 4'!I9,'Trial 5'!I9,'Trial 6'!I9,'Trial 7'!I9,'Trial 8'!I9) -> $29,937 | J13: =STDEV('Trial 1'!J9,'Trial 2'!J9,'Trial 3'!J9,'Trial 4'!J9,'Trial 5'!J9,'Trial 6'!J9,'Trial 7'!J9,'Trial 8'!J9) -> $32,893 | K13: =STDEV('Trial 1'!K9,'Trial 2'!K9,'Trial 3'!K9,'Trial 4'!K9,'Trial 5'!K9,'Trial 6'!K9,'Trial 7'!K9,'Trial 8'!K9) -> $27,870 | L13: =STDEV('Trial 1'!L9,'Trial 2'!L9,'Trial 3'!L9,'Trial 4'!L9,'Trial 5'!L9,'Trial 6'!L9,'Trial 7'!L9,'Trial 8'!L9) -> $34,138 | M13: =STDEV('Trial 1'!M9,'Trial 2'!M9,'Trial 3'!M9,'Trial 4'!M9,'Trial 5'!M9,'Trial 6'!M9,'Trial 7'!M9,'Trial 8'!M9) -> $25,186 | N13: $341,532 | O13: =STDEV('Trial 1'!O9,'Trial 2'!O9,'Trial 3'!O9,'Trial 4'!O9,'Trial 5'!O9,'Trial 6'!O9,'Trial 7'!O9,'Trial 8'!O9) -> $24,626 | P13: =STDEV('Trial 1'!P9,'Trial 2'!P9,'Trial 3'!P9,'Trial 4'!P9,'Trial 5'!P9,'Trial 6'!P9,'Trial 7'!P9,'Trial 8'!P9) -> $21,873 | Q13: =STDEV('Trial 1'!Q9,'Trial 2'!Q9,'Trial 3'!Q9,'Trial 4'!Q9,'Trial 5'!Q9,'Trial 6'!Q9,'Trial 7'!Q9,'Trial 8'!Q9) -> $43,037 | R13: =STDEV('Trial 1'!R9,'Trial 2'!R9,'Trial 3'!R9,'Trial 4'!R9,'Trial 5'!R9,'Trial 6'!R9,'Trial 7'!R9,'Trial 8'!R9) -> $12,790 | S13: =STDEV('Trial 1'!S9,'Trial 2'!S9,'Trial 3'!S9,'Trial 4'!S9,'Trial 5'!S9,'Trial 6'!S9,'Trial 7'!S9,'Trial 8'!S9) -> $29,166 | T13: =STDEV('Trial 1'!T9,'Trial 2'!T9,'Trial 3'!T9,'Trial 4'!T9,'Trial 5'!T9,'Trial 6'!T9,'Trial 7'!T9,'Trial 8'!T9) -> $32,950 | U13: =STDEV('Trial 1'!U9,'Trial 2'!U9,'Trial 3'!U9,'Trial 4'!U9,'Trial 5'!U9,'Trial 6'!U9,'Trial 7'!U9,'Trial 8'!U9) -> $29,600 | V13: =STDEV('Trial 1'!V9,'Trial 2'!V9,'Trial 3'!V9,'Trial 4'!V9,'Trial 5'!V9,'Trial 6'!V9,'Trial 7'!V9,'Trial 8'!V9) -> $23,741 | W13: =STDEV('Trial 1'!W9,'Trial 2'!W9,'Trial 3'!W9,'Trial 4'!W9,'Trial 5'!W9,'Trial 6'!W9,'Trial 7'!W9,'Trial 8'!W9) -> $30,698 | X13: =STDEV('Trial 1'!X9,'Trial 2'!X9,'Trial 3'!X9,'Trial 4'!X9,'Trial 5'!X9,'Trial 6'!X9,'Trial 7'!X9,'Trial 8'!X9) -> $21,541 | Y13: =STDEV('Trial 1'!Y9,'Trial 2'!Y9,'Trial 3'!Y9,'Trial 4'!Y9,'Trial 5'!Y9,'Trial 6'!Y9,'Trial 7'!Y9,'Trial 8'!Y9) -> $44,511 | Z13: =STDEV('Trial 1'!Z9,'Trial 2'!Z9,'Trial 3'!Z9,'Trial 4'!Z9,'Trial 5'!Z9,'Trial 6'!Z9,'Trial 7'!Z9,'Trial 8'!Z9) -> $22,609 | AA13: $337,143 | AB13: =STDEV('Trial 1'!AB9,'Trial 2'!AB9,'Trial 3'!AB9,'Trial 4'!AB9,'Trial 5'!AB9,'Trial 6'!AB9,'Trial 7'!AB9,'Trial 8'!AB9) -> $27,182 | AC13: =STDEV('Trial 1'!AC9,'Trial 2'!AC9,'Trial 3'!AC9,'Trial 4'!AC9,'Trial 5'!AC9,'Trial 6'!AC9,'Trial 7'!AC9,'Trial 8'!AC9) -> $23,958 | AD13: =STDEV('Trial 1'!AD9,'Trial 2'!AD9,'Trial 3'!AD9,'Trial 4'!AD9,'Trial 5'!AD9,'Trial 6'!AD9,'Trial 7'!AD9,'Trial 8'!AD9) -> $29,843 | AE13: =STDEV('Trial 1'!AE9,'Trial 2'!AE9,'Trial 3'!AE9,'Trial 4'!AE9,'Trial 5'!AE9,'Trial 6'!AE9,'Trial 7'!AE9,'Trial 8'!AE9) -> $41,098 | AF13: =STDEV('Trial 1'!AF9,'Trial 2'!AF9,'Trial 3'!AF9,'Trial 4'!AF9,'Trial 5'!AF9,'Trial 6'!AF9,'Trial 7'!AF9,'Trial 8'!AF9) -> $30,294 | AG13: =STDEV('Trial 1'!AG9,'Trial 2'!AG9,'Trial 3'!AG9,'Trial 4'!AG9,'Trial 5'!AG9,'Trial 6'!AG9,'Trial 7'!AG9,'Trial 8'!AG9) -> $23,263 | AH13: =STDEV('Trial 1'!AH9,'Trial 2'!AH9,'Trial 3'!AH9,'Trial 4'!AH9,'Trial 5'!AH9,'Trial 6'!AH9,'Trial 7'!AH9,'Trial 8'!AH9) -> $8,866 | AI13: =STDEV('Trial 1'!AI9,'Trial 2'!AI9,'Trial 3'!AI9,'Trial 4'!AI9,'Trial 5'!AI9,'Trial 6'!AI9,'Trial 7'!AI9,'Trial 8'!AI9) -> $20,159 | AJ13: =STDEV('Trial 1'!AJ9,'Trial 2'!AJ9,'Trial 3'!AJ9,'Trial 4'!AJ9,'Trial 5'!AJ9,'Trial 6'!AJ9,'Trial 7'!AJ9,'Trial 8'!AJ9) -> $24,296 | AK13: =STDEV('Trial 1'!AK9,'Trial 2'!AK9,'Trial 3'!AK9,'Trial 4'!AK9,'Trial 5'!AK9,'Trial 6'!AK9,'Trial 7'!AK9,'Trial 8'!AK9) -> $21,026 | AL13: =STDEV('Trial 1'!AL9,'Trial 2'!AL9,'Trial 3'!AL9,'Trial 4'!AL9,'Trial 5'!AL9,'Trial 6'!AL9,'Trial 7'!AL9,'Trial 8'!AL9) -> $25,595 | AM13: =STDEV('Trial 1'!AM9,'Trial 2'!AM9,'Trial 3'!AM9,'Trial 4'!AM9,'Trial 5'!AM9,'Trial 6'!AM9,'Trial 7'!AM9,'Trial 8'!AM9) -> $36,104 | AN13: $311,684 | AO13: =STDEV('Trial 1'!AO9,'Trial 2'!AO9,'Trial 3'!AO9,'Trial 4'!AO9,'Trial 5'!AO9,'Trial 6'!AO9,'Trial 7'!AO9,'Trial 8'!AO9) -> $23,585 | AP13: =STDEV('Trial 1'!AP9,'Trial 2'!AP9,'Trial 3'!AP9,'Trial 4'!AP9,'Trial 5'!AP9,'Trial 6'!AP9,'Trial 7'!AP9,'Trial 8'!AP9) -> $24,490 | AQ13: =STDEV('Trial 1'!AQ9,'Trial 2'!AQ9,'Trial 3'!AQ9,'Trial 4'!AQ9,'Trial 5'!AQ9,'Trial 6'!AQ9,'Trial 7'!AQ9,'Trial 8'!AQ9) -> $25,106 | AR13: =STDEV('Trial 1'!AR9,'Trial 2'!AR9,'Trial 3'!AR9,'Trial 4'!AR9,'Trial 5'!AR9,'Trial 6'!AR9,'Trial 7'!AR9,'Trial 8'!AR9) -> $25,761 | AS13: =STDEV('Trial 1'!AS9,'Trial 2'!AS9,'Trial 3'!AS9,'Trial 4'!AS9,'Trial 5'!AS9,'Trial 6'!AS9,'Trial 7'!AS9,'Trial 8'!AS9) -> $24,863 | AT13: =STDEV('Trial 1'!AT9,'Trial 2'!AT9,'Trial 3'!AT9,'Trial 4'!AT9,'Trial 5'!AT9,'Trial 6'!AT9,'Trial 7'!AT9,'Trial 8'!AT9) -> $22,417 | AU13: =STDEV('Trial 1'!AU9,'Trial 2'!AU9,'Trial 3'!AU9,'Trial 4'!AU9,'Trial 5'!AU9,'Trial 6'!AU9,'Trial 7'!AU9,'Trial 8'!AU9) -> $24,661 | AV13: =STDEV('Trial 1'!AV9,'Trial 2'!AV9,'Trial 3'!AV9,'Trial 4'!AV9,'Trial 5'!AV9,'Trial 6'!AV9,'Trial 7'!AV9,'Trial 8'!AV9) -> $10,909 | AW13: =STDEV('Trial 1'!AW9,'Trial 2'!AW9,'Trial 3'!AW9,'Trial 4'!AW9,'Trial 5'!AW9,'Trial 6'!AW9,'Trial 7'!AW9,'Trial 8'!AW9) -> $22,817 | AX13: =STDEV('Trial 1'!AX9,'Trial 2'!AX9,'Trial 3'!AX9,'Trial 4'!AX9,'Trial 5'!AX9,'Trial 6'!AX9,'Trial 7'!AX9,'Trial 8'!AX9) -> $31,471 | AY13: =STDEV('Trial 1'!AY9,'Trial 2'!AY9,'Trial 3'!AY9,'Trial 4'!AY9,'Trial 5'!AY9,'Trial 6'!AY9,'Trial 7'!AY9,'Trial 8'!AY9) -> $26,001 | AZ13: =STDEV('Trial 1'!AZ9,'Trial 2'!AZ9,'Trial 3'!AZ9,'Trial 4'!AZ9,'Trial 5'!AZ9,'Trial 6'!AZ9,'Trial 7'!AZ9,'Trial 8'!AZ9) -> $33,384 | BA13: $295,464 | BB13: =STDEV('Trial 1'!BB9,'Trial 2'!BB9,'Trial 3'!BB9,'Trial 4'!BB9,'Trial 5'!BB9,'Trial 6'!BB9,'Trial 7'!BB9,'Trial 8'!BB9) -> $31,820 | BC13: =STDEV('Trial 1'!BC9,'Trial 2'!BC9,'Trial 3'!BC9,'Trial 4'!BC9,'Trial 5'!BC9,'Trial 6'!BC9,'Trial 7'!BC9,'Trial 8'!BC9) -> $35,889 | BD13: =STDEV('Trial 1'!BD9,'Trial 2'!BD9,'Trial 3'!BD9,'Trial 4'!BD9,'Trial 5'!BD9,'Trial 6'!BD9,'Trial 7'!BD9,'Trial 8'!BD9) -> $36,327 | BE13: =STDEV('Trial 1'!BE9,'Trial 2'!BE9,'Trial 3'!BE9,'Trial 4'!BE9,'Trial 5'!BE9,'Trial 6'!BE9,'Trial 7'!BE9,'Trial 8'!BE9) -> $28,441 | BF13: =STDEV('Trial 1'!BF9,'Trial 2'!BF9,'Trial 3'!BF9,'Trial 4'!BF9,'Trial 5'!BF9,'Trial 6'!BF9,'Trial 7'!BF9,'Trial 8'!BF9) -> $19,658 | BG13: =STDEV('Trial 1'!BG9,'Trial 2'!BG9,'Trial 3'!BG9,'Trial 4'!BG9,'Trial 5'!BG9,'Trial 6'!BG9,'Trial 7'!BG9,'Trial 8'!BG9) -> $32,898 | BH13: =STDEV('Trial 1'!BH9,'Trial 2'!BH9,'Trial 3'!BH9,'Trial 4'!BH9,'Trial 5'!BH9,'Trial 6'!BH9,'Trial 7'!BH9,'Trial 8'!BH9) -> $26,571 | BI13: =STDEV('Trial 1'!BI9,'Trial 2'!BI9,'Trial 3'!BI9,'Trial 4'!BI9,'Trial 5'!BI9,'Trial 6'!BI9,'Trial 7'!BI9,'Trial 8'!BI9) -> $18,703 | BJ13: =STDEV('Trial 1'!BJ9,'Trial 2'!BJ9,'Trial 3'!BJ9,'Trial 4'!BJ9,'Trial 5'!BJ9,'Trial 6'!BJ9,'Trial 7'!BJ9,'Trial 8'!BJ9) -> $35,250 | BK13: =STDEV('Trial 1'!BK9,'Trial 2'!BK9,'Trial 3'!BK9,'Trial 4'!BK9,'Trial 5'!BK9,'Trial 6'!BK9,'Trial 7'!BK9,'Trial 8'!BK9) -> $27,047 | BL13: =STDEV('Trial 1'!BL9,'Trial 2'!BL9,'Trial 3'!BL9,'Trial 4'!BL9,'Trial 5'!BL9,'Trial 6'!BL9,'Trial 7'!BL9,'Trial 8'!BL9) -> $27,200 | BM13: =STDEV('Trial 1'!BM9,'Trial 2'!BM9,'Trial 3'!BM9,'Trial 4'!BM9,'Trial 5'!BM9,'Trial 6'!BM9,'Trial 7'!BM9,'Trial 8'!BM9) -> $25,924 | BN13: $345,728 | BO13: =STDEV('Trial 1'!BO9,'Trial 2'!BO9,'Trial 3'!BO9,'Trial 4'!BO9,'Trial 5'!BO9,'Trial 6'!BO9,'Trial 7'!BO9,'Trial 8'!BO9) -> $37,160 | BP13: =STDEV('Trial 1'!BP9,'Trial 2'!BP9,'Trial 3'!BP9,'Trial 4'!BP9,'Trial 5'!BP9,'Trial 6'!BP9,'Trial 7'!BP9,'Trial 8'!BP9) -> $37,441 | BQ13: =STDEV('Trial 1'!BQ9,'Trial 2'!BQ9,'Trial 3'!BQ9,'Trial 4'!BQ9,'Trial 5'!BQ9,'Trial 6'!BQ9,'Trial 7'!BQ9,'Trial 8'!BQ9) -> $33,559 | BR13: =STDEV('Trial 1'!BR9,'Trial 2'!BR9,'Trial 3'!BR9,'Trial 4'!BR9,'Trial 5'!BR9,'Trial 6'!BR9,'Trial 7'!BR9,'Trial 8'!BR9) -> $31,432 | BS13: =STDEV('Trial 1'!BS9,'Trial 2'!BS9,'Trial 3'!BS9,'Trial 4'!BS9,'Trial 5'!BS9,'Trial 6'!BS9,'Trial 7'!BS9,'Trial 8'!BS9) -> $35,465 | BT13: =STDEV('Trial 1'!BT9,'Trial 2'!BT9,'Trial 3'!BT9,'Trial 4'!BT9,'Trial 5'!BT9,'Trial 6'!BT9,'Trial 7'!BT9,'Trial 8'!BT9) -> $33,722 | BU13: =STDEV('Trial 1'!BU9,'Trial 2'!BU9,'Trial 3'!BU9,'Trial 4'!BU9,'Trial 5'!BU9,'Trial 6'!BU9,'Trial 7'!BU9,'Trial 8'!BU9) -> $22,838 | BV13: =STDEV('Trial 1'!BV9,'Trial 2'!BV9,'Trial 3'!BV9,'Trial 4'!BV9,'Trial 5'!BV9,'Trial 6'!BV9,'Trial 7'!BV9,'Trial 8'!BV9) -> $26,539 | BW13: =STDEV('Trial 1'!BW9,'Trial 2'!BW9,'Trial 3'!BW9,'Trial 4'!BW9,'Trial 5'!BW9,'Trial 6'!BW9,'Trial 7'!BW9,'Trial 8'!BW9) -> $25,207 | BX13: =STDEV('Trial 1'!BX9,'Trial 2'!BX9,'Trial 3'!BX9,'Trial 4'!BX9,'Trial 5'!BX9,'Trial 6'!BX9,'Trial 7'!BX9,'Trial 8'!BX9) -> $36,699 | BY13: =STDEV('Trial 1'!BY9,'Trial 2'!BY9,'Trial 3'!BY9,'Trial 4'!BY9,'Trial 5'!BY9,'Trial 6'!BY9,'Trial 7'!BY9,'Trial 8'!BY9) -> $41,803 | BZ13: =STDEV('Trial 1'!BZ9,'Trial 2'!BZ9,'Trial 3'!BZ9,'Trial 4'!BZ9,'Trial 5'!BZ9,'Trial 6'!BZ9,'Trial 7'!BZ9,'Trial 8'!BZ9) -> $36,136 | CA13: $398,000 | CB13: =STDEV('Trial 1'!CB9,'Trial 2'!CB9,'Trial 3'!CB9,'Trial 4'!CB9,'Trial 5'!CB9,'Trial 6'!CB9,'Trial 7'!CB9,'Trial 8'!CB9) -> $16,278 | CC13: =STDEV('Trial 1'!CC9,'Trial 2'!CC9,'Trial 3'!CC9,'Trial 4'!CC9,'Trial 5'!CC9,'Trial 6'!CC9,'Trial 7'!CC9,'Trial 8'!CC9) -> $20,115 | CD13: =STDEV('Trial 1'!CD9,'Trial 2'!CD9,'Trial 3'!CD9,'Trial 4'!CD9,'Trial 5'!CD9,'Trial 6'!CD9,'Trial 7'!CD9,'Trial 8'!CD9) -> $29,216 | CE13: =STDEV('Trial 1'!CE9,'Trial 2'!CE9,'Trial 3'!CE9,'Trial 4'!CE9,'Trial 5'!CE9,'Trial 6'!CE9,'Trial 7'!CE9,'Trial 8'!CE9) -> $28,275 | CF13: =STDEV('Trial 1'!CF9,'Trial 2'!CF9,'Trial 3'!CF9,'Trial 4'!CF9,'Trial 5'!CF9,'Trial 6'!CF9,'Trial 7'!CF9,'Trial 8'!CF9) -> $10,627 | CG13: =STDEV('Trial 1'!CG9,'Trial 2'!CG9,'Trial 3'!CG9,'Trial 4'!CG9,'Trial 5'!CG9,'Trial 6'!CG9,'Trial 7'!CG9,'Trial 8'!CG9) -> $24,030 | CH13: =STDEV('Trial 1'!CH9,'Trial 2'!CH9,'Trial 3'!CH9,'Trial 4'!CH9,'Trial 5'!CH9,'Trial 6'!CH9,'Trial 7'!CH9,'Trial 8'!CH9) -> $36,636 | CI13: =STDEV('Trial 1'!CI9,'Trial 2'!CI9,'Trial 3'!CI9,'Trial 4'!CI9,'Trial 5'!CI9,'Trial 6'!CI9,'Trial 7'!CI9,'Trial 8'!CI9) -> $31,846 | CJ13: =STDEV('Trial 1'!CJ9,'Trial 2'!CJ9,'Trial 3'!CJ9,'Trial 4'!CJ9,'Trial 5'!CJ9,'Trial 6'!CJ9,'Trial 7'!CJ9,'Trial 8'!CJ9) -> $28,001 | CK13: =STDEV('Trial 1'!CK9,'Trial 2'!CK9,'Trial 3'!CK9,'Trial 4'!CK9,'Trial 5'!CK9,'Trial 6'!CK9,'Trial 7'!CK9,'Trial 8'!CK9) -> $33,376 | CL13: =STDEV('Trial 1'!CL9,'Trial 2'!CL9,'Trial 3'!CL9,'Trial 4'!CL9,'Trial 5'!CL9,'Trial 6'!CL9,'Trial 7'!CL9,'Trial 8'!CL9) -> $32,978 | CM13: =STDEV('Trial 1'!CM9,'Trial 2'!CM9,'Trial 3'!CM9,'Trial 4'!CM9,'Trial 5'!CM9,'Trial 6'!CM9,'Trial 7'!CM9,'Trial 8'!CM9) -> $24,985 | CN13: $316,365 | CO13: =STDEV('Trial 1'!CO9,'Trial 2'!CO9,'Trial 3'!CO9,'Trial 4'!CO9,'Trial 5'!CO9,'Trial 6'!CO9,'Trial 7'!CO9,'Trial 8'!CO9) -> $34,520 | CP13: =STDEV('Trial 1'!CP9,'Trial 2'!CP9,'Trial 3'!CP9,'Trial 4'!CP9,'Trial 5'!CP9,'Trial 6'!CP9,'Trial 7'!CP9,'Trial 8'!CP9) -> $21,849 | CQ13: =STDEV('Trial 1'!CQ9,'Trial 2'!CQ9,'Trial 3'!CQ9,'Trial 4'!CQ9,'Trial 5'!CQ9,'Trial 6'!CQ9,'Trial 7'!CQ9,'Trial 8'!CQ9) -> $31,943 | CR13: =STDEV('Trial 1'!CR9,'Trial 2'!CR9,'Trial 3'!CR9,'Trial 4'!CR9,'Trial 5'!CR9,'Trial 6'!CR9,'Trial 7'!CR9,'Trial 8'!CR9) -> $16,707 | CS13: =STDEV('Trial 1'!CS9,'Trial 2'!CS9,'Trial 3'!CS9,'Trial 4'!CS9,'Trial 5'!CS9,'Trial 6'!CS9,'Trial 7'!CS9,'Trial 8'!CS9) -> $26,319 | CT13: =STDEV('Trial 1'!CT9,'Trial 2'!CT9,'Trial 3'!CT9,'Trial 4'!CT9,'Trial 5'!CT9,'Trial 6'!CT9,'Trial 7'!CT9,'Trial 8'!CT9) -> $23,357 | CU13: =STDEV('Trial 1'!CU9,'Trial 2'!CU9,'Trial 3'!CU9,'Trial 4'!CU9,'Trial 5'!CU9,'Trial 6'!CU9,'Trial 7'!CU9,'Trial 8'!CU9) -> $29,807 | CV13: =STDEV('Trial 1'!CV9,'Trial 2'!CV9,'Trial 3'!CV9,'Trial 4'!CV9,'Trial 5'!CV9,'Trial 6'!CV9,'Trial 7'!CV9,'Trial 8'!CV9) -> $14,197 | CW13: =STDEV('Trial 1'!CW9,'Trial 2'!CW9,'Trial 3'!CW9,'Trial 4'!CW9,'Trial 5'!CW9,'Trial 6'!CW9,'Trial 7'!CW9,'Trial 8'!CW9) -> $39,475 | CX13: =STDEV('Trial 1'!CX9,'Trial 2'!CX9,'Trial 3'!CX9,'Trial 4'!CX9,'Trial 5'!CX9,'Trial 6'!CX9,'Trial 7'!CX9,'Trial 8'!CX9) -> $42,377 | CY13: =STDEV('Trial 1'!CY9,'Trial 2'!CY9,'Trial 3'!CY9,'Trial 4'!CY9,'Trial 5'!CY9,'Trial 6'!CY9,'Trial 7'!CY9,'Trial 8'!CY9) -> $35,445 | CZ13: =STDEV('Trial 1'!CZ9,'Trial 2'!CZ9,'Trial 3'!CZ9,'Trial 4'!CZ9,'Trial 5'!CZ9,'Trial 6'!CZ9,'Trial 7'!CZ9,'Trial 8'!CZ9) -> $34,755 | DA13: $350,753 | DB13: =STDEV('Trial 1'!DB9,'Trial 2'!DB9,'Trial 3'!DB9,'Trial 4'!DB9,'Trial 5'!DB9,'Trial 6'!DB9,'Trial 7'!DB9,'Trial 8'!DB9) -> $33,715 | DC13: =STDEV('Trial 1'!DC9,'Trial 2'!DC9,'Trial 3'!DC9,'Trial 4'!DC9,'Trial 5'!DC9,'Trial 6'!DC9,'Trial 7'!DC9,'Trial 8'!DC9) -> $34,643 | DD13: =STDEV('Trial 1'!DD9,'Trial 2'!DD9,'Trial 3'!DD9,'Trial 4'!DD9,'Trial 5'!DD9,'Trial 6'!DD9,'Trial 7'!DD9,'Trial 8'!DD9) -> $16,903 | DE13: =STDEV('Trial 1'!DE9,'Trial 2'!DE9,'Trial 3'!DE9,'Trial 4'!DE9,'Trial 5'!DE9,'Trial 6'!DE9,'Trial 7'!DE9,'Trial 8'!DE9) -> $16,383 | DF13: =STDEV('Trial 1'!DF9,'Trial 2'!DF9,'Trial 3'!DF9,'Trial 4'!DF9,'Trial 5'!DF9,'Trial 6'!DF9,'Trial 7'!DF9,'Trial 8'!DF9) -> $24,836 | DG13: =STDEV('Trial 1'!DG9,'Trial 2'!DG9,'Trial 3'!DG9,'Trial 4'!DG9,'Trial 5'!DG9,'Trial 6'!DG9,'Trial 7'!DG9,'Trial 8'!DG9) -> $22,176 | DH13: =STDEV('Trial 1'!DH9,'Trial 2'!DH9,'Trial 3'!DH9,'Trial 4'!DH9,'Trial 5'!DH9,'Trial 6'!DH9,'Trial 7'!DH9,'Trial 8'!DH9) -> $33,693 | DI13: =STDEV('Trial 1'!DI9,'Trial 2'!DI9,'Trial 3'!DI9,'Trial 4'!DI9,'Trial 5'!DI9,'Trial 6'!DI9,'Trial 7'!DI9,'Trial 8'!DI9) -> $23,611 | DJ13: =STDEV('Trial 1'!DJ9,'Trial 2'!DJ9,'Trial 3'!DJ9,'Trial 4'!DJ9,'Trial 5'!DJ9,'Trial 6'!DJ9,'Trial 7'!DJ9,'Trial 8'!DJ9) -> $36,553 | DK13: =STDEV('Trial 1'!DK9,'Trial 2'!DK9,'Trial 3'!DK9,'Trial 4'!DK9,'Trial 5'!DK9,'Trial 6'!DK9,'Trial 7'!DK9,'Trial 8'!DK9) -> $28,996 | DL13: =STDEV('Trial 1'!DL9,'Trial 2'!DL9,'Trial 3'!DL9,'Trial 4'!DL9,'Trial 5'!DL9,'Trial 6'!DL9,'Trial 7'!DL9,'Trial 8'!DL9) -> $36,022 | DM13: =STDEV('Trial 1'!DM9,'Trial 2'!DM9,'Trial 3'!DM9,'Trial 4'!DM9,'Trial 5'!DM9,'Trial 6'!DM9,'Trial 7'!DM9,'Trial 8'!DM9) -> $15,883 | DN13: $323,415 | DO13: =STDEV('Trial 1'!DO9,'Trial 2'!DO9,'Trial 3'!DO9,'Trial 4'!DO9,'Trial 5'!DO9,'Trial 6'!DO9,'Trial 7'!DO9,'Trial 8'!DO9) -> $34,788 | DP13: =STDEV('Trial 1'!DP9,'Trial 2'!DP9,'Trial 3'!DP9,'Trial 4'!DP9,'Trial 5'!DP9,'Trial 6'!DP9,'Trial 7'!DP9,'Trial 8'!DP9) -> $32,923 | DQ13: =STDEV('Trial 1'!DQ9,'Trial 2'!DQ9,'Trial 3'!DQ9,'Trial 4'!DQ9,'Trial 5'!DQ9,'Trial 6'!DQ9,'Trial 7'!DQ9,'Trial 8'!DQ9) -> $34,538 | DR13: =STDEV('Trial 1'!DR9,'Trial 2'!DR9,'Trial 3'!DR9,'Trial 4'!DR9,'Trial 5'!DR9,'Trial 6'!DR9,'Trial 7'!DR9,'Trial 8'!DR9) -> $35,370 | DS13: =STDEV('Trial 1'!DS9,'Trial 2'!DS9,'Trial 3'!DS9,'Trial 4'!DS9,'Trial 5'!DS9,'Trial 6'!DS9,'Trial 7'!DS9,'Trial 8'!DS9) -> $26,016 | DT13: =STDEV('Trial 1'!DT9,'Trial 2'!DT9,'Trial 3'!DT9,'Trial 4'!DT9,'Trial 5'!DT9,'Trial 6'!DT9,'Trial 7'!DT9,'Trial 8'!DT9) -> $25,527 | DU13: =STDEV('Trial 1'!DU9,'Trial 2'!DU9,'Trial 3'!DU9,'Trial 4'!DU9,'Trial 5'!DU9,'Trial 6'!DU9,'Trial 7'!DU9,'Trial 8'!DU9) -> $25,294 | DV13: =STDEV('Trial 1'!DV9,'Trial 2'!DV9,'Trial 3'!DV9,'Trial 4'!DV9,'Trial 5'!DV9,'Trial 6'!DV9,'Trial 7'!DV9,'Trial 8'!DV9) -> $23,894 | DW13: =STDEV('Trial 1'!DW9,'Trial 2'!DW9,'Trial 3'!DW9,'Trial 4'!DW9,'Trial 5'!DW9,'Trial 6'!DW9,'Trial 7'!DW9,'Trial 8'!DW9) -> $41,517 | DX13: =STDEV('Trial 1'!DX9,'Trial 2'!DX9,'Trial 3'!DX9,'Trial 4'!DX9,'Trial 5'!DX9,'Trial 6'!DX9,'Trial 7'!DX9,'Trial 8'!DX9) -> $33,989 | DY13: =STDEV('Trial 1'!DY9,'Trial 2'!DY9,'Trial 3'!DY9,'Trial 4'!DY9,'Trial 5'!DY9,'Trial 6'!DY9,'Trial 7'!DY9,'Trial 8'!DY9) -> $18,630 | DZ13: =STDEV('Trial 1'!DZ9,'Trial 2'!DZ9,'Trial 3'!DZ9,'Trial 4'!DZ9,'Trial 5'!DZ9,'Trial 6'!DZ9,'Trial 7'!DZ9,'Trial 8'!DZ9) -> $29,254 | EA13: $361,740 | EB13: =STDEV('Trial 1'!EB9,'Trial 2'!EB9,'Trial 3'!EB9,'Trial 4'!EB9,'Trial 5'!EB9,'Trial 6'!EB9,'Trial 7'!EB9,'Trial 8'!EB9) -> $27,431 | EC13: =STDEV('Trial 1'!EC9,'Trial 2'!EC9,'Trial 3'!EC9,'Trial 4'!EC9,'Trial 5'!EC9,'Trial 6'!EC9,'Trial 7'!EC9,'Trial 8'!EC9) -> $32,297 | ED13: =STDEV('Trial 1'!ED9,'Trial 2'!ED9,'Trial 3'!ED9,'Trial 4'!ED9,'Trial 5'!ED9,'Trial 6'!ED9,'Trial 7'!ED9,'Trial 8'!ED9) -> $24,661 | EE13: =STDEV('Trial 1'!EE9,'Trial 2'!EE9,'Trial 3'!EE9,'Trial 4'!EE9,'Trial 5'!EE9,'Trial 6'!EE9,'Trial 7'!EE9,'Trial 8'!EE9) -> $25,898 | EF13: =STDEV('Trial 1'!EF9,'Trial 2'!EF9,'Trial 3'!EF9,'Trial 4'!EF9,'Trial 5'!EF9,'Trial 6'!EF9,'Trial 7'!EF9,'Trial 8'!EF9) -> $28,942 | EG13: =STDEV('Trial 1'!EG9,'Trial 2'!EG9,'Trial 3'!EG9,'Trial 4'!EG9,'Trial 5'!EG9,'Trial 6'!EG9,'Trial 7'!EG9,'Trial 8'!EG9) -> $28,395 | EH13: =STDEV('Trial 1'!EH9,'Trial 2'!EH9,'Trial 3'!EH9,'Trial 4'!EH9,'Trial 5'!EH9,'Trial 6'!EH9,'Trial 7'!EH9,'Trial 8'!EH9) -> $34,073 | EI13: =STDEV('Trial 1'!EI9,'Trial 2'!EI9,'Trial 3'!EI9,'Trial 4'!EI9,'Trial 5'!EI9,'Trial 6'!EI9,'Trial 7'!EI9,'Trial 8'!EI9) -> $24,648 | EJ13: =STDEV('Trial 1'!EJ9,'Trial 2'!EJ9,'Trial 3'!EJ9,'Trial 4'!EJ9,'Trial 5'!EJ9,'Trial 6'!EJ9,'Trial 7'!EJ9,'Trial 8'!EJ9) -> $33,256 | EK13: =STDEV('Trial 1'!EK9,'Trial 2'!EK9,'Trial 3'!EK9,'Trial 4'!EK9,'Trial 5'!EK9,'Trial 6'!EK9,'Trial 7'!EK9,'Trial 8'!EK9) -> $33,206 | EL13: =STDEV('Trial 1'!EL9,'Trial 2'!EL9,'Trial 3'!EL9,'Trial 4'!EL9,'Trial 5'!EL9,'Trial 6'!EL9,'Trial 7'!EL9,'Trial 8'!EL9) -> $29,773 | EM13: =STDEV('Trial 1'!EM9,'Trial 2'!EM9,'Trial 3'!EM9,'Trial 4'!EM9,'Trial 5'!EM9,'Trial 6'!EM9,'Trial 7'!EM9,'Trial 8'!EM9) -> $25,505 | EN13: $348,085
A14: =Labels!B35 -> Short Expected Demand | B14: =AVERAGE('Trial 1'!B11,'Trial 2'!B11,'Trial 3'!B11,'Trial 4'!B11,'Trial 5'!B11,'Trial 6'!B11,'Trial 7'!B11,'Trial 8'!B11) -> $1,166,667 | C14: =AVERAGE('Trial 1'!C11,'Trial 2'!C11,'Trial 3'!C11,'Trial 4'!C11,'Trial 5'!C11,'Trial 6'!C11,'Trial 7'!C11,'Trial 8'!C11) -> $1,163,472 | D14: =AVERAGE('Trial 1'!D11,'Trial 2'!D11,'Trial 3'!D11,'Trial 4'!D11,'Trial 5'!D11,'Trial 6'!D11,'Trial 7'!D11,'Trial 8'!D11) -> $1,160,522 | E14: =AVERAGE('Trial 1'!E11,'Trial 2'!E11,'Trial 3'!E11,'Trial 4'!E11,'Trial 5'!E11,'Trial 6'!E11,'Trial 7'!E11,'Trial 8'!E11) -> $1,157,875 | F14: =AVERAGE('Trial 1'!F11,'Trial 2'!F11,'Trial 3'!F11,'Trial 4'!F11,'Trial 5'!F11,'Trial 6'!F11,'Trial 7'!F11,'Trial 8'!F11) -> $1,155,367 | G14: =AVERAGE('Trial 1'!G11,'Trial 2'!G11,'Trial 3'!G11,'Trial 4'!G11,'Trial 5'!G11,'Trial 6'!G11,'Trial 7'!G11,'Trial 8'!G11) -> $1,153,029 | H14: =AVERAGE('Trial 1'!H11,'Trial 2'!H11,'Trial 3'!H11,'Trial 4'!H11,'Trial 5'!H11,'Trial 6'!H11,'Trial 7'!H11,'Trial 8'!H11) -> $1,150,532 | I14: =AVERAGE('Trial 1'!I11,'Trial 2'!I11,'Trial 3'!I11,'Trial 4'!I11,'Trial 5'!I11,'Trial 6'!I11,'Trial 7'!I11,'Trial 8'!I11) -> $1,147,809 | J14: =AVERAGE('Trial 1'!J11,'Trial 2'!J11,'Trial 3'!J11,'Trial 4'!J11,'Trial 5'!J11,'Trial 6'!J11,'Trial 7'!J11,'Trial 8'!J11) -> $1,145,239 | K14: =AVERAGE('Trial 1'!K11,'Trial 2'!K11,'Trial 3'!K11,'Trial 4'!K11,'Trial 5'!K11,'Trial 6'!K11,'Trial 7'!K11,'Trial 8'!K11) -> $1,142,718 | L14: =AVERAGE('Trial 1'!L11,'Trial 2'!L11,'Trial 3'!L11,'Trial 4'!L11,'Trial 5'!L11,'Trial 6'!L11,'Trial 7'!L11,'Trial 8'!L11) -> $1,140,228 | M14: =AVERAGE('Trial 1'!M11,'Trial 2'!M11,'Trial 3'!M11,'Trial 4'!M11,'Trial 5'!M11,'Trial 6'!M11,'Trial 7'!M11,'Trial 8'!M11) -> $1,137,738 | N14: $13,821,196 | O14: =AVERAGE('Trial 1'!O11,'Trial 2'!O11,'Trial 3'!O11,'Trial 4'!O11,'Trial 5'!O11,'Trial 6'!O11,'Trial 7'!O11,'Trial 8'!O11) -> $1,135,192 | P14: =AVERAGE('Trial 1'!P11,'Trial 2'!P11,'Trial 3'!P11,'Trial 4'!P11,'Trial 5'!P11,'Trial 6'!P11,'Trial 7'!P11,'Trial 8'!P11) -> $1,132,835 | Q14: =AVERAGE('Trial 1'!Q11,'Trial 2'!Q11,'Trial 3'!Q11,'Trial 4'!Q11,'Trial 5'!Q11,'Trial 6'!Q11,'Trial 7'!Q11,'Trial 8'!Q11) -> $1,130,459 | R14: =AVERAGE('Trial 1'!R11,'Trial 2'!R11,'Trial 3'!R11,'Trial 4'!R11,'Trial 5'!R11,'Trial 6'!R11,'Trial 7'!R11,'Trial 8'!R11) -> $1,128,172 | S14: =AVERAGE('Trial 1'!S11,'Trial 2'!S11,'Trial 3'!S11,'Trial 4'!S11,'Trial 5'!S11,'Trial 6'!S11,'Trial 7'!S11,'Trial 8'!S11) -> $1,125,975 | T14: =AVERAGE('Trial 1'!T11,'Trial 2'!T11,'Trial 3'!T11,'Trial 4'!T11,'Trial 5'!T11,'Trial 6'!T11,'Trial 7'!T11,'Trial 8'!T11) -> $1,123,264 | U14: =AVERAGE('Trial 1'!U11,'Trial 2'!U11,'Trial 3'!U11,'Trial 4'!U11,'Trial 5'!U11,'Trial 6'!U11,'Trial 7'!U11,'Trial 8'!U11) -> $1,121,042 | V14: =AVERAGE('Trial 1'!V11,'Trial 2'!V11,'Trial 3'!V11,'Trial 4'!V11,'Trial 5'!V11,'Trial 6'!V11,'Trial 7'!V11,'Trial 8'!V11) -> $1,118,523 | W14: =AVERAGE('Trial 1'!W11,'Trial 2'!W11,'Trial 3'!W11,'Trial 4'!W11,'Trial 5'!W11,'Trial 6'!W11,'Trial 7'!W11,'Trial 8'!W11) -> $1,116,071 | X14: =AVERAGE('Trial 1'!X11,'Trial 2'!X11,'Trial 3'!X11,'Trial 4'!X11,'Trial 5'!X11,'Trial 6'!X11,'Trial 7'!X11,'Trial 8'!X11) -> $1,114,025 | Y14: =AVERAGE('Trial 1'!Y11,'Trial 2'!Y11,'Trial 3'!Y11,'Trial 4'!Y11,'Trial 5'!Y11,'Trial 6'!Y11,'Trial 7'!Y11,'Trial 8'!Y11) -> $1,111,700 | Z14: =AVERAGE('Trial 1'!Z11,'Trial 2'!Z11,'Trial 3'!Z11,'Trial 4'!Z11,'Trial 5'!Z11,'Trial 6'!Z11,'Trial 7'!Z11,'Trial 8'!Z11) -> $1,109,427 | AA14: $13,466,685 | AB14: =AVERAGE('Trial 1'!AB11,'Trial 2'!AB11,'Trial 3'!AB11,'Trial 4'!AB11,'Trial 5'!AB11,'Trial 6'!AB11,'Trial 7'!AB11,'Trial 8'!AB11) -> $1,106,875 | AC14: =AVERAGE('Trial 1'!AC11,'Trial 2'!AC11,'Trial 3'!AC11,'Trial 4'!AC11,'Trial 5'!AC11,'Trial 6'!AC11,'Trial 7'!AC11,'Trial 8'!AC11) -> $1,104,703 | AD14: =AVERAGE('Trial 1'!AD11,'Trial 2'!AD11,'Trial 3'!AD11,'Trial 4'!AD11,'Trial 5'!AD11,'Trial 6'!AD11,'Trial 7'!AD11,'Trial 8'!AD11) -> $1,102,691 | AE14: =AVERAGE('Trial 1'!AE11,'Trial 2'!AE11,'Trial 3'!AE11,'Trial 4'!AE11,'Trial 5'!AE11,'Trial 6'!AE11,'Trial 7'!AE11,'Trial 8'!AE11) -> $1,100,602 | AF14: =AVERAGE('Trial 1'!AF11,'Trial 2'!AF11,'Trial 3'!AF11,'Trial 4'!AF11,'Trial 5'!AF11,'Trial 6'!AF11,'Trial 7'!AF11,'Trial 8'!AF11) -> $1,098,492 | AG14: =AVERAGE('Trial 1'!AG11,'Trial 2'!AG11,'Trial 3'!AG11,'Trial 4'!AG11,'Trial 5'!AG11,'Trial 6'!AG11,'Trial 7'!AG11,'Trial 8'!AG11) -> $1,096,179 | AH14: =AVERAGE('Trial 1'!AH11,'Trial 2'!AH11,'Trial 3'!AH11,'Trial 4'!AH11,'Trial 5'!AH11,'Trial 6'!AH11,'Trial 7'!AH11,'Trial 8'!AH11) -> $1,094,205 | AI14: =AVERAGE('Trial 1'!AI11,'Trial 2'!AI11,'Trial 3'!AI11,'Trial 4'!AI11,'Trial 5'!AI11,'Trial 6'!AI11,'Trial 7'!AI11,'Trial 8'!AI11) -> $1,092,382 | AJ14: =AVERAGE('Trial 1'!AJ11,'Trial 2'!AJ11,'Trial 3'!AJ11,'Trial 4'!AJ11,'Trial 5'!AJ11,'Trial 6'!AJ11,'Trial 7'!AJ11,'Trial 8'!AJ11) -> $1,090,118 | AK14: =AVERAGE('Trial 1'!AK11,'Trial 2'!AK11,'Trial 3'!AK11,'Trial 4'!AK11,'Trial 5'!AK11,'Trial 6'!AK11,'Trial 7'!AK11,'Trial 8'!AK11) -> $1,088,157 | AL14: =AVERAGE('Trial 1'!AL11,'Trial 2'!AL11,'Trial 3'!AL11,'Trial 4'!AL11,'Trial 5'!AL11,'Trial 6'!AL11,'Trial 7'!AL11,'Trial 8'!AL11) -> $1,086,280 | AM14: =AVERAGE('Trial 1'!AM11,'Trial 2'!AM11,'Trial 3'!AM11,'Trial 4'!AM11,'Trial 5'!AM11,'Trial 6'!AM11,'Trial 7'!AM11,'Trial 8'!AM11) -> $1,084,473 | AN14: $13,145,156 | AO14: =AVERAGE('Trial 1'!AO11,'Trial 2'!AO11,'Trial 3'!AO11,'Trial 4'!AO11,'Trial 5'!AO11,'Trial 6'!AO11,'Trial 7'!AO11,'Trial 8'!AO11) -> $1,082,393 | AP14: =AVERAGE('Trial 1'!AP11,'Trial 2'!AP11,'Trial 3'!AP11,'Trial 4'!AP11,'Trial 5'!AP11,'Trial 6'!AP11,'Trial 7'!AP11,'Trial 8'!AP11) -> $1,080,493 | AQ14: =AVERAGE('Trial 1'!AQ11,'Trial 2'!AQ11,'Trial 3'!AQ11,'Trial 4'!AQ11,'Trial 5'!AQ11,'Trial 6'!AQ11,'Trial 7'!AQ11,'Trial 8'!AQ11) -> $1,078,789 | AR14: =AVERAGE('Trial 1'!AR11,'Trial 2'!AR11,'Trial 3'!AR11,'Trial 4'!AR11,'Trial 5'!AR11,'Trial 6'!AR11,'Trial 7'!AR11,'Trial 8'!AR11) -> $1,076,780 | AS14: =AVERAGE('Trial 1'!AS11,'Trial 2'!AS11,'Trial 3'!AS11,'Trial 4'!AS11,'Trial 5'!AS11,'Trial 6'!AS11,'Trial 7'!AS11,'Trial 8'!AS11) -> $1,074,903 | AT14: =AVERAGE('Trial 1'!AT11,'Trial 2'!AT11,'Trial 3'!AT11,'Trial 4'!AT11,'Trial 5'!AT11,'Trial 6'!AT11,'Trial 7'!AT11,'Trial 8'!AT11) -> $1,073,231 | AU14: =AVERAGE('Trial 1'!AU11,'Trial 2'!AU11,'Trial 3'!AU11,'Trial 4'!AU11,'Trial 5'!AU11,'Trial 6'!AU11,'Trial 7'!AU11,'Trial 8'!AU11) -> $1,071,394 | AV14: =AVERAGE('Trial 1'!AV11,'Trial 2'!AV11,'Trial 3'!AV11,'Trial 4'!AV11,'Trial 5'!AV11,'Trial 6'!AV11,'Trial 7'!AV11,'Trial 8'!AV11) -> $1,069,524 | AW14: =AVERAGE('Trial 1'!AW11,'Trial 2'!AW11,'Trial 3'!AW11,'Trial 4'!AW11,'Trial 5'!AW11,'Trial 6'!AW11,'Trial 7'!AW11,'Trial 8'!AW11) -> $1,067,760 | AX14: =AVERAGE('Trial 1'!AX11,'Trial 2'!AX11,'Trial 3'!AX11,'Trial 4'!AX11,'Trial 5'!AX11,'Trial 6'!AX11,'Trial 7'!AX11,'Trial 8'!AX11) -> $1,065,814 | AY14: =AVERAGE('Trial 1'!AY11,'Trial 2'!AY11,'Trial 3'!AY11,'Trial 4'!AY11,'Trial 5'!AY11,'Trial 6'!AY11,'Trial 7'!AY11,'Trial 8'!AY11) -> $1,064,006 | AZ14: =AVERAGE('Trial 1'!AZ11,'Trial 2'!AZ11,'Trial 3'!AZ11,'Trial 4'!AZ11,'Trial 5'!AZ11,'Trial 6'!AZ11,'Trial 7'!AZ11,'Trial 8'!AZ11) -> $1,062,303 | BA14: $12,867,391 | BB14: =AVERAGE('Trial 1'!BB11,'Trial 2'!BB11,'Trial 3'!BB11,'Trial 4'!BB11,'Trial 5'!BB11,'Trial 6'!BB11,'Trial 7'!BB11,'Trial 8'!BB11) -> $1,060,363 | BC14: =AVERAGE('Trial 1'!BC11,'Trial 2'!BC11,'Trial 3'!BC11,'Trial 4'!BC11,'Trial 5'!BC11,'Trial 6'!BC11,'Trial 7'!BC11,'Trial 8'!BC11) -> $1,058,474 | BD14: =AVERAGE('Trial 1'!BD11,'Trial 2'!BD11,'Trial 3'!BD11,'Trial 4'!BD11,'Trial 5'!BD11,'Trial 6'!BD11,'Trial 7'!BD11,'Trial 8'!BD11) -> $1,056,743 | BE14: =AVERAGE('Trial 1'!BE11,'Trial 2'!BE11,'Trial 3'!BE11,'Trial 4'!BE11,'Trial 5'!BE11,'Trial 6'!BE11,'Trial 7'!BE11,'Trial 8'!BE11) -> $1,055,087 | BF14: =AVERAGE('Trial 1'!BF11,'Trial 2'!BF11,'Trial 3'!BF11,'Trial 4'!BF11,'Trial 5'!BF11,'Trial 6'!BF11,'Trial 7'!BF11,'Trial 8'!BF11) -> $1,053,393 | BG14: =AVERAGE('Trial 1'!BG11,'Trial 2'!BG11,'Trial 3'!BG11,'Trial 4'!BG11,'Trial 5'!BG11,'Trial 6'!BG11,'Trial 7'!BG11,'Trial 8'!BG11) -> $1,051,836 | BH14: =AVERAGE('Trial 1'!BH11,'Trial 2'!BH11,'Trial 3'!BH11,'Trial 4'!BH11,'Trial 5'!BH11,'Trial 6'!BH11,'Trial 7'!BH11,'Trial 8'!BH11) -> $1,050,293 | BI14: =AVERAGE('Trial 1'!BI11,'Trial 2'!BI11,'Trial 3'!BI11,'Trial 4'!BI11,'Trial 5'!BI11,'Trial 6'!BI11,'Trial 7'!BI11,'Trial 8'!BI11) -> $1,048,488 | BJ14: =AVERAGE('Trial 1'!BJ11,'Trial 2'!BJ11,'Trial 3'!BJ11,'Trial 4'!BJ11,'Trial 5'!BJ11,'Trial 6'!BJ11,'Trial 7'!BJ11,'Trial 8'!BJ11) -> $1,046,816 | BK14: =AVERAGE('Trial 1'!BK11,'Trial 2'!BK11,'Trial 3'!BK11,'Trial 4'!BK11,'Trial 5'!BK11,'Trial 6'!BK11,'Trial 7'!BK11,'Trial 8'!BK11) -> $1,045,353 | BL14: =AVERAGE('Trial 1'!BL11,'Trial 2'!BL11,'Trial 3'!BL11,'Trial 4'!BL11,'Trial 5'!BL11,'Trial 6'!BL11,'Trial 7'!BL11,'Trial 8'!BL11) -> $1,043,750 | BM14: =AVERAGE('Trial 1'!BM11,'Trial 2'!BM11,'Trial 3'!BM11,'Trial 4'!BM11,'Trial 5'!BM11,'Trial 6'!BM11,'Trial 7'!BM11,'Trial 8'!BM11) -> $1,042,321 | BN14: $12,612,918 | BO14: =AVERAGE('Trial 1'!BO11,'Trial 2'!BO11,'Trial 3'!BO11,'Trial 4'!BO11,'Trial 5'!BO11,'Trial 6'!BO11,'Trial 7'!BO11,'Trial 8'!BO11) -> $1,040,773 | BP14: =AVERAGE('Trial 1'!BP11,'Trial 2'!BP11,'Trial 3'!BP11,'Trial 4'!BP11,'Trial 5'!BP11,'Trial 6'!BP11,'Trial 7'!BP11,'Trial 8'!BP11) -> $1,039,225 | BQ14: =AVERAGE('Trial 1'!BQ11,'Trial 2'!BQ11,'Trial 3'!BQ11,'Trial 4'!BQ11,'Trial 5'!BQ11,'Trial 6'!BQ11,'Trial 7'!BQ11,'Trial 8'!BQ11) -> $1,037,781 | BR14: =AVERAGE('Trial 1'!BR11,'Trial 2'!BR11,'Trial 3'!BR11,'Trial 4'!BR11,'Trial 5'!BR11,'Trial 6'!BR11,'Trial 7'!BR11,'Trial 8'!BR11) -> $1,036,497 | BS14: =AVERAGE('Trial 1'!BS11,'Trial 2'!BS11,'Trial 3'!BS11,'Trial 4'!BS11,'Trial 5'!BS11,'Trial 6'!BS11,'Trial 7'!BS11,'Trial 8'!BS11) -> $1,035,178 | BT14: =AVERAGE('Trial 1'!BT11,'Trial 2'!BT11,'Trial 3'!BT11,'Trial 4'!BT11,'Trial 5'!BT11,'Trial 6'!BT11,'Trial 7'!BT11,'Trial 8'!BT11) -> $1,033,637 | BU14: =AVERAGE('Trial 1'!BU11,'Trial 2'!BU11,'Trial 3'!BU11,'Trial 4'!BU11,'Trial 5'!BU11,'Trial 6'!BU11,'Trial 7'!BU11,'Trial 8'!BU11) -> $1,032,466 | BV14: =AVERAGE('Trial 1'!BV11,'Trial 2'!BV11,'Trial 3'!BV11,'Trial 4'!BV11,'Trial 5'!BV11,'Trial 6'!BV11,'Trial 7'!BV11,'Trial 8'!BV11) -> $1,030,930 | BW14: =AVERAGE('Trial 1'!BW11,'Trial 2'!BW11,'Trial 3'!BW11,'Trial 4'!BW11,'Trial 5'!BW11,'Trial 6'!BW11,'Trial 7'!BW11,'Trial 8'!BW11) -> $1,029,499 | BX14: =AVERAGE('Trial 1'!BX11,'Trial 2'!BX11,'Trial 3'!BX11,'Trial 4'!BX11,'Trial 5'!BX11,'Trial 6'!BX11,'Trial 7'!BX11,'Trial 8'!BX11) -> $1,028,314 | BY14: =AVERAGE('Trial 1'!BY11,'Trial 2'!BY11,'Trial 3'!BY11,'Trial 4'!BY11,'Trial 5'!BY11,'Trial 6'!BY11,'Trial 7'!BY11,'Trial 8'!BY11) -> $1,026,804 | BZ14: =AVERAGE('Trial 1'!BZ11,'Trial 2'!BZ11,'Trial 3'!BZ11,'Trial 4'!BZ11,'Trial 5'!BZ11,'Trial 6'!BZ11,'Trial 7'!BZ11,'Trial 8'!BZ11) -> $1,025,608 | CA14: $12,396,711 | CB14: =AVERAGE('Trial 1'!CB11,'Trial 2'!CB11,'Trial 3'!CB11,'Trial 4'!CB11,'Trial 5'!CB11,'Trial 6'!CB11,'Trial 7'!CB11,'Trial 8'!CB11) -> $1,024,274 | CC14: =AVERAGE('Trial 1'!CC11,'Trial 2'!CC11,'Trial 3'!CC11,'Trial 4'!CC11,'Trial 5'!CC11,'Trial 6'!CC11,'Trial 7'!CC11,'Trial 8'!CC11) -> $1,022,908 | CD14: =AVERAGE('Trial 1'!CD11,'Trial 2'!CD11,'Trial 3'!CD11,'Trial 4'!CD11,'Trial 5'!CD11,'Trial 6'!CD11,'Trial 7'!CD11,'Trial 8'!CD11) -> $1,021,524 | CE14: =AVERAGE('Trial 1'!CE11,'Trial 2'!CE11,'Trial 3'!CE11,'Trial 4'!CE11,'Trial 5'!CE11,'Trial 6'!CE11,'Trial 7'!CE11,'Trial 8'!CE11) -> $1,020,314 | CF14: =AVERAGE('Trial 1'!CF11,'Trial 2'!CF11,'Trial 3'!CF11,'Trial 4'!CF11,'Trial 5'!CF11,'Trial 6'!CF11,'Trial 7'!CF11,'Trial 8'!CF11) -> $1,018,870 | CG14: =AVERAGE('Trial 1'!CG11,'Trial 2'!CG11,'Trial 3'!CG11,'Trial 4'!CG11,'Trial 5'!CG11,'Trial 6'!CG11,'Trial 7'!CG11,'Trial 8'!CG11) -> $1,017,566 | CH14: =AVERAGE('Trial 1'!CH11,'Trial 2'!CH11,'Trial 3'!CH11,'Trial 4'!CH11,'Trial 5'!CH11,'Trial 6'!CH11,'Trial 7'!CH11,'Trial 8'!CH11) -> $1,016,680 | CI14: =AVERAGE('Trial 1'!CI11,'Trial 2'!CI11,'Trial 3'!CI11,'Trial 4'!CI11,'Trial 5'!CI11,'Trial 6'!CI11,'Trial 7'!CI11,'Trial 8'!CI11) -> $1,015,472 | CJ14: =AVERAGE('Trial 1'!CJ11,'Trial 2'!CJ11,'Trial 3'!CJ11,'Trial 4'!CJ11,'Trial 5'!CJ11,'Trial 6'!CJ11,'Trial 7'!CJ11,'Trial 8'!CJ11) -> $1,014,354 | CK14: =AVERAGE('Trial 1'!CK11,'Trial 2'!CK11,'Trial 3'!CK11,'Trial 4'!CK11,'Trial 5'!CK11,'Trial 6'!CK11,'Trial 7'!CK11,'Trial 8'!CK11) -> $1,013,188 | CL14: =AVERAGE('Trial 1'!CL11,'Trial 2'!CL11,'Trial 3'!CL11,'Trial 4'!CL11,'Trial 5'!CL11,'Trial 6'!CL11,'Trial 7'!CL11,'Trial 8'!CL11) -> $1,012,223 | CM14: =AVERAGE('Trial 1'!CM11,'Trial 2'!CM11,'Trial 3'!CM11,'Trial 4'!CM11,'Trial 5'!CM11,'Trial 6'!CM11,'Trial 7'!CM11,'Trial 8'!CM11) -> $1,010,973 | CN14: $12,208,345 | CO14: =AVERAGE('Trial 1'!CO11,'Trial 2'!CO11,'Trial 3'!CO11,'Trial 4'!CO11,'Trial 5'!CO11,'Trial 6'!CO11,'Trial 7'!CO11,'Trial 8'!CO11) -> $1,009,995 | CP14: =AVERAGE('Trial 1'!CP11,'Trial 2'!CP11,'Trial 3'!CP11,'Trial 4'!CP11,'Trial 5'!CP11,'Trial 6'!CP11,'Trial 7'!CP11,'Trial 8'!CP11) -> $1,008,905 | CQ14: =AVERAGE('Trial 1'!CQ11,'Trial 2'!CQ11,'Trial 3'!CQ11,'Trial 4'!CQ11,'Trial 5'!CQ11,'Trial 6'!CQ11,'Trial 7'!CQ11,'Trial 8'!CQ11) -> $1,007,835 | CR14: =AVERAGE('Trial 1'!CR11,'Trial 2'!CR11,'Trial 3'!CR11,'Trial 4'!CR11,'Trial 5'!CR11,'Trial 6'!CR11,'Trial 7'!CR11,'Trial 8'!CR11) -> $1,006,753 | CS14: =AVERAGE('Trial 1'!CS11,'Trial 2'!CS11,'Trial 3'!CS11,'Trial 4'!CS11,'Trial 5'!CS11,'Trial 6'!CS11,'Trial 7'!CS11,'Trial 8'!CS11) -> $1,005,601 | CT14: =AVERAGE('Trial 1'!CT11,'Trial 2'!CT11,'Trial 3'!CT11,'Trial 4'!CT11,'Trial 5'!CT11,'Trial 6'!CT11,'Trial 7'!CT11,'Trial 8'!CT11) -> $1,004,150 | CU14: =AVERAGE('Trial 1'!CU11,'Trial 2'!CU11,'Trial 3'!CU11,'Trial 4'!CU11,'Trial 5'!CU11,'Trial 6'!CU11,'Trial 7'!CU11,'Trial 8'!CU11) -> $1,002,857 | CV14: =AVERAGE('Trial 1'!CV11,'Trial 2'!CV11,'Trial 3'!CV11,'Trial 4'!CV11,'Trial 5'!CV11,'Trial 6'!CV11,'Trial 7'!CV11,'Trial 8'!CV11) -> $1,002,051 | CW14: =AVERAGE('Trial 1'!CW11,'Trial 2'!CW11,'Trial 3'!CW11,'Trial 4'!CW11,'Trial 5'!CW11,'Trial 6'!CW11,'Trial 7'!CW11,'Trial 8'!CW11) -> $1,000,871 | CX14: =AVERAGE('Trial 1'!CX11,'Trial 2'!CX11,'Trial 3'!CX11,'Trial 4'!CX11,'Trial 5'!CX11,'Trial 6'!CX11,'Trial 7'!CX11,'Trial 8'!CX11) -> $999,728 | CY14: =AVERAGE('Trial 1'!CY11,'Trial 2'!CY11,'Trial 3'!CY11,'Trial 4'!CY11,'Trial 5'!CY11,'Trial 6'!CY11,'Trial 7'!CY11,'Trial 8'!CY11) -> $998,537 | CZ14: =AVERAGE('Trial 1'!CZ11,'Trial 2'!CZ11,'Trial 3'!CZ11,'Trial 4'!CZ11,'Trial 5'!CZ11,'Trial 6'!CZ11,'Trial 7'!CZ11,'Trial 8'!CZ11) -> $997,541 | DA14: $12,044,825 | DB14: =AVERAGE('Trial 1'!DB11,'Trial 2'!DB11,'Trial 3'!DB11,'Trial 4'!DB11,'Trial 5'!DB11,'Trial 6'!DB11,'Trial 7'!DB11,'Trial 8'!DB11) -> $996,392 | DC14: =AVERAGE('Trial 1'!DC11,'Trial 2'!DC11,'Trial 3'!DC11,'Trial 4'!DC11,'Trial 5'!DC11,'Trial 6'!DC11,'Trial 7'!DC11,'Trial 8'!DC11) -> $995,445 | DD14: =AVERAGE('Trial 1'!DD11,'Trial 2'!DD11,'Trial 3'!DD11,'Trial 4'!DD11,'Trial 5'!DD11,'Trial 6'!DD11,'Trial 7'!DD11,'Trial 8'!DD11) -> $994,206 | DE14: =AVERAGE('Trial 1'!DE11,'Trial 2'!DE11,'Trial 3'!DE11,'Trial 4'!DE11,'Trial 5'!DE11,'Trial 6'!DE11,'Trial 7'!DE11,'Trial 8'!DE11) -> $993,077 | DF14: =AVERAGE('Trial 1'!DF11,'Trial 2'!DF11,'Trial 3'!DF11,'Trial 4'!DF11,'Trial 5'!DF11,'Trial 6'!DF11,'Trial 7'!DF11,'Trial 8'!DF11) -> $992,123 | DG14: =AVERAGE('Trial 1'!DG11,'Trial 2'!DG11,'Trial 3'!DG11,'Trial 4'!DG11,'Trial 5'!DG11,'Trial 6'!DG11,'Trial 7'!DG11,'Trial 8'!DG11) -> $991,075 | DH14: =AVERAGE('Trial 1'!DH11,'Trial 2'!DH11,'Trial 3'!DH11,'Trial 4'!DH11,'Trial 5'!DH11,'Trial 6'!DH11,'Trial 7'!DH11,'Trial 8'!DH11) -> $989,990 | DI14: =AVERAGE('Trial 1'!DI11,'Trial 2'!DI11,'Trial 3'!DI11,'Trial 4'!DI11,'Trial 5'!DI11,'Trial 6'!DI11,'Trial 7'!DI11,'Trial 8'!DI11) -> $988,884 | DJ14: =AVERAGE('Trial 1'!DJ11,'Trial 2'!DJ11,'Trial 3'!DJ11,'Trial 4'!DJ11,'Trial 5'!DJ11,'Trial 6'!DJ11,'Trial 7'!DJ11,'Trial 8'!DJ11) -> $987,743 | DK14: =AVERAGE('Trial 1'!DK11,'Trial 2'!DK11,'Trial 3'!DK11,'Trial 4'!DK11,'Trial 5'!DK11,'Trial 6'!DK11,'Trial 7'!DK11,'Trial 8'!DK11) -> $986,732 | DL14: =AVERAGE('Trial 1'!DL11,'Trial 2'!DL11,'Trial 3'!DL11,'Trial 4'!DL11,'Trial 5'!DL11,'Trial 6'!DL11,'Trial 7'!DL11,'Trial 8'!DL11) -> $985,697 | DM14: =AVERAGE('Trial 1'!DM11,'Trial 2'!DM11,'Trial 3'!DM11,'Trial 4'!DM11,'Trial 5'!DM11,'Trial 6'!DM11,'Trial 7'!DM11,'Trial 8'!DM11) -> $984,568 | DN14: $11,885,932 | DO14: =AVERAGE('Trial 1'!DO11,'Trial 2'!DO11,'Trial 3'!DO11,'Trial 4'!DO11,'Trial 5'!DO11,'Trial 6'!DO11,'Trial 7'!DO11,'Trial 8'!DO11) -> $983,492 | DP14: =AVERAGE('Trial 1'!DP11,'Trial 2'!DP11,'Trial 3'!DP11,'Trial 4'!DP11,'Trial 5'!DP11,'Trial 6'!DP11,'Trial 7'!DP11,'Trial 8'!DP11) -> $982,652 | DQ14: =AVERAGE('Trial 1'!DQ11,'Trial 2'!DQ11,'Trial 3'!DQ11,'Trial 4'!DQ11,'Trial 5'!DQ11,'Trial 6'!DQ11,'Trial 7'!DQ11,'Trial 8'!DQ11) -> $981,597 | DR14: =AVERAGE('Trial 1'!DR11,'Trial 2'!DR11,'Trial 3'!DR11,'Trial 4'!DR11,'Trial 5'!DR11,'Trial 6'!DR11,'Trial 7'!DR11,'Trial 8'!DR11) -> $980,841 | DS14: =AVERAGE('Trial 1'!DS11,'Trial 2'!DS11,'Trial 3'!DS11,'Trial 4'!DS11,'Trial 5'!DS11,'Trial 6'!DS11,'Trial 7'!DS11,'Trial 8'!DS11) -> $979,918 | DT14: =AVERAGE('Trial 1'!DT11,'Trial 2'!DT11,'Trial 3'!DT11,'Trial 4'!DT11,'Trial 5'!DT11,'Trial 6'!DT11,'Trial 7'!DT11,'Trial 8'!DT11) -> $978,978 | DU14: =AVERAGE('Trial 1'!DU11,'Trial 2'!DU11,'Trial 3'!DU11,'Trial 4'!DU11,'Trial 5'!DU11,'Trial 6'!DU11,'Trial 7'!DU11,'Trial 8'!DU11) -> $978,227 | DV14: =AVERAGE('Trial 1'!DV11,'Trial 2'!DV11,'Trial 3'!DV11,'Trial 4'!DV11,'Trial 5'!DV11,'Trial 6'!DV11,'Trial 7'!DV11,'Trial 8'!DV11) -> $977,362 | DW14: =AVERAGE('Trial 1'!DW11,'Trial 2'!DW11,'Trial 3'!DW11,'Trial 4'!DW11,'Trial 5'!DW11,'Trial 6'!DW11,'Trial 7'!DW11,'Trial 8'!DW11) -> $976,556 | DX14: =AVERAGE('Trial 1'!DX11,'Trial 2'!DX11,'Trial 3'!DX11,'Trial 4'!DX11,'Trial 5'!DX11,'Trial 6'!DX11,'Trial 7'!DX11,'Trial 8'!DX11) -> $975,678 | DY14: =AVERAGE('Trial 1'!DY11,'Trial 2'!DY11,'Trial 3'!DY11,'Trial 4'!DY11,'Trial 5'!DY11,'Trial 6'!DY11,'Trial 7'!DY11,'Trial 8'!DY11) -> $974,777 | DZ14: =AVERAGE('Trial 1'!DZ11,'Trial 2'!DZ11,'Trial 3'!DZ11,'Trial 4'!DZ11,'Trial 5'!DZ11,'Trial 6'!DZ11,'Trial 7'!DZ11,'Trial 8'!DZ11) -> $973,899 | EA14: $11,743,976 | EB14: =AVERAGE('Trial 1'!EB11,'Trial 2'!EB11,'Trial 3'!EB11,'Trial 4'!EB11,'Trial 5'!EB11,'Trial 6'!EB11,'Trial 7'!EB11,'Trial 8'!EB11) -> $972,791 | EC14: =AVERAGE('Trial 1'!EC11,'Trial 2'!EC11,'Trial 3'!EC11,'Trial 4'!EC11,'Trial 5'!EC11,'Trial 6'!EC11,'Trial 7'!EC11,'Trial 8'!EC11) -> $971,992 | ED14: =AVERAGE('Trial 1'!ED11,'Trial 2'!ED11,'Trial 3'!ED11,'Trial 4'!ED11,'Trial 5'!ED11,'Trial 6'!ED11,'Trial 7'!ED11,'Trial 8'!ED11) -> $970,923 | EE14: =AVERAGE('Trial 1'!EE11,'Trial 2'!EE11,'Trial 3'!EE11,'Trial 4'!EE11,'Trial 5'!EE11,'Trial 6'!EE11,'Trial 7'!EE11,'Trial 8'!EE11) -> $969,946 | EF14: =AVERAGE('Trial 1'!EF11,'Trial 2'!EF11,'Trial 3'!EF11,'Trial 4'!EF11,'Trial 5'!EF11,'Trial 6'!EF11,'Trial 7'!EF11,'Trial 8'!EF11) -> $969,105 | EG14: =AVERAGE('Trial 1'!EG11,'Trial 2'!EG11,'Trial 3'!EG11,'Trial 4'!EG11,'Trial 5'!EG11,'Trial 6'!EG11,'Trial 7'!EG11,'Trial 8'!EG11) -> $968,294 | EH14: =AVERAGE('Trial 1'!EH11,'Trial 2'!EH11,'Trial 3'!EH11,'Trial 4'!EH11,'Trial 5'!EH11,'Trial 6'!EH11,'Trial 7'!EH11,'Trial 8'!EH11) -> $967,298 | EI14: =AVERAGE('Trial 1'!EI11,'Trial 2'!EI11,'Trial 3'!EI11,'Trial 4'!EI11,'Trial 5'!EI11,'Trial 6'!EI11,'Trial 7'!EI11,'Trial 8'!EI11) -> $966,369 | EJ14: =AVERAGE('Trial 1'!EJ11,'Trial 2'!EJ11,'Trial 3'!EJ11,'Trial 4'!EJ11,'Trial 5'!EJ11,'Trial 6'!EJ11,'Trial 7'!EJ11,'Trial 8'!EJ11) -> $965,188 | EK14: =AVERAGE('Trial 1'!EK11,'Trial 2'!EK11,'Trial 3'!EK11,'Trial 4'!EK11,'Trial 5'!EK11,'Trial 6'!EK11,'Trial 7'!EK11,'Trial 8'!EK11) -> $964,280 | EL14: =AVERAGE('Trial 1'!EL11,'Trial 2'!EL11,'Trial 3'!EL11,'Trial 4'!EL11,'Trial 5'!EL11,'Trial 6'!EL11,'Trial 7'!EL11,'Trial 8'!EL11) -> $963,531 | EM14: =AVERAGE('Trial 1'!EM11,'Trial 2'!EM11,'Trial 3'!EM11,'Trial 4'!EM11,'Trial 5'!EM11,'Trial 6'!EM11,'Trial 7'!EM11,'Trial 8'!EM11) -> $962,600 | EN14: $11,612,316
A15: =Labels!B36 -> Short Expected Demand std dev | B15: =STDEV('Trial 1'!B11,'Trial 2'!B11,'Trial 3'!B11,'Trial 4'!B11,'Trial 5'!B11,'Trial 6'!B11,'Trial 7'!B11,'Trial 8'!B11) -> $0 | C15: =STDEV('Trial 1'!C11,'Trial 2'!C11,'Trial 3'!C11,'Trial 4'!C11,'Trial 5'!C11,'Trial 6'!C11,'Trial 7'!C11,'Trial 8'!C11) -> $284 | D15: =STDEV('Trial 1'!D11,'Trial 2'!D11,'Trial 3'!D11,'Trial 4'!D11,'Trial 5'!D11,'Trial 6'!D11,'Trial 7'!D11,'Trial 8'!D11) -> $400 | E15: =STDEV('Trial 1'!E11,'Trial 2'!E11,'Trial 3'!E11,'Trial 4'!E11,'Trial 5'!E11,'Trial 6'!E11,'Trial 7'!E11,'Trial 8'!E11) -> $523 | F15: =STDEV('Trial 1'!F11,'Trial 2'!F11,'Trial 3'!F11,'Trial 4'!F11,'Trial 5'!F11,'Trial 6'!F11,'Trial 7'!F11,'Trial 8'!F11) -> $577 | G15: =STDEV('Trial 1'!G11,'Trial 2'!G11,'Trial 3'!G11,'Trial 4'!G11,'Trial 5'!G11,'Trial 6'!G11,'Trial 7'!G11,'Trial 8'!G11) -> $762 | H15: =STDEV('Trial 1'!H11,'Trial 2'!H11,'Trial 3'!H11,'Trial 4'!H11,'Trial 5'!H11,'Trial 6'!H11,'Trial 7'!H11,'Trial 8'!H11) -> $930 | I15: =STDEV('Trial 1'!I11,'Trial 2'!I11,'Trial 3'!I11,'Trial 4'!I11,'Trial 5'!I11,'Trial 6'!I11,'Trial 7'!I11,'Trial 8'!I11) -> $951 | J15: =STDEV('Trial 1'!J11,'Trial 2'!J11,'Trial 3'!J11,'Trial 4'!J11,'Trial 5'!J11,'Trial 6'!J11,'Trial 7'!J11,'Trial 8'!J11) -> $1,051 | K15: =STDEV('Trial 1'!K11,'Trial 2'!K11,'Trial 3'!K11,'Trial 4'!K11,'Trial 5'!K11,'Trial 6'!K11,'Trial 7'!K11,'Trial 8'!K11) -> $873 | L15: =STDEV('Trial 1'!L11,'Trial 2'!L11,'Trial 3'!L11,'Trial 4'!L11,'Trial 5'!L11,'Trial 6'!L11,'Trial 7'!L11,'Trial 8'!L11) -> $1,052 | M15: =STDEV('Trial 1'!M11,'Trial 2'!M11,'Trial 3'!M11,'Trial 4'!M11,'Trial 5'!M11,'Trial 6'!M11,'Trial 7'!M11,'Trial 8'!M11) -> $1,306 | N15: $8,708 | O15: =STDEV('Trial 1'!O11,'Trial 2'!O11,'Trial 3'!O11,'Trial 4'!O11,'Trial 5'!O11,'Trial 6'!O11,'Trial 7'!O11,'Trial 8'!O11) -> $1,419 | P15: =STDEV('Trial 1'!P11,'Trial 2'!P11,'Trial 3'!P11,'Trial 4'!P11,'Trial 5'!P11,'Trial 6'!P11,'Trial 7'!P11,'Trial 8'!P11) -> $1,457 | Q15: =STDEV('Trial 1'!Q11,'Trial 2'!Q11,'Trial 3'!Q11,'Trial 4'!Q11,'Trial 5'!Q11,'Trial 6'!Q11,'Trial 7'!Q11,'Trial 8'!Q11) -> $1,442 | R15: =STDEV('Trial 1'!R11,'Trial 2'!R11,'Trial 3'!R11,'Trial 4'!R11,'Trial 5'!R11,'Trial 6'!R11,'Trial 7'!R11,'Trial 8'!R11) -> $1,387 | S15: =STDEV('Trial 1'!S11,'Trial 2'!S11,'Trial 3'!S11,'Trial 4'!S11,'Trial 5'!S11,'Trial 6'!S11,'Trial 7'!S11,'Trial 8'!S11) -> $1,492 | T15: =STDEV('Trial 1'!T11,'Trial 2'!T11,'Trial 3'!T11,'Trial 4'!T11,'Trial 5'!T11,'Trial 6'!T11,'Trial 7'!T11,'Trial 8'!T11) -> $1,565 | U15: =STDEV('Trial 1'!U11,'Trial 2'!U11,'Trial 3'!U11,'Trial 4'!U11,'Trial 5'!U11,'Trial 6'!U11,'Trial 7'!U11,'Trial 8'!U11) -> $1,440 | V15: =STDEV('Trial 1'!V11,'Trial 2'!V11,'Trial 3'!V11,'Trial 4'!V11,'Trial 5'!V11,'Trial 6'!V11,'Trial 7'!V11,'Trial 8'!V11) -> $1,402 | W15: =STDEV('Trial 1'!W11,'Trial 2'!W11,'Trial 3'!W11,'Trial 4'!W11,'Trial 5'!W11,'Trial 6'!W11,'Trial 7'!W11,'Trial 8'!W11) -> $1,532 | X15: =STDEV('Trial 1'!X11,'Trial 2'!X11,'Trial 3'!X11,'Trial 4'!X11,'Trial 5'!X11,'Trial 6'!X11,'Trial 7'!X11,'Trial 8'!X11) -> $1,604 | Y15: =STDEV('Trial 1'!Y11,'Trial 2'!Y11,'Trial 3'!Y11,'Trial 4'!Y11,'Trial 5'!Y11,'Trial 6'!Y11,'Trial 7'!Y11,'Trial 8'!Y11) -> $1,808 | Z15: =STDEV('Trial 1'!Z11,'Trial 2'!Z11,'Trial 3'!Z11,'Trial 4'!Z11,'Trial 5'!Z11,'Trial 6'!Z11,'Trial 7'!Z11,'Trial 8'!Z11) -> $1,929 | AA15: $18,479 | AB15: =STDEV('Trial 1'!AB11,'Trial 2'!AB11,'Trial 3'!AB11,'Trial 4'!AB11,'Trial 5'!AB11,'Trial 6'!AB11,'Trial 7'!AB11,'Trial 8'!AB11) -> $1,744 | AC15: =STDEV('Trial 1'!AC11,'Trial 2'!AC11,'Trial 3'!AC11,'Trial 4'!AC11,'Trial 5'!AC11,'Trial 6'!AC11,'Trial 7'!AC11,'Trial 8'!AC11) -> $1,532 | AD15: =STDEV('Trial 1'!AD11,'Trial 2'!AD11,'Trial 3'!AD11,'Trial 4'!AD11,'Trial 5'!AD11,'Trial 6'!AD11,'Trial 7'!AD11,'Trial 8'!AD11) -> $1,572 | AE15: =STDEV('Trial 1'!AE11,'Trial 2'!AE11,'Trial 3'!AE11,'Trial 4'!AE11,'Trial 5'!AE11,'Trial 6'!AE11,'Trial 7'!AE11,'Trial 8'!AE11) -> $1,733 | AF15: =STDEV('Trial 1'!AF11,'Trial 2'!AF11,'Trial 3'!AF11,'Trial 4'!AF11,'Trial 5'!AF11,'Trial 6'!AF11,'Trial 7'!AF11,'Trial 8'!AF11) -> $1,869 | AG15: =STDEV('Trial 1'!AG11,'Trial 2'!AG11,'Trial 3'!AG11,'Trial 4'!AG11,'Trial 5'!AG11,'Trial 6'!AG11,'Trial 7'!AG11,'Trial 8'!AG11) -> $2,060 | AH15: =STDEV('Trial 1'!AH11,'Trial 2'!AH11,'Trial 3'!AH11,'Trial 4'!AH11,'Trial 5'!AH11,'Trial 6'!AH11,'Trial 7'!AH11,'Trial 8'!AH11) -> $2,041 | AI15: =STDEV('Trial 1'!AI11,'Trial 2'!AI11,'Trial 3'!AI11,'Trial 4'!AI11,'Trial 5'!AI11,'Trial 6'!AI11,'Trial 7'!AI11,'Trial 8'!AI11) -> $2,104 | AJ15: =STDEV('Trial 1'!AJ11,'Trial 2'!AJ11,'Trial 3'!AJ11,'Trial 4'!AJ11,'Trial 5'!AJ11,'Trial 6'!AJ11,'Trial 7'!AJ11,'Trial 8'!AJ11) -> $2,054 | AK15: =STDEV('Trial 1'!AK11,'Trial 2'!AK11,'Trial 3'!AK11,'Trial 4'!AK11,'Trial 5'!AK11,'Trial 6'!AK11,'Trial 7'!AK11,'Trial 8'!AK11) -> $1,994 | AL15: =STDEV('Trial 1'!AL11,'Trial 2'!AL11,'Trial 3'!AL11,'Trial 4'!AL11,'Trial 5'!AL11,'Trial 6'!AL11,'Trial 7'!AL11,'Trial 8'!AL11) -> $1,961 | AM15: =STDEV('Trial 1'!AM11,'Trial 2'!AM11,'Trial 3'!AM11,'Trial 4'!AM11,'Trial 5'!AM11,'Trial 6'!AM11,'Trial 7'!AM11,'Trial 8'!AM11) -> $2,049 | AN15: $22,713 | AO15: =STDEV('Trial 1'!AO11,'Trial 2'!AO11,'Trial 3'!AO11,'Trial 4'!AO11,'Trial 5'!AO11,'Trial 6'!AO11,'Trial 7'!AO11,'Trial 8'!AO11) -> $2,333 | AP15: =STDEV('Trial 1'!AP11,'Trial 2'!AP11,'Trial 3'!AP11,'Trial 4'!AP11,'Trial 5'!AP11,'Trial 6'!AP11,'Trial 7'!AP11,'Trial 8'!AP11) -> $2,250 | AQ15: =STDEV('Trial 1'!AQ11,'Trial 2'!AQ11,'Trial 3'!AQ11,'Trial 4'!AQ11,'Trial 5'!AQ11,'Trial 6'!AQ11,'Trial 7'!AQ11,'Trial 8'!AQ11) -> $2,181 | AR15: =STDEV('Trial 1'!AR11,'Trial 2'!AR11,'Trial 3'!AR11,'Trial 4'!AR11,'Trial 5'!AR11,'Trial 6'!AR11,'Trial 7'!AR11,'Trial 8'!AR11) -> $2,231 | AS15: =STDEV('Trial 1'!AS11,'Trial 2'!AS11,'Trial 3'!AS11,'Trial 4'!AS11,'Trial 5'!AS11,'Trial 6'!AS11,'Trial 7'!AS11,'Trial 8'!AS11) -> $2,360 | AT15: =STDEV('Trial 1'!AT11,'Trial 2'!AT11,'Trial 3'!AT11,'Trial 4'!AT11,'Trial 5'!AT11,'Trial 6'!AT11,'Trial 7'!AT11,'Trial 8'!AT11) -> $2,349 | AU15: =STDEV('Trial 1'!AU11,'Trial 2'!AU11,'Trial 3'!AU11,'Trial 4'!AU11,'Trial 5'!AU11,'Trial 6'!AU11,'Trial 7'!AU11,'Trial 8'!AU11) -> $2,207 | AV15: =STDEV('Trial 1'!AV11,'Trial 2'!AV11,'Trial 3'!AV11,'Trial 4'!AV11,'Trial 5'!AV11,'Trial 6'!AV11,'Trial 7'!AV11,'Trial 8'!AV11) -> $2,017 | AW15: =STDEV('Trial 1'!AW11,'Trial 2'!AW11,'Trial 3'!AW11,'Trial 4'!AW11,'Trial 5'!AW11,'Trial 6'!AW11,'Trial 7'!AW11,'Trial 8'!AW11) -> $1,964 | AX15: =STDEV('Trial 1'!AX11,'Trial 2'!AX11,'Trial 3'!AX11,'Trial 4'!AX11,'Trial 5'!AX11,'Trial 6'!AX11,'Trial 7'!AX11,'Trial 8'!AX11) -> $1,851 | AY15: =STDEV('Trial 1'!AY11,'Trial 2'!AY11,'Trial 3'!AY11,'Trial 4'!AY11,'Trial 5'!AY11,'Trial 6'!AY11,'Trial 7'!AY11,'Trial 8'!AY11) -> $1,777 | AZ15: =STDEV('Trial 1'!AZ11,'Trial 2'!AZ11,'Trial 3'!AZ11,'Trial 4'!AZ11,'Trial 5'!AZ11,'Trial 6'!AZ11,'Trial 7'!AZ11,'Trial 8'!AZ11) -> $1,884 | BA15: $25,403 | BB15: =STDEV('Trial 1'!BB11,'Trial 2'!BB11,'Trial 3'!BB11,'Trial 4'!BB11,'Trial 5'!BB11,'Trial 6'!BB11,'Trial 7'!BB11,'Trial 8'!BB11) -> $2,083 | BC15: =STDEV('Trial 1'!BC11,'Trial 2'!BC11,'Trial 3'!BC11,'Trial 4'!BC11,'Trial 5'!BC11,'Trial 6'!BC11,'Trial 7'!BC11,'Trial 8'!BC11) -> $1,719 | BD15: =STDEV('Trial 1'!BD11,'Trial 2'!BD11,'Trial 3'!BD11,'Trial 4'!BD11,'Trial 5'!BD11,'Trial 6'!BD11,'Trial 7'!BD11,'Trial 8'!BD11) -> $1,749 | BE15: =STDEV('Trial 1'!BE11,'Trial 2'!BE11,'Trial 3'!BE11,'Trial 4'!BE11,'Trial 5'!BE11,'Trial 6'!BE11,'Trial 7'!BE11,'Trial 8'!BE11) -> $1,953 | BF15: =STDEV('Trial 1'!BF11,'Trial 2'!BF11,'Trial 3'!BF11,'Trial 4'!BF11,'Trial 5'!BF11,'Trial 6'!BF11,'Trial 7'!BF11,'Trial 8'!BF11) -> $2,051 | BG15: =STDEV('Trial 1'!BG11,'Trial 2'!BG11,'Trial 3'!BG11,'Trial 4'!BG11,'Trial 5'!BG11,'Trial 6'!BG11,'Trial 7'!BG11,'Trial 8'!BG11) -> $2,201 | BH15: =STDEV('Trial 1'!BH11,'Trial 2'!BH11,'Trial 3'!BH11,'Trial 4'!BH11,'Trial 5'!BH11,'Trial 6'!BH11,'Trial 7'!BH11,'Trial 8'!BH11) -> $2,380 | BI15: =STDEV('Trial 1'!BI11,'Trial 2'!BI11,'Trial 3'!BI11,'Trial 4'!BI11,'Trial 5'!BI11,'Trial 6'!BI11,'Trial 7'!BI11,'Trial 8'!BI11) -> $2,562 | BJ15: =STDEV('Trial 1'!BJ11,'Trial 2'!BJ11,'Trial 3'!BJ11,'Trial 4'!BJ11,'Trial 5'!BJ11,'Trial 6'!BJ11,'Trial 7'!BJ11,'Trial 8'!BJ11) -> $2,414 | BK15: =STDEV('Trial 1'!BK11,'Trial 2'!BK11,'Trial 3'!BK11,'Trial 4'!BK11,'Trial 5'!BK11,'Trial 6'!BK11,'Trial 7'!BK11,'Trial 8'!BK11) -> $2,496 | BL15: =STDEV('Trial 1'!BL11,'Trial 2'!BL11,'Trial 3'!BL11,'Trial 4'!BL11,'Trial 5'!BL11,'Trial 6'!BL11,'Trial 7'!BL11,'Trial 8'!BL11) -> $2,352 | BM15: =STDEV('Trial 1'!BM11,'Trial 2'!BM11,'Trial 3'!BM11,'Trial 4'!BM11,'Trial 5'!BM11,'Trial 6'!BM11,'Trial 7'!BM11,'Trial 8'!BM11) -> $2,140 | BN15: $26,100 | BO15: =STDEV('Trial 1'!BO11,'Trial 2'!BO11,'Trial 3'!BO11,'Trial 4'!BO11,'Trial 5'!BO11,'Trial 6'!BO11,'Trial 7'!BO11,'Trial 8'!BO11) -> $2,013 | BP15: =STDEV('Trial 1'!BP11,'Trial 2'!BP11,'Trial 3'!BP11,'Trial 4'!BP11,'Trial 5'!BP11,'Trial 6'!BP11,'Trial 7'!BP11,'Trial 8'!BP11) -> $1,960 | BQ15: =STDEV('Trial 1'!BQ11,'Trial 2'!BQ11,'Trial 3'!BQ11,'Trial 4'!BQ11,'Trial 5'!BQ11,'Trial 6'!BQ11,'Trial 7'!BQ11,'Trial 8'!BQ11) -> $1,973 | BR15: =STDEV('Trial 1'!BR11,'Trial 2'!BR11,'Trial 3'!BR11,'Trial 4'!BR11,'Trial 5'!BR11,'Trial 6'!BR11,'Trial 7'!BR11,'Trial 8'!BR11) -> $2,237 | BS15: =STDEV('Trial 1'!BS11,'Trial 2'!BS11,'Trial 3'!BS11,'Trial 4'!BS11,'Trial 5'!BS11,'Trial 6'!BS11,'Trial 7'!BS11,'Trial 8'!BS11) -> $2,393 | BT15: =STDEV('Trial 1'!BT11,'Trial 2'!BT11,'Trial 3'!BT11,'Trial 4'!BT11,'Trial 5'!BT11,'Trial 6'!BT11,'Trial 7'!BT11,'Trial 8'!BT11) -> $2,526 | BU15: =STDEV('Trial 1'!BU11,'Trial 2'!BU11,'Trial 3'!BU11,'Trial 4'!BU11,'Trial 5'!BU11,'Trial 6'!BU11,'Trial 7'!BU11,'Trial 8'!BU11) -> $2,399 | BV15: =STDEV('Trial 1'!BV11,'Trial 2'!BV11,'Trial 3'!BV11,'Trial 4'!BV11,'Trial 5'!BV11,'Trial 6'!BV11,'Trial 7'!BV11,'Trial 8'!BV11) -> $2,506 | BW15: =STDEV('Trial 1'!BW11,'Trial 2'!BW11,'Trial 3'!BW11,'Trial 4'!BW11,'Trial 5'!BW11,'Trial 6'!BW11,'Trial 7'!BW11,'Trial 8'!BW11) -> $2,705 | BX15: =STDEV('Trial 1'!BX11,'Trial 2'!BX11,'Trial 3'!BX11,'Trial 4'!BX11,'Trial 5'!BX11,'Trial 6'!BX11,'Trial 7'!BX11,'Trial 8'!BX11) -> $2,876 | BY15: =STDEV('Trial 1'!BY11,'Trial 2'!BY11,'Trial 3'!BY11,'Trial 4'!BY11,'Trial 5'!BY11,'Trial 6'!BY11,'Trial 7'!BY11,'Trial 8'!BY11) -> $3,016 | BZ15: =STDEV('Trial 1'!BZ11,'Trial 2'!BZ11,'Trial 3'!BZ11,'Trial 4'!BZ11,'Trial 5'!BZ11,'Trial 6'!BZ11,'Trial 7'!BZ11,'Trial 8'!BZ11) -> $2,786 | CA15: $29,392 | CB15: =STDEV('Trial 1'!CB11,'Trial 2'!CB11,'Trial 3'!CB11,'Trial 4'!CB11,'Trial 5'!CB11,'Trial 6'!CB11,'Trial 7'!CB11,'Trial 8'!CB11) -> $2,642 | CC15: =STDEV('Trial 1'!CC11,'Trial 2'!CC11,'Trial 3'!CC11,'Trial 4'!CC11,'Trial 5'!CC11,'Trial 6'!CC11,'Trial 7'!CC11,'Trial 8'!CC11) -> $2,563 | CD15: =STDEV('Trial 1'!CD11,'Trial 2'!CD11,'Trial 3'!CD11,'Trial 4'!CD11,'Trial 5'!CD11,'Trial 6'!CD11,'Trial 7'!CD11,'Trial 8'!CD11) -> $2,531 | CE15: =STDEV('Trial 1'!CE11,'Trial 2'!CE11,'Trial 3'!CE11,'Trial 4'!CE11,'Trial 5'!CE11,'Trial 6'!CE11,'Trial 7'!CE11,'Trial 8'!CE11) -> $2,468 | CF15: =STDEV('Trial 1'!CF11,'Trial 2'!CF11,'Trial 3'!CF11,'Trial 4'!CF11,'Trial 5'!CF11,'Trial 6'!CF11,'Trial 7'!CF11,'Trial 8'!CF11) -> $2,432 | CG15: =STDEV('Trial 1'!CG11,'Trial 2'!CG11,'Trial 3'!CG11,'Trial 4'!CG11,'Trial 5'!CG11,'Trial 6'!CG11,'Trial 7'!CG11,'Trial 8'!CG11) -> $2,379 | CH15: =STDEV('Trial 1'!CH11,'Trial 2'!CH11,'Trial 3'!CH11,'Trial 4'!CH11,'Trial 5'!CH11,'Trial 6'!CH11,'Trial 7'!CH11,'Trial 8'!CH11) -> $2,612 | CI15: =STDEV('Trial 1'!CI11,'Trial 2'!CI11,'Trial 3'!CI11,'Trial 4'!CI11,'Trial 5'!CI11,'Trial 6'!CI11,'Trial 7'!CI11,'Trial 8'!CI11) -> $2,431 | CJ15: =STDEV('Trial 1'!CJ11,'Trial 2'!CJ11,'Trial 3'!CJ11,'Trial 4'!CJ11,'Trial 5'!CJ11,'Trial 6'!CJ11,'Trial 7'!CJ11,'Trial 8'!CJ11) -> $2,242 | CK15: =STDEV('Trial 1'!CK11,'Trial 2'!CK11,'Trial 3'!CK11,'Trial 4'!CK11,'Trial 5'!CK11,'Trial 6'!CK11,'Trial 7'!CK11,'Trial 8'!CK11) -> $2,233 | CL15: =STDEV('Trial 1'!CL11,'Trial 2'!CL11,'Trial 3'!CL11,'Trial 4'!CL11,'Trial 5'!CL11,'Trial 6'!CL11,'Trial 7'!CL11,'Trial 8'!CL11) -> $2,263 | CM15: =STDEV('Trial 1'!CM11,'Trial 2'!CM11,'Trial 3'!CM11,'Trial 4'!CM11,'Trial 5'!CM11,'Trial 6'!CM11,'Trial 7'!CM11,'Trial 8'!CM11) -> $2,099 | CN15: $28,894 | CO15: =STDEV('Trial 1'!CO11,'Trial 2'!CO11,'Trial 3'!CO11,'Trial 4'!CO11,'Trial 5'!CO11,'Trial 6'!CO11,'Trial 7'!CO11,'Trial 8'!CO11) -> $2,262 | CP15: =STDEV('Trial 1'!CP11,'Trial 2'!CP11,'Trial 3'!CP11,'Trial 4'!CP11,'Trial 5'!CP11,'Trial 6'!CP11,'Trial 7'!CP11,'Trial 8'!CP11) -> $2,457 | CQ15: =STDEV('Trial 1'!CQ11,'Trial 2'!CQ11,'Trial 3'!CQ11,'Trial 4'!CQ11,'Trial 5'!CQ11,'Trial 6'!CQ11,'Trial 7'!CQ11,'Trial 8'!CQ11) -> $2,426 | CR15: =STDEV('Trial 1'!CR11,'Trial 2'!CR11,'Trial 3'!CR11,'Trial 4'!CR11,'Trial 5'!CR11,'Trial 6'!CR11,'Trial 7'!CR11,'Trial 8'!CR11) -> $2,534 | CS15: =STDEV('Trial 1'!CS11,'Trial 2'!CS11,'Trial 3'!CS11,'Trial 4'!CS11,'Trial 5'!CS11,'Trial 6'!CS11,'Trial 7'!CS11,'Trial 8'!CS11) -> $2,579 | CT15: =STDEV('Trial 1'!CT11,'Trial 2'!CT11,'Trial 3'!CT11,'Trial 4'!CT11,'Trial 5'!CT11,'Trial 6'!CT11,'Trial 7'!CT11,'Trial 8'!CT11) -> $2,369 | CU15: =STDEV('Trial 1'!CU11,'Trial 2'!CU11,'Trial 3'!CU11,'Trial 4'!CU11,'Trial 5'!CU11,'Trial 6'!CU11,'Trial 7'!CU11,'Trial 8'!CU11) -> $2,416 | CV15: =STDEV('Trial 1'!CV11,'Trial 2'!CV11,'Trial 3'!CV11,'Trial 4'!CV11,'Trial 5'!CV11,'Trial 6'!CV11,'Trial 7'!CV11,'Trial 8'!CV11) -> $2,535 | CW15: =STDEV('Trial 1'!CW11,'Trial 2'!CW11,'Trial 3'!CW11,'Trial 4'!CW11,'Trial 5'!CW11,'Trial 6'!CW11,'Trial 7'!CW11,'Trial 8'!CW11) -> $2,414 | CX15: =STDEV('Trial 1'!CX11,'Trial 2'!CX11,'Trial 3'!CX11,'Trial 4'!CX11,'Trial 5'!CX11,'Trial 6'!CX11,'Trial 7'!CX11,'Trial 8'!CX11) -> $2,409 | CY15: =STDEV('Trial 1'!CY11,'Trial 2'!CY11,'Trial 3'!CY11,'Trial 4'!CY11,'Trial 5'!CY11,'Trial 6'!CY11,'Trial 7'!CY11,'Trial 8'!CY11) -> $2,519 | CZ15: =STDEV('Trial 1'!CZ11,'Trial 2'!CZ11,'Trial 3'!CZ11,'Trial 4'!CZ11,'Trial 5'!CZ11,'Trial 6'!CZ11,'Trial 7'!CZ11,'Trial 8'!CZ11) -> $2,522 | DA15: $29,441 | DB15: =STDEV('Trial 1'!DB11,'Trial 2'!DB11,'Trial 3'!DB11,'Trial 4'!DB11,'Trial 5'!DB11,'Trial 6'!DB11,'Trial 7'!DB11,'Trial 8'!DB11) -> $2,444 | DC15: =STDEV('Trial 1'!DC11,'Trial 2'!DC11,'Trial 3'!DC11,'Trial 4'!DC11,'Trial 5'!DC11,'Trial 6'!DC11,'Trial 7'!DC11,'Trial 8'!DC11) -> $2,761 | DD15: =STDEV('Trial 1'!DD11,'Trial 2'!DD11,'Trial 3'!DD11,'Trial 4'!DD11,'Trial 5'!DD11,'Trial 6'!DD11,'Trial 7'!DD11,'Trial 8'!DD11) -> $2,653 | DE15: =STDEV('Trial 1'!DE11,'Trial 2'!DE11,'Trial 3'!DE11,'Trial 4'!DE11,'Trial 5'!DE11,'Trial 6'!DE11,'Trial 7'!DE11,'Trial 8'!DE11) -> $2,480 | DF15: =STDEV('Trial 1'!DF11,'Trial 2'!DF11,'Trial 3'!DF11,'Trial 4'!DF11,'Trial 5'!DF11,'Trial 6'!DF11,'Trial 7'!DF11,'Trial 8'!DF11) -> $2,300 | DG15: =STDEV('Trial 1'!DG11,'Trial 2'!DG11,'Trial 3'!DG11,'Trial 4'!DG11,'Trial 5'!DG11,'Trial 6'!DG11,'Trial 7'!DG11,'Trial 8'!DG11) -> $2,142 | DH15: =STDEV('Trial 1'!DH11,'Trial 2'!DH11,'Trial 3'!DH11,'Trial 4'!DH11,'Trial 5'!DH11,'Trial 6'!DH11,'Trial 7'!DH11,'Trial 8'!DH11) -> $1,977 | DI15: =STDEV('Trial 1'!DI11,'Trial 2'!DI11,'Trial 3'!DI11,'Trial 4'!DI11,'Trial 5'!DI11,'Trial 6'!DI11,'Trial 7'!DI11,'Trial 8'!DI11) -> $1,921 | DJ15: =STDEV('Trial 1'!DJ11,'Trial 2'!DJ11,'Trial 3'!DJ11,'Trial 4'!DJ11,'Trial 5'!DJ11,'Trial 6'!DJ11,'Trial 7'!DJ11,'Trial 8'!DJ11) -> $1,743 | DK15: =STDEV('Trial 1'!DK11,'Trial 2'!DK11,'Trial 3'!DK11,'Trial 4'!DK11,'Trial 5'!DK11,'Trial 6'!DK11,'Trial 7'!DK11,'Trial 8'!DK11) -> $1,915 | DL15: =STDEV('Trial 1'!DL11,'Trial 2'!DL11,'Trial 3'!DL11,'Trial 4'!DL11,'Trial 5'!DL11,'Trial 6'!DL11,'Trial 7'!DL11,'Trial 8'!DL11) -> $1,739 | DM15: =STDEV('Trial 1'!DM11,'Trial 2'!DM11,'Trial 3'!DM11,'Trial 4'!DM11,'Trial 5'!DM11,'Trial 6'!DM11,'Trial 7'!DM11,'Trial 8'!DM11) -> $2,012 | DN15: $26,086 | DO15: =STDEV('Trial 1'!DO11,'Trial 2'!DO11,'Trial 3'!DO11,'Trial 4'!DO11,'Trial 5'!DO11,'Trial 6'!DO11,'Trial 7'!DO11,'Trial 8'!DO11) -> $2,015 | DP15: =STDEV('Trial 1'!DP11,'Trial 2'!DP11,'Trial 3'!DP11,'Trial 4'!DP11,'Trial 5'!DP11,'Trial 6'!DP11,'Trial 7'!DP11,'Trial 8'!DP11) -> $1,628 | DQ15: =STDEV('Trial 1'!DQ11,'Trial 2'!DQ11,'Trial 3'!DQ11,'Trial 4'!DQ11,'Trial 5'!DQ11,'Trial 6'!DQ11,'Trial 7'!DQ11,'Trial 8'!DQ11) -> $1,575 | DR15: =STDEV('Trial 1'!DR11,'Trial 2'!DR11,'Trial 3'!DR11,'Trial 4'!DR11,'Trial 5'!DR11,'Trial 6'!DR11,'Trial 7'!DR11,'Trial 8'!DR11) -> $1,793 | DS15: =STDEV('Trial 1'!DS11,'Trial 2'!DS11,'Trial 3'!DS11,'Trial 4'!DS11,'Trial 5'!DS11,'Trial 6'!DS11,'Trial 7'!DS11,'Trial 8'!DS11) -> $2,043 | DT15: =STDEV('Trial 1'!DT11,'Trial 2'!DT11,'Trial 3'!DT11,'Trial 4'!DT11,'Trial 5'!DT11,'Trial 6'!DT11,'Trial 7'!DT11,'Trial 8'!DT11) -> $2,106 | DU15: =STDEV('Trial 1'!DU11,'Trial 2'!DU11,'Trial 3'!DU11,'Trial 4'!DU11,'Trial 5'!DU11,'Trial 6'!DU11,'Trial 7'!DU11,'Trial 8'!DU11) -> $2,314 | DV15: =STDEV('Trial 1'!DV11,'Trial 2'!DV11,'Trial 3'!DV11,'Trial 4'!DV11,'Trial 5'!DV11,'Trial 6'!DV11,'Trial 7'!DV11,'Trial 8'!DV11) -> $2,339 | DW15: =STDEV('Trial 1'!DW11,'Trial 2'!DW11,'Trial 3'!DW11,'Trial 4'!DW11,'Trial 5'!DW11,'Trial 6'!DW11,'Trial 7'!DW11,'Trial 8'!DW11) -> $2,276 | DX15: =STDEV('Trial 1'!DX11,'Trial 2'!DX11,'Trial 3'!DX11,'Trial 4'!DX11,'Trial 5'!DX11,'Trial 6'!DX11,'Trial 7'!DX11,'Trial 8'!DX11) -> $2,380 | DY15: =STDEV('Trial 1'!DY11,'Trial 2'!DY11,'Trial 3'!DY11,'Trial 4'!DY11,'Trial 5'!DY11,'Trial 6'!DY11,'Trial 7'!DY11,'Trial 8'!DY11) -> $2,112 | DZ15: =STDEV('Trial 1'!DZ11,'Trial 2'!DZ11,'Trial 3'!DZ11,'Trial 4'!DZ11,'Trial 5'!DZ11,'Trial 6'!DZ11,'Trial 7'!DZ11,'Trial 8'!DZ11) -> $2,172 | EA15: $24,753 | EB15: =STDEV('Trial 1'!EB11,'Trial 2'!EB11,'Trial 3'!EB11,'Trial 4'!EB11,'Trial 5'!EB11,'Trial 6'!EB11,'Trial 7'!EB11,'Trial 8'!EB11) -> $2,386 | EC15: =STDEV('Trial 1'!EC11,'Trial 2'!EC11,'Trial 3'!EC11,'Trial 4'!EC11,'Trial 5'!EC11,'Trial 6'!EC11,'Trial 7'!EC11,'Trial 8'!EC11) -> $2,036 | ED15: =STDEV('Trial 1'!ED11,'Trial 2'!ED11,'Trial 3'!ED11,'Trial 4'!ED11,'Trial 5'!ED11,'Trial 6'!ED11,'Trial 7'!ED11,'Trial 8'!ED11) -> $1,834 | EE15: =STDEV('Trial 1'!EE11,'Trial 2'!EE11,'Trial 3'!EE11,'Trial 4'!EE11,'Trial 5'!EE11,'Trial 6'!EE11,'Trial 7'!EE11,'Trial 8'!EE11) -> $2,001 | EF15: =STDEV('Trial 1'!EF11,'Trial 2'!EF11,'Trial 3'!EF11,'Trial 4'!EF11,'Trial 5'!EF11,'Trial 6'!EF11,'Trial 7'!EF11,'Trial 8'!EF11) -> $2,049 | EG15: =STDEV('Trial 1'!EG11,'Trial 2'!EG11,'Trial 3'!EG11,'Trial 4'!EG11,'Trial 5'!EG11,'Trial 6'!EG11,'Trial 7'!EG11,'Trial 8'!EG11) -> $1,986 | EH15: =STDEV('Trial 1'!EH11,'Trial 2'!EH11,'Trial 3'!EH11,'Trial 4'!EH11,'Trial 5'!EH11,'Trial 6'!EH11,'Trial 7'!EH11,'Trial 8'!EH11) -> $2,232 | EI15: =STDEV('Trial 1'!EI11,'Trial 2'!EI11,'Trial 3'!EI11,'Trial 4'!EI11,'Trial 5'!EI11,'Trial 6'!EI11,'Trial 7'!EI11,'Trial 8'!EI11) -> $2,515 | EJ15: =STDEV('Trial 1'!EJ11,'Trial 2'!EJ11,'Trial 3'!EJ11,'Trial 4'!EJ11,'Trial 5'!EJ11,'Trial 6'!EJ11,'Trial 7'!EJ11,'Trial 8'!EJ11) -> $2,428 | EK15: =STDEV('Trial 1'!EK11,'Trial 2'!EK11,'Trial 3'!EK11,'Trial 4'!EK11,'Trial 5'!EK11,'Trial 6'!EK11,'Trial 7'!EK11,'Trial 8'!EK11) -> $2,361 | EL15: =STDEV('Trial 1'!EL11,'Trial 2'!EL11,'Trial 3'!EL11,'Trial 4'!EL11,'Trial 5'!EL11,'Trial 6'!EL11,'Trial 7'!EL11,'Trial 8'!EL11) -> $2,414 | EM15: =STDEV('Trial 1'!EM11,'Trial 2'!EM11,'Trial 3'!EM11,'Trial 4'!EM11,'Trial 5'!EM11,'Trial 6'!EM11,'Trial 7'!EM11,'Trial 8'!EM11) -> $2,163 | EN15: $26,406
A16: =Labels!B32 -> Long Expected Demand | B16: =AVERAGE('Trial 1'!B10,'Trial 2'!B10,'Trial 3'!B10,'Trial 4'!B10,'Trial 5'!B10,'Trial 6'!B10,'Trial 7'!B10,'Trial 8'!B10) -> $1,166,667 | C16: =AVERAGE('Trial 1'!C10,'Trial 2'!C10,'Trial 3'!C10,'Trial 4'!C10,'Trial 5'!C10,'Trial 6'!C10,'Trial 7'!C10,'Trial 8'!C10) -> $1,166,134 | D16: =AVERAGE('Trial 1'!D10,'Trial 2'!D10,'Trial 3'!D10,'Trial 4'!D10,'Trial 5'!D10,'Trial 6'!D10,'Trial 7'!D10,'Trial 8'!D10) -> $1,165,636 | E16: =AVERAGE('Trial 1'!E10,'Trial 2'!E10,'Trial 3'!E10,'Trial 4'!E10,'Trial 5'!E10,'Trial 6'!E10,'Trial 7'!E10,'Trial 8'!E10) -> $1,165,183 | F16: =AVERAGE('Trial 1'!F10,'Trial 2'!F10,'Trial 3'!F10,'Trial 4'!F10,'Trial 5'!F10,'Trial 6'!F10,'Trial 7'!F10,'Trial 8'!F10) -> $1,164,748 | G16: =AVERAGE('Trial 1'!G10,'Trial 2'!G10,'Trial 3'!G10,'Trial 4'!G10,'Trial 5'!G10,'Trial 6'!G10,'Trial 7'!G10,'Trial 8'!G10) -> $1,164,337 | H16: =AVERAGE('Trial 1'!H10,'Trial 2'!H10,'Trial 3'!H10,'Trial 4'!H10,'Trial 5'!H10,'Trial 6'!H10,'Trial 7'!H10,'Trial 8'!H10) -> $1,163,895 | I16: =AVERAGE('Trial 1'!I10,'Trial 2'!I10,'Trial 3'!I10,'Trial 4'!I10,'Trial 5'!I10,'Trial 6'!I10,'Trial 7'!I10,'Trial 8'!I10) -> $1,163,410 | J16: =AVERAGE('Trial 1'!J10,'Trial 2'!J10,'Trial 3'!J10,'Trial 4'!J10,'Trial 5'!J10,'Trial 6'!J10,'Trial 7'!J10,'Trial 8'!J10) -> $1,162,945 | K16: =AVERAGE('Trial 1'!K10,'Trial 2'!K10,'Trial 3'!K10,'Trial 4'!K10,'Trial 5'!K10,'Trial 6'!K10,'Trial 7'!K10,'Trial 8'!K10) -> $1,162,484 | L16: =AVERAGE('Trial 1'!L10,'Trial 2'!L10,'Trial 3'!L10,'Trial 4'!L10,'Trial 5'!L10,'Trial 6'!L10,'Trial 7'!L10,'Trial 8'!L10) -> $1,162,024 | M16: =AVERAGE('Trial 1'!M10,'Trial 2'!M10,'Trial 3'!M10,'Trial 4'!M10,'Trial 5'!M10,'Trial 6'!M10,'Trial 7'!M10,'Trial 8'!M10) -> $1,161,558 | N16: $13,969,023 | O16: =AVERAGE('Trial 1'!O10,'Trial 2'!O10,'Trial 3'!O10,'Trial 4'!O10,'Trial 5'!O10,'Trial 6'!O10,'Trial 7'!O10,'Trial 8'!O10) -> $1,161,079 | P16: =AVERAGE('Trial 1'!P10,'Trial 2'!P10,'Trial 3'!P10,'Trial 4'!P10,'Trial 5'!P10,'Trial 6'!P10,'Trial 7'!P10,'Trial 8'!P10) -> $1,160,626 | Q16: =AVERAGE('Trial 1'!Q10,'Trial 2'!Q10,'Trial 3'!Q10,'Trial 4'!Q10,'Trial 5'!Q10,'Trial 6'!Q10,'Trial 7'!Q10,'Trial 8'!Q10) -> $1,160,166 | R16: =AVERAGE('Trial 1'!R10,'Trial 2'!R10,'Trial 3'!R10,'Trial 4'!R10,'Trial 5'!R10,'Trial 6'!R10,'Trial 7'!R10,'Trial 8'!R10) -> $1,159,716 | S16: =AVERAGE('Trial 1'!S10,'Trial 2'!S10,'Trial 3'!S10,'Trial 4'!S10,'Trial 5'!S10,'Trial 6'!S10,'Trial 7'!S10,'Trial 8'!S10) -> $1,159,277 | T16: =AVERAGE('Trial 1'!T10,'Trial 2'!T10,'Trial 3'!T10,'Trial 4'!T10,'Trial 5'!T10,'Trial 6'!T10,'Trial 7'!T10,'Trial 8'!T10) -> $1,158,748 | U16: =AVERAGE('Trial 1'!U10,'Trial 2'!U10,'Trial 3'!U10,'Trial 4'!U10,'Trial 5'!U10,'Trial 6'!U10,'Trial 7'!U10,'Trial 8'!U10) -> $1,158,295 | V16: =AVERAGE('Trial 1'!V10,'Trial 2'!V10,'Trial 3'!V10,'Trial 4'!V10,'Trial 5'!V10,'Trial 6'!V10,'Trial 7'!V10,'Trial 8'!V10) -> $1,157,789 | W16: =AVERAGE('Trial 1'!W10,'Trial 2'!W10,'Trial 3'!W10,'Trial 4'!W10,'Trial 5'!W10,'Trial 6'!W10,'Trial 7'!W10,'Trial 8'!W10) -> $1,157,289 | X16: =AVERAGE('Trial 1'!X10,'Trial 2'!X10,'Trial 3'!X10,'Trial 4'!X10,'Trial 5'!X10,'Trial 6'!X10,'Trial 7'!X10,'Trial 8'!X10) -> $1,156,853 | Y16: =AVERAGE('Trial 1'!Y10,'Trial 2'!Y10,'Trial 3'!Y10,'Trial 4'!Y10,'Trial 5'!Y10,'Trial 6'!Y10,'Trial 7'!Y10,'Trial 8'!Y10) -> $1,156,366 | Z16: =AVERAGE('Trial 1'!Z10,'Trial 2'!Z10,'Trial 3'!Z10,'Trial 4'!Z10,'Trial 5'!Z10,'Trial 6'!Z10,'Trial 7'!Z10,'Trial 8'!Z10) -> $1,155,884 | AA16: $13,902,087 | AB16: =AVERAGE('Trial 1'!AB10,'Trial 2'!AB10,'Trial 3'!AB10,'Trial 4'!AB10,'Trial 5'!AB10,'Trial 6'!AB10,'Trial 7'!AB10,'Trial 8'!AB10) -> $1,155,351 | AC16: =AVERAGE('Trial 1'!AC10,'Trial 2'!AC10,'Trial 3'!AC10,'Trial 4'!AC10,'Trial 5'!AC10,'Trial 6'!AC10,'Trial 7'!AC10,'Trial 8'!AC10) -> $1,154,877 | AD16: =AVERAGE('Trial 1'!AD10,'Trial 2'!AD10,'Trial 3'!AD10,'Trial 4'!AD10,'Trial 5'!AD10,'Trial 6'!AD10,'Trial 7'!AD10,'Trial 8'!AD10) -> $1,154,426 | AE16: =AVERAGE('Trial 1'!AE10,'Trial 2'!AE10,'Trial 3'!AE10,'Trial 4'!AE10,'Trial 5'!AE10,'Trial 6'!AE10,'Trial 7'!AE10,'Trial 8'!AE10) -> $1,153,958 | AF16: =AVERAGE('Trial 1'!AF10,'Trial 2'!AF10,'Trial 3'!AF10,'Trial 4'!AF10,'Trial 5'!AF10,'Trial 6'!AF10,'Trial 7'!AF10,'Trial 8'!AF10) -> $1,153,482 | AG16: =AVERAGE('Trial 1'!AG10,'Trial 2'!AG10,'Trial 3'!AG10,'Trial 4'!AG10,'Trial 5'!AG10,'Trial 6'!AG10,'Trial 7'!AG10,'Trial 8'!AG10) -> $1,152,970 | AH16: =AVERAGE('Trial 1'!AH10,'Trial 2'!AH10,'Trial 3'!AH10,'Trial 4'!AH10,'Trial 5'!AH10,'Trial 6'!AH10,'Trial 7'!AH10,'Trial 8'!AH10) -> $1,152,509 | AI16: =AVERAGE('Trial 1'!AI10,'Trial 2'!AI10,'Trial 3'!AI10,'Trial 4'!AI10,'Trial 5'!AI10,'Trial 6'!AI10,'Trial 7'!AI10,'Trial 8'!AI10) -> $1,152,070 | AJ16: =AVERAGE('Trial 1'!AJ10,'Trial 2'!AJ10,'Trial 3'!AJ10,'Trial 4'!AJ10,'Trial 5'!AJ10,'Trial 6'!AJ10,'Trial 7'!AJ10,'Trial 8'!AJ10) -> $1,151,555 | AK16: =AVERAGE('Trial 1'!AK10,'Trial 2'!AK10,'Trial 3'!AK10,'Trial 4'!AK10,'Trial 5'!AK10,'Trial 6'!AK10,'Trial 7'!AK10,'Trial 8'!AK10) -> $1,151,086 | AL16: =AVERAGE('Trial 1'!AL10,'Trial 2'!AL10,'Trial 3'!AL10,'Trial 4'!AL10,'Trial 5'!AL10,'Trial 6'!AL10,'Trial 7'!AL10,'Trial 8'!AL10) -> $1,150,627 | AM16: =AVERAGE('Trial 1'!AM10,'Trial 2'!AM10,'Trial 3'!AM10,'Trial 4'!AM10,'Trial 5'!AM10,'Trial 6'!AM10,'Trial 7'!AM10,'Trial 8'!AM10) -> $1,150,177 | AN16: $13,833,089 | AO16: =AVERAGE('Trial 1'!AO10,'Trial 2'!AO10,'Trial 3'!AO10,'Trial 4'!AO10,'Trial 5'!AO10,'Trial 6'!AO10,'Trial 7'!AO10,'Trial 8'!AO10) -> $1,149,679 | AP16: =AVERAGE('Trial 1'!AP10,'Trial 2'!AP10,'Trial 3'!AP10,'Trial 4'!AP10,'Trial 5'!AP10,'Trial 6'!AP10,'Trial 7'!AP10,'Trial 8'!AP10) -> $1,149,206 | AQ16: =AVERAGE('Trial 1'!AQ10,'Trial 2'!AQ10,'Trial 3'!AQ10,'Trial 4'!AQ10,'Trial 5'!AQ10,'Trial 6'!AQ10,'Trial 7'!AQ10,'Trial 8'!AQ10) -> $1,148,763 | AR16: =AVERAGE('Trial 1'!AR10,'Trial 2'!AR10,'Trial 3'!AR10,'Trial 4'!AR10,'Trial 5'!AR10,'Trial 6'!AR10,'Trial 7'!AR10,'Trial 8'!AR10) -> $1,148,266 | AS16: =AVERAGE('Trial 1'!AS10,'Trial 2'!AS10,'Trial 3'!AS10,'Trial 4'!AS10,'Trial 5'!AS10,'Trial 6'!AS10,'Trial 7'!AS10,'Trial 8'!AS10) -> $1,147,788 | AT16: =AVERAGE('Trial 1'!AT10,'Trial 2'!AT10,'Trial 3'!AT10,'Trial 4'!AT10,'Trial 5'!AT10,'Trial 6'!AT10,'Trial 7'!AT10,'Trial 8'!AT10) -> $1,147,341 | AU16: =AVERAGE('Trial 1'!AU10,'Trial 2'!AU10,'Trial 3'!AU10,'Trial 4'!AU10,'Trial 5'!AU10,'Trial 6'!AU10,'Trial 7'!AU10,'Trial 8'!AU10) -> $1,146,863 | AV16: =AVERAGE('Trial 1'!AV10,'Trial 2'!AV10,'Trial 3'!AV10,'Trial 4'!AV10,'Trial 5'!AV10,'Trial 6'!AV10,'Trial 7'!AV10,'Trial 8'!AV10) -> $1,146,377 | AW16: =AVERAGE('Trial 1'!AW10,'Trial 2'!AW10,'Trial 3'!AW10,'Trial 4'!AW10,'Trial 5'!AW10,'Trial 6'!AW10,'Trial 7'!AW10,'Trial 8'!AW10) -> $1,145,905 | AX16: =AVERAGE('Trial 1'!AX10,'Trial 2'!AX10,'Trial 3'!AX10,'Trial 4'!AX10,'Trial 5'!AX10,'Trial 6'!AX10,'Trial 7'!AX10,'Trial 8'!AX10) -> $1,145,399 | AY16: =AVERAGE('Trial 1'!AY10,'Trial 2'!AY10,'Trial 3'!AY10,'Trial 4'!AY10,'Trial 5'!AY10,'Trial 6'!AY10,'Trial 7'!AY10,'Trial 8'!AY10) -> $1,144,914 | AZ16: =AVERAGE('Trial 1'!AZ10,'Trial 2'!AZ10,'Trial 3'!AZ10,'Trial 4'!AZ10,'Trial 5'!AZ10,'Trial 6'!AZ10,'Trial 7'!AZ10,'Trial 8'!AZ10) -> $1,144,443 | BA16: $13,764,943 | BB16: =AVERAGE('Trial 1'!BB10,'Trial 2'!BB10,'Trial 3'!BB10,'Trial 4'!BB10,'Trial 5'!BB10,'Trial 6'!BB10,'Trial 7'!BB10,'Trial 8'!BB10) -> $1,143,929 | BC16: =AVERAGE('Trial 1'!BC10,'Trial 2'!BC10,'Trial 3'!BC10,'Trial 4'!BC10,'Trial 5'!BC10,'Trial 6'!BC10,'Trial 7'!BC10,'Trial 8'!BC10) -> $1,143,421 | BD16: =AVERAGE('Trial 1'!BD10,'Trial 2'!BD10,'Trial 3'!BD10,'Trial 4'!BD10,'Trial 5'!BD10,'Trial 6'!BD10,'Trial 7'!BD10,'Trial 8'!BD10) -> $1,142,936 | BE16: =AVERAGE('Trial 1'!BE10,'Trial 2'!BE10,'Trial 3'!BE10,'Trial 4'!BE10,'Trial 5'!BE10,'Trial 6'!BE10,'Trial 7'!BE10,'Trial 8'!BE10) -> $1,142,460 | BF16: =AVERAGE('Trial 1'!BF10,'Trial 2'!BF10,'Trial 3'!BF10,'Trial 4'!BF10,'Trial 5'!BF10,'Trial 6'!BF10,'Trial 7'!BF10,'Trial 8'!BF10) -> $1,141,976 | BG16: =AVERAGE('Trial 1'!BG10,'Trial 2'!BG10,'Trial 3'!BG10,'Trial 4'!BG10,'Trial 5'!BG10,'Trial 6'!BG10,'Trial 7'!BG10,'Trial 8'!BG10) -> $1,141,511 | BH16: =AVERAGE('Trial 1'!BH10,'Trial 2'!BH10,'Trial 3'!BH10,'Trial 4'!BH10,'Trial 5'!BH10,'Trial 6'!BH10,'Trial 7'!BH10,'Trial 8'!BH10) -> $1,141,046 | BI16: =AVERAGE('Trial 1'!BI10,'Trial 2'!BI10,'Trial 3'!BI10,'Trial 4'!BI10,'Trial 5'!BI10,'Trial 6'!BI10,'Trial 7'!BI10,'Trial 8'!BI10) -> $1,140,536 | BJ16: =AVERAGE('Trial 1'!BJ10,'Trial 2'!BJ10,'Trial 3'!BJ10,'Trial 4'!BJ10,'Trial 5'!BJ10,'Trial 6'!BJ10,'Trial 7'!BJ10,'Trial 8'!BJ10) -> $1,140,044 | BK16: =AVERAGE('Trial 1'!BK10,'Trial 2'!BK10,'Trial 3'!BK10,'Trial 4'!BK10,'Trial 5'!BK10,'Trial 6'!BK10,'Trial 7'!BK10,'Trial 8'!BK10) -> $1,139,584 | BL16: =AVERAGE('Trial 1'!BL10,'Trial 2'!BL10,'Trial 3'!BL10,'Trial 4'!BL10,'Trial 5'!BL10,'Trial 6'!BL10,'Trial 7'!BL10,'Trial 8'!BL10) -> $1,139,099 | BM16: =AVERAGE('Trial 1'!BM10,'Trial 2'!BM10,'Trial 3'!BM10,'Trial 4'!BM10,'Trial 5'!BM10,'Trial 6'!BM10,'Trial 7'!BM10,'Trial 8'!BM10) -> $1,138,640 | BN16: $13,695,182 | BO16: =AVERAGE('Trial 1'!BO10,'Trial 2'!BO10,'Trial 3'!BO10,'Trial 4'!BO10,'Trial 5'!BO10,'Trial 6'!BO10,'Trial 7'!BO10,'Trial 8'!BO10) -> $1,138,159 | BP16: =AVERAGE('Trial 1'!BP10,'Trial 2'!BP10,'Trial 3'!BP10,'Trial 4'!BP10,'Trial 5'!BP10,'Trial 6'!BP10,'Trial 7'!BP10,'Trial 8'!BP10) -> $1,137,676 | BQ16: =AVERAGE('Trial 1'!BQ10,'Trial 2'!BQ10,'Trial 3'!BQ10,'Trial 4'!BQ10,'Trial 5'!BQ10,'Trial 6'!BQ10,'Trial 7'!BQ10,'Trial 8'!BQ10) -> $1,137,207 | BR16: =AVERAGE('Trial 1'!BR10,'Trial 2'!BR10,'Trial 3'!BR10,'Trial 4'!BR10,'Trial 5'!BR10,'Trial 6'!BR10,'Trial 7'!BR10,'Trial 8'!BR10) -> $1,136,763 | BS16: =AVERAGE('Trial 1'!BS10,'Trial 2'!BS10,'Trial 3'!BS10,'Trial 4'!BS10,'Trial 5'!BS10,'Trial 6'!BS10,'Trial 7'!BS10,'Trial 8'!BS10) -> $1,136,311 | BT16: =AVERAGE('Trial 1'!BT10,'Trial 2'!BT10,'Trial 3'!BT10,'Trial 4'!BT10,'Trial 5'!BT10,'Trial 6'!BT10,'Trial 7'!BT10,'Trial 8'!BT10) -> $1,135,820 | BU16: =AVERAGE('Trial 1'!BU10,'Trial 2'!BU10,'Trial 3'!BU10,'Trial 4'!BU10,'Trial 5'!BU10,'Trial 6'!BU10,'Trial 7'!BU10,'Trial 8'!BU10) -> $1,135,388 | BV16: =AVERAGE('Trial 1'!BV10,'Trial 2'!BV10,'Trial 3'!BV10,'Trial 4'!BV10,'Trial 5'!BV10,'Trial 6'!BV10,'Trial 7'!BV10,'Trial 8'!BV10) -> $1,134,894 | BW16: =AVERAGE('Trial 1'!BW10,'Trial 2'!BW10,'Trial 3'!BW10,'Trial 4'!BW10,'Trial 5'!BW10,'Trial 6'!BW10,'Trial 7'!BW10,'Trial 8'!BW10) -> $1,134,415 | BX16: =AVERAGE('Trial 1'!BX10,'Trial 2'!BX10,'Trial 3'!BX10,'Trial 4'!BX10,'Trial 5'!BX10,'Trial 6'!BX10,'Trial 7'!BX10,'Trial 8'!BX10) -> $1,133,974 | BY16: =AVERAGE('Trial 1'!BY10,'Trial 2'!BY10,'Trial 3'!BY10,'Trial 4'!BY10,'Trial 5'!BY10,'Trial 6'!BY10,'Trial 7'!BY10,'Trial 8'!BY10) -> $1,133,478 | BZ16: =AVERAGE('Trial 1'!BZ10,'Trial 2'!BZ10,'Trial 3'!BZ10,'Trial 4'!BZ10,'Trial 5'!BZ10,'Trial 6'!BZ10,'Trial 7'!BZ10,'Trial 8'!BZ10) -> $1,133,032 | CA16: $13,627,117 | CB16: =AVERAGE('Trial 1'!CB10,'Trial 2'!CB10,'Trial 3'!CB10,'Trial 4'!CB10,'Trial 5'!CB10,'Trial 6'!CB10,'Trial 7'!CB10,'Trial 8'!CB10) -> $1,132,561 | CC16: =AVERAGE('Trial 1'!CC10,'Trial 2'!CC10,'Trial 3'!CC10,'Trial 4'!CC10,'Trial 5'!CC10,'Trial 6'!CC10,'Trial 7'!CC10,'Trial 8'!CC10) -> $1,132,083 | CD16: =AVERAGE('Trial 1'!CD10,'Trial 2'!CD10,'Trial 3'!CD10,'Trial 4'!CD10,'Trial 5'!CD10,'Trial 6'!CD10,'Trial 7'!CD10,'Trial 8'!CD10) -> $1,131,599 | CE16: =AVERAGE('Trial 1'!CE10,'Trial 2'!CE10,'Trial 3'!CE10,'Trial 4'!CE10,'Trial 5'!CE10,'Trial 6'!CE10,'Trial 7'!CE10,'Trial 8'!CE10) -> $1,131,143 | CF16: =AVERAGE('Trial 1'!CF10,'Trial 2'!CF10,'Trial 3'!CF10,'Trial 4'!CF10,'Trial 5'!CF10,'Trial 6'!CF10,'Trial 7'!CF10,'Trial 8'!CF10) -> $1,130,646 | CG16: =AVERAGE('Trial 1'!CG10,'Trial 2'!CG10,'Trial 3'!CG10,'Trial 4'!CG10,'Trial 5'!CG10,'Trial 6'!CG10,'Trial 7'!CG10,'Trial 8'!CG10) -> $1,130,169 | CH16: =AVERAGE('Trial 1'!CH10,'Trial 2'!CH10,'Trial 3'!CH10,'Trial 4'!CH10,'Trial 5'!CH10,'Trial 6'!CH10,'Trial 7'!CH10,'Trial 8'!CH10) -> $1,129,761 | CI16: =AVERAGE('Trial 1'!CI10,'Trial 2'!CI10,'Trial 3'!CI10,'Trial 4'!CI10,'Trial 5'!CI10,'Trial 6'!CI10,'Trial 7'!CI10,'Trial 8'!CI10) -> $1,129,298 | CJ16: =AVERAGE('Trial 1'!CJ10,'Trial 2'!CJ10,'Trial 3'!CJ10,'Trial 4'!CJ10,'Trial 5'!CJ10,'Trial 6'!CJ10,'Trial 7'!CJ10,'Trial 8'!CJ10) -> $1,128,848 | CK16: =AVERAGE('Trial 1'!CK10,'Trial 2'!CK10,'Trial 3'!CK10,'Trial 4'!CK10,'Trial 5'!CK10,'Trial 6'!CK10,'Trial 7'!CK10,'Trial 8'!CK10) -> $1,128,389 | CL16: =AVERAGE('Trial 1'!CL10,'Trial 2'!CL10,'Trial 3'!CL10,'Trial 4'!CL10,'Trial 5'!CL10,'Trial 6'!CL10,'Trial 7'!CL10,'Trial 8'!CL10) -> $1,127,961 | CM16: =AVERAGE('Trial 1'!CM10,'Trial 2'!CM10,'Trial 3'!CM10,'Trial 4'!CM10,'Trial 5'!CM10,'Trial 6'!CM10,'Trial 7'!CM10,'Trial 8'!CM10) -> $1,127,485 | CN16: $13,559,944 | CO16: =AVERAGE('Trial 1'!CO10,'Trial 2'!CO10,'Trial 3'!CO10,'Trial 4'!CO10,'Trial 5'!CO10,'Trial 6'!CO10,'Trial 7'!CO10,'Trial 8'!CO10) -> $1,127,052 | CP16: =AVERAGE('Trial 1'!CP10,'Trial 2'!CP10,'Trial 3'!CP10,'Trial 4'!CP10,'Trial 5'!CP10,'Trial 6'!CP10,'Trial 7'!CP10,'Trial 8'!CP10) -> $1,126,600 | CQ16: =AVERAGE('Trial 1'!CQ10,'Trial 2'!CQ10,'Trial 3'!CQ10,'Trial 4'!CQ10,'Trial 5'!CQ10,'Trial 6'!CQ10,'Trial 7'!CQ10,'Trial 8'!CQ10) -> $1,126,149 | CR16: =AVERAGE('Trial 1'!CR10,'Trial 2'!CR10,'Trial 3'!CR10,'Trial 4'!CR10,'Trial 5'!CR10,'Trial 6'!CR10,'Trial 7'!CR10,'Trial 8'!CR10) -> $1,125,695 | CS16: =AVERAGE('Trial 1'!CS10,'Trial 2'!CS10,'Trial 3'!CS10,'Trial 4'!CS10,'Trial 5'!CS10,'Trial 6'!CS10,'Trial 7'!CS10,'Trial 8'!CS10) -> $1,125,228 | CT16: =AVERAGE('Trial 1'!CT10,'Trial 2'!CT10,'Trial 3'!CT10,'Trial 4'!CT10,'Trial 5'!CT10,'Trial 6'!CT10,'Trial 7'!CT10,'Trial 8'!CT10) -> $1,124,709 | CU16: =AVERAGE('Trial 1'!CU10,'Trial 2'!CU10,'Trial 3'!CU10,'Trial 4'!CU10,'Trial 5'!CU10,'Trial 6'!CU10,'Trial 7'!CU10,'Trial 8'!CU10) -> $1,124,214 | CV16: =AVERAGE('Trial 1'!CV10,'Trial 2'!CV10,'Trial 3'!CV10,'Trial 4'!CV10,'Trial 5'!CV10,'Trial 6'!CV10,'Trial 7'!CV10,'Trial 8'!CV10) -> $1,123,799 | CW16: =AVERAGE('Trial 1'!CW10,'Trial 2'!CW10,'Trial 3'!CW10,'Trial 4'!CW10,'Trial 5'!CW10,'Trial 6'!CW10,'Trial 7'!CW10,'Trial 8'!CW10) -> $1,123,320 | CX16: =AVERAGE('Trial 1'!CX10,'Trial 2'!CX10,'Trial 3'!CX10,'Trial 4'!CX10,'Trial 5'!CX10,'Trial 6'!CX10,'Trial 7'!CX10,'Trial 8'!CX10) -> $1,122,847 | CY16: =AVERAGE('Trial 1'!CY10,'Trial 2'!CY10,'Trial 3'!CY10,'Trial 4'!CY10,'Trial 5'!CY10,'Trial 6'!CY10,'Trial 7'!CY10,'Trial 8'!CY10) -> $1,122,363 | CZ16: =AVERAGE('Trial 1'!CZ10,'Trial 2'!CZ10,'Trial 3'!CZ10,'Trial 4'!CZ10,'Trial 5'!CZ10,'Trial 6'!CZ10,'Trial 7'!CZ10,'Trial 8'!CZ10) -> $1,121,910 | DA16: $13,493,886 | DB16: =AVERAGE('Trial 1'!DB10,'Trial 2'!DB10,'Trial 3'!DB10,'Trial 4'!DB10,'Trial 5'!DB10,'Trial 6'!DB10,'Trial 7'!DB10,'Trial 8'!DB10) -> $1,121,431 | DC16: =AVERAGE('Trial 1'!DC10,'Trial 2'!DC10,'Trial 3'!DC10,'Trial 4'!DC10,'Trial 5'!DC10,'Trial 6'!DC10,'Trial 7'!DC10,'Trial 8'!DC10) -> $1,120,984 | DD16: =AVERAGE('Trial 1'!DD10,'Trial 2'!DD10,'Trial 3'!DD10,'Trial 4'!DD10,'Trial 5'!DD10,'Trial 6'!DD10,'Trial 7'!DD10,'Trial 8'!DD10) -> $1,120,487 | DE16: =AVERAGE('Trial 1'!DE10,'Trial 2'!DE10,'Trial 3'!DE10,'Trial 4'!DE10,'Trial 5'!DE10,'Trial 6'!DE10,'Trial 7'!DE10,'Trial 8'!DE10) -> $1,120,006 | DF16: =AVERAGE('Trial 1'!DF10,'Trial 2'!DF10,'Trial 3'!DF10,'Trial 4'!DF10,'Trial 5'!DF10,'Trial 6'!DF10,'Trial 7'!DF10,'Trial 8'!DF10) -> $1,119,553 | DG16: =AVERAGE('Trial 1'!DG10,'Trial 2'!DG10,'Trial 3'!DG10,'Trial 4'!DG10,'Trial 5'!DG10,'Trial 6'!DG10,'Trial 7'!DG10,'Trial 8'!DG10) -> $1,119,084 | DH16: =AVERAGE('Trial 1'!DH10,'Trial 2'!DH10,'Trial 3'!DH10,'Trial 4'!DH10,'Trial 5'!DH10,'Trial 6'!DH10,'Trial 7'!DH10,'Trial 8'!DH10) -> $1,118,607 | DI16: =AVERAGE('Trial 1'!DI10,'Trial 2'!DI10,'Trial 3'!DI10,'Trial 4'!DI10,'Trial 5'!DI10,'Trial 6'!DI10,'Trial 7'!DI10,'Trial 8'!DI10) -> $1,118,125 | DJ16: =AVERAGE('Trial 1'!DJ10,'Trial 2'!DJ10,'Trial 3'!DJ10,'Trial 4'!DJ10,'Trial 5'!DJ10,'Trial 6'!DJ10,'Trial 7'!DJ10,'Trial 8'!DJ10) -> $1,117,635 | DK16: =AVERAGE('Trial 1'!DK10,'Trial 2'!DK10,'Trial 3'!DK10,'Trial 4'!DK10,'Trial 5'!DK10,'Trial 6'!DK10,'Trial 7'!DK10,'Trial 8'!DK10) -> $1,117,166 | DL16: =AVERAGE('Trial 1'!DL10,'Trial 2'!DL10,'Trial 3'!DL10,'Trial 4'!DL10,'Trial 5'!DL10,'Trial 6'!DL10,'Trial 7'!DL10,'Trial 8'!DL10) -> $1,116,691 | DM16: =AVERAGE('Trial 1'!DM10,'Trial 2'!DM10,'Trial 3'!DM10,'Trial 4'!DM10,'Trial 5'!DM10,'Trial 6'!DM10,'Trial 7'!DM10,'Trial 8'!DM10) -> $1,116,200 | DN16: $13,425,968 | DO16: =AVERAGE('Trial 1'!DO10,'Trial 2'!DO10,'Trial 3'!DO10,'Trial 4'!DO10,'Trial 5'!DO10,'Trial 6'!DO10,'Trial 7'!DO10,'Trial 8'!DO10) -> $1,115,716 | DP16: =AVERAGE('Trial 1'!DP10,'Trial 2'!DP10,'Trial 3'!DP10,'Trial 4'!DP10,'Trial 5'!DP10,'Trial 6'!DP10,'Trial 7'!DP10,'Trial 8'!DP10) -> $1,115,270 | DQ16: =AVERAGE('Trial 1'!DQ10,'Trial 2'!DQ10,'Trial 3'!DQ10,'Trial 4'!DQ10,'Trial 5'!DQ10,'Trial 6'!DQ10,'Trial 7'!DQ10,'Trial 8'!DQ10) -> $1,114,787 | DR16: =AVERAGE('Trial 1'!DR10,'Trial 2'!DR10,'Trial 3'!DR10,'Trial 4'!DR10,'Trial 5'!DR10,'Trial 6'!DR10,'Trial 7'!DR10,'Trial 8'!DR10) -> $1,114,353 | DS16: =AVERAGE('Trial 1'!DS10,'Trial 2'!DS10,'Trial 3'!DS10,'Trial 4'!DS10,'Trial 5'!DS10,'Trial 6'!DS10,'Trial 7'!DS10,'Trial 8'!DS10) -> $1,113,890 | DT16: =AVERAGE('Trial 1'!DT10,'Trial 2'!DT10,'Trial 3'!DT10,'Trial 4'!DT10,'Trial 5'!DT10,'Trial 6'!DT10,'Trial 7'!DT10,'Trial 8'!DT10) -> $1,113,423 | DU16: =AVERAGE('Trial 1'!DU10,'Trial 2'!DU10,'Trial 3'!DU10,'Trial 4'!DU10,'Trial 5'!DU10,'Trial 6'!DU10,'Trial 7'!DU10,'Trial 8'!DU10) -> $1,112,987 | DV16: =AVERAGE('Trial 1'!DV10,'Trial 2'!DV10,'Trial 3'!DV10,'Trial 4'!DV10,'Trial 5'!DV10,'Trial 6'!DV10,'Trial 7'!DV10,'Trial 8'!DV10) -> $1,112,531 | DW16: =AVERAGE('Trial 1'!DW10,'Trial 2'!DW10,'Trial 3'!DW10,'Trial 4'!DW10,'Trial 5'!DW10,'Trial 6'!DW10,'Trial 7'!DW10,'Trial 8'!DW10) -> $1,112,083 | DX16: =AVERAGE('Trial 1'!DX10,'Trial 2'!DX10,'Trial 3'!DX10,'Trial 4'!DX10,'Trial 5'!DX10,'Trial 6'!DX10,'Trial 7'!DX10,'Trial 8'!DX10) -> $1,111,623 | DY16: =AVERAGE('Trial 1'!DY10,'Trial 2'!DY10,'Trial 3'!DY10,'Trial 4'!DY10,'Trial 5'!DY10,'Trial 6'!DY10,'Trial 7'!DY10,'Trial 8'!DY10) -> $1,111,159 | DZ16: =AVERAGE('Trial 1'!DZ10,'Trial 2'!DZ10,'Trial 3'!DZ10,'Trial 4'!DZ10,'Trial 5'!DZ10,'Trial 6'!DZ10,'Trial 7'!DZ10,'Trial 8'!DZ10) -> $1,110,697 | EA16: $13,358,519 | EB16: =AVERAGE('Trial 1'!EB10,'Trial 2'!EB10,'Trial 3'!EB10,'Trial 4'!EB10,'Trial 5'!EB10,'Trial 6'!EB10,'Trial 7'!EB10,'Trial 8'!EB10) -> $1,110,195 | EC16: =AVERAGE('Trial 1'!EC10,'Trial 2'!EC10,'Trial 3'!EC10,'Trial 4'!EC10,'Trial 5'!EC10,'Trial 6'!EC10,'Trial 7'!EC10,'Trial 8'!EC10) -> $1,109,744 | ED16: =AVERAGE('Trial 1'!ED10,'Trial 2'!ED10,'Trial 3'!ED10,'Trial 4'!ED10,'Trial 5'!ED10,'Trial 6'!ED10,'Trial 7'!ED10,'Trial 8'!ED10) -> $1,109,247 | EE16: =AVERAGE('Trial 1'!EE10,'Trial 2'!EE10,'Trial 3'!EE10,'Trial 4'!EE10,'Trial 5'!EE10,'Trial 6'!EE10,'Trial 7'!EE10,'Trial 8'!EE10) -> $1,108,764 | EF16: =AVERAGE('Trial 1'!EF10,'Trial 2'!EF10,'Trial 3'!EF10,'Trial 4'!EF10,'Trial 5'!EF10,'Trial 6'!EF10,'Trial 7'!EF10,'Trial 8'!EF10) -> $1,108,302 | EG16: =AVERAGE('Trial 1'!EG10,'Trial 2'!EG10,'Trial 3'!EG10,'Trial 4'!EG10,'Trial 5'!EG10,'Trial 6'!EG10,'Trial 7'!EG10,'Trial 8'!EG10) -> $1,107,845 | EH16: =AVERAGE('Trial 1'!EH10,'Trial 2'!EH10,'Trial 3'!EH10,'Trial 4'!EH10,'Trial 5'!EH10,'Trial 6'!EH10,'Trial 7'!EH10,'Trial 8'!EH10) -> $1,107,356 | EI16: =AVERAGE('Trial 1'!EI10,'Trial 2'!EI10,'Trial 3'!EI10,'Trial 4'!EI10,'Trial 5'!EI10,'Trial 6'!EI10,'Trial 7'!EI10,'Trial 8'!EI10) -> $1,106,877 | EJ16: =AVERAGE('Trial 1'!EJ10,'Trial 2'!EJ10,'Trial 3'!EJ10,'Trial 4'!EJ10,'Trial 5'!EJ10,'Trial 6'!EJ10,'Trial 7'!EJ10,'Trial 8'!EJ10) -> $1,106,355 | EK16: =AVERAGE('Trial 1'!EK10,'Trial 2'!EK10,'Trial 3'!EK10,'Trial 4'!EK10,'Trial 5'!EK10,'Trial 6'!EK10,'Trial 7'!EK10,'Trial 8'!EK10) -> $1,105,877 | EL16: =AVERAGE('Trial 1'!EL10,'Trial 2'!EL10,'Trial 3'!EL10,'Trial 4'!EL10,'Trial 5'!EL10,'Trial 6'!EL10,'Trial 7'!EL10,'Trial 8'!EL10) -> $1,105,424 | EM16: =AVERAGE('Trial 1'!EM10,'Trial 2'!EM10,'Trial 3'!EM10,'Trial 4'!EM10,'Trial 5'!EM10,'Trial 6'!EM10,'Trial 7'!EM10,'Trial 8'!EM10) -> $1,104,941 | EN16: $13,290,927
A17: =Labels!B33 -> Long Expected Demand std dev | B17: =STDEV('Trial 1'!B10,'Trial 2'!B10,'Trial 3'!B10,'Trial 4'!B10,'Trial 5'!B10,'Trial 6'!B10,'Trial 7'!B10,'Trial 8'!B10) -> $0.0 | C17: =STDEV('Trial 1'!C10,'Trial 2'!C10,'Trial 3'!C10,'Trial 4'!C10,'Trial 5'!C10,'Trial 6'!C10,'Trial 7'!C10,'Trial 8'!C10) -> $47.3 | D17: =STDEV('Trial 1'!D10,'Trial 2'!D10,'Trial 3'!D10,'Trial 4'!D10,'Trial 5'!D10,'Trial 6'!D10,'Trial 7'!D10,'Trial 8'!D10) -> $66.7 | E17: =STDEV('Trial 1'!E10,'Trial 2'!E10,'Trial 3'!E10,'Trial 4'!E10,'Trial 5'!E10,'Trial 6'!E10,'Trial 7'!E10,'Trial 8'!E10) -> $88.0 | F17: =STDEV('Trial 1'!F10,'Trial 2'!F10,'Trial 3'!F10,'Trial 4'!F10,'Trial 5'!F10,'Trial 6'!F10,'Trial 7'!F10,'Trial 8'!F10) -> $97.5 | G17: =STDEV('Trial 1'!G10,'Trial 2'!G10,'Trial 3'!G10,'Trial 4'!G10,'Trial 5'!G10,'Trial 6'!G10,'Trial 7'!G10,'Trial 8'!G10) -> $129.3 | H17: =STDEV('Trial 1'!H10,'Trial 2'!H10,'Trial 3'!H10,'Trial 4'!H10,'Trial 5'!H10,'Trial 6'!H10,'Trial 7'!H10,'Trial 8'!H10) -> $158.1 | I17: =STDEV('Trial 1'!I10,'Trial 2'!I10,'Trial 3'!I10,'Trial 4'!I10,'Trial 5'!I10,'Trial 6'!I10,'Trial 7'!I10,'Trial 8'!I10) -> $163.6 | J17: =STDEV('Trial 1'!J10,'Trial 2'!J10,'Trial 3'!J10,'Trial 4'!J10,'Trial 5'!J10,'Trial 6'!J10,'Trial 7'!J10,'Trial 8'!J10) -> $180.9 | K17: =STDEV('Trial 1'!K10,'Trial 2'!K10,'Trial 3'!K10,'Trial 4'!K10,'Trial 5'!K10,'Trial 6'!K10,'Trial 7'!K10,'Trial 8'!K10) -> $153.3 | L17: =STDEV('Trial 1'!L10,'Trial 2'!L10,'Trial 3'!L10,'Trial 4'!L10,'Trial 5'!L10,'Trial 6'!L10,'Trial 7'!L10,'Trial 8'!L10) -> $185.0 | M17: =STDEV('Trial 1'!M10,'Trial 2'!M10,'Trial 3'!M10,'Trial 4'!M10,'Trial 5'!M10,'Trial 6'!M10,'Trial 7'!M10,'Trial 8'!M10) -> $228.8 | N17: $1,498.5 | O17: =STDEV('Trial 1'!O10,'Trial 2'!O10,'Trial 3'!O10,'Trial 4'!O10,'Trial 5'!O10,'Trial 6'!O10,'Trial 7'!O10,'Trial 8'!O10) -> $250.0 | P17: =STDEV('Trial 1'!P10,'Trial 2'!P10,'Trial 3'!P10,'Trial 4'!P10,'Trial 5'!P10,'Trial 6'!P10,'Trial 7'!P10,'Trial 8'!P10) -> $258.7 | Q17: =STDEV('Trial 1'!Q10,'Trial 2'!Q10,'Trial 3'!Q10,'Trial 4'!Q10,'Trial 5'!Q10,'Trial 6'!Q10,'Trial 7'!Q10,'Trial 8'!Q10) -> $259.6 | R17: =STDEV('Trial 1'!R10,'Trial 2'!R10,'Trial 3'!R10,'Trial 4'!R10,'Trial 5'!R10,'Trial 6'!R10,'Trial 7'!R10,'Trial 8'!R10) -> $251.6 | S17: =STDEV('Trial 1'!S10,'Trial 2'!S10,'Trial 3'!S10,'Trial 4'!S10,'Trial 5'!S10,'Trial 6'!S10,'Trial 7'!S10,'Trial 8'!S10) -> $271.7 | T17: =STDEV('Trial 1'!T10,'Trial 2'!T10,'Trial 3'!T10,'Trial 4'!T10,'Trial 5'!T10,'Trial 6'!T10,'Trial 7'!T10,'Trial 8'!T10) -> $285.9 | U17: =STDEV('Trial 1'!U10,'Trial 2'!U10,'Trial 3'!U10,'Trial 4'!U10,'Trial 5'!U10,'Trial 6'!U10,'Trial 7'!U10,'Trial 8'!U10) -> $265.9 | V17: =STDEV('Trial 1'!V10,'Trial 2'!V10,'Trial 3'!V10,'Trial 4'!V10,'Trial 5'!V10,'Trial 6'!V10,'Trial 7'!V10,'Trial 8'!V10) -> $260.1 | W17: =STDEV('Trial 1'!W10,'Trial 2'!W10,'Trial 3'!W10,'Trial 4'!W10,'Trial 5'!W10,'Trial 6'!W10,'Trial 7'!W10,'Trial 8'!W10) -> $281.1 | X17: =STDEV('Trial 1'!X10,'Trial 2'!X10,'Trial 3'!X10,'Trial 4'!X10,'Trial 5'!X10,'Trial 6'!X10,'Trial 7'!X10,'Trial 8'!X10) -> $292.5 | Y17: =STDEV('Trial 1'!Y10,'Trial 2'!Y10,'Trial 3'!Y10,'Trial 4'!Y10,'Trial 5'!Y10,'Trial 6'!Y10,'Trial 7'!Y10,'Trial 8'!Y10) -> $330.9 | Z17: =STDEV('Trial 1'!Z10,'Trial 2'!Z10,'Trial 3'!Z10,'Trial 4'!Z10,'Trial 5'!Z10,'Trial 6'!Z10,'Trial 7'!Z10,'Trial 8'!Z10) -> $354.6 | AA17: $3,362.7 | AB17: =STDEV('Trial 1'!AB10,'Trial 2'!AB10,'Trial 3'!AB10,'Trial 4'!AB10,'Trial 5'!AB10,'Trial 6'!AB10,'Trial 7'!AB10,'Trial 8'!AB10) -> $327.7 | AC17: =STDEV('Trial 1'!AC10,'Trial 2'!AC10,'Trial 3'!AC10,'Trial 4'!AC10,'Trial 5'!AC10,'Trial 6'!AC10,'Trial 7'!AC10,'Trial 8'!AC10) -> $295.6 | AD17: =STDEV('Trial 1'!AD10,'Trial 2'!AD10,'Trial 3'!AD10,'Trial 4'!AD10,'Trial 5'!AD10,'Trial 6'!AD10,'Trial 7'!AD10,'Trial 8'!AD10) -> $306.8 | AE17: =STDEV('Trial 1'!AE10,'Trial 2'!AE10,'Trial 3'!AE10,'Trial 4'!AE10,'Trial 5'!AE10,'Trial 6'!AE10,'Trial 7'!AE10,'Trial 8'!AE10) -> $332.0 | AF17: =STDEV('Trial 1'!AF10,'Trial 2'!AF10,'Trial 3'!AF10,'Trial 4'!AF10,'Trial 5'!AF10,'Trial 6'!AF10,'Trial 7'!AF10,'Trial 8'!AF10) -> $360.5 | AG17: =STDEV('Trial 1'!AG10,'Trial 2'!AG10,'Trial 3'!AG10,'Trial 4'!AG10,'Trial 5'!AG10,'Trial 6'!AG10,'Trial 7'!AG10,'Trial 8'!AG10) -> $395.6 | AH17: =STDEV('Trial 1'!AH10,'Trial 2'!AH10,'Trial 3'!AH10,'Trial 4'!AH10,'Trial 5'!AH10,'Trial 6'!AH10,'Trial 7'!AH10,'Trial 8'!AH10) -> $396.8 | AI17: =STDEV('Trial 1'!AI10,'Trial 2'!AI10,'Trial 3'!AI10,'Trial 4'!AI10,'Trial 5'!AI10,'Trial 6'!AI10,'Trial 7'!AI10,'Trial 8'!AI10) -> $410.9 | AJ17: =STDEV('Trial 1'!AJ10,'Trial 2'!AJ10,'Trial 3'!AJ10,'Trial 4'!AJ10,'Trial 5'!AJ10,'Trial 6'!AJ10,'Trial 7'!AJ10,'Trial 8'!AJ10) -> $406.8 | AK17: =STDEV('Trial 1'!AK10,'Trial 2'!AK10,'Trial 3'!AK10,'Trial 4'!AK10,'Trial 5'!AK10,'Trial 6'!AK10,'Trial 7'!AK10,'Trial 8'!AK10) -> $401.9 | AL17: =STDEV('Trial 1'!AL10,'Trial 2'!AL10,'Trial 3'!AL10,'Trial 4'!AL10,'Trial 5'!AL10,'Trial 6'!AL10,'Trial 7'!AL10,'Trial 8'!AL10) -> $400.4 | AM17: =STDEV('Trial 1'!AM10,'Trial 2'!AM10,'Trial 3'!AM10,'Trial 4'!AM10,'Trial 5'!AM10,'Trial 6'!AM10,'Trial 7'!AM10,'Trial 8'!AM10) -> $417.0 | AN17: $4,452.1 | AO17: =STDEV('Trial 1'!AO10,'Trial 2'!AO10,'Trial 3'!AO10,'Trial 4'!AO10,'Trial 5'!AO10,'Trial 6'!AO10,'Trial 7'!AO10,'Trial 8'!AO10) -> $465.6 | AP17: =STDEV('Trial 1'!AP10,'Trial 2'!AP10,'Trial 3'!AP10,'Trial 4'!AP10,'Trial 5'!AP10,'Trial 6'!AP10,'Trial 7'!AP10,'Trial 8'!AP10) -> $452.9 | AQ17: =STDEV('Trial 1'!AQ10,'Trial 2'!AQ10,'Trial 3'!AQ10,'Trial 4'!AQ10,'Trial 5'!AQ10,'Trial 6'!AQ10,'Trial 7'!AQ10,'Trial 8'!AQ10) -> $446.5 | AR17: =STDEV('Trial 1'!AR10,'Trial 2'!AR10,'Trial 3'!AR10,'Trial 4'!AR10,'Trial 5'!AR10,'Trial 6'!AR10,'Trial 7'!AR10,'Trial 8'!AR10) -> $459.2 | AS17: =STDEV('Trial 1'!AS10,'Trial 2'!AS10,'Trial 3'!AS10,'Trial 4'!AS10,'Trial 5'!AS10,'Trial 6'!AS10,'Trial 7'!AS10,'Trial 8'!AS10) -> $487.0 | AT17: =STDEV('Trial 1'!AT10,'Trial 2'!AT10,'Trial 3'!AT10,'Trial 4'!AT10,'Trial 5'!AT10,'Trial 6'!AT10,'Trial 7'!AT10,'Trial 8'!AT10) -> $490.7 | AU17: =STDEV('Trial 1'!AU10,'Trial 2'!AU10,'Trial 3'!AU10,'Trial 4'!AU10,'Trial 5'!AU10,'Trial 6'!AU10,'Trial 7'!AU10,'Trial 8'!AU10) -> $471.2 | AV17: =STDEV('Trial 1'!AV10,'Trial 2'!AV10,'Trial 3'!AV10,'Trial 4'!AV10,'Trial 5'!AV10,'Trial 6'!AV10,'Trial 7'!AV10,'Trial 8'!AV10) -> $442.6 | AW17: =STDEV('Trial 1'!AW10,'Trial 2'!AW10,'Trial 3'!AW10,'Trial 4'!AW10,'Trial 5'!AW10,'Trial 6'!AW10,'Trial 7'!AW10,'Trial 8'!AW10) -> $437.2 | AX17: =STDEV('Trial 1'!AX10,'Trial 2'!AX10,'Trial 3'!AX10,'Trial 4'!AX10,'Trial 5'!AX10,'Trial 6'!AX10,'Trial 7'!AX10,'Trial 8'!AX10) -> $422.8 | AY17: =STDEV('Trial 1'!AY10,'Trial 2'!AY10,'Trial 3'!AY10,'Trial 4'!AY10,'Trial 5'!AY10,'Trial 6'!AY10,'Trial 7'!AY10,'Trial 8'!AY10) -> $412.3 | AZ17: =STDEV('Trial 1'!AZ10,'Trial 2'!AZ10,'Trial 3'!AZ10,'Trial 4'!AZ10,'Trial 5'!AZ10,'Trial 6'!AZ10,'Trial 7'!AZ10,'Trial 8'!AZ10) -> $428.8 | BA17: $5,416.8 | BB17: =STDEV('Trial 1'!BB10,'Trial 2'!BB10,'Trial 3'!BB10,'Trial 4'!BB10,'Trial 5'!BB10,'Trial 6'!BB10,'Trial 7'!BB10,'Trial 8'!BB10) -> $461.1 | BC17: =STDEV('Trial 1'!BC10,'Trial 2'!BC10,'Trial 3'!BC10,'Trial 4'!BC10,'Trial 5'!BC10,'Trial 6'!BC10,'Trial 7'!BC10,'Trial 8'!BC10) -> $406.3 | BD17: =STDEV('Trial 1'!BD10,'Trial 2'!BD10,'Trial 3'!BD10,'Trial 4'!BD10,'Trial 5'!BD10,'Trial 6'!BD10,'Trial 7'!BD10,'Trial 8'!BD10) -> $405.6 | BE17: =STDEV('Trial 1'!BE10,'Trial 2'!BE10,'Trial 3'!BE10,'Trial 4'!BE10,'Trial 5'!BE10,'Trial 6'!BE10,'Trial 7'!BE10,'Trial 8'!BE10) -> $439.4 | BF17: =STDEV('Trial 1'!BF10,'Trial 2'!BF10,'Trial 3'!BF10,'Trial 4'!BF10,'Trial 5'!BF10,'Trial 6'!BF10,'Trial 7'!BF10,'Trial 8'!BF10) -> $453.0 | BG17: =STDEV('Trial 1'!BG10,'Trial 2'!BG10,'Trial 3'!BG10,'Trial 4'!BG10,'Trial 5'!BG10,'Trial 6'!BG10,'Trial 7'!BG10,'Trial 8'!BG10) -> $481.5 | BH17: =STDEV('Trial 1'!BH10,'Trial 2'!BH10,'Trial 3'!BH10,'Trial 4'!BH10,'Trial 5'!BH10,'Trial 6'!BH10,'Trial 7'!BH10,'Trial 8'!BH10) -> $514.3 | BI17: =STDEV('Trial 1'!BI10,'Trial 2'!BI10,'Trial 3'!BI10,'Trial 4'!BI10,'Trial 5'!BI10,'Trial 6'!BI10,'Trial 7'!BI10,'Trial 8'!BI10) -> $550.7 | BJ17: =STDEV('Trial 1'!BJ10,'Trial 2'!BJ10,'Trial 3'!BJ10,'Trial 4'!BJ10,'Trial 5'!BJ10,'Trial 6'!BJ10,'Trial 7'!BJ10,'Trial 8'!BJ10) -> $531.4 | BK17: =STDEV('Trial 1'!BK10,'Trial 2'!BK10,'Trial 3'!BK10,'Trial 4'!BK10,'Trial 5'!BK10,'Trial 6'!BK10,'Trial 7'!BK10,'Trial 8'!BK10) -> $549.1 | BL17: =STDEV('Trial 1'!BL10,'Trial 2'!BL10,'Trial 3'!BL10,'Trial 4'!BL10,'Trial 5'!BL10,'Trial 6'!BL10,'Trial 7'!BL10,'Trial 8'!BL10) -> $523.3 | BM17: =STDEV('Trial 1'!BM10,'Trial 2'!BM10,'Trial 3'!BM10,'Trial 4'!BM10,'Trial 5'!BM10,'Trial 6'!BM10,'Trial 7'!BM10,'Trial 8'!BM10) -> $484.8 | BN17: $5,800.5 | BO17: =STDEV('Trial 1'!BO10,'Trial 2'!BO10,'Trial 3'!BO10,'Trial 4'!BO10,'Trial 5'!BO10,'Trial 6'!BO10,'Trial 7'!BO10,'Trial 8'!BO10) -> $469.9 | BP17: =STDEV('Trial 1'!BP10,'Trial 2'!BP10,'Trial 3'!BP10,'Trial 4'!BP10,'Trial 5'!BP10,'Trial 6'!BP10,'Trial 7'!BP10,'Trial 8'!BP10) -> $450.3 | BQ17: =STDEV('Trial 1'!BQ10,'Trial 2'!BQ10,'Trial 3'!BQ10,'Trial 4'!BQ10,'Trial 5'!BQ10,'Trial 6'!BQ10,'Trial 7'!BQ10,'Trial 8'!BQ10) -> $431.0 | BR17: =STDEV('Trial 1'!BR10,'Trial 2'!BR10,'Trial 3'!BR10,'Trial 4'!BR10,'Trial 5'!BR10,'Trial 6'!BR10,'Trial 7'!BR10,'Trial 8'!BR10) -> $473.1 | BS17: =STDEV('Trial 1'!BS10,'Trial 2'!BS10,'Trial 3'!BS10,'Trial 4'!BS10,'Trial 5'!BS10,'Trial 6'!BS10,'Trial 7'!BS10,'Trial 8'!BS10) -> $502.6 | BT17: =STDEV('Trial 1'!BT10,'Trial 2'!BT10,'Trial 3'!BT10,'Trial 4'!BT10,'Trial 5'!BT10,'Trial 6'!BT10,'Trial 7'!BT10,'Trial 8'!BT10) -> $526.5 | BU17: =STDEV('Trial 1'!BU10,'Trial 2'!BU10,'Trial 3'!BU10,'Trial 4'!BU10,'Trial 5'!BU10,'Trial 6'!BU10,'Trial 7'!BU10,'Trial 8'!BU10) -> $510.2 | BV17: =STDEV('Trial 1'!BV10,'Trial 2'!BV10,'Trial 3'!BV10,'Trial 4'!BV10,'Trial 5'!BV10,'Trial 6'!BV10,'Trial 7'!BV10,'Trial 8'!BV10) -> $538.0 | BW17: =STDEV('Trial 1'!BW10,'Trial 2'!BW10,'Trial 3'!BW10,'Trial 4'!BW10,'Trial 5'!BW10,'Trial 6'!BW10,'Trial 7'!BW10,'Trial 8'!BW10) -> $573.3 | BX17: =STDEV('Trial 1'!BX10,'Trial 2'!BX10,'Trial 3'!BX10,'Trial 4'!BX10,'Trial 5'!BX10,'Trial 6'!BX10,'Trial 7'!BX10,'Trial 8'!BX10) -> $613.8 | BY17: =STDEV('Trial 1'!BY10,'Trial 2'!BY10,'Trial 3'!BY10,'Trial 4'!BY10,'Trial 5'!BY10,'Trial 6'!BY10,'Trial 7'!BY10,'Trial 8'!BY10) -> $626.7 | BZ17: =STDEV('Trial 1'!BZ10,'Trial 2'!BZ10,'Trial 3'!BZ10,'Trial 4'!BZ10,'Trial 5'!BZ10,'Trial 6'!BZ10,'Trial 7'!BZ10,'Trial 8'!BZ10) -> $586.9 | CA17: $6,302.4 | CB17: =STDEV('Trial 1'!CB10,'Trial 2'!CB10,'Trial 3'!CB10,'Trial 4'!CB10,'Trial 5'!CB10,'Trial 6'!CB10,'Trial 7'!CB10,'Trial 8'!CB10) -> $561.6 | CC17: =STDEV('Trial 1'!CC10,'Trial 2'!CC10,'Trial 3'!CC10,'Trial 4'!CC10,'Trial 5'!CC10,'Trial 6'!CC10,'Trial 7'!CC10,'Trial 8'!CC10) -> $555.6 | CD17: =STDEV('Trial 1'!CD10,'Trial 2'!CD10,'Trial 3'!CD10,'Trial 4'!CD10,'Trial 5'!CD10,'Trial 6'!CD10,'Trial 7'!CD10,'Trial 8'!CD10) -> $553.4 | CE17: =STDEV('Trial 1'!CE10,'Trial 2'!CE10,'Trial 3'!CE10,'Trial 4'!CE10,'Trial 5'!CE10,'Trial 6'!CE10,'Trial 7'!CE10,'Trial 8'!CE10) -> $561.4 | CF17: =STDEV('Trial 1'!CF10,'Trial 2'!CF10,'Trial 3'!CF10,'Trial 4'!CF10,'Trial 5'!CF10,'Trial 6'!CF10,'Trial 7'!CF10,'Trial 8'!CF10) -> $551.6 | CG17: =STDEV('Trial 1'!CG10,'Trial 2'!CG10,'Trial 3'!CG10,'Trial 4'!CG10,'Trial 5'!CG10,'Trial 6'!CG10,'Trial 7'!CG10,'Trial 8'!CG10) -> $542.1 | CH17: =STDEV('Trial 1'!CH10,'Trial 2'!CH10,'Trial 3'!CH10,'Trial 4'!CH10,'Trial 5'!CH10,'Trial 6'!CH10,'Trial 7'!CH10,'Trial 8'!CH10) -> $579.3 | CI17: =STDEV('Trial 1'!CI10,'Trial 2'!CI10,'Trial 3'!CI10,'Trial 4'!CI10,'Trial 5'!CI10,'Trial 6'!CI10,'Trial 7'!CI10,'Trial 8'!CI10) -> $542.9 | CJ17: =STDEV('Trial 1'!CJ10,'Trial 2'!CJ10,'Trial 3'!CJ10,'Trial 4'!CJ10,'Trial 5'!CJ10,'Trial 6'!CJ10,'Trial 7'!CJ10,'Trial 8'!CJ10) -> $511.1 | CK17: =STDEV('Trial 1'!CK10,'Trial 2'!CK10,'Trial 3'!CK10,'Trial 4'!CK10,'Trial 5'!CK10,'Trial 6'!CK10,'Trial 7'!CK10,'Trial 8'!CK10) -> $525.9 | CL17: =STDEV('Trial 1'!CL10,'Trial 2'!CL10,'Trial 3'!CL10,'Trial 4'!CL10,'Trial 5'!CL10,'Trial 6'!CL10,'Trial 7'!CL10,'Trial 8'!CL10) -> $526.3 | CM17: =STDEV('Trial 1'!CM10,'Trial 2'!CM10,'Trial 3'!CM10,'Trial 4'!CM10,'Trial 5'!CM10,'Trial 6'!CM10,'Trial 7'!CM10,'Trial 8'!CM10) -> $509.8 | CN17: $6,521.0 | CO17: =STDEV('Trial 1'!CO10,'Trial 2'!CO10,'Trial 3'!CO10,'Trial 4'!CO10,'Trial 5'!CO10,'Trial 6'!CO10,'Trial 7'!CO10,'Trial 8'!CO10) -> $539.8 | CP17: =STDEV('Trial 1'!CP10,'Trial 2'!CP10,'Trial 3'!CP10,'Trial 4'!CP10,'Trial 5'!CP10,'Trial 6'!CP10,'Trial 7'!CP10,'Trial 8'!CP10) -> $576.2 | CQ17: =STDEV('Trial 1'!CQ10,'Trial 2'!CQ10,'Trial 3'!CQ10,'Trial 4'!CQ10,'Trial 5'!CQ10,'Trial 6'!CQ10,'Trial 7'!CQ10,'Trial 8'!CQ10) -> $579.2 | CR17: =STDEV('Trial 1'!CR10,'Trial 2'!CR10,'Trial 3'!CR10,'Trial 4'!CR10,'Trial 5'!CR10,'Trial 6'!CR10,'Trial 7'!CR10,'Trial 8'!CR10) -> $588.4 | CS17: =STDEV('Trial 1'!CS10,'Trial 2'!CS10,'Trial 3'!CS10,'Trial 4'!CS10,'Trial 5'!CS10,'Trial 6'!CS10,'Trial 7'!CS10,'Trial 8'!CS10) -> $603.0 | CT17: =STDEV('Trial 1'!CT10,'Trial 2'!CT10,'Trial 3'!CT10,'Trial 4'!CT10,'Trial 5'!CT10,'Trial 6'!CT10,'Trial 7'!CT10,'Trial 8'!CT10) -> $572.3 | CU17: =STDEV('Trial 1'!CU10,'Trial 2'!CU10,'Trial 3'!CU10,'Trial 4'!CU10,'Trial 5'!CU10,'Trial 6'!CU10,'Trial 7'!CU10,'Trial 8'!CU10) -> $585.7 | CV17: =STDEV('Trial 1'!CV10,'Trial 2'!CV10,'Trial 3'!CV10,'Trial 4'!CV10,'Trial 5'!CV10,'Trial 6'!CV10,'Trial 7'!CV10,'Trial 8'!CV10) -> $600.4 | CW17: =STDEV('Trial 1'!CW10,'Trial 2'!CW10,'Trial 3'!CW10,'Trial 4'!CW10,'Trial 5'!CW10,'Trial 6'!CW10,'Trial 7'!CW10,'Trial 8'!CW10) -> $583.5 | CX17: =STDEV('Trial 1'!CX10,'Trial 2'!CX10,'Trial 3'!CX10,'Trial 4'!CX10,'Trial 5'!CX10,'Trial 6'!CX10,'Trial 7'!CX10,'Trial 8'!CX10) -> $577.8 | CY17: =STDEV('Trial 1'!CY10,'Trial 2'!CY10,'Trial 3'!CY10,'Trial 4'!CY10,'Trial 5'!CY10,'Trial 6'!CY10,'Trial 7'!CY10,'Trial 8'!CY10) -> $604.6 | CZ17: =STDEV('Trial 1'!CZ10,'Trial 2'!CZ10,'Trial 3'!CZ10,'Trial 4'!CZ10,'Trial 5'!CZ10,'Trial 6'!CZ10,'Trial 7'!CZ10,'Trial 8'!CZ10) -> $611.0 | DA17: $7,022.0 | DB17: =STDEV('Trial 1'!DB10,'Trial 2'!DB10,'Trial 3'!DB10,'Trial 4'!DB10,'Trial 5'!DB10,'Trial 6'!DB10,'Trial 7'!DB10,'Trial 8'!DB10) -> $594.4 | DC17: =STDEV('Trial 1'!DC10,'Trial 2'!DC10,'Trial 3'!DC10,'Trial 4'!DC10,'Trial 5'!DC10,'Trial 6'!DC10,'Trial 7'!DC10,'Trial 8'!DC10) -> $660.5 | DD17: =STDEV('Trial 1'!DD10,'Trial 2'!DD10,'Trial 3'!DD10,'Trial 4'!DD10,'Trial 5'!DD10,'Trial 6'!DD10,'Trial 7'!DD10,'Trial 8'!DD10) -> $660.3 | DE17: =STDEV('Trial 1'!DE10,'Trial 2'!DE10,'Trial 3'!DE10,'Trial 4'!DE10,'Trial 5'!DE10,'Trial 6'!DE10,'Trial 7'!DE10,'Trial 8'!DE10) -> $634.1 | DF17: =STDEV('Trial 1'!DF10,'Trial 2'!DF10,'Trial 3'!DF10,'Trial 4'!DF10,'Trial 5'!DF10,'Trial 6'!DF10,'Trial 7'!DF10,'Trial 8'!DF10) -> $612.9 | DG17: =STDEV('Trial 1'!DG10,'Trial 2'!DG10,'Trial 3'!DG10,'Trial 4'!DG10,'Trial 5'!DG10,'Trial 6'!DG10,'Trial 7'!DG10,'Trial 8'!DG10) -> $593.7 | DH17: =STDEV('Trial 1'!DH10,'Trial 2'!DH10,'Trial 3'!DH10,'Trial 4'!DH10,'Trial 5'!DH10,'Trial 6'!DH10,'Trial 7'!DH10,'Trial 8'!DH10) -> $561.7 | DI17: =STDEV('Trial 1'!DI10,'Trial 2'!DI10,'Trial 3'!DI10,'Trial 4'!DI10,'Trial 5'!DI10,'Trial 6'!DI10,'Trial 7'!DI10,'Trial 8'!DI10) -> $548.0 | DJ17: =STDEV('Trial 1'!DJ10,'Trial 2'!DJ10,'Trial 3'!DJ10,'Trial 4'!DJ10,'Trial 5'!DJ10,'Trial 6'!DJ10,'Trial 7'!DJ10,'Trial 8'!DJ10) -> $510.5 | DK17: =STDEV('Trial 1'!DK10,'Trial 2'!DK10,'Trial 3'!DK10,'Trial 4'!DK10,'Trial 5'!DK10,'Trial 6'!DK10,'Trial 7'!DK10,'Trial 8'!DK10) -> $538.7 | DL17: =STDEV('Trial 1'!DL10,'Trial 2'!DL10,'Trial 3'!DL10,'Trial 4'!DL10,'Trial 5'!DL10,'Trial 6'!DL10,'Trial 7'!DL10,'Trial 8'!DL10) -> $512.7 | DM17: =STDEV('Trial 1'!DM10,'Trial 2'!DM10,'Trial 3'!DM10,'Trial 4'!DM10,'Trial 5'!DM10,'Trial 6'!DM10,'Trial 7'!DM10,'Trial 8'!DM10) -> $548.9 | DN17: $6,976.4 | DO17: =STDEV('Trial 1'!DO10,'Trial 2'!DO10,'Trial 3'!DO10,'Trial 4'!DO10,'Trial 5'!DO10,'Trial 6'!DO10,'Trial 7'!DO10,'Trial 8'!DO10) -> $552.8 | DP17: =STDEV('Trial 1'!DP10,'Trial 2'!DP10,'Trial 3'!DP10,'Trial 4'!DP10,'Trial 5'!DP10,'Trial 6'!DP10,'Trial 7'!DP10,'Trial 8'!DP10) -> $494.3 | DQ17: =STDEV('Trial 1'!DQ10,'Trial 2'!DQ10,'Trial 3'!DQ10,'Trial 4'!DQ10,'Trial 5'!DQ10,'Trial 6'!DQ10,'Trial 7'!DQ10,'Trial 8'!DQ10) -> $461.5 | DR17: =STDEV('Trial 1'!DR10,'Trial 2'!DR10,'Trial 3'!DR10,'Trial 4'!DR10,'Trial 5'!DR10,'Trial 6'!DR10,'Trial 7'!DR10,'Trial 8'!DR10) -> $486.6 | DS17: =STDEV('Trial 1'!DS10,'Trial 2'!DS10,'Trial 3'!DS10,'Trial 4'!DS10,'Trial 5'!DS10,'Trial 6'!DS10,'Trial 7'!DS10,'Trial 8'!DS10) -> $521.2 | DT17: =STDEV('Trial 1'!DT10,'Trial 2'!DT10,'Trial 3'!DT10,'Trial 4'!DT10,'Trial 5'!DT10,'Trial 6'!DT10,'Trial 7'!DT10,'Trial 8'!DT10) -> $519.6 | DU17: =STDEV('Trial 1'!DU10,'Trial 2'!DU10,'Trial 3'!DU10,'Trial 4'!DU10,'Trial 5'!DU10,'Trial 6'!DU10,'Trial 7'!DU10,'Trial 8'!DU10) -> $542.6 | DV17: =STDEV('Trial 1'!DV10,'Trial 2'!DV10,'Trial 3'!DV10,'Trial 4'!DV10,'Trial 5'!DV10,'Trial 6'!DV10,'Trial 7'!DV10,'Trial 8'!DV10) -> $565.4 | DW17: =STDEV('Trial 1'!DW10,'Trial 2'!DW10,'Trial 3'!DW10,'Trial 4'!DW10,'Trial 5'!DW10,'Trial 6'!DW10,'Trial 7'!DW10,'Trial 8'!DW10) -> $565.0 | DX17: =STDEV('Trial 1'!DX10,'Trial 2'!DX10,'Trial 3'!DX10,'Trial 4'!DX10,'Trial 5'!DX10,'Trial 6'!DX10,'Trial 7'!DX10,'Trial 8'!DX10) -> $598.0 | DY17: =STDEV('Trial 1'!DY10,'Trial 2'!DY10,'Trial 3'!DY10,'Trial 4'!DY10,'Trial 5'!DY10,'Trial 6'!DY10,'Trial 7'!DY10,'Trial 8'!DY10) -> $550.4 | DZ17: =STDEV('Trial 1'!DZ10,'Trial 2'!DZ10,'Trial 3'!DZ10,'Trial 4'!DZ10,'Trial 5'!DZ10,'Trial 6'!DZ10,'Trial 7'!DZ10,'Trial 8'!DZ10) -> $556.6 | EA17: $6,414.1 | EB17: =STDEV('Trial 1'!EB10,'Trial 2'!EB10,'Trial 3'!EB10,'Trial 4'!EB10,'Trial 5'!EB10,'Trial 6'!EB10,'Trial 7'!EB10,'Trial 8'!EB10) -> $581.2 | EC17: =STDEV('Trial 1'!EC10,'Trial 2'!EC10,'Trial 3'!EC10,'Trial 4'!EC10,'Trial 5'!EC10,'Trial 6'!EC10,'Trial 7'!EC10,'Trial 8'!EC10) -> $538.3 | ED17: =STDEV('Trial 1'!ED10,'Trial 2'!ED10,'Trial 3'!ED10,'Trial 4'!ED10,'Trial 5'!ED10,'Trial 6'!ED10,'Trial 7'!ED10,'Trial 8'!ED10) -> $514.4 | EE17: =STDEV('Trial 1'!EE10,'Trial 2'!EE10,'Trial 3'!EE10,'Trial 4'!EE10,'Trial 5'!EE10,'Trial 6'!EE10,'Trial 7'!EE10,'Trial 8'!EE10) -> $549.1 | EF17: =STDEV('Trial 1'!EF10,'Trial 2'!EF10,'Trial 3'!EF10,'Trial 4'!EF10,'Trial 5'!EF10,'Trial 6'!EF10,'Trial 7'!EF10,'Trial 8'!EF10) -> $546.1 | EG17: =STDEV('Trial 1'!EG10,'Trial 2'!EG10,'Trial 3'!EG10,'Trial 4'!EG10,'Trial 5'!EG10,'Trial 6'!EG10,'Trial 7'!EG10,'Trial 8'!EG10) -> $515.8 | EH17: =STDEV('Trial 1'!EH10,'Trial 2'!EH10,'Trial 3'!EH10,'Trial 4'!EH10,'Trial 5'!EH10,'Trial 6'!EH10,'Trial 7'!EH10,'Trial 8'!EH10) -> $548.7 | EI17: =STDEV('Trial 1'!EI10,'Trial 2'!EI10,'Trial 3'!EI10,'Trial 4'!EI10,'Trial 5'!EI10,'Trial 6'!EI10,'Trial 7'!EI10,'Trial 8'!EI10) -> $588.1 | EJ17: =STDEV('Trial 1'!EJ10,'Trial 2'!EJ10,'Trial 3'!EJ10,'Trial 4'!EJ10,'Trial 5'!EJ10,'Trial 6'!EJ10,'Trial 7'!EJ10,'Trial 8'!EJ10) -> $597.9 | EK17: =STDEV('Trial 1'!EK10,'Trial 2'!EK10,'Trial 3'!EK10,'Trial 4'!EK10,'Trial 5'!EK10,'Trial 6'!EK10,'Trial 7'!EK10,'Trial 8'!EK10) -> $618.6 | EL17: =STDEV('Trial 1'!EL10,'Trial 2'!EL10,'Trial 3'!EL10,'Trial 4'!EL10,'Trial 5'!EL10,'Trial 6'!EL10,'Trial 7'!EL10,'Trial 8'!EL10) -> $610.0 | EM17: =STDEV('Trial 1'!EM10,'Trial 2'!EM10,'Trial 3'!EM10,'Trial 4'!EM10,'Trial 5'!EM10,'Trial 6'!EM10,'Trial 7'!EM10,'Trial 8'!EM10) -> $575.2 | EN17: $6,783.3
A18: =Labels!B26 -> Consumption | B18: =AVERAGE('Trial 1'!B12,'Trial 2'!B12,'Trial 3'!B12,'Trial 4'!B12,'Trial 5'!B12,'Trial 6'!B12,'Trial 7'!B12,'Trial 8'!B12) -> $728,000 | C18: =AVERAGE('Trial 1'!C12,'Trial 2'!C12,'Trial 3'!C12,'Trial 4'!C12,'Trial 5'!C12,'Trial 6'!C12,'Trial 7'!C12,'Trial 8'!C12) -> $727,801 | D18: =AVERAGE('Trial 1'!D12,'Trial 2'!D12,'Trial 3'!D12,'Trial 4'!D12,'Trial 5'!D12,'Trial 6'!D12,'Trial 7'!D12,'Trial 8'!D12) -> $727,582 | E18: =AVERAGE('Trial 1'!E12,'Trial 2'!E12,'Trial 3'!E12,'Trial 4'!E12,'Trial 5'!E12,'Trial 6'!E12,'Trial 7'!E12,'Trial 8'!E12) -> $727,363 | F18: =AVERAGE('Trial 1'!F12,'Trial 2'!F12,'Trial 3'!F12,'Trial 4'!F12,'Trial 5'!F12,'Trial 6'!F12,'Trial 7'!F12,'Trial 8'!F12) -> $727,116 | G18: =AVERAGE('Trial 1'!G12,'Trial 2'!G12,'Trial 3'!G12,'Trial 4'!G12,'Trial 5'!G12,'Trial 6'!G12,'Trial 7'!G12,'Trial 8'!G12) -> $726,871 | H18: =AVERAGE('Trial 1'!H12,'Trial 2'!H12,'Trial 3'!H12,'Trial 4'!H12,'Trial 5'!H12,'Trial 6'!H12,'Trial 7'!H12,'Trial 8'!H12) -> $726,636 | I18: =AVERAGE('Trial 1'!I12,'Trial 2'!I12,'Trial 3'!I12,'Trial 4'!I12,'Trial 5'!I12,'Trial 6'!I12,'Trial 7'!I12,'Trial 8'!I12) -> $726,440 | J18: =AVERAGE('Trial 1'!J12,'Trial 2'!J12,'Trial 3'!J12,'Trial 4'!J12,'Trial 5'!J12,'Trial 6'!J12,'Trial 7'!J12,'Trial 8'!J12) -> $726,207 | K18: =AVERAGE('Trial 1'!K12,'Trial 2'!K12,'Trial 3'!K12,'Trial 4'!K12,'Trial 5'!K12,'Trial 6'!K12,'Trial 7'!K12,'Trial 8'!K12) -> $725,998 | L18: =AVERAGE('Trial 1'!L12,'Trial 2'!L12,'Trial 3'!L12,'Trial 4'!L12,'Trial 5'!L12,'Trial 6'!L12,'Trial 7'!L12,'Trial 8'!L12) -> $725,756 | M18: =AVERAGE('Trial 1'!M12,'Trial 2'!M12,'Trial 3'!M12,'Trial 4'!M12,'Trial 5'!M12,'Trial 6'!M12,'Trial 7'!M12,'Trial 8'!M12) -> $725,537 | N18: $8,721,308 | O18: =AVERAGE('Trial 1'!O12,'Trial 2'!O12,'Trial 3'!O12,'Trial 4'!O12,'Trial 5'!O12,'Trial 6'!O12,'Trial 7'!O12,'Trial 8'!O12) -> $725,315 | P18: =AVERAGE('Trial 1'!P12,'Trial 2'!P12,'Trial 3'!P12,'Trial 4'!P12,'Trial 5'!P12,'Trial 6'!P12,'Trial 7'!P12,'Trial 8'!P12) -> $725,066 | Q18: =AVERAGE('Trial 1'!Q12,'Trial 2'!Q12,'Trial 3'!Q12,'Trial 4'!Q12,'Trial 5'!Q12,'Trial 6'!Q12,'Trial 7'!Q12,'Trial 8'!Q12) -> $724,837 | R18: =AVERAGE('Trial 1'!R12,'Trial 2'!R12,'Trial 3'!R12,'Trial 4'!R12,'Trial 5'!R12,'Trial 6'!R12,'Trial 7'!R12,'Trial 8'!R12) -> $724,625 | S18: =AVERAGE('Trial 1'!S12,'Trial 2'!S12,'Trial 3'!S12,'Trial 4'!S12,'Trial 5'!S12,'Trial 6'!S12,'Trial 7'!S12,'Trial 8'!S12) -> $724,392 | T18: =AVERAGE('Trial 1'!T12,'Trial 2'!T12,'Trial 3'!T12,'Trial 4'!T12,'Trial 5'!T12,'Trial 6'!T12,'Trial 7'!T12,'Trial 8'!T12) -> $724,161 | U18: =AVERAGE('Trial 1'!U12,'Trial 2'!U12,'Trial 3'!U12,'Trial 4'!U12,'Trial 5'!U12,'Trial 6'!U12,'Trial 7'!U12,'Trial 8'!U12) -> $723,922 | V18: =AVERAGE('Trial 1'!V12,'Trial 2'!V12,'Trial 3'!V12,'Trial 4'!V12,'Trial 5'!V12,'Trial 6'!V12,'Trial 7'!V12,'Trial 8'!V12) -> $723,669 | W18: =AVERAGE('Trial 1'!W12,'Trial 2'!W12,'Trial 3'!W12,'Trial 4'!W12,'Trial 5'!W12,'Trial 6'!W12,'Trial 7'!W12,'Trial 8'!W12) -> $723,435 | X18: =AVERAGE('Trial 1'!X12,'Trial 2'!X12,'Trial 3'!X12,'Trial 4'!X12,'Trial 5'!X12,'Trial 6'!X12,'Trial 7'!X12,'Trial 8'!X12) -> $723,182 | Y18: =AVERAGE('Trial 1'!Y12,'Trial 2'!Y12,'Trial 3'!Y12,'Trial 4'!Y12,'Trial 5'!Y12,'Trial 6'!Y12,'Trial 7'!Y12,'Trial 8'!Y12) -> $722,939 | Z18: =AVERAGE('Trial 1'!Z12,'Trial 2'!Z12,'Trial 3'!Z12,'Trial 4'!Z12,'Trial 5'!Z12,'Trial 6'!Z12,'Trial 7'!Z12,'Trial 8'!Z12) -> $722,675 | AA18: $8,688,218 | AB18: =AVERAGE('Trial 1'!AB12,'Trial 2'!AB12,'Trial 3'!AB12,'Trial 4'!AB12,'Trial 5'!AB12,'Trial 6'!AB12,'Trial 7'!AB12,'Trial 8'!AB12) -> $722,434 | AC18: =AVERAGE('Trial 1'!AC12,'Trial 2'!AC12,'Trial 3'!AC12,'Trial 4'!AC12,'Trial 5'!AC12,'Trial 6'!AC12,'Trial 7'!AC12,'Trial 8'!AC12) -> $722,165 | AD18: =AVERAGE('Trial 1'!AD12,'Trial 2'!AD12,'Trial 3'!AD12,'Trial 4'!AD12,'Trial 5'!AD12,'Trial 6'!AD12,'Trial 7'!AD12,'Trial 8'!AD12) -> $721,904 | AE18: =AVERAGE('Trial 1'!AE12,'Trial 2'!AE12,'Trial 3'!AE12,'Trial 4'!AE12,'Trial 5'!AE12,'Trial 6'!AE12,'Trial 7'!AE12,'Trial 8'!AE12) -> $721,673 | AF18: =AVERAGE('Trial 1'!AF12,'Trial 2'!AF12,'Trial 3'!AF12,'Trial 4'!AF12,'Trial 5'!AF12,'Trial 6'!AF12,'Trial 7'!AF12,'Trial 8'!AF12) -> $721,389 | AG18: =AVERAGE('Trial 1'!AG12,'Trial 2'!AG12,'Trial 3'!AG12,'Trial 4'!AG12,'Trial 5'!AG12,'Trial 6'!AG12,'Trial 7'!AG12,'Trial 8'!AG12) -> $721,132 | AH18: =AVERAGE('Trial 1'!AH12,'Trial 2'!AH12,'Trial 3'!AH12,'Trial 4'!AH12,'Trial 5'!AH12,'Trial 6'!AH12,'Trial 7'!AH12,'Trial 8'!AH12) -> $720,875 | AI18: =AVERAGE('Trial 1'!AI12,'Trial 2'!AI12,'Trial 3'!AI12,'Trial 4'!AI12,'Trial 5'!AI12,'Trial 6'!AI12,'Trial 7'!AI12,'Trial 8'!AI12) -> $720,625 | AJ18: =AVERAGE('Trial 1'!AJ12,'Trial 2'!AJ12,'Trial 3'!AJ12,'Trial 4'!AJ12,'Trial 5'!AJ12,'Trial 6'!AJ12,'Trial 7'!AJ12,'Trial 8'!AJ12) -> $720,331 | AK18: =AVERAGE('Trial 1'!AK12,'Trial 2'!AK12,'Trial 3'!AK12,'Trial 4'!AK12,'Trial 5'!AK12,'Trial 6'!AK12,'Trial 7'!AK12,'Trial 8'!AK12) -> $720,070 | AL18: =AVERAGE('Trial 1'!AL12,'Trial 2'!AL12,'Trial 3'!AL12,'Trial 4'!AL12,'Trial 5'!AL12,'Trial 6'!AL12,'Trial 7'!AL12,'Trial 8'!AL12) -> $719,812 | AM18: =AVERAGE('Trial 1'!AM12,'Trial 2'!AM12,'Trial 3'!AM12,'Trial 4'!AM12,'Trial 5'!AM12,'Trial 6'!AM12,'Trial 7'!AM12,'Trial 8'!AM12) -> $719,535 | AN18: $8,651,946 | AO18: =AVERAGE('Trial 1'!AO12,'Trial 2'!AO12,'Trial 3'!AO12,'Trial 4'!AO12,'Trial 5'!AO12,'Trial 6'!AO12,'Trial 7'!AO12,'Trial 8'!AO12) -> $719,278 | AP18: =AVERAGE('Trial 1'!AP12,'Trial 2'!AP12,'Trial 3'!AP12,'Trial 4'!AP12,'Trial 5'!AP12,'Trial 6'!AP12,'Trial 7'!AP12,'Trial 8'!AP12) -> $718,977 | AQ18: =AVERAGE('Trial 1'!AQ12,'Trial 2'!AQ12,'Trial 3'!AQ12,'Trial 4'!AQ12,'Trial 5'!AQ12,'Trial 6'!AQ12,'Trial 7'!AQ12,'Trial 8'!AQ12) -> $718,685 | AR18: =AVERAGE('Trial 1'!AR12,'Trial 2'!AR12,'Trial 3'!AR12,'Trial 4'!AR12,'Trial 5'!AR12,'Trial 6'!AR12,'Trial 7'!AR12,'Trial 8'!AR12) -> $718,428 | AS18: =AVERAGE('Trial 1'!AS12,'Trial 2'!AS12,'Trial 3'!AS12,'Trial 4'!AS12,'Trial 5'!AS12,'Trial 6'!AS12,'Trial 7'!AS12,'Trial 8'!AS12) -> $718,151 | AT18: =AVERAGE('Trial 1'!AT12,'Trial 2'!AT12,'Trial 3'!AT12,'Trial 4'!AT12,'Trial 5'!AT12,'Trial 6'!AT12,'Trial 7'!AT12,'Trial 8'!AT12) -> $717,843 | AU18: =AVERAGE('Trial 1'!AU12,'Trial 2'!AU12,'Trial 3'!AU12,'Trial 4'!AU12,'Trial 5'!AU12,'Trial 6'!AU12,'Trial 7'!AU12,'Trial 8'!AU12) -> $717,535 | AV18: =AVERAGE('Trial 1'!AV12,'Trial 2'!AV12,'Trial 3'!AV12,'Trial 4'!AV12,'Trial 5'!AV12,'Trial 6'!AV12,'Trial 7'!AV12,'Trial 8'!AV12) -> $717,274 | AW18: =AVERAGE('Trial 1'!AW12,'Trial 2'!AW12,'Trial 3'!AW12,'Trial 4'!AW12,'Trial 5'!AW12,'Trial 6'!AW12,'Trial 7'!AW12,'Trial 8'!AW12) -> $717,012 | AX18: =AVERAGE('Trial 1'!AX12,'Trial 2'!AX12,'Trial 3'!AX12,'Trial 4'!AX12,'Trial 5'!AX12,'Trial 6'!AX12,'Trial 7'!AX12,'Trial 8'!AX12) -> $716,716 | AY18: =AVERAGE('Trial 1'!AY12,'Trial 2'!AY12,'Trial 3'!AY12,'Trial 4'!AY12,'Trial 5'!AY12,'Trial 6'!AY12,'Trial 7'!AY12,'Trial 8'!AY12) -> $716,438 | AZ18: =AVERAGE('Trial 1'!AZ12,'Trial 2'!AZ12,'Trial 3'!AZ12,'Trial 4'!AZ12,'Trial 5'!AZ12,'Trial 6'!AZ12,'Trial 7'!AZ12,'Trial 8'!AZ12) -> $716,144 | BA18: $8,612,481 | BB18: =AVERAGE('Trial 1'!BB12,'Trial 2'!BB12,'Trial 3'!BB12,'Trial 4'!BB12,'Trial 5'!BB12,'Trial 6'!BB12,'Trial 7'!BB12,'Trial 8'!BB12) -> $715,860 | BC18: =AVERAGE('Trial 1'!BC12,'Trial 2'!BC12,'Trial 3'!BC12,'Trial 4'!BC12,'Trial 5'!BC12,'Trial 6'!BC12,'Trial 7'!BC12,'Trial 8'!BC12) -> $715,568 | BD18: =AVERAGE('Trial 1'!BD12,'Trial 2'!BD12,'Trial 3'!BD12,'Trial 4'!BD12,'Trial 5'!BD12,'Trial 6'!BD12,'Trial 7'!BD12,'Trial 8'!BD12) -> $715,301 | BE18: =AVERAGE('Trial 1'!BE12,'Trial 2'!BE12,'Trial 3'!BE12,'Trial 4'!BE12,'Trial 5'!BE12,'Trial 6'!BE12,'Trial 7'!BE12,'Trial 8'!BE12) -> $715,041 | BF18: =AVERAGE('Trial 1'!BF12,'Trial 2'!BF12,'Trial 3'!BF12,'Trial 4'!BF12,'Trial 5'!BF12,'Trial 6'!BF12,'Trial 7'!BF12,'Trial 8'!BF12) -> $714,756 | BG18: =AVERAGE('Trial 1'!BG12,'Trial 2'!BG12,'Trial 3'!BG12,'Trial 4'!BG12,'Trial 5'!BG12,'Trial 6'!BG12,'Trial 7'!BG12,'Trial 8'!BG12) -> $714,456 | BH18: =AVERAGE('Trial 1'!BH12,'Trial 2'!BH12,'Trial 3'!BH12,'Trial 4'!BH12,'Trial 5'!BH12,'Trial 6'!BH12,'Trial 7'!BH12,'Trial 8'!BH12) -> $714,154 | BI18: =AVERAGE('Trial 1'!BI12,'Trial 2'!BI12,'Trial 3'!BI12,'Trial 4'!BI12,'Trial 5'!BI12,'Trial 6'!BI12,'Trial 7'!BI12,'Trial 8'!BI12) -> $713,884 | BJ18: =AVERAGE('Trial 1'!BJ12,'Trial 2'!BJ12,'Trial 3'!BJ12,'Trial 4'!BJ12,'Trial 5'!BJ12,'Trial 6'!BJ12,'Trial 7'!BJ12,'Trial 8'!BJ12) -> $713,578 | BK18: =AVERAGE('Trial 1'!BK12,'Trial 2'!BK12,'Trial 3'!BK12,'Trial 4'!BK12,'Trial 5'!BK12,'Trial 6'!BK12,'Trial 7'!BK12,'Trial 8'!BK12) -> $713,283 | BL18: =AVERAGE('Trial 1'!BL12,'Trial 2'!BL12,'Trial 3'!BL12,'Trial 4'!BL12,'Trial 5'!BL12,'Trial 6'!BL12,'Trial 7'!BL12,'Trial 8'!BL12) -> $712,988 | BM18: =AVERAGE('Trial 1'!BM12,'Trial 2'!BM12,'Trial 3'!BM12,'Trial 4'!BM12,'Trial 5'!BM12,'Trial 6'!BM12,'Trial 7'!BM12,'Trial 8'!BM12) -> $712,680 | BN18: $8,571,549 | BO18: =AVERAGE('Trial 1'!BO12,'Trial 2'!BO12,'Trial 3'!BO12,'Trial 4'!BO12,'Trial 5'!BO12,'Trial 6'!BO12,'Trial 7'!BO12,'Trial 8'!BO12) -> $712,366 | BP18: =AVERAGE('Trial 1'!BP12,'Trial 2'!BP12,'Trial 3'!BP12,'Trial 4'!BP12,'Trial 5'!BP12,'Trial 6'!BP12,'Trial 7'!BP12,'Trial 8'!BP12) -> $712,033 | BQ18: =AVERAGE('Trial 1'!BQ12,'Trial 2'!BQ12,'Trial 3'!BQ12,'Trial 4'!BQ12,'Trial 5'!BQ12,'Trial 6'!BQ12,'Trial 7'!BQ12,'Trial 8'!BQ12) -> $711,749 | BR18: =AVERAGE('Trial 1'!BR12,'Trial 2'!BR12,'Trial 3'!BR12,'Trial 4'!BR12,'Trial 5'!BR12,'Trial 6'!BR12,'Trial 7'!BR12,'Trial 8'!BR12) -> $711,438 | BS18: =AVERAGE('Trial 1'!BS12,'Trial 2'!BS12,'Trial 3'!BS12,'Trial 4'!BS12,'Trial 5'!BS12,'Trial 6'!BS12,'Trial 7'!BS12,'Trial 8'!BS12) -> $711,167 | BT18: =AVERAGE('Trial 1'!BT12,'Trial 2'!BT12,'Trial 3'!BT12,'Trial 4'!BT12,'Trial 5'!BT12,'Trial 6'!BT12,'Trial 7'!BT12,'Trial 8'!BT12) -> $710,861 | BU18: =AVERAGE('Trial 1'!BU12,'Trial 2'!BU12,'Trial 3'!BU12,'Trial 4'!BU12,'Trial 5'!BU12,'Trial 6'!BU12,'Trial 7'!BU12,'Trial 8'!BU12) -> $710,569 | BV18: =AVERAGE('Trial 1'!BV12,'Trial 2'!BV12,'Trial 3'!BV12,'Trial 4'!BV12,'Trial 5'!BV12,'Trial 6'!BV12,'Trial 7'!BV12,'Trial 8'!BV12) -> $710,249 | BW18: =AVERAGE('Trial 1'!BW12,'Trial 2'!BW12,'Trial 3'!BW12,'Trial 4'!BW12,'Trial 5'!BW12,'Trial 6'!BW12,'Trial 7'!BW12,'Trial 8'!BW12) -> $709,926 | BX18: =AVERAGE('Trial 1'!BX12,'Trial 2'!BX12,'Trial 3'!BX12,'Trial 4'!BX12,'Trial 5'!BX12,'Trial 6'!BX12,'Trial 7'!BX12,'Trial 8'!BX12) -> $709,642 | BY18: =AVERAGE('Trial 1'!BY12,'Trial 2'!BY12,'Trial 3'!BY12,'Trial 4'!BY12,'Trial 5'!BY12,'Trial 6'!BY12,'Trial 7'!BY12,'Trial 8'!BY12) -> $709,307 | BZ18: =AVERAGE('Trial 1'!BZ12,'Trial 2'!BZ12,'Trial 3'!BZ12,'Trial 4'!BZ12,'Trial 5'!BZ12,'Trial 6'!BZ12,'Trial 7'!BZ12,'Trial 8'!BZ12) -> $709,006 | CA18: $8,528,314 | CB18: =AVERAGE('Trial 1'!CB12,'Trial 2'!CB12,'Trial 3'!CB12,'Trial 4'!CB12,'Trial 5'!CB12,'Trial 6'!CB12,'Trial 7'!CB12,'Trial 8'!CB12) -> $708,697 | CC18: =AVERAGE('Trial 1'!CC12,'Trial 2'!CC12,'Trial 3'!CC12,'Trial 4'!CC12,'Trial 5'!CC12,'Trial 6'!CC12,'Trial 7'!CC12,'Trial 8'!CC12) -> $708,384 | CD18: =AVERAGE('Trial 1'!CD12,'Trial 2'!CD12,'Trial 3'!CD12,'Trial 4'!CD12,'Trial 5'!CD12,'Trial 6'!CD12,'Trial 7'!CD12,'Trial 8'!CD12) -> $708,072 | CE18: =AVERAGE('Trial 1'!CE12,'Trial 2'!CE12,'Trial 3'!CE12,'Trial 4'!CE12,'Trial 5'!CE12,'Trial 6'!CE12,'Trial 7'!CE12,'Trial 8'!CE12) -> $707,731 | CF18: =AVERAGE('Trial 1'!CF12,'Trial 2'!CF12,'Trial 3'!CF12,'Trial 4'!CF12,'Trial 5'!CF12,'Trial 6'!CF12,'Trial 7'!CF12,'Trial 8'!CF12) -> $707,395 | CG18: =AVERAGE('Trial 1'!CG12,'Trial 2'!CG12,'Trial 3'!CG12,'Trial 4'!CG12,'Trial 5'!CG12,'Trial 6'!CG12,'Trial 7'!CG12,'Trial 8'!CG12) -> $707,072 | CH18: =AVERAGE('Trial 1'!CH12,'Trial 2'!CH12,'Trial 3'!CH12,'Trial 4'!CH12,'Trial 5'!CH12,'Trial 6'!CH12,'Trial 7'!CH12,'Trial 8'!CH12) -> $706,755 | CI18: =AVERAGE('Trial 1'!CI12,'Trial 2'!CI12,'Trial 3'!CI12,'Trial 4'!CI12,'Trial 5'!CI12,'Trial 6'!CI12,'Trial 7'!CI12,'Trial 8'!CI12) -> $706,418 | CJ18: =AVERAGE('Trial 1'!CJ12,'Trial 2'!CJ12,'Trial 3'!CJ12,'Trial 4'!CJ12,'Trial 5'!CJ12,'Trial 6'!CJ12,'Trial 7'!CJ12,'Trial 8'!CJ12) -> $706,092 | CK18: =AVERAGE('Trial 1'!CK12,'Trial 2'!CK12,'Trial 3'!CK12,'Trial 4'!CK12,'Trial 5'!CK12,'Trial 6'!CK12,'Trial 7'!CK12,'Trial 8'!CK12) -> $705,795 | CL18: =AVERAGE('Trial 1'!CL12,'Trial 2'!CL12,'Trial 3'!CL12,'Trial 4'!CL12,'Trial 5'!CL12,'Trial 6'!CL12,'Trial 7'!CL12,'Trial 8'!CL12) -> $705,475 | CM18: =AVERAGE('Trial 1'!CM12,'Trial 2'!CM12,'Trial 3'!CM12,'Trial 4'!CM12,'Trial 5'!CM12,'Trial 6'!CM12,'Trial 7'!CM12,'Trial 8'!CM12) -> $705,142 | CN18: $8,483,030 | CO18: =AVERAGE('Trial 1'!CO12,'Trial 2'!CO12,'Trial 3'!CO12,'Trial 4'!CO12,'Trial 5'!CO12,'Trial 6'!CO12,'Trial 7'!CO12,'Trial 8'!CO12) -> $704,785 | CP18: =AVERAGE('Trial 1'!CP12,'Trial 2'!CP12,'Trial 3'!CP12,'Trial 4'!CP12,'Trial 5'!CP12,'Trial 6'!CP12,'Trial 7'!CP12,'Trial 8'!CP12) -> $704,453 | CQ18: =AVERAGE('Trial 1'!CQ12,'Trial 2'!CQ12,'Trial 3'!CQ12,'Trial 4'!CQ12,'Trial 5'!CQ12,'Trial 6'!CQ12,'Trial 7'!CQ12,'Trial 8'!CQ12) -> $704,114 | CR18: =AVERAGE('Trial 1'!CR12,'Trial 2'!CR12,'Trial 3'!CR12,'Trial 4'!CR12,'Trial 5'!CR12,'Trial 6'!CR12,'Trial 7'!CR12,'Trial 8'!CR12) -> $703,792 | CS18: =AVERAGE('Trial 1'!CS12,'Trial 2'!CS12,'Trial 3'!CS12,'Trial 4'!CS12,'Trial 5'!CS12,'Trial 6'!CS12,'Trial 7'!CS12,'Trial 8'!CS12) -> $703,456 | CT18: =AVERAGE('Trial 1'!CT12,'Trial 2'!CT12,'Trial 3'!CT12,'Trial 4'!CT12,'Trial 5'!CT12,'Trial 6'!CT12,'Trial 7'!CT12,'Trial 8'!CT12) -> $703,132 | CU18: =AVERAGE('Trial 1'!CU12,'Trial 2'!CU12,'Trial 3'!CU12,'Trial 4'!CU12,'Trial 5'!CU12,'Trial 6'!CU12,'Trial 7'!CU12,'Trial 8'!CU12) -> $702,796 | CV18: =AVERAGE('Trial 1'!CV12,'Trial 2'!CV12,'Trial 3'!CV12,'Trial 4'!CV12,'Trial 5'!CV12,'Trial 6'!CV12,'Trial 7'!CV12,'Trial 8'!CV12) -> $702,476 | CW18: =AVERAGE('Trial 1'!CW12,'Trial 2'!CW12,'Trial 3'!CW12,'Trial 4'!CW12,'Trial 5'!CW12,'Trial 6'!CW12,'Trial 7'!CW12,'Trial 8'!CW12) -> $702,144 | CX18: =AVERAGE('Trial 1'!CX12,'Trial 2'!CX12,'Trial 3'!CX12,'Trial 4'!CX12,'Trial 5'!CX12,'Trial 6'!CX12,'Trial 7'!CX12,'Trial 8'!CX12) -> $701,791 | CY18: =AVERAGE('Trial 1'!CY12,'Trial 2'!CY12,'Trial 3'!CY12,'Trial 4'!CY12,'Trial 5'!CY12,'Trial 6'!CY12,'Trial 7'!CY12,'Trial 8'!CY12) -> $701,469 | CZ18: =AVERAGE('Trial 1'!CZ12,'Trial 2'!CZ12,'Trial 3'!CZ12,'Trial 4'!CZ12,'Trial 5'!CZ12,'Trial 6'!CZ12,'Trial 7'!CZ12,'Trial 8'!CZ12) -> $701,152 | DA18: $8,435,559 | DB18: =AVERAGE('Trial 1'!DB12,'Trial 2'!DB12,'Trial 3'!DB12,'Trial 4'!DB12,'Trial 5'!DB12,'Trial 6'!DB12,'Trial 7'!DB12,'Trial 8'!DB12) -> $700,842 | DC18: =AVERAGE('Trial 1'!DC12,'Trial 2'!DC12,'Trial 3'!DC12,'Trial 4'!DC12,'Trial 5'!DC12,'Trial 6'!DC12,'Trial 7'!DC12,'Trial 8'!DC12) -> $700,498 | DD18: =AVERAGE('Trial 1'!DD12,'Trial 2'!DD12,'Trial 3'!DD12,'Trial 4'!DD12,'Trial 5'!DD12,'Trial 6'!DD12,'Trial 7'!DD12,'Trial 8'!DD12) -> $700,158 | DE18: =AVERAGE('Trial 1'!DE12,'Trial 2'!DE12,'Trial 3'!DE12,'Trial 4'!DE12,'Trial 5'!DE12,'Trial 6'!DE12,'Trial 7'!DE12,'Trial 8'!DE12) -> $699,817 | DF18: =AVERAGE('Trial 1'!DF12,'Trial 2'!DF12,'Trial 3'!DF12,'Trial 4'!DF12,'Trial 5'!DF12,'Trial 6'!DF12,'Trial 7'!DF12,'Trial 8'!DF12) -> $699,495 | DG18: =AVERAGE('Trial 1'!DG12,'Trial 2'!DG12,'Trial 3'!DG12,'Trial 4'!DG12,'Trial 5'!DG12,'Trial 6'!DG12,'Trial 7'!DG12,'Trial 8'!DG12) -> $699,163 | DH18: =AVERAGE('Trial 1'!DH12,'Trial 2'!DH12,'Trial 3'!DH12,'Trial 4'!DH12,'Trial 5'!DH12,'Trial 6'!DH12,'Trial 7'!DH12,'Trial 8'!DH12) -> $698,807 | DI18: =AVERAGE('Trial 1'!DI12,'Trial 2'!DI12,'Trial 3'!DI12,'Trial 4'!DI12,'Trial 5'!DI12,'Trial 6'!DI12,'Trial 7'!DI12,'Trial 8'!DI12) -> $698,479 | DJ18: =AVERAGE('Trial 1'!DJ12,'Trial 2'!DJ12,'Trial 3'!DJ12,'Trial 4'!DJ12,'Trial 5'!DJ12,'Trial 6'!DJ12,'Trial 7'!DJ12,'Trial 8'!DJ12) -> $698,140 | DK18: =AVERAGE('Trial 1'!DK12,'Trial 2'!DK12,'Trial 3'!DK12,'Trial 4'!DK12,'Trial 5'!DK12,'Trial 6'!DK12,'Trial 7'!DK12,'Trial 8'!DK12) -> $697,816 | DL18: =AVERAGE('Trial 1'!DL12,'Trial 2'!DL12,'Trial 3'!DL12,'Trial 4'!DL12,'Trial 5'!DL12,'Trial 6'!DL12,'Trial 7'!DL12,'Trial 8'!DL12) -> $697,486 | DM18: =AVERAGE('Trial 1'!DM12,'Trial 2'!DM12,'Trial 3'!DM12,'Trial 4'!DM12,'Trial 5'!DM12,'Trial 6'!DM12,'Trial 7'!DM12,'Trial 8'!DM12) -> $697,129 | DN18: $8,387,830 | DO18: =AVERAGE('Trial 1'!DO12,'Trial 2'!DO12,'Trial 3'!DO12,'Trial 4'!DO12,'Trial 5'!DO12,'Trial 6'!DO12,'Trial 7'!DO12,'Trial 8'!DO12) -> $696,803 | DP18: =AVERAGE('Trial 1'!DP12,'Trial 2'!DP12,'Trial 3'!DP12,'Trial 4'!DP12,'Trial 5'!DP12,'Trial 6'!DP12,'Trial 7'!DP12,'Trial 8'!DP12) -> $696,476 | DQ18: =AVERAGE('Trial 1'!DQ12,'Trial 2'!DQ12,'Trial 3'!DQ12,'Trial 4'!DQ12,'Trial 5'!DQ12,'Trial 6'!DQ12,'Trial 7'!DQ12,'Trial 8'!DQ12) -> $696,127 | DR18: =AVERAGE('Trial 1'!DR12,'Trial 2'!DR12,'Trial 3'!DR12,'Trial 4'!DR12,'Trial 5'!DR12,'Trial 6'!DR12,'Trial 7'!DR12,'Trial 8'!DR12) -> $695,793 | DS18: =AVERAGE('Trial 1'!DS12,'Trial 2'!DS12,'Trial 3'!DS12,'Trial 4'!DS12,'Trial 5'!DS12,'Trial 6'!DS12,'Trial 7'!DS12,'Trial 8'!DS12) -> $695,446 | DT18: =AVERAGE('Trial 1'!DT12,'Trial 2'!DT12,'Trial 3'!DT12,'Trial 4'!DT12,'Trial 5'!DT12,'Trial 6'!DT12,'Trial 7'!DT12,'Trial 8'!DT12) -> $695,113 | DU18: =AVERAGE('Trial 1'!DU12,'Trial 2'!DU12,'Trial 3'!DU12,'Trial 4'!DU12,'Trial 5'!DU12,'Trial 6'!DU12,'Trial 7'!DU12,'Trial 8'!DU12) -> $694,760 | DV18: =AVERAGE('Trial 1'!DV12,'Trial 2'!DV12,'Trial 3'!DV12,'Trial 4'!DV12,'Trial 5'!DV12,'Trial 6'!DV12,'Trial 7'!DV12,'Trial 8'!DV12) -> $694,425 | DW18: =AVERAGE('Trial 1'!DW12,'Trial 2'!DW12,'Trial 3'!DW12,'Trial 4'!DW12,'Trial 5'!DW12,'Trial 6'!DW12,'Trial 7'!DW12,'Trial 8'!DW12) -> $694,048 | DX18: =AVERAGE('Trial 1'!DX12,'Trial 2'!DX12,'Trial 3'!DX12,'Trial 4'!DX12,'Trial 5'!DX12,'Trial 6'!DX12,'Trial 7'!DX12,'Trial 8'!DX12) -> $693,720 | DY18: =AVERAGE('Trial 1'!DY12,'Trial 2'!DY12,'Trial 3'!DY12,'Trial 4'!DY12,'Trial 5'!DY12,'Trial 6'!DY12,'Trial 7'!DY12,'Trial 8'!DY12) -> $693,370 | DZ18: =AVERAGE('Trial 1'!DZ12,'Trial 2'!DZ12,'Trial 3'!DZ12,'Trial 4'!DZ12,'Trial 5'!DZ12,'Trial 6'!DZ12,'Trial 7'!DZ12,'Trial 8'!DZ12) -> $693,031 | EA18: $8,339,112 | EB18: =AVERAGE('Trial 1'!EB12,'Trial 2'!EB12,'Trial 3'!EB12,'Trial 4'!EB12,'Trial 5'!EB12,'Trial 6'!EB12,'Trial 7'!EB12,'Trial 8'!EB12) -> $692,679 | EC18: =AVERAGE('Trial 1'!EC12,'Trial 2'!EC12,'Trial 3'!EC12,'Trial 4'!EC12,'Trial 5'!EC12,'Trial 6'!EC12,'Trial 7'!EC12,'Trial 8'!EC12) -> $692,348 | ED18: =AVERAGE('Trial 1'!ED12,'Trial 2'!ED12,'Trial 3'!ED12,'Trial 4'!ED12,'Trial 5'!ED12,'Trial 6'!ED12,'Trial 7'!ED12,'Trial 8'!ED12) -> $692,014 | EE18: =AVERAGE('Trial 1'!EE12,'Trial 2'!EE12,'Trial 3'!EE12,'Trial 4'!EE12,'Trial 5'!EE12,'Trial 6'!EE12,'Trial 7'!EE12,'Trial 8'!EE12) -> $691,633 | EF18: =AVERAGE('Trial 1'!EF12,'Trial 2'!EF12,'Trial 3'!EF12,'Trial 4'!EF12,'Trial 5'!EF12,'Trial 6'!EF12,'Trial 7'!EF12,'Trial 8'!EF12) -> $691,289 | EG18: =AVERAGE('Trial 1'!EG12,'Trial 2'!EG12,'Trial 3'!EG12,'Trial 4'!EG12,'Trial 5'!EG12,'Trial 6'!EG12,'Trial 7'!EG12,'Trial 8'!EG12) -> $690,937 | EH18: =AVERAGE('Trial 1'!EH12,'Trial 2'!EH12,'Trial 3'!EH12,'Trial 4'!EH12,'Trial 5'!EH12,'Trial 6'!EH12,'Trial 7'!EH12,'Trial 8'!EH12) -> $690,584 | EI18: =AVERAGE('Trial 1'!EI12,'Trial 2'!EI12,'Trial 3'!EI12,'Trial 4'!EI12,'Trial 5'!EI12,'Trial 6'!EI12,'Trial 7'!EI12,'Trial 8'!EI12) -> $690,239 | EJ18: =AVERAGE('Trial 1'!EJ12,'Trial 2'!EJ12,'Trial 3'!EJ12,'Trial 4'!EJ12,'Trial 5'!EJ12,'Trial 6'!EJ12,'Trial 7'!EJ12,'Trial 8'!EJ12) -> $689,890 | EK18: =AVERAGE('Trial 1'!EK12,'Trial 2'!EK12,'Trial 3'!EK12,'Trial 4'!EK12,'Trial 5'!EK12,'Trial 6'!EK12,'Trial 7'!EK12,'Trial 8'!EK12) -> $689,545 | EL18: =AVERAGE('Trial 1'!EL12,'Trial 2'!EL12,'Trial 3'!EL12,'Trial 4'!EL12,'Trial 5'!EL12,'Trial 6'!EL12,'Trial 7'!EL12,'Trial 8'!EL12) -> $689,179 | EM18: =AVERAGE('Trial 1'!EM12,'Trial 2'!EM12,'Trial 3'!EM12,'Trial 4'!EM12,'Trial 5'!EM12,'Trial 6'!EM12,'Trial 7'!EM12,'Trial 8'!EM12) -> $688,829 | EN18: $8,289,166
A19: =Labels!B27 -> Consumption std dev | B19: =STDEV('Trial 1'!B12,'Trial 2'!B12,'Trial 3'!B12,'Trial 4'!B12,'Trial 5'!B12,'Trial 6'!B12,'Trial 7'!B12,'Trial 8'!B12) -> $0 | C19: =STDEV('Trial 1'!C12,'Trial 2'!C12,'Trial 3'!C12,'Trial 4'!C12,'Trial 5'!C12,'Trial 6'!C12,'Trial 7'!C12,'Trial 8'!C12) -> $32 | D19: =STDEV('Trial 1'!D12,'Trial 2'!D12,'Trial 3'!D12,'Trial 4'!D12,'Trial 5'!D12,'Trial 6'!D12,'Trial 7'!D12,'Trial 8'!D12) -> $89 | E19: =STDEV('Trial 1'!E12,'Trial 2'!E12,'Trial 3'!E12,'Trial 4'!E12,'Trial 5'!E12,'Trial 6'!E12,'Trial 7'!E12,'Trial 8'!E12) -> $87 | F19: =STDEV('Trial 1'!F12,'Trial 2'!F12,'Trial 3'!F12,'Trial 4'!F12,'Trial 5'!F12,'Trial 6'!F12,'Trial 7'!F12,'Trial 8'!F12) -> $81 | G19: =STDEV('Trial 1'!G12,'Trial 2'!G12,'Trial 3'!G12,'Trial 4'!G12,'Trial 5'!G12,'Trial 6'!G12,'Trial 7'!G12,'Trial 8'!G12) -> $93 | H19: =STDEV('Trial 1'!H12,'Trial 2'!H12,'Trial 3'!H12,'Trial 4'!H12,'Trial 5'!H12,'Trial 6'!H12,'Trial 7'!H12,'Trial 8'!H12) -> $122 | I19: =STDEV('Trial 1'!I12,'Trial 2'!I12,'Trial 3'!I12,'Trial 4'!I12,'Trial 5'!I12,'Trial 6'!I12,'Trial 7'!I12,'Trial 8'!I12) -> $128 | J19: =STDEV('Trial 1'!J12,'Trial 2'!J12,'Trial 3'!J12,'Trial 4'!J12,'Trial 5'!J12,'Trial 6'!J12,'Trial 7'!J12,'Trial 8'!J12) -> $127 | K19: =STDEV('Trial 1'!K12,'Trial 2'!K12,'Trial 3'!K12,'Trial 4'!K12,'Trial 5'!K12,'Trial 6'!K12,'Trial 7'!K12,'Trial 8'!K12) -> $141 | L19: =STDEV('Trial 1'!L12,'Trial 2'!L12,'Trial 3'!L12,'Trial 4'!L12,'Trial 5'!L12,'Trial 6'!L12,'Trial 7'!L12,'Trial 8'!L12) -> $128 | M19: =STDEV('Trial 1'!M12,'Trial 2'!M12,'Trial 3'!M12,'Trial 4'!M12,'Trial 5'!M12,'Trial 6'!M12,'Trial 7'!M12,'Trial 8'!M12) -> $122 | N19: $1,150 | O19: =STDEV('Trial 1'!O12,'Trial 2'!O12,'Trial 3'!O12,'Trial 4'!O12,'Trial 5'!O12,'Trial 6'!O12,'Trial 7'!O12,'Trial 8'!O12) -> $147 | P19: =STDEV('Trial 1'!P12,'Trial 2'!P12,'Trial 3'!P12,'Trial 4'!P12,'Trial 5'!P12,'Trial 6'!P12,'Trial 7'!P12,'Trial 8'!P12) -> $155 | Q19: =STDEV('Trial 1'!Q12,'Trial 2'!Q12,'Trial 3'!Q12,'Trial 4'!Q12,'Trial 5'!Q12,'Trial 6'!Q12,'Trial 7'!Q12,'Trial 8'!Q12) -> $135 | R19: =STDEV('Trial 1'!R12,'Trial 2'!R12,'Trial 3'!R12,'Trial 4'!R12,'Trial 5'!R12,'Trial 6'!R12,'Trial 7'!R12,'Trial 8'!R12) -> $144 | S19: =STDEV('Trial 1'!S12,'Trial 2'!S12,'Trial 3'!S12,'Trial 4'!S12,'Trial 5'!S12,'Trial 6'!S12,'Trial 7'!S12,'Trial 8'!S12) -> $170 | T19: =STDEV('Trial 1'!T12,'Trial 2'!T12,'Trial 3'!T12,'Trial 4'!T12,'Trial 5'!T12,'Trial 6'!T12,'Trial 7'!T12,'Trial 8'!T12) -> $192 | U19: =STDEV('Trial 1'!U12,'Trial 2'!U12,'Trial 3'!U12,'Trial 4'!U12,'Trial 5'!U12,'Trial 6'!U12,'Trial 7'!U12,'Trial 8'!U12) -> $140 | V19: =STDEV('Trial 1'!V12,'Trial 2'!V12,'Trial 3'!V12,'Trial 4'!V12,'Trial 5'!V12,'Trial 6'!V12,'Trial 7'!V12,'Trial 8'!V12) -> $133 | W19: =STDEV('Trial 1'!W12,'Trial 2'!W12,'Trial 3'!W12,'Trial 4'!W12,'Trial 5'!W12,'Trial 6'!W12,'Trial 7'!W12,'Trial 8'!W12) -> $134 | X19: =STDEV('Trial 1'!X12,'Trial 2'!X12,'Trial 3'!X12,'Trial 4'!X12,'Trial 5'!X12,'Trial 6'!X12,'Trial 7'!X12,'Trial 8'!X12) -> $134 | Y19: =STDEV('Trial 1'!Y12,'Trial 2'!Y12,'Trial 3'!Y12,'Trial 4'!Y12,'Trial 5'!Y12,'Trial 6'!Y12,'Trial 7'!Y12,'Trial 8'!Y12) -> $149 | Z19: =STDEV('Trial 1'!Z12,'Trial 2'!Z12,'Trial 3'!Z12,'Trial 4'!Z12,'Trial 5'!Z12,'Trial 6'!Z12,'Trial 7'!Z12,'Trial 8'!Z12) -> $149 | AA19: $1,782 | AB19: =STDEV('Trial 1'!AB12,'Trial 2'!AB12,'Trial 3'!AB12,'Trial 4'!AB12,'Trial 5'!AB12,'Trial 6'!AB12,'Trial 7'!AB12,'Trial 8'!AB12) -> $143 | AC19: =STDEV('Trial 1'!AC12,'Trial 2'!AC12,'Trial 3'!AC12,'Trial 4'!AC12,'Trial 5'!AC12,'Trial 6'!AC12,'Trial 7'!AC12,'Trial 8'!AC12) -> $164 | AD19: =STDEV('Trial 1'!AD12,'Trial 2'!AD12,'Trial 3'!AD12,'Trial 4'!AD12,'Trial 5'!AD12,'Trial 6'!AD12,'Trial 7'!AD12,'Trial 8'!AD12) -> $164 | AE19: =STDEV('Trial 1'!AE12,'Trial 2'!AE12,'Trial 3'!AE12,'Trial 4'!AE12,'Trial 5'!AE12,'Trial 6'!AE12,'Trial 7'!AE12,'Trial 8'!AE12) -> $146 | AF19: =STDEV('Trial 1'!AF12,'Trial 2'!AF12,'Trial 3'!AF12,'Trial 4'!AF12,'Trial 5'!AF12,'Trial 6'!AF12,'Trial 7'!AF12,'Trial 8'!AF12) -> $148 | AG19: =STDEV('Trial 1'!AG12,'Trial 2'!AG12,'Trial 3'!AG12,'Trial 4'!AG12,'Trial 5'!AG12,'Trial 6'!AG12,'Trial 7'!AG12,'Trial 8'!AG12) -> $183 | AH19: =STDEV('Trial 1'!AH12,'Trial 2'!AH12,'Trial 3'!AH12,'Trial 4'!AH12,'Trial 5'!AH12,'Trial 6'!AH12,'Trial 7'!AH12,'Trial 8'!AH12) -> $182 | AI19: =STDEV('Trial 1'!AI12,'Trial 2'!AI12,'Trial 3'!AI12,'Trial 4'!AI12,'Trial 5'!AI12,'Trial 6'!AI12,'Trial 7'!AI12,'Trial 8'!AI12) -> $182 | AJ19: =STDEV('Trial 1'!AJ12,'Trial 2'!AJ12,'Trial 3'!AJ12,'Trial 4'!AJ12,'Trial 5'!AJ12,'Trial 6'!AJ12,'Trial 7'!AJ12,'Trial 8'!AJ12) -> $175 | AK19: =STDEV('Trial 1'!AK12,'Trial 2'!AK12,'Trial 3'!AK12,'Trial 4'!AK12,'Trial 5'!AK12,'Trial 6'!AK12,'Trial 7'!AK12,'Trial 8'!AK12) -> $141 | AL19: =STDEV('Trial 1'!AL12,'Trial 2'!AL12,'Trial 3'!AL12,'Trial 4'!AL12,'Trial 5'!AL12,'Trial 6'!AL12,'Trial 7'!AL12,'Trial 8'!AL12) -> $124 | AM19: =STDEV('Trial 1'!AM12,'Trial 2'!AM12,'Trial 3'!AM12,'Trial 4'!AM12,'Trial 5'!AM12,'Trial 6'!AM12,'Trial 7'!AM12,'Trial 8'!AM12) -> $118 | AN19: $1,871 | AO19: =STDEV('Trial 1'!AO12,'Trial 2'!AO12,'Trial 3'!AO12,'Trial 4'!AO12,'Trial 5'!AO12,'Trial 6'!AO12,'Trial 7'!AO12,'Trial 8'!AO12) -> $128 | AP19: =STDEV('Trial 1'!AP12,'Trial 2'!AP12,'Trial 3'!AP12,'Trial 4'!AP12,'Trial 5'!AP12,'Trial 6'!AP12,'Trial 7'!AP12,'Trial 8'!AP12) -> $107 | AQ19: =STDEV('Trial 1'!AQ12,'Trial 2'!AQ12,'Trial 3'!AQ12,'Trial 4'!AQ12,'Trial 5'!AQ12,'Trial 6'!AQ12,'Trial 7'!AQ12,'Trial 8'!AQ12) -> $112 | AR19: =STDEV('Trial 1'!AR12,'Trial 2'!AR12,'Trial 3'!AR12,'Trial 4'!AR12,'Trial 5'!AR12,'Trial 6'!AR12,'Trial 7'!AR12,'Trial 8'!AR12) -> $133 | AS19: =STDEV('Trial 1'!AS12,'Trial 2'!AS12,'Trial 3'!AS12,'Trial 4'!AS12,'Trial 5'!AS12,'Trial 6'!AS12,'Trial 7'!AS12,'Trial 8'!AS12) -> $112 | AT19: =STDEV('Trial 1'!AT12,'Trial 2'!AT12,'Trial 3'!AT12,'Trial 4'!AT12,'Trial 5'!AT12,'Trial 6'!AT12,'Trial 7'!AT12,'Trial 8'!AT12) -> $127 | AU19: =STDEV('Trial 1'!AU12,'Trial 2'!AU12,'Trial 3'!AU12,'Trial 4'!AU12,'Trial 5'!AU12,'Trial 6'!AU12,'Trial 7'!AU12,'Trial 8'!AU12) -> $136 | AV19: =STDEV('Trial 1'!AV12,'Trial 2'!AV12,'Trial 3'!AV12,'Trial 4'!AV12,'Trial 5'!AV12,'Trial 6'!AV12,'Trial 7'!AV12,'Trial 8'!AV12) -> $141 | AW19: =STDEV('Trial 1'!AW12,'Trial 2'!AW12,'Trial 3'!AW12,'Trial 4'!AW12,'Trial 5'!AW12,'Trial 6'!AW12,'Trial 7'!AW12,'Trial 8'!AW12) -> $147 | AX19: =STDEV('Trial 1'!AX12,'Trial 2'!AX12,'Trial 3'!AX12,'Trial 4'!AX12,'Trial 5'!AX12,'Trial 6'!AX12,'Trial 7'!AX12,'Trial 8'!AX12) -> $140 | AY19: =STDEV('Trial 1'!AY12,'Trial 2'!AY12,'Trial 3'!AY12,'Trial 4'!AY12,'Trial 5'!AY12,'Trial 6'!AY12,'Trial 7'!AY12,'Trial 8'!AY12) -> $178 | AZ19: =STDEV('Trial 1'!AZ12,'Trial 2'!AZ12,'Trial 3'!AZ12,'Trial 4'!AZ12,'Trial 5'!AZ12,'Trial 6'!AZ12,'Trial 7'!AZ12,'Trial 8'!AZ12) -> $175 | BA19: $1,635 | BB19: =STDEV('Trial 1'!BB12,'Trial 2'!BB12,'Trial 3'!BB12,'Trial 4'!BB12,'Trial 5'!BB12,'Trial 6'!BB12,'Trial 7'!BB12,'Trial 8'!BB12) -> $161 | BC19: =STDEV('Trial 1'!BC12,'Trial 2'!BC12,'Trial 3'!BC12,'Trial 4'!BC12,'Trial 5'!BC12,'Trial 6'!BC12,'Trial 7'!BC12,'Trial 8'!BC12) -> $189 | BD19: =STDEV('Trial 1'!BD12,'Trial 2'!BD12,'Trial 3'!BD12,'Trial 4'!BD12,'Trial 5'!BD12,'Trial 6'!BD12,'Trial 7'!BD12,'Trial 8'!BD12) -> $207 | BE19: =STDEV('Trial 1'!BE12,'Trial 2'!BE12,'Trial 3'!BE12,'Trial 4'!BE12,'Trial 5'!BE12,'Trial 6'!BE12,'Trial 7'!BE12,'Trial 8'!BE12) -> $202 | BF19: =STDEV('Trial 1'!BF12,'Trial 2'!BF12,'Trial 3'!BF12,'Trial 4'!BF12,'Trial 5'!BF12,'Trial 6'!BF12,'Trial 7'!BF12,'Trial 8'!BF12) -> $208 | BG19: =STDEV('Trial 1'!BG12,'Trial 2'!BG12,'Trial 3'!BG12,'Trial 4'!BG12,'Trial 5'!BG12,'Trial 6'!BG12,'Trial 7'!BG12,'Trial 8'!BG12) -> $205 | BH19: =STDEV('Trial 1'!BH12,'Trial 2'!BH12,'Trial 3'!BH12,'Trial 4'!BH12,'Trial 5'!BH12,'Trial 6'!BH12,'Trial 7'!BH12,'Trial 8'!BH12) -> $215 | BI19: =STDEV('Trial 1'!BI12,'Trial 2'!BI12,'Trial 3'!BI12,'Trial 4'!BI12,'Trial 5'!BI12,'Trial 6'!BI12,'Trial 7'!BI12,'Trial 8'!BI12) -> $226 | BJ19: =STDEV('Trial 1'!BJ12,'Trial 2'!BJ12,'Trial 3'!BJ12,'Trial 4'!BJ12,'Trial 5'!BJ12,'Trial 6'!BJ12,'Trial 7'!BJ12,'Trial 8'!BJ12) -> $241 | BK19: =STDEV('Trial 1'!BK12,'Trial 2'!BK12,'Trial 3'!BK12,'Trial 4'!BK12,'Trial 5'!BK12,'Trial 6'!BK12,'Trial 7'!BK12,'Trial 8'!BK12) -> $227 | BL19: =STDEV('Trial 1'!BL12,'Trial 2'!BL12,'Trial 3'!BL12,'Trial 4'!BL12,'Trial 5'!BL12,'Trial 6'!BL12,'Trial 7'!BL12,'Trial 8'!BL12) -> $224 | BM19: =STDEV('Trial 1'!BM12,'Trial 2'!BM12,'Trial 3'!BM12,'Trial 4'!BM12,'Trial 5'!BM12,'Trial 6'!BM12,'Trial 7'!BM12,'Trial 8'!BM12) -> $258 | BN19: $2,564 | BO19: =STDEV('Trial 1'!BO12,'Trial 2'!BO12,'Trial 3'!BO12,'Trial 4'!BO12,'Trial 5'!BO12,'Trial 6'!BO12,'Trial 7'!BO12,'Trial 8'!BO12) -> $219 | BP19: =STDEV('Trial 1'!BP12,'Trial 2'!BP12,'Trial 3'!BP12,'Trial 4'!BP12,'Trial 5'!BP12,'Trial 6'!BP12,'Trial 7'!BP12,'Trial 8'!BP12) -> $245 | BQ19: =STDEV('Trial 1'!BQ12,'Trial 2'!BQ12,'Trial 3'!BQ12,'Trial 4'!BQ12,'Trial 5'!BQ12,'Trial 6'!BQ12,'Trial 7'!BQ12,'Trial 8'!BQ12) -> $262 | BR19: =STDEV('Trial 1'!BR12,'Trial 2'!BR12,'Trial 3'!BR12,'Trial 4'!BR12,'Trial 5'!BR12,'Trial 6'!BR12,'Trial 7'!BR12,'Trial 8'!BR12) -> $272 | BS19: =STDEV('Trial 1'!BS12,'Trial 2'!BS12,'Trial 3'!BS12,'Trial 4'!BS12,'Trial 5'!BS12,'Trial 6'!BS12,'Trial 7'!BS12,'Trial 8'!BS12) -> $274 | BT19: =STDEV('Trial 1'!BT12,'Trial 2'!BT12,'Trial 3'!BT12,'Trial 4'!BT12,'Trial 5'!BT12,'Trial 6'!BT12,'Trial 7'!BT12,'Trial 8'!BT12) -> $279 | BU19: =STDEV('Trial 1'!BU12,'Trial 2'!BU12,'Trial 3'!BU12,'Trial 4'!BU12,'Trial 5'!BU12,'Trial 6'!BU12,'Trial 7'!BU12,'Trial 8'!BU12) -> $306 | BV19: =STDEV('Trial 1'!BV12,'Trial 2'!BV12,'Trial 3'!BV12,'Trial 4'!BV12,'Trial 5'!BV12,'Trial 6'!BV12,'Trial 7'!BV12,'Trial 8'!BV12) -> $298 | BW19: =STDEV('Trial 1'!BW12,'Trial 2'!BW12,'Trial 3'!BW12,'Trial 4'!BW12,'Trial 5'!BW12,'Trial 6'!BW12,'Trial 7'!BW12,'Trial 8'!BW12) -> $294 | BX19: =STDEV('Trial 1'!BX12,'Trial 2'!BX12,'Trial 3'!BX12,'Trial 4'!BX12,'Trial 5'!BX12,'Trial 6'!BX12,'Trial 7'!BX12,'Trial 8'!BX12) -> $310 | BY19: =STDEV('Trial 1'!BY12,'Trial 2'!BY12,'Trial 3'!BY12,'Trial 4'!BY12,'Trial 5'!BY12,'Trial 6'!BY12,'Trial 7'!BY12,'Trial 8'!BY12) -> $312 | BZ19: =STDEV('Trial 1'!BZ12,'Trial 2'!BZ12,'Trial 3'!BZ12,'Trial 4'!BZ12,'Trial 5'!BZ12,'Trial 6'!BZ12,'Trial 7'!BZ12,'Trial 8'!BZ12) -> $300 | CA19: $3,370 | CB19: =STDEV('Trial 1'!CB12,'Trial 2'!CB12,'Trial 3'!CB12,'Trial 4'!CB12,'Trial 5'!CB12,'Trial 6'!CB12,'Trial 7'!CB12,'Trial 8'!CB12) -> $293 | CC19: =STDEV('Trial 1'!CC12,'Trial 2'!CC12,'Trial 3'!CC12,'Trial 4'!CC12,'Trial 5'!CC12,'Trial 6'!CC12,'Trial 7'!CC12,'Trial 8'!CC12) -> $261 | CD19: =STDEV('Trial 1'!CD12,'Trial 2'!CD12,'Trial 3'!CD12,'Trial 4'!CD12,'Trial 5'!CD12,'Trial 6'!CD12,'Trial 7'!CD12,'Trial 8'!CD12) -> $257 | CE19: =STDEV('Trial 1'!CE12,'Trial 2'!CE12,'Trial 3'!CE12,'Trial 4'!CE12,'Trial 5'!CE12,'Trial 6'!CE12,'Trial 7'!CE12,'Trial 8'!CE12) -> $259 | CF19: =STDEV('Trial 1'!CF12,'Trial 2'!CF12,'Trial 3'!CF12,'Trial 4'!CF12,'Trial 5'!CF12,'Trial 6'!CF12,'Trial 7'!CF12,'Trial 8'!CF12) -> $270 | CG19: =STDEV('Trial 1'!CG12,'Trial 2'!CG12,'Trial 3'!CG12,'Trial 4'!CG12,'Trial 5'!CG12,'Trial 6'!CG12,'Trial 7'!CG12,'Trial 8'!CG12) -> $280 | CH19: =STDEV('Trial 1'!CH12,'Trial 2'!CH12,'Trial 3'!CH12,'Trial 4'!CH12,'Trial 5'!CH12,'Trial 6'!CH12,'Trial 7'!CH12,'Trial 8'!CH12) -> $265 | CI19: =STDEV('Trial 1'!CI12,'Trial 2'!CI12,'Trial 3'!CI12,'Trial 4'!CI12,'Trial 5'!CI12,'Trial 6'!CI12,'Trial 7'!CI12,'Trial 8'!CI12) -> $251 | CJ19: =STDEV('Trial 1'!CJ12,'Trial 2'!CJ12,'Trial 3'!CJ12,'Trial 4'!CJ12,'Trial 5'!CJ12,'Trial 6'!CJ12,'Trial 7'!CJ12,'Trial 8'!CJ12) -> $235 | CK19: =STDEV('Trial 1'!CK12,'Trial 2'!CK12,'Trial 3'!CK12,'Trial 4'!CK12,'Trial 5'!CK12,'Trial 6'!CK12,'Trial 7'!CK12,'Trial 8'!CK12) -> $223 | CL19: =STDEV('Trial 1'!CL12,'Trial 2'!CL12,'Trial 3'!CL12,'Trial 4'!CL12,'Trial 5'!CL12,'Trial 6'!CL12,'Trial 7'!CL12,'Trial 8'!CL12) -> $235 | CM19: =STDEV('Trial 1'!CM12,'Trial 2'!CM12,'Trial 3'!CM12,'Trial 4'!CM12,'Trial 5'!CM12,'Trial 6'!CM12,'Trial 7'!CM12,'Trial 8'!CM12) -> $243 | CN19: $3,072 | CO19: =STDEV('Trial 1'!CO12,'Trial 2'!CO12,'Trial 3'!CO12,'Trial 4'!CO12,'Trial 5'!CO12,'Trial 6'!CO12,'Trial 7'!CO12,'Trial 8'!CO12) -> $231 | CP19: =STDEV('Trial 1'!CP12,'Trial 2'!CP12,'Trial 3'!CP12,'Trial 4'!CP12,'Trial 5'!CP12,'Trial 6'!CP12,'Trial 7'!CP12,'Trial 8'!CP12) -> $230 | CQ19: =STDEV('Trial 1'!CQ12,'Trial 2'!CQ12,'Trial 3'!CQ12,'Trial 4'!CQ12,'Trial 5'!CQ12,'Trial 6'!CQ12,'Trial 7'!CQ12,'Trial 8'!CQ12) -> $228 | CR19: =STDEV('Trial 1'!CR12,'Trial 2'!CR12,'Trial 3'!CR12,'Trial 4'!CR12,'Trial 5'!CR12,'Trial 6'!CR12,'Trial 7'!CR12,'Trial 8'!CR12) -> $241 | CS19: =STDEV('Trial 1'!CS12,'Trial 2'!CS12,'Trial 3'!CS12,'Trial 4'!CS12,'Trial 5'!CS12,'Trial 6'!CS12,'Trial 7'!CS12,'Trial 8'!CS12) -> $231 | CT19: =STDEV('Trial 1'!CT12,'Trial 2'!CT12,'Trial 3'!CT12,'Trial 4'!CT12,'Trial 5'!CT12,'Trial 6'!CT12,'Trial 7'!CT12,'Trial 8'!CT12) -> $227 | CU19: =STDEV('Trial 1'!CU12,'Trial 2'!CU12,'Trial 3'!CU12,'Trial 4'!CU12,'Trial 5'!CU12,'Trial 6'!CU12,'Trial 7'!CU12,'Trial 8'!CU12) -> $250 | CV19: =STDEV('Trial 1'!CV12,'Trial 2'!CV12,'Trial 3'!CV12,'Trial 4'!CV12,'Trial 5'!CV12,'Trial 6'!CV12,'Trial 7'!CV12,'Trial 8'!CV12) -> $250 | CW19: =STDEV('Trial 1'!CW12,'Trial 2'!CW12,'Trial 3'!CW12,'Trial 4'!CW12,'Trial 5'!CW12,'Trial 6'!CW12,'Trial 7'!CW12,'Trial 8'!CW12) -> $264 | CX19: =STDEV('Trial 1'!CX12,'Trial 2'!CX12,'Trial 3'!CX12,'Trial 4'!CX12,'Trial 5'!CX12,'Trial 6'!CX12,'Trial 7'!CX12,'Trial 8'!CX12) -> $235 | CY19: =STDEV('Trial 1'!CY12,'Trial 2'!CY12,'Trial 3'!CY12,'Trial 4'!CY12,'Trial 5'!CY12,'Trial 6'!CY12,'Trial 7'!CY12,'Trial 8'!CY12) -> $237 | CZ19: =STDEV('Trial 1'!CZ12,'Trial 2'!CZ12,'Trial 3'!CZ12,'Trial 4'!CZ12,'Trial 5'!CZ12,'Trial 6'!CZ12,'Trial 7'!CZ12,'Trial 8'!CZ12) -> $241 | DA19: $2,865 | DB19: =STDEV('Trial 1'!DB12,'Trial 2'!DB12,'Trial 3'!DB12,'Trial 4'!DB12,'Trial 5'!DB12,'Trial 6'!DB12,'Trial 7'!DB12,'Trial 8'!DB12) -> $257 | DC19: =STDEV('Trial 1'!DC12,'Trial 2'!DC12,'Trial 3'!DC12,'Trial 4'!DC12,'Trial 5'!DC12,'Trial 6'!DC12,'Trial 7'!DC12,'Trial 8'!DC12) -> $261 | DD19: =STDEV('Trial 1'!DD12,'Trial 2'!DD12,'Trial 3'!DD12,'Trial 4'!DD12,'Trial 5'!DD12,'Trial 6'!DD12,'Trial 7'!DD12,'Trial 8'!DD12) -> $259 | DE19: =STDEV('Trial 1'!DE12,'Trial 2'!DE12,'Trial 3'!DE12,'Trial 4'!DE12,'Trial 5'!DE12,'Trial 6'!DE12,'Trial 7'!DE12,'Trial 8'!DE12) -> $269 | DF19: =STDEV('Trial 1'!DF12,'Trial 2'!DF12,'Trial 3'!DF12,'Trial 4'!DF12,'Trial 5'!DF12,'Trial 6'!DF12,'Trial 7'!DF12,'Trial 8'!DF12) -> $291 | DG19: =STDEV('Trial 1'!DG12,'Trial 2'!DG12,'Trial 3'!DG12,'Trial 4'!DG12,'Trial 5'!DG12,'Trial 6'!DG12,'Trial 7'!DG12,'Trial 8'!DG12) -> $263 | DH19: =STDEV('Trial 1'!DH12,'Trial 2'!DH12,'Trial 3'!DH12,'Trial 4'!DH12,'Trial 5'!DH12,'Trial 6'!DH12,'Trial 7'!DH12,'Trial 8'!DH12) -> $266 | DI19: =STDEV('Trial 1'!DI12,'Trial 2'!DI12,'Trial 3'!DI12,'Trial 4'!DI12,'Trial 5'!DI12,'Trial 6'!DI12,'Trial 7'!DI12,'Trial 8'!DI12) -> $290 | DJ19: =STDEV('Trial 1'!DJ12,'Trial 2'!DJ12,'Trial 3'!DJ12,'Trial 4'!DJ12,'Trial 5'!DJ12,'Trial 6'!DJ12,'Trial 7'!DJ12,'Trial 8'!DJ12) -> $282 | DK19: =STDEV('Trial 1'!DK12,'Trial 2'!DK12,'Trial 3'!DK12,'Trial 4'!DK12,'Trial 5'!DK12,'Trial 6'!DK12,'Trial 7'!DK12,'Trial 8'!DK12) -> $323 | DL19: =STDEV('Trial 1'!DL12,'Trial 2'!DL12,'Trial 3'!DL12,'Trial 4'!DL12,'Trial 5'!DL12,'Trial 6'!DL12,'Trial 7'!DL12,'Trial 8'!DL12) -> $337 | DM19: =STDEV('Trial 1'!DM12,'Trial 2'!DM12,'Trial 3'!DM12,'Trial 4'!DM12,'Trial 5'!DM12,'Trial 6'!DM12,'Trial 7'!DM12,'Trial 8'!DM12) -> $350 | DN19: $3,448 | DO19: =STDEV('Trial 1'!DO12,'Trial 2'!DO12,'Trial 3'!DO12,'Trial 4'!DO12,'Trial 5'!DO12,'Trial 6'!DO12,'Trial 7'!DO12,'Trial 8'!DO12) -> $365 | DP19: =STDEV('Trial 1'!DP12,'Trial 2'!DP12,'Trial 3'!DP12,'Trial 4'!DP12,'Trial 5'!DP12,'Trial 6'!DP12,'Trial 7'!DP12,'Trial 8'!DP12) -> $359 | DQ19: =STDEV('Trial 1'!DQ12,'Trial 2'!DQ12,'Trial 3'!DQ12,'Trial 4'!DQ12,'Trial 5'!DQ12,'Trial 6'!DQ12,'Trial 7'!DQ12,'Trial 8'!DQ12) -> $355 | DR19: =STDEV('Trial 1'!DR12,'Trial 2'!DR12,'Trial 3'!DR12,'Trial 4'!DR12,'Trial 5'!DR12,'Trial 6'!DR12,'Trial 7'!DR12,'Trial 8'!DR12) -> $378 | DS19: =STDEV('Trial 1'!DS12,'Trial 2'!DS12,'Trial 3'!DS12,'Trial 4'!DS12,'Trial 5'!DS12,'Trial 6'!DS12,'Trial 7'!DS12,'Trial 8'!DS12) -> $388 | DT19: =STDEV('Trial 1'!DT12,'Trial 2'!DT12,'Trial 3'!DT12,'Trial 4'!DT12,'Trial 5'!DT12,'Trial 6'!DT12,'Trial 7'!DT12,'Trial 8'!DT12) -> $406 | DU19: =STDEV('Trial 1'!DU12,'Trial 2'!DU12,'Trial 3'!DU12,'Trial 4'!DU12,'Trial 5'!DU12,'Trial 6'!DU12,'Trial 7'!DU12,'Trial 8'!DU12) -> $419 | DV19: =STDEV('Trial 1'!DV12,'Trial 2'!DV12,'Trial 3'!DV12,'Trial 4'!DV12,'Trial 5'!DV12,'Trial 6'!DV12,'Trial 7'!DV12,'Trial 8'!DV12) -> $433 | DW19: =STDEV('Trial 1'!DW12,'Trial 2'!DW12,'Trial 3'!DW12,'Trial 4'!DW12,'Trial 5'!DW12,'Trial 6'!DW12,'Trial 7'!DW12,'Trial 8'!DW12) -> $433 | DX19: =STDEV('Trial 1'!DX12,'Trial 2'!DX12,'Trial 3'!DX12,'Trial 4'!DX12,'Trial 5'!DX12,'Trial 6'!DX12,'Trial 7'!DX12,'Trial 8'!DX12) -> $423 | DY19: =STDEV('Trial 1'!DY12,'Trial 2'!DY12,'Trial 3'!DY12,'Trial 4'!DY12,'Trial 5'!DY12,'Trial 6'!DY12,'Trial 7'!DY12,'Trial 8'!DY12) -> $432 | DZ19: =STDEV('Trial 1'!DZ12,'Trial 2'!DZ12,'Trial 3'!DZ12,'Trial 4'!DZ12,'Trial 5'!DZ12,'Trial 6'!DZ12,'Trial 7'!DZ12,'Trial 8'!DZ12) -> $471 | EA19: $4,863 | EB19: =STDEV('Trial 1'!EB12,'Trial 2'!EB12,'Trial 3'!EB12,'Trial 4'!EB12,'Trial 5'!EB12,'Trial 6'!EB12,'Trial 7'!EB12,'Trial 8'!EB12) -> $471 | EC19: =STDEV('Trial 1'!EC12,'Trial 2'!EC12,'Trial 3'!EC12,'Trial 4'!EC12,'Trial 5'!EC12,'Trial 6'!EC12,'Trial 7'!EC12,'Trial 8'!EC12) -> $483 | ED19: =STDEV('Trial 1'!ED12,'Trial 2'!ED12,'Trial 3'!ED12,'Trial 4'!ED12,'Trial 5'!ED12,'Trial 6'!ED12,'Trial 7'!ED12,'Trial 8'!ED12) -> $457 | EE19: =STDEV('Trial 1'!EE12,'Trial 2'!EE12,'Trial 3'!EE12,'Trial 4'!EE12,'Trial 5'!EE12,'Trial 6'!EE12,'Trial 7'!EE12,'Trial 8'!EE12) -> $462 | EF19: =STDEV('Trial 1'!EF12,'Trial 2'!EF12,'Trial 3'!EF12,'Trial 4'!EF12,'Trial 5'!EF12,'Trial 6'!EF12,'Trial 7'!EF12,'Trial 8'!EF12) -> $457 | EG19: =STDEV('Trial 1'!EG12,'Trial 2'!EG12,'Trial 3'!EG12,'Trial 4'!EG12,'Trial 5'!EG12,'Trial 6'!EG12,'Trial 7'!EG12,'Trial 8'!EG12) -> $469 | EH19: =STDEV('Trial 1'!EH12,'Trial 2'!EH12,'Trial 3'!EH12,'Trial 4'!EH12,'Trial 5'!EH12,'Trial 6'!EH12,'Trial 7'!EH12,'Trial 8'!EH12) -> $473 | EI19: =STDEV('Trial 1'!EI12,'Trial 2'!EI12,'Trial 3'!EI12,'Trial 4'!EI12,'Trial 5'!EI12,'Trial 6'!EI12,'Trial 7'!EI12,'Trial 8'!EI12) -> $457 | EJ19: =STDEV('Trial 1'!EJ12,'Trial 2'!EJ12,'Trial 3'!EJ12,'Trial 4'!EJ12,'Trial 5'!EJ12,'Trial 6'!EJ12,'Trial 7'!EJ12,'Trial 8'!EJ12) -> $471 | EK19: =STDEV('Trial 1'!EK12,'Trial 2'!EK12,'Trial 3'!EK12,'Trial 4'!EK12,'Trial 5'!EK12,'Trial 6'!EK12,'Trial 7'!EK12,'Trial 8'!EK12) -> $459 | EL19: =STDEV('Trial 1'!EL12,'Trial 2'!EL12,'Trial 3'!EL12,'Trial 4'!EL12,'Trial 5'!EL12,'Trial 6'!EL12,'Trial 7'!EL12,'Trial 8'!EL12) -> $475 | EM19: =STDEV('Trial 1'!EM12,'Trial 2'!EM12,'Trial 3'!EM12,'Trial 4'!EM12,'Trial 5'!EM12,'Trial 6'!EM12,'Trial 7'!EM12,'Trial 8'!EM12) -> $454 | EN19: $5,587
A22: ="Capital" -> Capital
A23: =" " -> 
B24: =ZZZ__FnCalls!F7 -> Jan 2010 | C24: =ZZZ__FnCalls!F8 -> Feb 2010 | D24: =ZZZ__FnCalls!F9 -> Mar 2010 | E24: =ZZZ__FnCalls!F10 -> Apr 2010 | F24: =ZZZ__FnCalls!F11 -> May 2010 | G24: =ZZZ__FnCalls!F12 -> Jun 2010 | H24: =ZZZ__FnCalls!F13 -> Jul 2010 | I24: =ZZZ__FnCalls!F14 -> Aug 2010 | J24: =ZZZ__FnCalls!F15 -> Sep 2010 | K24: =ZZZ__FnCalls!F16 -> Oct 2010 | L24: =ZZZ__FnCalls!F17 -> Nov 2010 | M24: =ZZZ__FnCalls!F18 -> Dec 2010 | N24: =ZZZ__FnCalls!H7 -> 2010 | O24: =ZZZ__FnCalls!F19 -> Jan 2011 | P24: =ZZZ__FnCalls!F20 -> Feb 2011 | Q24: =ZZZ__FnCalls!F21 -> Mar 2011 | R24: =ZZZ__FnCalls!F22 -> Apr 2011 | S24: =ZZZ__FnCalls!F23 -> May 2011 | T24: =ZZZ__FnCalls!F24 -> Jun 2011 | U24: =ZZZ__FnCalls!F25 -> Jul 2011 | V24: =ZZZ__FnCalls!F26 -> Aug 2011 | W24: =ZZZ__FnCalls!F27 -> Sep 2011 | X24: =ZZZ__FnCalls!F28 -> Oct 2011 | Y24: =ZZZ__FnCalls!F29 -> Nov 2011 | Z24: =ZZZ__FnCalls!F30 -> Dec 2011 | AA24: =ZZZ__FnCalls!H19 -> 2011 | AB24: =ZZZ__FnCalls!F31 -> Jan 2012 | AC24: =ZZZ__FnCalls!F32 -> Feb 2012 | AD24: =ZZZ__FnCalls!F33 -> Mar 2012 | AE24: =ZZZ__FnCalls!F34 -> Apr 2012 | AF24: =ZZZ__FnCalls!F35 -> May 2012 | AG24: =ZZZ__FnCalls!F36 -> Jun 2012 | AH24: =ZZZ__FnCalls!F37 -> Jul 2012 | AI24: =ZZZ__FnCalls!F38 -> Aug 2012 | AJ24: =ZZZ__FnCalls!F39 -> Sep 2012 | AK24: =ZZZ__FnCalls!F40 -> Oct 2012 | AL24: =ZZZ__FnCalls!F41 -> Nov 2012 | AM24: =ZZZ__FnCalls!F42 -> Dec 2012 | AN24: =ZZZ__FnCalls!H31 -> 2012 | AO24: =ZZZ__FnCalls!F43 -> Jan 2013 | AP24: =ZZZ__FnCalls!F44 -> Feb 2013 | AQ24: =ZZZ__FnCalls!F45 -> Mar 2013 | AR24: =ZZZ__FnCalls!F46 -> Apr 2013 | AS24: =ZZZ__FnCalls!F47 -> May 2013 | AT24: =ZZZ__FnCalls!F48 -> Jun 2013 | AU24: =ZZZ__FnCalls!F49 -> Jul 2013 | AV24: =ZZZ__FnCalls!F50 -> Aug 2013 | AW24: =ZZZ__FnCalls!F51 -> Sep 2013 | AX24: =ZZZ__FnCalls!F52 -> Oct 2013 | AY24: =ZZZ__FnCalls!F53 -> Nov 2013 | AZ24: =ZZZ__FnCalls!F54 -> Dec 2013 | BA24: =ZZZ__FnCalls!H43 -> 2013 | BB24: =ZZZ__FnCalls!F55 -> Jan 2014 | BC24: =ZZZ__FnCalls!F56 -> Feb 2014 | BD24: =ZZZ__FnCalls!F57 -> Mar 2014 | BE24: =ZZZ__FnCalls!F58 -> Apr 2014 | BF24: =ZZZ__FnCalls!F59 -> May 2014 | BG24: =ZZZ__FnCalls!F60 -> Jun 2014 | BH24: =ZZZ__FnCalls!F61 -> Jul 2014 | BI24: =ZZZ__FnCalls!F62 -> Aug 2014 | BJ24: =ZZZ__FnCalls!F63 -> Sep 2014 | BK24: =ZZZ__FnCalls!F64 -> Oct 2014 | BL24: =ZZZ__FnCalls!F65 -> Nov 2014 | BM24: =ZZZ__FnCalls!F66 -> Dec 2014 | BN24: =ZZZ__FnCalls!H55 -> 2014 | BO24: =ZZZ__FnCalls!F67 -> Jan 2015 | BP24: =ZZZ__FnCalls!F68 -> Feb 2015 | BQ24: =ZZZ__FnCalls!F69 -> Mar 2015 | BR24: =ZZZ__FnCalls!F70 -> Apr 2015 | BS24: =ZZZ__FnCalls!F71 -> May 2015 | BT24: =ZZZ__FnCalls!F72 -> Jun 2015 | BU24: =ZZZ__FnCalls!F73 -> Jul 2015 | BV24: =ZZZ__FnCalls!F74 -> Aug 2015 | BW24: =ZZZ__FnCalls!F75 -> Sep 2015 | BX24: =ZZZ__FnCalls!F76 -> Oct 2015 | BY24: =ZZZ__FnCalls!F77 -> Nov 2015 | BZ24: =ZZZ__FnCalls!F78 -> Dec 2015 | CA24: =ZZZ__FnCalls!H67 -> 2015 | CB24: =ZZZ__FnCalls!F79 -> Jan 2016 | CC24: =ZZZ__FnCalls!F80 -> Feb 2016 | CD24: =ZZZ__FnCalls!F81 -> Mar 2016 | CE24: =ZZZ__FnCalls!F82 -> Apr 2016 | CF24: =ZZZ__FnCalls!F83 -> May 2016 | CG24: =ZZZ__FnCalls!F84 -> Jun 2016 | CH24: =ZZZ__FnCalls!F85 -> Jul 2016 | CI24: =ZZZ__FnCalls!F86 -> Aug 2016 | CJ24: =ZZZ__FnCalls!F87 -> Sep 2016 | CK24: =ZZZ__FnCalls!F88 -> Oct 2016 | CL24: =ZZZ__FnCalls!F89 -> Nov 2016 | CM24: =ZZZ__FnCalls!F90 -> Dec 2016 | CN24: =ZZZ__FnCalls!H79 -> 2016 | CO24: =ZZZ__FnCalls!F91 -> Jan 2017 | CP24: =ZZZ__FnCalls!F92 -> Feb 2017 | CQ24: =ZZZ__FnCalls!F93 -> Mar 2017 | CR24: =ZZZ__FnCalls!F94 -> Apr 2017 | CS24: =ZZZ__FnCalls!F95 -> May 2017 | CT24: =ZZZ__FnCalls!F96 -> Jun 2017 | CU24: =ZZZ__FnCalls!F97 -> Jul 2017 | CV24: =ZZZ__FnCalls!F98 -> Aug 2017 | CW24: =ZZZ__FnCalls!F99 -> Sep 2017 | CX24: =ZZZ__FnCalls!F100 -> Oct 2017 | CY24: =ZZZ__FnCalls!F101 -> Nov 2017 | CZ24: =ZZZ__FnCalls!F102 -> Dec 2017 | DA24: =ZZZ__FnCalls!H91 -> 2017 | DB24: =ZZZ__FnCalls!F103 -> Jan 2018 | DC24: =ZZZ__FnCalls!F104 -> Feb 2018 | DD24: =ZZZ__FnCalls!F105 -> Mar 2018 | DE24: =ZZZ__FnCalls!F106 -> Apr 2018 | DF24: =ZZZ__FnCalls!F107 -> May 2018 | DG24: =ZZZ__FnCalls!F108 -> Jun 2018 | DH24: =ZZZ__FnCalls!F109 -> Jul 2018 | DI24: =ZZZ__FnCalls!F110 -> Aug 2018 | DJ24: =ZZZ__FnCalls!F111 -> Sep 2018 | DK24: =ZZZ__FnCalls!F112 -> Oct 2018 | DL24: =ZZZ__FnCalls!F113 -> Nov 2018 | DM24: =ZZZ__FnCalls!F114 -> Dec 2018 | DN24: =ZZZ__FnCalls!H103 -> 2018 | DO24: =ZZZ__FnCalls!F115 -> Jan 2019 | DP24: =ZZZ__FnCalls!F116 -> Feb 2019 | DQ24: =ZZZ__FnCalls!F117 -> Mar 2019 | DR24: =ZZZ__FnCalls!F118 -> Apr 2019 | DS24: =ZZZ__FnCalls!F119 -> May 2019 | DT24: =ZZZ__FnCalls!F120 -> Jun 2019 | DU24: =ZZZ__FnCalls!F121 -> Jul 2019 | DV24: =ZZZ__FnCalls!F122 -> Aug 2019 | DW24: =ZZZ__FnCalls!F123 -> Sep 2019 | DX24: =ZZZ__FnCalls!F124 -> Oct 2019 | DY24: =ZZZ__FnCalls!F125 -> Nov 2019 | DZ24: =ZZZ__FnCalls!F126 -> Dec 2019 | EA24: =ZZZ__FnCalls!H115 -> 2019 | EB24: =ZZZ__FnCalls!F127 -> Jan 2020 | EC24: =ZZZ__FnCalls!F128 -> Feb 2020 | ED24: =ZZZ__FnCalls!F129 -> Mar 2020 | EE24: =ZZZ__FnCalls!F130 -> Apr 2020 | EF24: =ZZZ__FnCalls!F131 -> May 2020 | EG24: =ZZZ__FnCalls!F132 -> Jun 2020 | EH24: =ZZZ__FnCalls!F133 -> Jul 2020 | EI24: =ZZZ__FnCalls!F134 -> Aug 2020 | EJ24: =ZZZ__FnCalls!F135 -> Sep 2020 | EK24: =ZZZ__FnCalls!F136 -> Oct 2020 | EL24: =ZZZ__FnCalls!F137 -> Nov 2020 | EM24: =ZZZ__FnCalls!F138 -> Dec 2020 | EN24: =ZZZ__FnCalls!H127 -> 2020
A25: =Labels!B22 -> Capital | B25: =AVERAGE('Trial 1'!B19,'Trial 2'!B19,'Trial 3'!B19,'Trial 4'!B19,'Trial 5'!B19,'Trial 6'!B19,'Trial 7'!B19,'Trial 8'!B19) -> $34,645,298 | C25: =AVERAGE('Trial 1'!C19,'Trial 2'!C19,'Trial 3'!C19,'Trial 4'!C19,'Trial 5'!C19,'Trial 6'!C19,'Trial 7'!C19,'Trial 8'!C19) -> $34,645,298 | D25: =AVERAGE('Trial 1'!D19,'Trial 2'!D19,'Trial 3'!D19,'Trial 4'!D19,'Trial 5'!D19,'Trial 6'!D19,'Trial 7'!D19,'Trial 8'!D19) -> $34,644,859 | E25: =AVERAGE('Trial 1'!E19,'Trial 2'!E19,'Trial 3'!E19,'Trial 4'!E19,'Trial 5'!E19,'Trial 6'!E19,'Trial 7'!E19,'Trial 8'!E19) -> $34,644,022 | F25: =AVERAGE('Trial 1'!F19,'Trial 2'!F19,'Trial 3'!F19,'Trial 4'!F19,'Trial 5'!F19,'Trial 6'!F19,'Trial 7'!F19,'Trial 8'!F19) -> $34,642,834 | G25: =AVERAGE('Trial 1'!G19,'Trial 2'!G19,'Trial 3'!G19,'Trial 4'!G19,'Trial 5'!G19,'Trial 6'!G19,'Trial 7'!G19,'Trial 8'!G19) -> $34,641,320 | H25: =AVERAGE('Trial 1'!H19,'Trial 2'!H19,'Trial 3'!H19,'Trial 4'!H19,'Trial 5'!H19,'Trial 6'!H19,'Trial 7'!H19,'Trial 8'!H19) -> $34,639,509 | I25: =AVERAGE('Trial 1'!I19,'Trial 2'!I19,'Trial 3'!I19,'Trial 4'!I19,'Trial 5'!I19,'Trial 6'!I19,'Trial 7'!I19,'Trial 8'!I19) -> $34,637,383 | J25: =AVERAGE('Trial 1'!J19,'Trial 2'!J19,'Trial 3'!J19,'Trial 4'!J19,'Trial 5'!J19,'Trial 6'!J19,'Trial 7'!J19,'Trial 8'!J19) -> $34,634,916 | K25: =AVERAGE('Trial 1'!K19,'Trial 2'!K19,'Trial 3'!K19,'Trial 4'!K19,'Trial 5'!K19,'Trial 6'!K19,'Trial 7'!K19,'Trial 8'!K19) -> $34,632,135 | L25: =AVERAGE('Trial 1'!L19,'Trial 2'!L19,'Trial 3'!L19,'Trial 4'!L19,'Trial 5'!L19,'Trial 6'!L19,'Trial 7'!L19,'Trial 8'!L19) -> $34,629,051 | M25: =AVERAGE('Trial 1'!M19,'Trial 2'!M19,'Trial 3'!M19,'Trial 4'!M19,'Trial 5'!M19,'Trial 6'!M19,'Trial 7'!M19,'Trial 8'!M19) -> $34,625,672 | N25: =M25 -> $34,625,672 | O25: =AVERAGE('Trial 1'!O19,'Trial 2'!O19,'Trial 3'!O19,'Trial 4'!O19,'Trial 5'!O19,'Trial 6'!O19,'Trial 7'!O19,'Trial 8'!O19) -> $34,622,004 | P25: =AVERAGE('Trial 1'!P19,'Trial 2'!P19,'Trial 3'!P19,'Trial 4'!P19,'Trial 5'!P19,'Trial 6'!P19,'Trial 7'!P19,'Trial 8'!P19) -> $34,618,041 | Q25: =AVERAGE('Trial 1'!Q19,'Trial 2'!Q19,'Trial 3'!Q19,'Trial 4'!Q19,'Trial 5'!Q19,'Trial 6'!Q19,'Trial 7'!Q19,'Trial 8'!Q19) -> $34,613,815 | R25: =AVERAGE('Trial 1'!R19,'Trial 2'!R19,'Trial 3'!R19,'Trial 4'!R19,'Trial 5'!R19,'Trial 6'!R19,'Trial 7'!R19,'Trial 8'!R19) -> $34,609,327 | S25: =AVERAGE('Trial 1'!S19,'Trial 2'!S19,'Trial 3'!S19,'Trial 4'!S19,'Trial 5'!S19,'Trial 6'!S19,'Trial 7'!S19,'Trial 8'!S19) -> $34,604,593 | T25: =AVERAGE('Trial 1'!T19,'Trial 2'!T19,'Trial 3'!T19,'Trial 4'!T19,'Trial 5'!T19,'Trial 6'!T19,'Trial 7'!T19,'Trial 8'!T19) -> $34,599,627 | U25: =AVERAGE('Trial 1'!U19,'Trial 2'!U19,'Trial 3'!U19,'Trial 4'!U19,'Trial 5'!U19,'Trial 6'!U19,'Trial 7'!U19,'Trial 8'!U19) -> $34,594,364 | V25: =AVERAGE('Trial 1'!V19,'Trial 2'!V19,'Trial 3'!V19,'Trial 4'!V19,'Trial 5'!V19,'Trial 6'!V19,'Trial 7'!V19,'Trial 8'!V19) -> $34,588,873 | W25: =AVERAGE('Trial 1'!W19,'Trial 2'!W19,'Trial 3'!W19,'Trial 4'!W19,'Trial 5'!W19,'Trial 6'!W19,'Trial 7'!W19,'Trial 8'!W19) -> $34,583,117 | X25: =AVERAGE('Trial 1'!X19,'Trial 2'!X19,'Trial 3'!X19,'Trial 4'!X19,'Trial 5'!X19,'Trial 6'!X19,'Trial 7'!X19,'Trial 8'!X19) -> $34,577,109 | Y25: =AVERAGE('Trial 1'!Y19,'Trial 2'!Y19,'Trial 3'!Y19,'Trial 4'!Y19,'Trial 5'!Y19,'Trial 6'!Y19,'Trial 7'!Y19,'Trial 8'!Y19) -> $34,570,908 | Z25: =AVERAGE('Trial 1'!Z19,'Trial 2'!Z19,'Trial 3'!Z19,'Trial 4'!Z19,'Trial 5'!Z19,'Trial 6'!Z19,'Trial 7'!Z19,'Trial 8'!Z19) -> $34,564,478 | AA25: =Z25 -> $34,564,478 | AB25: =AVERAGE('Trial 1'!AB19,'Trial 2'!AB19,'Trial 3'!AB19,'Trial 4'!AB19,'Trial 5'!AB19,'Trial 6'!AB19,'Trial 7'!AB19,'Trial 8'!AB19) -> $34,557,829 | AC25: =AVERAGE('Trial 1'!AC19,'Trial 2'!AC19,'Trial 3'!AC19,'Trial 4'!AC19,'Trial 5'!AC19,'Trial 6'!AC19,'Trial 7'!AC19,'Trial 8'!AC19) -> $34,550,925 | AD25: =AVERAGE('Trial 1'!AD19,'Trial 2'!AD19,'Trial 3'!AD19,'Trial 4'!AD19,'Trial 5'!AD19,'Trial 6'!AD19,'Trial 7'!AD19,'Trial 8'!AD19) -> $34,543,821 | AE25: =AVERAGE('Trial 1'!AE19,'Trial 2'!AE19,'Trial 3'!AE19,'Trial 4'!AE19,'Trial 5'!AE19,'Trial 6'!AE19,'Trial 7'!AE19,'Trial 8'!AE19) -> $34,536,542 | AF25: =AVERAGE('Trial 1'!AF19,'Trial 2'!AF19,'Trial 3'!AF19,'Trial 4'!AF19,'Trial 5'!AF19,'Trial 6'!AF19,'Trial 7'!AF19,'Trial 8'!AF19) -> $34,529,080 | AG25: =AVERAGE('Trial 1'!AG19,'Trial 2'!AG19,'Trial 3'!AG19,'Trial 4'!AG19,'Trial 5'!AG19,'Trial 6'!AG19,'Trial 7'!AG19,'Trial 8'!AG19) -> $34,521,433 | AH25: =AVERAGE('Trial 1'!AH19,'Trial 2'!AH19,'Trial 3'!AH19,'Trial 4'!AH19,'Trial 5'!AH19,'Trial 6'!AH19,'Trial 7'!AH19,'Trial 8'!AH19) -> $34,513,575 | AI25: =AVERAGE('Trial 1'!AI19,'Trial 2'!AI19,'Trial 3'!AI19,'Trial 4'!AI19,'Trial 5'!AI19,'Trial 6'!AI19,'Trial 7'!AI19,'Trial 8'!AI19) -> $34,505,556 | AJ25: =AVERAGE('Trial 1'!AJ19,'Trial 2'!AJ19,'Trial 3'!AJ19,'Trial 4'!AJ19,'Trial 5'!AJ19,'Trial 6'!AJ19,'Trial 7'!AJ19,'Trial 8'!AJ19) -> $34,497,397 | AK25: =AVERAGE('Trial 1'!AK19,'Trial 2'!AK19,'Trial 3'!AK19,'Trial 4'!AK19,'Trial 5'!AK19,'Trial 6'!AK19,'Trial 7'!AK19,'Trial 8'!AK19) -> $34,489,040 | AL25: =AVERAGE('Trial 1'!AL19,'Trial 2'!AL19,'Trial 3'!AL19,'Trial 4'!AL19,'Trial 5'!AL19,'Trial 6'!AL19,'Trial 7'!AL19,'Trial 8'!AL19) -> $34,480,528 | AM25: =AVERAGE('Trial 1'!AM19,'Trial 2'!AM19,'Trial 3'!AM19,'Trial 4'!AM19,'Trial 5'!AM19,'Trial 6'!AM19,'Trial 7'!AM19,'Trial 8'!AM19) -> $34,471,875 | AN25: =AM25 -> $34,471,875 | AO25: =AVERAGE('Trial 1'!AO19,'Trial 2'!AO19,'Trial 3'!AO19,'Trial 4'!AO19,'Trial 5'!AO19,'Trial 6'!AO19,'Trial 7'!AO19,'Trial 8'!AO19) -> $34,463,090 | AP25: =AVERAGE('Trial 1'!AP19,'Trial 2'!AP19,'Trial 3'!AP19,'Trial 4'!AP19,'Trial 5'!AP19,'Trial 6'!AP19,'Trial 7'!AP19,'Trial 8'!AP19) -> $34,454,138 | AQ25: =AVERAGE('Trial 1'!AQ19,'Trial 2'!AQ19,'Trial 3'!AQ19,'Trial 4'!AQ19,'Trial 5'!AQ19,'Trial 6'!AQ19,'Trial 7'!AQ19,'Trial 8'!AQ19) -> $34,445,045 | AR25: =AVERAGE('Trial 1'!AR19,'Trial 2'!AR19,'Trial 3'!AR19,'Trial 4'!AR19,'Trial 5'!AR19,'Trial 6'!AR19,'Trial 7'!AR19,'Trial 8'!AR19) -> $34,435,839 | AS25: =AVERAGE('Trial 1'!AS19,'Trial 2'!AS19,'Trial 3'!AS19,'Trial 4'!AS19,'Trial 5'!AS19,'Trial 6'!AS19,'Trial 7'!AS19,'Trial 8'!AS19) -> $34,426,479 | AT25: =AVERAGE('Trial 1'!AT19,'Trial 2'!AT19,'Trial 3'!AT19,'Trial 4'!AT19,'Trial 5'!AT19,'Trial 6'!AT19,'Trial 7'!AT19,'Trial 8'!AT19) -> $34,416,985 | AU25: =AVERAGE('Trial 1'!AU19,'Trial 2'!AU19,'Trial 3'!AU19,'Trial 4'!AU19,'Trial 5'!AU19,'Trial 6'!AU19,'Trial 7'!AU19,'Trial 8'!AU19) -> $34,407,385 | AV25: =AVERAGE('Trial 1'!AV19,'Trial 2'!AV19,'Trial 3'!AV19,'Trial 4'!AV19,'Trial 5'!AV19,'Trial 6'!AV19,'Trial 7'!AV19,'Trial 8'!AV19) -> $34,397,658 | AW25: =AVERAGE('Trial 1'!AW19,'Trial 2'!AW19,'Trial 3'!AW19,'Trial 4'!AW19,'Trial 5'!AW19,'Trial 6'!AW19,'Trial 7'!AW19,'Trial 8'!AW19) -> $34,387,800 | AX25: =AVERAGE('Trial 1'!AX19,'Trial 2'!AX19,'Trial 3'!AX19,'Trial 4'!AX19,'Trial 5'!AX19,'Trial 6'!AX19,'Trial 7'!AX19,'Trial 8'!AX19) -> $34,377,826 | AY25: =AVERAGE('Trial 1'!AY19,'Trial 2'!AY19,'Trial 3'!AY19,'Trial 4'!AY19,'Trial 5'!AY19,'Trial 6'!AY19,'Trial 7'!AY19,'Trial 8'!AY19) -> $34,367,713 | AZ25: =AVERAGE('Trial 1'!AZ19,'Trial 2'!AZ19,'Trial 3'!AZ19,'Trial 4'!AZ19,'Trial 5'!AZ19,'Trial 6'!AZ19,'Trial 7'!AZ19,'Trial 8'!AZ19) -> $34,357,480 | BA25: =AZ25 -> $34,357,480 | BB25: =AVERAGE('Trial 1'!BB19,'Trial 2'!BB19,'Trial 3'!BB19,'Trial 4'!BB19,'Trial 5'!BB19,'Trial 6'!BB19,'Trial 7'!BB19,'Trial 8'!BB19) -> $34,347,142 | BC25: =AVERAGE('Trial 1'!BC19,'Trial 2'!BC19,'Trial 3'!BC19,'Trial 4'!BC19,'Trial 5'!BC19,'Trial 6'!BC19,'Trial 7'!BC19,'Trial 8'!BC19) -> $34,336,669 | BD25: =AVERAGE('Trial 1'!BD19,'Trial 2'!BD19,'Trial 3'!BD19,'Trial 4'!BD19,'Trial 5'!BD19,'Trial 6'!BD19,'Trial 7'!BD19,'Trial 8'!BD19) -> $34,326,067 | BE25: =AVERAGE('Trial 1'!BE19,'Trial 2'!BE19,'Trial 3'!BE19,'Trial 4'!BE19,'Trial 5'!BE19,'Trial 6'!BE19,'Trial 7'!BE19,'Trial 8'!BE19) -> $34,315,359 | BF25: =AVERAGE('Trial 1'!BF19,'Trial 2'!BF19,'Trial 3'!BF19,'Trial 4'!BF19,'Trial 5'!BF19,'Trial 6'!BF19,'Trial 7'!BF19,'Trial 8'!BF19) -> $34,304,556 | BG25: =AVERAGE('Trial 1'!BG19,'Trial 2'!BG19,'Trial 3'!BG19,'Trial 4'!BG19,'Trial 5'!BG19,'Trial 6'!BG19,'Trial 7'!BG19,'Trial 8'!BG19) -> $34,293,654 | BH25: =AVERAGE('Trial 1'!BH19,'Trial 2'!BH19,'Trial 3'!BH19,'Trial 4'!BH19,'Trial 5'!BH19,'Trial 6'!BH19,'Trial 7'!BH19,'Trial 8'!BH19) -> $34,282,672 | BI25: =AVERAGE('Trial 1'!BI19,'Trial 2'!BI19,'Trial 3'!BI19,'Trial 4'!BI19,'Trial 5'!BI19,'Trial 6'!BI19,'Trial 7'!BI19,'Trial 8'!BI19) -> $34,271,611 | BJ25: =AVERAGE('Trial 1'!BJ19,'Trial 2'!BJ19,'Trial 3'!BJ19,'Trial 4'!BJ19,'Trial 5'!BJ19,'Trial 6'!BJ19,'Trial 7'!BJ19,'Trial 8'!BJ19) -> $34,260,436 | BK25: =AVERAGE('Trial 1'!BK19,'Trial 2'!BK19,'Trial 3'!BK19,'Trial 4'!BK19,'Trial 5'!BK19,'Trial 6'!BK19,'Trial 7'!BK19,'Trial 8'!BK19) -> $34,249,165 | BL25: =AVERAGE('Trial 1'!BL19,'Trial 2'!BL19,'Trial 3'!BL19,'Trial 4'!BL19,'Trial 5'!BL19,'Trial 6'!BL19,'Trial 7'!BL19,'Trial 8'!BL19) -> $34,237,829 | BM25: =AVERAGE('Trial 1'!BM19,'Trial 2'!BM19,'Trial 3'!BM19,'Trial 4'!BM19,'Trial 5'!BM19,'Trial 6'!BM19,'Trial 7'!BM19,'Trial 8'!BM19) -> $34,226,407 | BN25: =BM25 -> $34,226,407 | BO25: =AVERAGE('Trial 1'!BO19,'Trial 2'!BO19,'Trial 3'!BO19,'Trial 4'!BO19,'Trial 5'!BO19,'Trial 6'!BO19,'Trial 7'!BO19,'Trial 8'!BO19) -> $34,214,924 | BP25: =AVERAGE('Trial 1'!BP19,'Trial 2'!BP19,'Trial 3'!BP19,'Trial 4'!BP19,'Trial 5'!BP19,'Trial 6'!BP19,'Trial 7'!BP19,'Trial 8'!BP19) -> $34,203,363 | BQ25: =AVERAGE('Trial 1'!BQ19,'Trial 2'!BQ19,'Trial 3'!BQ19,'Trial 4'!BQ19,'Trial 5'!BQ19,'Trial 6'!BQ19,'Trial 7'!BQ19,'Trial 8'!BQ19) -> $34,191,725 | BR25: =AVERAGE('Trial 1'!BR19,'Trial 2'!BR19,'Trial 3'!BR19,'Trial 4'!BR19,'Trial 5'!BR19,'Trial 6'!BR19,'Trial 7'!BR19,'Trial 8'!BR19) -> $34,180,023 | BS25: =AVERAGE('Trial 1'!BS19,'Trial 2'!BS19,'Trial 3'!BS19,'Trial 4'!BS19,'Trial 5'!BS19,'Trial 6'!BS19,'Trial 7'!BS19,'Trial 8'!BS19) -> $34,168,280 | BT25: =AVERAGE('Trial 1'!BT19,'Trial 2'!BT19,'Trial 3'!BT19,'Trial 4'!BT19,'Trial 5'!BT19,'Trial 6'!BT19,'Trial 7'!BT19,'Trial 8'!BT19) -> $34,156,491 | BU25: =AVERAGE('Trial 1'!BU19,'Trial 2'!BU19,'Trial 3'!BU19,'Trial 4'!BU19,'Trial 5'!BU19,'Trial 6'!BU19,'Trial 7'!BU19,'Trial 8'!BU19) -> $34,144,624 | BV25: =AVERAGE('Trial 1'!BV19,'Trial 2'!BV19,'Trial 3'!BV19,'Trial 4'!BV19,'Trial 5'!BV19,'Trial 6'!BV19,'Trial 7'!BV19,'Trial 8'!BV19) -> $34,132,730 | BW25: =AVERAGE('Trial 1'!BW19,'Trial 2'!BW19,'Trial 3'!BW19,'Trial 4'!BW19,'Trial 5'!BW19,'Trial 6'!BW19,'Trial 7'!BW19,'Trial 8'!BW19) -> $34,120,759 | BX25: =AVERAGE('Trial 1'!BX19,'Trial 2'!BX19,'Trial 3'!BX19,'Trial 4'!BX19,'Trial 5'!BX19,'Trial 6'!BX19,'Trial 7'!BX19,'Trial 8'!BX19) -> $34,108,725 | BY25: =AVERAGE('Trial 1'!BY19,'Trial 2'!BY19,'Trial 3'!BY19,'Trial 4'!BY19,'Trial 5'!BY19,'Trial 6'!BY19,'Trial 7'!BY19,'Trial 8'!BY19) -> $34,096,663 | BZ25: =AVERAGE('Trial 1'!BZ19,'Trial 2'!BZ19,'Trial 3'!BZ19,'Trial 4'!BZ19,'Trial 5'!BZ19,'Trial 6'!BZ19,'Trial 7'!BZ19,'Trial 8'!BZ19) -> $34,084,526 | CA25: =BZ25 -> $34,084,526 | CB25: =AVERAGE('Trial 1'!CB19,'Trial 2'!CB19,'Trial 3'!CB19,'Trial 4'!CB19,'Trial 5'!CB19,'Trial 6'!CB19,'Trial 7'!CB19,'Trial 8'!CB19) -> $34,072,358 | CC25: =AVERAGE('Trial 1'!CC19,'Trial 2'!CC19,'Trial 3'!CC19,'Trial 4'!CC19,'Trial 5'!CC19,'Trial 6'!CC19,'Trial 7'!CC19,'Trial 8'!CC19) -> $34,060,140 | CD25: =AVERAGE('Trial 1'!CD19,'Trial 2'!CD19,'Trial 3'!CD19,'Trial 4'!CD19,'Trial 5'!CD19,'Trial 6'!CD19,'Trial 7'!CD19,'Trial 8'!CD19) -> $34,047,866 | CE25: =AVERAGE('Trial 1'!CE19,'Trial 2'!CE19,'Trial 3'!CE19,'Trial 4'!CE19,'Trial 5'!CE19,'Trial 6'!CE19,'Trial 7'!CE19,'Trial 8'!CE19) -> $34,035,535 | CF25: =AVERAGE('Trial 1'!CF19,'Trial 2'!CF19,'Trial 3'!CF19,'Trial 4'!CF19,'Trial 5'!CF19,'Trial 6'!CF19,'Trial 7'!CF19,'Trial 8'!CF19) -> $34,023,170 | CG25: =AVERAGE('Trial 1'!CG19,'Trial 2'!CG19,'Trial 3'!CG19,'Trial 4'!CG19,'Trial 5'!CG19,'Trial 6'!CG19,'Trial 7'!CG19,'Trial 8'!CG19) -> $34,010,738 | CH25: =AVERAGE('Trial 1'!CH19,'Trial 2'!CH19,'Trial 3'!CH19,'Trial 4'!CH19,'Trial 5'!CH19,'Trial 6'!CH19,'Trial 7'!CH19,'Trial 8'!CH19) -> $33,998,258 | CI25: =AVERAGE('Trial 1'!CI19,'Trial 2'!CI19,'Trial 3'!CI19,'Trial 4'!CI19,'Trial 5'!CI19,'Trial 6'!CI19,'Trial 7'!CI19,'Trial 8'!CI19) -> $33,985,789 | CJ25: =AVERAGE('Trial 1'!CJ19,'Trial 2'!CJ19,'Trial 3'!CJ19,'Trial 4'!CJ19,'Trial 5'!CJ19,'Trial 6'!CJ19,'Trial 7'!CJ19,'Trial 8'!CJ19) -> $33,973,283 | CK25: =AVERAGE('Trial 1'!CK19,'Trial 2'!CK19,'Trial 3'!CK19,'Trial 4'!CK19,'Trial 5'!CK19,'Trial 6'!CK19,'Trial 7'!CK19,'Trial 8'!CK19) -> $33,960,754 | CL25: =AVERAGE('Trial 1'!CL19,'Trial 2'!CL19,'Trial 3'!CL19,'Trial 4'!CL19,'Trial 5'!CL19,'Trial 6'!CL19,'Trial 7'!CL19,'Trial 8'!CL19) -> $33,948,195 | CM25: =AVERAGE('Trial 1'!CM19,'Trial 2'!CM19,'Trial 3'!CM19,'Trial 4'!CM19,'Trial 5'!CM19,'Trial 6'!CM19,'Trial 7'!CM19,'Trial 8'!CM19) -> $33,935,631 | CN25: =CM25 -> $33,935,631 | CO25: =AVERAGE('Trial 1'!CO19,'Trial 2'!CO19,'Trial 3'!CO19,'Trial 4'!CO19,'Trial 5'!CO19,'Trial 6'!CO19,'Trial 7'!CO19,'Trial 8'!CO19) -> $33,923,024 | CP25: =AVERAGE('Trial 1'!CP19,'Trial 2'!CP19,'Trial 3'!CP19,'Trial 4'!CP19,'Trial 5'!CP19,'Trial 6'!CP19,'Trial 7'!CP19,'Trial 8'!CP19) -> $33,910,410 | CQ25: =AVERAGE('Trial 1'!CQ19,'Trial 2'!CQ19,'Trial 3'!CQ19,'Trial 4'!CQ19,'Trial 5'!CQ19,'Trial 6'!CQ19,'Trial 7'!CQ19,'Trial 8'!CQ19) -> $33,897,773 | CR25: =AVERAGE('Trial 1'!CR19,'Trial 2'!CR19,'Trial 3'!CR19,'Trial 4'!CR19,'Trial 5'!CR19,'Trial 6'!CR19,'Trial 7'!CR19,'Trial 8'!CR19) -> $33,885,115 | CS25: =AVERAGE('Trial 1'!CS19,'Trial 2'!CS19,'Trial 3'!CS19,'Trial 4'!CS19,'Trial 5'!CS19,'Trial 6'!CS19,'Trial 7'!CS19,'Trial 8'!CS19) -> $33,872,434 | CT25: =AVERAGE('Trial 1'!CT19,'Trial 2'!CT19,'Trial 3'!CT19,'Trial 4'!CT19,'Trial 5'!CT19,'Trial 6'!CT19,'Trial 7'!CT19,'Trial 8'!CT19) -> $33,859,720 | CU25: =AVERAGE('Trial 1'!CU19,'Trial 2'!CU19,'Trial 3'!CU19,'Trial 4'!CU19,'Trial 5'!CU19,'Trial 6'!CU19,'Trial 7'!CU19,'Trial 8'!CU19) -> $33,846,931 | CV25: =AVERAGE('Trial 1'!CV19,'Trial 2'!CV19,'Trial 3'!CV19,'Trial 4'!CV19,'Trial 5'!CV19,'Trial 6'!CV19,'Trial 7'!CV19,'Trial 8'!CV19) -> $33,834,089 | CW25: =AVERAGE('Trial 1'!CW19,'Trial 2'!CW19,'Trial 3'!CW19,'Trial 4'!CW19,'Trial 5'!CW19,'Trial 6'!CW19,'Trial 7'!CW19,'Trial 8'!CW19) -> $33,821,262 | CX25: =AVERAGE('Trial 1'!CX19,'Trial 2'!CX19,'Trial 3'!CX19,'Trial 4'!CX19,'Trial 5'!CX19,'Trial 6'!CX19,'Trial 7'!CX19,'Trial 8'!CX19) -> $33,808,396 | CY25: =AVERAGE('Trial 1'!CY19,'Trial 2'!CY19,'Trial 3'!CY19,'Trial 4'!CY19,'Trial 5'!CY19,'Trial 6'!CY19,'Trial 7'!CY19,'Trial 8'!CY19) -> $33,795,496 | CZ25: =AVERAGE('Trial 1'!CZ19,'Trial 2'!CZ19,'Trial 3'!CZ19,'Trial 4'!CZ19,'Trial 5'!CZ19,'Trial 6'!CZ19,'Trial 7'!CZ19,'Trial 8'!CZ19) -> $33,782,556 | DA25: =CZ25 -> $33,782,556 | DB25: =AVERAGE('Trial 1'!DB19,'Trial 2'!DB19,'Trial 3'!DB19,'Trial 4'!DB19,'Trial 5'!DB19,'Trial 6'!DB19,'Trial 7'!DB19,'Trial 8'!DB19) -> $33,769,602 | DC25: =AVERAGE('Trial 1'!DC19,'Trial 2'!DC19,'Trial 3'!DC19,'Trial 4'!DC19,'Trial 5'!DC19,'Trial 6'!DC19,'Trial 7'!DC19,'Trial 8'!DC19) -> $33,756,613 | DD25: =AVERAGE('Trial 1'!DD19,'Trial 2'!DD19,'Trial 3'!DD19,'Trial 4'!DD19,'Trial 5'!DD19,'Trial 6'!DD19,'Trial 7'!DD19,'Trial 8'!DD19) -> $33,743,615 | DE25: =AVERAGE('Trial 1'!DE19,'Trial 2'!DE19,'Trial 3'!DE19,'Trial 4'!DE19,'Trial 5'!DE19,'Trial 6'!DE19,'Trial 7'!DE19,'Trial 8'!DE19) -> $33,730,569 | DF25: =AVERAGE('Trial 1'!DF19,'Trial 2'!DF19,'Trial 3'!DF19,'Trial 4'!DF19,'Trial 5'!DF19,'Trial 6'!DF19,'Trial 7'!DF19,'Trial 8'!DF19) -> $33,717,488 | DG25: =AVERAGE('Trial 1'!DG19,'Trial 2'!DG19,'Trial 3'!DG19,'Trial 4'!DG19,'Trial 5'!DG19,'Trial 6'!DG19,'Trial 7'!DG19,'Trial 8'!DG19) -> $33,704,397 | DH25: =AVERAGE('Trial 1'!DH19,'Trial 2'!DH19,'Trial 3'!DH19,'Trial 4'!DH19,'Trial 5'!DH19,'Trial 6'!DH19,'Trial 7'!DH19,'Trial 8'!DH19) -> $33,691,283 | DI25: =AVERAGE('Trial 1'!DI19,'Trial 2'!DI19,'Trial 3'!DI19,'Trial 4'!DI19,'Trial 5'!DI19,'Trial 6'!DI19,'Trial 7'!DI19,'Trial 8'!DI19) -> $33,678,139 | DJ25: =AVERAGE('Trial 1'!DJ19,'Trial 2'!DJ19,'Trial 3'!DJ19,'Trial 4'!DJ19,'Trial 5'!DJ19,'Trial 6'!DJ19,'Trial 7'!DJ19,'Trial 8'!DJ19) -> $33,664,963 | DK25: =AVERAGE('Trial 1'!DK19,'Trial 2'!DK19,'Trial 3'!DK19,'Trial 4'!DK19,'Trial 5'!DK19,'Trial 6'!DK19,'Trial 7'!DK19,'Trial 8'!DK19) -> $33,651,749 | DL25: =AVERAGE('Trial 1'!DL19,'Trial 2'!DL19,'Trial 3'!DL19,'Trial 4'!DL19,'Trial 5'!DL19,'Trial 6'!DL19,'Trial 7'!DL19,'Trial 8'!DL19) -> $33,638,515 | DM25: =AVERAGE('Trial 1'!DM19,'Trial 2'!DM19,'Trial 3'!DM19,'Trial 4'!DM19,'Trial 5'!DM19,'Trial 6'!DM19,'Trial 7'!DM19,'Trial 8'!DM19) -> $33,625,257 | DN25: =DM25 -> $33,625,257 | DO25: =AVERAGE('Trial 1'!DO19,'Trial 2'!DO19,'Trial 3'!DO19,'Trial 4'!DO19,'Trial 5'!DO19,'Trial 6'!DO19,'Trial 7'!DO19,'Trial 8'!DO19) -> $33,611,962 | DP25: =AVERAGE('Trial 1'!DP19,'Trial 2'!DP19,'Trial 3'!DP19,'Trial 4'!DP19,'Trial 5'!DP19,'Trial 6'!DP19,'Trial 7'!DP19,'Trial 8'!DP19) -> $33,598,638 | DQ25: =AVERAGE('Trial 1'!DQ19,'Trial 2'!DQ19,'Trial 3'!DQ19,'Trial 4'!DQ19,'Trial 5'!DQ19,'Trial 6'!DQ19,'Trial 7'!DQ19,'Trial 8'!DQ19) -> $33,585,315 | DR25: =AVERAGE('Trial 1'!DR19,'Trial 2'!DR19,'Trial 3'!DR19,'Trial 4'!DR19,'Trial 5'!DR19,'Trial 6'!DR19,'Trial 7'!DR19,'Trial 8'!DR19) -> $33,571,964 | DS25: =AVERAGE('Trial 1'!DS19,'Trial 2'!DS19,'Trial 3'!DS19,'Trial 4'!DS19,'Trial 5'!DS19,'Trial 6'!DS19,'Trial 7'!DS19,'Trial 8'!DS19) -> $33,558,626 | DT25: =AVERAGE('Trial 1'!DT19,'Trial 2'!DT19,'Trial 3'!DT19,'Trial 4'!DT19,'Trial 5'!DT19,'Trial 6'!DT19,'Trial 7'!DT19,'Trial 8'!DT19) -> $33,545,276 | DU25: =AVERAGE('Trial 1'!DU19,'Trial 2'!DU19,'Trial 3'!DU19,'Trial 4'!DU19,'Trial 5'!DU19,'Trial 6'!DU19,'Trial 7'!DU19,'Trial 8'!DU19) -> $33,531,913 | DV25: =AVERAGE('Trial 1'!DV19,'Trial 2'!DV19,'Trial 3'!DV19,'Trial 4'!DV19,'Trial 5'!DV19,'Trial 6'!DV19,'Trial 7'!DV19,'Trial 8'!DV19) -> $33,518,560 | DW25: =AVERAGE('Trial 1'!DW19,'Trial 2'!DW19,'Trial 3'!DW19,'Trial 4'!DW19,'Trial 5'!DW19,'Trial 6'!DW19,'Trial 7'!DW19,'Trial 8'!DW19) -> $33,505,202 | DX25: =AVERAGE('Trial 1'!DX19,'Trial 2'!DX19,'Trial 3'!DX19,'Trial 4'!DX19,'Trial 5'!DX19,'Trial 6'!DX19,'Trial 7'!DX19,'Trial 8'!DX19) -> $33,491,847 | DY25: =AVERAGE('Trial 1'!DY19,'Trial 2'!DY19,'Trial 3'!DY19,'Trial 4'!DY19,'Trial 5'!DY19,'Trial 6'!DY19,'Trial 7'!DY19,'Trial 8'!DY19) -> $33,478,482 | DZ25: =AVERAGE('Trial 1'!DZ19,'Trial 2'!DZ19,'Trial 3'!DZ19,'Trial 4'!DZ19,'Trial 5'!DZ19,'Trial 6'!DZ19,'Trial 7'!DZ19,'Trial 8'!DZ19) -> $33,465,106 | EA25: =DZ25 -> $33,465,106 | EB25: =AVERAGE('Trial 1'!EB19,'Trial 2'!EB19,'Trial 3'!EB19,'Trial 4'!EB19,'Trial 5'!EB19,'Trial 6'!EB19,'Trial 7'!EB19,'Trial 8'!EB19) -> $33,451,720 | EC25: =AVERAGE('Trial 1'!EC19,'Trial 2'!EC19,'Trial 3'!EC19,'Trial 4'!EC19,'Trial 5'!EC19,'Trial 6'!EC19,'Trial 7'!EC19,'Trial 8'!EC19) -> $33,438,292 | ED25: =AVERAGE('Trial 1'!ED19,'Trial 2'!ED19,'Trial 3'!ED19,'Trial 4'!ED19,'Trial 5'!ED19,'Trial 6'!ED19,'Trial 7'!ED19,'Trial 8'!ED19) -> $33,424,866 | EE25: =AVERAGE('Trial 1'!EE19,'Trial 2'!EE19,'Trial 3'!EE19,'Trial 4'!EE19,'Trial 5'!EE19,'Trial 6'!EE19,'Trial 7'!EE19,'Trial 8'!EE19) -> $33,411,402 | EF25: =AVERAGE('Trial 1'!EF19,'Trial 2'!EF19,'Trial 3'!EF19,'Trial 4'!EF19,'Trial 5'!EF19,'Trial 6'!EF19,'Trial 7'!EF19,'Trial 8'!EF19) -> $33,397,913 | EG25: =AVERAGE('Trial 1'!EG19,'Trial 2'!EG19,'Trial 3'!EG19,'Trial 4'!EG19,'Trial 5'!EG19,'Trial 6'!EG19,'Trial 7'!EG19,'Trial 8'!EG19) -> $33,384,419 | EH25: =AVERAGE('Trial 1'!EH19,'Trial 2'!EH19,'Trial 3'!EH19,'Trial 4'!EH19,'Trial 5'!EH19,'Trial 6'!EH19,'Trial 7'!EH19,'Trial 8'!EH19) -> $33,370,922 | EI25: =AVERAGE('Trial 1'!EI19,'Trial 2'!EI19,'Trial 3'!EI19,'Trial 4'!EI19,'Trial 5'!EI19,'Trial 6'!EI19,'Trial 7'!EI19,'Trial 8'!EI19) -> $33,357,397 | EJ25: =AVERAGE('Trial 1'!EJ19,'Trial 2'!EJ19,'Trial 3'!EJ19,'Trial 4'!EJ19,'Trial 5'!EJ19,'Trial 6'!EJ19,'Trial 7'!EJ19,'Trial 8'!EJ19) -> $33,343,852 | EK25: =AVERAGE('Trial 1'!EK19,'Trial 2'!EK19,'Trial 3'!EK19,'Trial 4'!EK19,'Trial 5'!EK19,'Trial 6'!EK19,'Trial 7'!EK19,'Trial 8'!EK19) -> $33,330,253 | EL25: =AVERAGE('Trial 1'!EL19,'Trial 2'!EL19,'Trial 3'!EL19,'Trial 4'!EL19,'Trial 5'!EL19,'Trial 6'!EL19,'Trial 7'!EL19,'Trial 8'!EL19) -> $33,316,637 | EM25: =AVERAGE('Trial 1'!EM19,'Trial 2'!EM19,'Trial 3'!EM19,'Trial 4'!EM19,'Trial 5'!EM19,'Trial 6'!EM19,'Trial 7'!EM19,'Trial 8'!EM19) -> $33,303,026 | EN25: =EM25 -> $33,303,026
A26: =Labels!B23 -> Capital std dev | B26: =STDEV('Trial 1'!B19,'Trial 2'!B19,'Trial 3'!B19,'Trial 4'!B19,'Trial 5'!B19,'Trial 6'!B19,'Trial 7'!B19,'Trial 8'!B19) -> $0 | C26: =STDEV('Trial 1'!C19,'Trial 2'!C19,'Trial 3'!C19,'Trial 4'!C19,'Trial 5'!C19,'Trial 6'!C19,'Trial 7'!C19,'Trial 8'!C19) -> $0 | D26: =STDEV('Trial 1'!D19,'Trial 2'!D19,'Trial 3'!D19,'Trial 4'!D19,'Trial 5'!D19,'Trial 6'!D19,'Trial 7'!D19,'Trial 8'!D19) -> $39 | E26: =STDEV('Trial 1'!E19,'Trial 2'!E19,'Trial 3'!E19,'Trial 4'!E19,'Trial 5'!E19,'Trial 6'!E19,'Trial 7'!E19,'Trial 8'!E19) -> $71 | F26: =STDEV('Trial 1'!F19,'Trial 2'!F19,'Trial 3'!F19,'Trial 4'!F19,'Trial 5'!F19,'Trial 6'!F19,'Trial 7'!F19,'Trial 8'!F19) -> $133 | G26: =STDEV('Trial 1'!G19,'Trial 2'!G19,'Trial 3'!G19,'Trial 4'!G19,'Trial 5'!G19,'Trial 6'!G19,'Trial 7'!G19,'Trial 8'!G19) -> $196 | H26: =STDEV('Trial 1'!H19,'Trial 2'!H19,'Trial 3'!H19,'Trial 4'!H19,'Trial 5'!H19,'Trial 6'!H19,'Trial 7'!H19,'Trial 8'!H19) -> $285 | I26: =STDEV('Trial 1'!I19,'Trial 2'!I19,'Trial 3'!I19,'Trial 4'!I19,'Trial 5'!I19,'Trial 6'!I19,'Trial 7'!I19,'Trial 8'!I19) -> $387 | J26: =STDEV('Trial 1'!J19,'Trial 2'!J19,'Trial 3'!J19,'Trial 4'!J19,'Trial 5'!J19,'Trial 6'!J19,'Trial 7'!J19,'Trial 8'!J19) -> $502 | K26: =STDEV('Trial 1'!K19,'Trial 2'!K19,'Trial 3'!K19,'Trial 4'!K19,'Trial 5'!K19,'Trial 6'!K19,'Trial 7'!K19,'Trial 8'!K19) -> $615 | L26: =STDEV('Trial 1'!L19,'Trial 2'!L19,'Trial 3'!L19,'Trial 4'!L19,'Trial 5'!L19,'Trial 6'!L19,'Trial 7'!L19,'Trial 8'!L19) -> $712 | M26: =STDEV('Trial 1'!M19,'Trial 2'!M19,'Trial 3'!M19,'Trial 4'!M19,'Trial 5'!M19,'Trial 6'!M19,'Trial 7'!M19,'Trial 8'!M19) -> $837 | N26: =M26 -> $837 | O26: =STDEV('Trial 1'!O19,'Trial 2'!O19,'Trial 3'!O19,'Trial 4'!O19,'Trial 5'!O19,'Trial 6'!O19,'Trial 7'!O19,'Trial 8'!O19) -> $990 | P26: =STDEV('Trial 1'!P19,'Trial 2'!P19,'Trial 3'!P19,'Trial 4'!P19,'Trial 5'!P19,'Trial 6'!P19,'Trial 7'!P19,'Trial 8'!P19) -> $1,157 | Q26: =STDEV('Trial 1'!Q19,'Trial 2'!Q19,'Trial 3'!Q19,'Trial 4'!Q19,'Trial 5'!Q19,'Trial 6'!Q19,'Trial 7'!Q19,'Trial 8'!Q19) -> $1,326 | R26: =STDEV('Trial 1'!R19,'Trial 2'!R19,'Trial 3'!R19,'Trial 4'!R19,'Trial 5'!R19,'Trial 6'!R19,'Trial 7'!R19,'Trial 8'!R19) -> $1,500 | S26: =STDEV('Trial 1'!S19,'Trial 2'!S19,'Trial 3'!S19,'Trial 4'!S19,'Trial 5'!S19,'Trial 6'!S19,'Trial 7'!S19,'Trial 8'!S19) -> $1,651 | T26: =STDEV('Trial 1'!T19,'Trial 2'!T19,'Trial 3'!T19,'Trial 4'!T19,'Trial 5'!T19,'Trial 6'!T19,'Trial 7'!T19,'Trial 8'!T19) -> $1,817 | U26: =STDEV('Trial 1'!U19,'Trial 2'!U19,'Trial 3'!U19,'Trial 4'!U19,'Trial 5'!U19,'Trial 6'!U19,'Trial 7'!U19,'Trial 8'!U19) -> $1,988 | V26: =STDEV('Trial 1'!V19,'Trial 2'!V19,'Trial 3'!V19,'Trial 4'!V19,'Trial 5'!V19,'Trial 6'!V19,'Trial 7'!V19,'Trial 8'!V19) -> $2,128 | W26: =STDEV('Trial 1'!W19,'Trial 2'!W19,'Trial 3'!W19,'Trial 4'!W19,'Trial 5'!W19,'Trial 6'!W19,'Trial 7'!W19,'Trial 8'!W19) -> $2,252 | X26: =STDEV('Trial 1'!X19,'Trial 2'!X19,'Trial 3'!X19,'Trial 4'!X19,'Trial 5'!X19,'Trial 6'!X19,'Trial 7'!X19,'Trial 8'!X19) -> $2,375 | Y26: =STDEV('Trial 1'!Y19,'Trial 2'!Y19,'Trial 3'!Y19,'Trial 4'!Y19,'Trial 5'!Y19,'Trial 6'!Y19,'Trial 7'!Y19,'Trial 8'!Y19) -> $2,491 | Z26: =STDEV('Trial 1'!Z19,'Trial 2'!Z19,'Trial 3'!Z19,'Trial 4'!Z19,'Trial 5'!Z19,'Trial 6'!Z19,'Trial 7'!Z19,'Trial 8'!Z19) -> $2,645 | AA26: =Z26 -> $2,645 | AB26: =STDEV('Trial 1'!AB19,'Trial 2'!AB19,'Trial 3'!AB19,'Trial 4'!AB19,'Trial 5'!AB19,'Trial 6'!AB19,'Trial 7'!AB19,'Trial 8'!AB19) -> $2,821 | AC26: =STDEV('Trial 1'!AC19,'Trial 2'!AC19,'Trial 3'!AC19,'Trial 4'!AC19,'Trial 5'!AC19,'Trial 6'!AC19,'Trial 7'!AC19,'Trial 8'!AC19) -> $2,981 | AD26: =STDEV('Trial 1'!AD19,'Trial 2'!AD19,'Trial 3'!AD19,'Trial 4'!AD19,'Trial 5'!AD19,'Trial 6'!AD19,'Trial 7'!AD19,'Trial 8'!AD19) -> $3,119 | AE26: =STDEV('Trial 1'!AE19,'Trial 2'!AE19,'Trial 3'!AE19,'Trial 4'!AE19,'Trial 5'!AE19,'Trial 6'!AE19,'Trial 7'!AE19,'Trial 8'!AE19) -> $3,270 | AF26: =STDEV('Trial 1'!AF19,'Trial 2'!AF19,'Trial 3'!AF19,'Trial 4'!AF19,'Trial 5'!AF19,'Trial 6'!AF19,'Trial 7'!AF19,'Trial 8'!AF19) -> $3,420 | AG26: =STDEV('Trial 1'!AG19,'Trial 2'!AG19,'Trial 3'!AG19,'Trial 4'!AG19,'Trial 5'!AG19,'Trial 6'!AG19,'Trial 7'!AG19,'Trial 8'!AG19) -> $3,602 | AH26: =STDEV('Trial 1'!AH19,'Trial 2'!AH19,'Trial 3'!AH19,'Trial 4'!AH19,'Trial 5'!AH19,'Trial 6'!AH19,'Trial 7'!AH19,'Trial 8'!AH19) -> $3,807 | AI26: =STDEV('Trial 1'!AI19,'Trial 2'!AI19,'Trial 3'!AI19,'Trial 4'!AI19,'Trial 5'!AI19,'Trial 6'!AI19,'Trial 7'!AI19,'Trial 8'!AI19) -> $4,013 | AJ26: =STDEV('Trial 1'!AJ19,'Trial 2'!AJ19,'Trial 3'!AJ19,'Trial 4'!AJ19,'Trial 5'!AJ19,'Trial 6'!AJ19,'Trial 7'!AJ19,'Trial 8'!AJ19) -> $4,226 | AK26: =STDEV('Trial 1'!AK19,'Trial 2'!AK19,'Trial 3'!AK19,'Trial 4'!AK19,'Trial 5'!AK19,'Trial 6'!AK19,'Trial 7'!AK19,'Trial 8'!AK19) -> $4,433 | AL26: =STDEV('Trial 1'!AL19,'Trial 2'!AL19,'Trial 3'!AL19,'Trial 4'!AL19,'Trial 5'!AL19,'Trial 6'!AL19,'Trial 7'!AL19,'Trial 8'!AL19) -> $4,636 | AM26: =STDEV('Trial 1'!AM19,'Trial 2'!AM19,'Trial 3'!AM19,'Trial 4'!AM19,'Trial 5'!AM19,'Trial 6'!AM19,'Trial 7'!AM19,'Trial 8'!AM19) -> $4,832 | AN26: =AM26 -> $4,832 | AO26: =STDEV('Trial 1'!AO19,'Trial 2'!AO19,'Trial 3'!AO19,'Trial 4'!AO19,'Trial 5'!AO19,'Trial 6'!AO19,'Trial 7'!AO19,'Trial 8'!AO19) -> $5,032 | AP26: =STDEV('Trial 1'!AP19,'Trial 2'!AP19,'Trial 3'!AP19,'Trial 4'!AP19,'Trial 5'!AP19,'Trial 6'!AP19,'Trial 7'!AP19,'Trial 8'!AP19) -> $5,258 | AQ26: =STDEV('Trial 1'!AQ19,'Trial 2'!AQ19,'Trial 3'!AQ19,'Trial 4'!AQ19,'Trial 5'!AQ19,'Trial 6'!AQ19,'Trial 7'!AQ19,'Trial 8'!AQ19) -> $5,460 | AR26: =STDEV('Trial 1'!AR19,'Trial 2'!AR19,'Trial 3'!AR19,'Trial 4'!AR19,'Trial 5'!AR19,'Trial 6'!AR19,'Trial 7'!AR19,'Trial 8'!AR19) -> $5,657 | AS26: =STDEV('Trial 1'!AS19,'Trial 2'!AS19,'Trial 3'!AS19,'Trial 4'!AS19,'Trial 5'!AS19,'Trial 6'!AS19,'Trial 7'!AS19,'Trial 8'!AS19) -> $5,862 | AT26: =STDEV('Trial 1'!AT19,'Trial 2'!AT19,'Trial 3'!AT19,'Trial 4'!AT19,'Trial 5'!AT19,'Trial 6'!AT19,'Trial 7'!AT19,'Trial 8'!AT19) -> $6,091 | AU26: =STDEV('Trial 1'!AU19,'Trial 2'!AU19,'Trial 3'!AU19,'Trial 4'!AU19,'Trial 5'!AU19,'Trial 6'!AU19,'Trial 7'!AU19,'Trial 8'!AU19) -> $6,321 | AV26: =STDEV('Trial 1'!AV19,'Trial 2'!AV19,'Trial 3'!AV19,'Trial 4'!AV19,'Trial 5'!AV19,'Trial 6'!AV19,'Trial 7'!AV19,'Trial 8'!AV19) -> $6,529 | AW26: =STDEV('Trial 1'!AW19,'Trial 2'!AW19,'Trial 3'!AW19,'Trial 4'!AW19,'Trial 5'!AW19,'Trial 6'!AW19,'Trial 7'!AW19,'Trial 8'!AW19) -> $6,706 | AX26: =STDEV('Trial 1'!AX19,'Trial 2'!AX19,'Trial 3'!AX19,'Trial 4'!AX19,'Trial 5'!AX19,'Trial 6'!AX19,'Trial 7'!AX19,'Trial 8'!AX19) -> $6,874 | AY26: =STDEV('Trial 1'!AY19,'Trial 2'!AY19,'Trial 3'!AY19,'Trial 4'!AY19,'Trial 5'!AY19,'Trial 6'!AY19,'Trial 7'!AY19,'Trial 8'!AY19) -> $7,028 | AZ26: =STDEV('Trial 1'!AZ19,'Trial 2'!AZ19,'Trial 3'!AZ19,'Trial 4'!AZ19,'Trial 5'!AZ19,'Trial 6'!AZ19,'Trial 7'!AZ19,'Trial 8'!AZ19) -> $7,166 | BA26: =AZ26 -> $7,166 | BB26: =STDEV('Trial 1'!BB19,'Trial 2'!BB19,'Trial 3'!BB19,'Trial 4'!BB19,'Trial 5'!BB19,'Trial 6'!BB19,'Trial 7'!BB19,'Trial 8'!BB19) -> $7,306 | BC26: =STDEV('Trial 1'!BC19,'Trial 2'!BC19,'Trial 3'!BC19,'Trial 4'!BC19,'Trial 5'!BC19,'Trial 6'!BC19,'Trial 7'!BC19,'Trial 8'!BC19) -> $7,461 | BD26: =STDEV('Trial 1'!BD19,'Trial 2'!BD19,'Trial 3'!BD19,'Trial 4'!BD19,'Trial 5'!BD19,'Trial 6'!BD19,'Trial 7'!BD19,'Trial 8'!BD19) -> $7,575 | BE26: =STDEV('Trial 1'!BE19,'Trial 2'!BE19,'Trial 3'!BE19,'Trial 4'!BE19,'Trial 5'!BE19,'Trial 6'!BE19,'Trial 7'!BE19,'Trial 8'!BE19) -> $7,671 | BF26: =STDEV('Trial 1'!BF19,'Trial 2'!BF19,'Trial 3'!BF19,'Trial 4'!BF19,'Trial 5'!BF19,'Trial 6'!BF19,'Trial 7'!BF19,'Trial 8'!BF19) -> $7,784 | BG26: =STDEV('Trial 1'!BG19,'Trial 2'!BG19,'Trial 3'!BG19,'Trial 4'!BG19,'Trial 5'!BG19,'Trial 6'!BG19,'Trial 7'!BG19,'Trial 8'!BG19) -> $7,896 | BH26: =STDEV('Trial 1'!BH19,'Trial 2'!BH19,'Trial 3'!BH19,'Trial 4'!BH19,'Trial 5'!BH19,'Trial 6'!BH19,'Trial 7'!BH19,'Trial 8'!BH19) -> $8,028 | BI26: =STDEV('Trial 1'!BI19,'Trial 2'!BI19,'Trial 3'!BI19,'Trial 4'!BI19,'Trial 5'!BI19,'Trial 6'!BI19,'Trial 7'!BI19,'Trial 8'!BI19) -> $8,181 | BJ26: =STDEV('Trial 1'!BJ19,'Trial 2'!BJ19,'Trial 3'!BJ19,'Trial 4'!BJ19,'Trial 5'!BJ19,'Trial 6'!BJ19,'Trial 7'!BJ19,'Trial 8'!BJ19) -> $8,365 | BK26: =STDEV('Trial 1'!BK19,'Trial 2'!BK19,'Trial 3'!BK19,'Trial 4'!BK19,'Trial 5'!BK19,'Trial 6'!BK19,'Trial 7'!BK19,'Trial 8'!BK19) -> $8,535 | BL26: =STDEV('Trial 1'!BL19,'Trial 2'!BL19,'Trial 3'!BL19,'Trial 4'!BL19,'Trial 5'!BL19,'Trial 6'!BL19,'Trial 7'!BL19,'Trial 8'!BL19) -> $8,716 | BM26: =STDEV('Trial 1'!BM19,'Trial 2'!BM19,'Trial 3'!BM19,'Trial 4'!BM19,'Trial 5'!BM19,'Trial 6'!BM19,'Trial 7'!BM19,'Trial 8'!BM19) -> $8,865 | BN26: =BM26 -> $8,865 | BO26: =STDEV('Trial 1'!BO19,'Trial 2'!BO19,'Trial 3'!BO19,'Trial 4'!BO19,'Trial 5'!BO19,'Trial 6'!BO19,'Trial 7'!BO19,'Trial 8'!BO19) -> $8,974 | BP26: =STDEV('Trial 1'!BP19,'Trial 2'!BP19,'Trial 3'!BP19,'Trial 4'!BP19,'Trial 5'!BP19,'Trial 6'!BP19,'Trial 7'!BP19,'Trial 8'!BP19) -> $9,076 | BQ26: =STDEV('Trial 1'!BQ19,'Trial 2'!BQ19,'Trial 3'!BQ19,'Trial 4'!BQ19,'Trial 5'!BQ19,'Trial 6'!BQ19,'Trial 7'!BQ19,'Trial 8'!BQ19) -> $9,142 | BR26: =STDEV('Trial 1'!BR19,'Trial 2'!BR19,'Trial 3'!BR19,'Trial 4'!BR19,'Trial 5'!BR19,'Trial 6'!BR19,'Trial 7'!BR19,'Trial 8'!BR19) -> $9,161 | BS26: =STDEV('Trial 1'!BS19,'Trial 2'!BS19,'Trial 3'!BS19,'Trial 4'!BS19,'Trial 5'!BS19,'Trial 6'!BS19,'Trial 7'!BS19,'Trial 8'!BS19) -> $9,200 | BT26: =STDEV('Trial 1'!BT19,'Trial 2'!BT19,'Trial 3'!BT19,'Trial 4'!BT19,'Trial 5'!BT19,'Trial 6'!BT19,'Trial 7'!BT19,'Trial 8'!BT19) -> $9,260 | BU26: =STDEV('Trial 1'!BU19,'Trial 2'!BU19,'Trial 3'!BU19,'Trial 4'!BU19,'Trial 5'!BU19,'Trial 6'!BU19,'Trial 7'!BU19,'Trial 8'!BU19) -> $9,333 | BV26: =STDEV('Trial 1'!BV19,'Trial 2'!BV19,'Trial 3'!BV19,'Trial 4'!BV19,'Trial 5'!BV19,'Trial 6'!BV19,'Trial 7'!BV19,'Trial 8'!BV19) -> $9,404 | BW26: =STDEV('Trial 1'!BW19,'Trial 2'!BW19,'Trial 3'!BW19,'Trial 4'!BW19,'Trial 5'!BW19,'Trial 6'!BW19,'Trial 7'!BW19,'Trial 8'!BW19) -> $9,506 | BX26: =STDEV('Trial 1'!BX19,'Trial 2'!BX19,'Trial 3'!BX19,'Trial 4'!BX19,'Trial 5'!BX19,'Trial 6'!BX19,'Trial 7'!BX19,'Trial 8'!BX19) -> $9,630 | BY26: =STDEV('Trial 1'!BY19,'Trial 2'!BY19,'Trial 3'!BY19,'Trial 4'!BY19,'Trial 5'!BY19,'Trial 6'!BY19,'Trial 7'!BY19,'Trial 8'!BY19) -> $9,797 | BZ26: =STDEV('Trial 1'!BZ19,'Trial 2'!BZ19,'Trial 3'!BZ19,'Trial 4'!BZ19,'Trial 5'!BZ19,'Trial 6'!BZ19,'Trial 7'!BZ19,'Trial 8'!BZ19) -> $9,944 | CA26: =BZ26 -> $9,944 | CB26: =STDEV('Trial 1'!CB19,'Trial 2'!CB19,'Trial 3'!CB19,'Trial 4'!CB19,'Trial 5'!CB19,'Trial 6'!CB19,'Trial 7'!CB19,'Trial 8'!CB19) -> $10,059 | CC26: =STDEV('Trial 1'!CC19,'Trial 2'!CC19,'Trial 3'!CC19,'Trial 4'!CC19,'Trial 5'!CC19,'Trial 6'!CC19,'Trial 7'!CC19,'Trial 8'!CC19) -> $10,152 | CD26: =STDEV('Trial 1'!CD19,'Trial 2'!CD19,'Trial 3'!CD19,'Trial 4'!CD19,'Trial 5'!CD19,'Trial 6'!CD19,'Trial 7'!CD19,'Trial 8'!CD19) -> $10,250 | CE26: =STDEV('Trial 1'!CE19,'Trial 2'!CE19,'Trial 3'!CE19,'Trial 4'!CE19,'Trial 5'!CE19,'Trial 6'!CE19,'Trial 7'!CE19,'Trial 8'!CE19) -> $10,347 | CF26: =STDEV('Trial 1'!CF19,'Trial 2'!CF19,'Trial 3'!CF19,'Trial 4'!CF19,'Trial 5'!CF19,'Trial 6'!CF19,'Trial 7'!CF19,'Trial 8'!CF19) -> $10,471 | CG26: =STDEV('Trial 1'!CG19,'Trial 2'!CG19,'Trial 3'!CG19,'Trial 4'!CG19,'Trial 5'!CG19,'Trial 6'!CG19,'Trial 7'!CG19,'Trial 8'!CG19) -> $10,579 | CH26: =STDEV('Trial 1'!CH19,'Trial 2'!CH19,'Trial 3'!CH19,'Trial 4'!CH19,'Trial 5'!CH19,'Trial 6'!CH19,'Trial 7'!CH19,'Trial 8'!CH19) -> $10,675 | CI26: =STDEV('Trial 1'!CI19,'Trial 2'!CI19,'Trial 3'!CI19,'Trial 4'!CI19,'Trial 5'!CI19,'Trial 6'!CI19,'Trial 7'!CI19,'Trial 8'!CI19) -> $10,788 | CJ26: =STDEV('Trial 1'!CJ19,'Trial 2'!CJ19,'Trial 3'!CJ19,'Trial 4'!CJ19,'Trial 5'!CJ19,'Trial 6'!CJ19,'Trial 7'!CJ19,'Trial 8'!CJ19) -> $10,865 | CK26: =STDEV('Trial 1'!CK19,'Trial 2'!CK19,'Trial 3'!CK19,'Trial 4'!CK19,'Trial 5'!CK19,'Trial 6'!CK19,'Trial 7'!CK19,'Trial 8'!CK19) -> $10,918 | CL26: =STDEV('Trial 1'!CL19,'Trial 2'!CL19,'Trial 3'!CL19,'Trial 4'!CL19,'Trial 5'!CL19,'Trial 6'!CL19,'Trial 7'!CL19,'Trial 8'!CL19) -> $10,999 | CM26: =STDEV('Trial 1'!CM19,'Trial 2'!CM19,'Trial 3'!CM19,'Trial 4'!CM19,'Trial 5'!CM19,'Trial 6'!CM19,'Trial 7'!CM19,'Trial 8'!CM19) -> $11,070 | CN26: =CM26 -> $11,070 | CO26: =STDEV('Trial 1'!CO19,'Trial 2'!CO19,'Trial 3'!CO19,'Trial 4'!CO19,'Trial 5'!CO19,'Trial 6'!CO19,'Trial 7'!CO19,'Trial 8'!CO19) -> $11,138 | CP26: =STDEV('Trial 1'!CP19,'Trial 2'!CP19,'Trial 3'!CP19,'Trial 4'!CP19,'Trial 5'!CP19,'Trial 6'!CP19,'Trial 7'!CP19,'Trial 8'!CP19) -> $11,225 | CQ26: =STDEV('Trial 1'!CQ19,'Trial 2'!CQ19,'Trial 3'!CQ19,'Trial 4'!CQ19,'Trial 5'!CQ19,'Trial 6'!CQ19,'Trial 7'!CQ19,'Trial 8'!CQ19) -> $11,338 | CR26: =STDEV('Trial 1'!CR19,'Trial 2'!CR19,'Trial 3'!CR19,'Trial 4'!CR19,'Trial 5'!CR19,'Trial 6'!CR19,'Trial 7'!CR19,'Trial 8'!CR19) -> $11,457 | CS26: =STDEV('Trial 1'!CS19,'Trial 2'!CS19,'Trial 3'!CS19,'Trial 4'!CS19,'Trial 5'!CS19,'Trial 6'!CS19,'Trial 7'!CS19,'Trial 8'!CS19) -> $11,567 | CT26: =STDEV('Trial 1'!CT19,'Trial 2'!CT19,'Trial 3'!CT19,'Trial 4'!CT19,'Trial 5'!CT19,'Trial 6'!CT19,'Trial 7'!CT19,'Trial 8'!CT19) -> $11,689 | CU26: =STDEV('Trial 1'!CU19,'Trial 2'!CU19,'Trial 3'!CU19,'Trial 4'!CU19,'Trial 5'!CU19,'Trial 6'!CU19,'Trial 7'!CU19,'Trial 8'!CU19) -> $11,790 | CV26: =STDEV('Trial 1'!CV19,'Trial 2'!CV19,'Trial 3'!CV19,'Trial 4'!CV19,'Trial 5'!CV19,'Trial 6'!CV19,'Trial 7'!CV19,'Trial 8'!CV19) -> $11,902 | CW26: =STDEV('Trial 1'!CW19,'Trial 2'!CW19,'Trial 3'!CW19,'Trial 4'!CW19,'Trial 5'!CW19,'Trial 6'!CW19,'Trial 7'!CW19,'Trial 8'!CW19) -> $12,012 | CX26: =STDEV('Trial 1'!CX19,'Trial 2'!CX19,'Trial 3'!CX19,'Trial 4'!CX19,'Trial 5'!CX19,'Trial 6'!CX19,'Trial 7'!CX19,'Trial 8'!CX19) -> $12,111 | CY26: =STDEV('Trial 1'!CY19,'Trial 2'!CY19,'Trial 3'!CY19,'Trial 4'!CY19,'Trial 5'!CY19,'Trial 6'!CY19,'Trial 7'!CY19,'Trial 8'!CY19) -> $12,194 | CZ26: =STDEV('Trial 1'!CZ19,'Trial 2'!CZ19,'Trial 3'!CZ19,'Trial 4'!CZ19,'Trial 5'!CZ19,'Trial 6'!CZ19,'Trial 7'!CZ19,'Trial 8'!CZ19) -> $12,303 | DA26: =CZ26 -> $12,303 | DB26: =STDEV('Trial 1'!DB19,'Trial 2'!DB19,'Trial 3'!DB19,'Trial 4'!DB19,'Trial 5'!DB19,'Trial 6'!DB19,'Trial 7'!DB19,'Trial 8'!DB19) -> $12,422 | DC26: =STDEV('Trial 1'!DC19,'Trial 2'!DC19,'Trial 3'!DC19,'Trial 4'!DC19,'Trial 5'!DC19,'Trial 6'!DC19,'Trial 7'!DC19,'Trial 8'!DC19) -> $12,518 | DD26: =STDEV('Trial 1'!DD19,'Trial 2'!DD19,'Trial 3'!DD19,'Trial 4'!DD19,'Trial 5'!DD19,'Trial 6'!DD19,'Trial 7'!DD19,'Trial 8'!DD19) -> $12,672 | DE26: =STDEV('Trial 1'!DE19,'Trial 2'!DE19,'Trial 3'!DE19,'Trial 4'!DE19,'Trial 5'!DE19,'Trial 6'!DE19,'Trial 7'!DE19,'Trial 8'!DE19) -> $12,840 | DF26: =STDEV('Trial 1'!DF19,'Trial 2'!DF19,'Trial 3'!DF19,'Trial 4'!DF19,'Trial 5'!DF19,'Trial 6'!DF19,'Trial 7'!DF19,'Trial 8'!DF19) -> $12,982 | DG26: =STDEV('Trial 1'!DG19,'Trial 2'!DG19,'Trial 3'!DG19,'Trial 4'!DG19,'Trial 5'!DG19,'Trial 6'!DG19,'Trial 7'!DG19,'Trial 8'!DG19) -> $13,110 | DH26: =STDEV('Trial 1'!DH19,'Trial 2'!DH19,'Trial 3'!DH19,'Trial 4'!DH19,'Trial 5'!DH19,'Trial 6'!DH19,'Trial 7'!DH19,'Trial 8'!DH19) -> $13,222 | DI26: =STDEV('Trial 1'!DI19,'Trial 2'!DI19,'Trial 3'!DI19,'Trial 4'!DI19,'Trial 5'!DI19,'Trial 6'!DI19,'Trial 7'!DI19,'Trial 8'!DI19) -> $13,303 | DJ26: =STDEV('Trial 1'!DJ19,'Trial 2'!DJ19,'Trial 3'!DJ19,'Trial 4'!DJ19,'Trial 5'!DJ19,'Trial 6'!DJ19,'Trial 7'!DJ19,'Trial 8'!DJ19) -> $13,368 | DK26: =STDEV('Trial 1'!DK19,'Trial 2'!DK19,'Trial 3'!DK19,'Trial 4'!DK19,'Trial 5'!DK19,'Trial 6'!DK19,'Trial 7'!DK19,'Trial 8'!DK19) -> $13,396 | DL26: =STDEV('Trial 1'!DL19,'Trial 2'!DL19,'Trial 3'!DL19,'Trial 4'!DL19,'Trial 5'!DL19,'Trial 6'!DL19,'Trial 7'!DL19,'Trial 8'!DL19) -> $13,441 | DM26: =STDEV('Trial 1'!DM19,'Trial 2'!DM19,'Trial 3'!DM19,'Trial 4'!DM19,'Trial 5'!DM19,'Trial 6'!DM19,'Trial 7'!DM19,'Trial 8'!DM19) -> $13,469 | DN26: =DM26 -> $13,469 | DO26: =STDEV('Trial 1'!DO19,'Trial 2'!DO19,'Trial 3'!DO19,'Trial 4'!DO19,'Trial 5'!DO19,'Trial 6'!DO19,'Trial 7'!DO19,'Trial 8'!DO19) -> $13,514 | DP26: =STDEV('Trial 1'!DP19,'Trial 2'!DP19,'Trial 3'!DP19,'Trial 4'!DP19,'Trial 5'!DP19,'Trial 6'!DP19,'Trial 7'!DP19,'Trial 8'!DP19) -> $13,561 | DQ26: =STDEV('Trial 1'!DQ19,'Trial 2'!DQ19,'Trial 3'!DQ19,'Trial 4'!DQ19,'Trial 5'!DQ19,'Trial 6'!DQ19,'Trial 7'!DQ19,'Trial 8'!DQ19) -> $13,569 | DR26: =STDEV('Trial 1'!DR19,'Trial 2'!DR19,'Trial 3'!DR19,'Trial 4'!DR19,'Trial 5'!DR19,'Trial 6'!DR19,'Trial 7'!DR19,'Trial 8'!DR19) -> $13,538 | DS26: =STDEV('Trial 1'!DS19,'Trial 2'!DS19,'Trial 3'!DS19,'Trial 4'!DS19,'Trial 5'!DS19,'Trial 6'!DS19,'Trial 7'!DS19,'Trial 8'!DS19) -> $13,517 | DT26: =STDEV('Trial 1'!DT19,'Trial 2'!DT19,'Trial 3'!DT19,'Trial 4'!DT19,'Trial 5'!DT19,'Trial 6'!DT19,'Trial 7'!DT19,'Trial 8'!DT19) -> $13,514 | DU26: =STDEV('Trial 1'!DU19,'Trial 2'!DU19,'Trial 3'!DU19,'Trial 4'!DU19,'Trial 5'!DU19,'Trial 6'!DU19,'Trial 7'!DU19,'Trial 8'!DU19) -> $13,499 | DV26: =STDEV('Trial 1'!DV19,'Trial 2'!DV19,'Trial 3'!DV19,'Trial 4'!DV19,'Trial 5'!DV19,'Trial 6'!DV19,'Trial 7'!DV19,'Trial 8'!DV19) -> $13,490 | DW26: =STDEV('Trial 1'!DW19,'Trial 2'!DW19,'Trial 3'!DW19,'Trial 4'!DW19,'Trial 5'!DW19,'Trial 6'!DW19,'Trial 7'!DW19,'Trial 8'!DW19) -> $13,513 | DX26: =STDEV('Trial 1'!DX19,'Trial 2'!DX19,'Trial 3'!DX19,'Trial 4'!DX19,'Trial 5'!DX19,'Trial 6'!DX19,'Trial 7'!DX19,'Trial 8'!DX19) -> $13,545 | DY26: =STDEV('Trial 1'!DY19,'Trial 2'!DY19,'Trial 3'!DY19,'Trial 4'!DY19,'Trial 5'!DY19,'Trial 6'!DY19,'Trial 7'!DY19,'Trial 8'!DY19) -> $13,611 | DZ26: =STDEV('Trial 1'!DZ19,'Trial 2'!DZ19,'Trial 3'!DZ19,'Trial 4'!DZ19,'Trial 5'!DZ19,'Trial 6'!DZ19,'Trial 7'!DZ19,'Trial 8'!DZ19) -> $13,641 | EA26: =DZ26 -> $13,641 | EB26: =STDEV('Trial 1'!EB19,'Trial 2'!EB19,'Trial 3'!EB19,'Trial 4'!EB19,'Trial 5'!EB19,'Trial 6'!EB19,'Trial 7'!EB19,'Trial 8'!EB19) -> $13,671 | EC26: =STDEV('Trial 1'!EC19,'Trial 2'!EC19,'Trial 3'!EC19,'Trial 4'!EC19,'Trial 5'!EC19,'Trial 6'!EC19,'Trial 7'!EC19,'Trial 8'!EC19) -> $13,704 | ED26: =STDEV('Trial 1'!ED19,'Trial 2'!ED19,'Trial 3'!ED19,'Trial 4'!ED19,'Trial 5'!ED19,'Trial 6'!ED19,'Trial 7'!ED19,'Trial 8'!ED19) -> $13,722 | EE26: =STDEV('Trial 1'!EE19,'Trial 2'!EE19,'Trial 3'!EE19,'Trial 4'!EE19,'Trial 5'!EE19,'Trial 6'!EE19,'Trial 7'!EE19,'Trial 8'!EE19) -> $13,732 | EF26: =STDEV('Trial 1'!EF19,'Trial 2'!EF19,'Trial 3'!EF19,'Trial 4'!EF19,'Trial 5'!EF19,'Trial 6'!EF19,'Trial 7'!EF19,'Trial 8'!EF19) -> $13,767 | EG26: =STDEV('Trial 1'!EG19,'Trial 2'!EG19,'Trial 3'!EG19,'Trial 4'!EG19,'Trial 5'!EG19,'Trial 6'!EG19,'Trial 7'!EG19,'Trial 8'!EG19) -> $13,792 | EH26: =STDEV('Trial 1'!EH19,'Trial 2'!EH19,'Trial 3'!EH19,'Trial 4'!EH19,'Trial 5'!EH19,'Trial 6'!EH19,'Trial 7'!EH19,'Trial 8'!EH19) -> $13,781 | EI26: =STDEV('Trial 1'!EI19,'Trial 2'!EI19,'Trial 3'!EI19,'Trial 4'!EI19,'Trial 5'!EI19,'Trial 6'!EI19,'Trial 7'!EI19,'Trial 8'!EI19) -> $13,786 | EJ26: =STDEV('Trial 1'!EJ19,'Trial 2'!EJ19,'Trial 3'!EJ19,'Trial 4'!EJ19,'Trial 5'!EJ19,'Trial 6'!EJ19,'Trial 7'!EJ19,'Trial 8'!EJ19) -> $13,806 | EK26: =STDEV('Trial 1'!EK19,'Trial 2'!EK19,'Trial 3'!EK19,'Trial 4'!EK19,'Trial 5'!EK19,'Trial 6'!EK19,'Trial 7'!EK19,'Trial 8'!EK19) -> $13,854 | EL26: =STDEV('Trial 1'!EL19,'Trial 2'!EL19,'Trial 3'!EL19,'Trial 4'!EL19,'Trial 5'!EL19,'Trial 6'!EL19,'Trial 7'!EL19,'Trial 8'!EL19) -> $13,938 | EM26: =STDEV('Trial 1'!EM19,'Trial 2'!EM19,'Trial 3'!EM19,'Trial 4'!EM19,'Trial 5'!EM19,'Trial 6'!EM19,'Trial 7'!EM19,'Trial 8'!EM19) -> $13,995 | EN26: =EM26 -> $13,995
A27: =Labels!B20 -> Capital Investment | B27: =AVERAGE('Trial 1'!B21,'Trial 2'!B21,'Trial 3'!B21,'Trial 4'!B21,'Trial 5'!B21,'Trial 6'!B21,'Trial 7'!B21,'Trial 8'!B21) -> $206,222 | C27: =AVERAGE('Trial 1'!C21,'Trial 2'!C21,'Trial 3'!C21,'Trial 4'!C21,'Trial 5'!C21,'Trial 6'!C21,'Trial 7'!C21,'Trial 8'!C21) -> $205,783 | D27: =AVERAGE('Trial 1'!D21,'Trial 2'!D21,'Trial 3'!D21,'Trial 4'!D21,'Trial 5'!D21,'Trial 6'!D21,'Trial 7'!D21,'Trial 8'!D21) -> $205,384 | E27: =AVERAGE('Trial 1'!E21,'Trial 2'!E21,'Trial 3'!E21,'Trial 4'!E21,'Trial 5'!E21,'Trial 6'!E21,'Trial 7'!E21,'Trial 8'!E21) -> $205,031 | F27: =AVERAGE('Trial 1'!F21,'Trial 2'!F21,'Trial 3'!F21,'Trial 4'!F21,'Trial 5'!F21,'Trial 6'!F21,'Trial 7'!F21,'Trial 8'!F21) -> $204,701 | G27: =AVERAGE('Trial 1'!G21,'Trial 2'!G21,'Trial 3'!G21,'Trial 4'!G21,'Trial 5'!G21,'Trial 6'!G21,'Trial 7'!G21,'Trial 8'!G21) -> $204,396 | H27: =AVERAGE('Trial 1'!H21,'Trial 2'!H21,'Trial 3'!H21,'Trial 4'!H21,'Trial 5'!H21,'Trial 6'!H21,'Trial 7'!H21,'Trial 8'!H21) -> $204,073 | I27: =AVERAGE('Trial 1'!I21,'Trial 2'!I21,'Trial 3'!I21,'Trial 4'!I21,'Trial 5'!I21,'Trial 6'!I21,'Trial 7'!I21,'Trial 8'!I21) -> $203,721 | J27: =AVERAGE('Trial 1'!J21,'Trial 2'!J21,'Trial 3'!J21,'Trial 4'!J21,'Trial 5'!J21,'Trial 6'!J21,'Trial 7'!J21,'Trial 8'!J21) -> $203,394 | K27: =AVERAGE('Trial 1'!K21,'Trial 2'!K21,'Trial 3'!K21,'Trial 4'!K21,'Trial 5'!K21,'Trial 6'!K21,'Trial 7'!K21,'Trial 8'!K21) -> $203,076 | L27: =AVERAGE('Trial 1'!L21,'Trial 2'!L21,'Trial 3'!L21,'Trial 4'!L21,'Trial 5'!L21,'Trial 6'!L21,'Trial 7'!L21,'Trial 8'!L21) -> $202,765 | M27: =AVERAGE('Trial 1'!M21,'Trial 2'!M21,'Trial 3'!M21,'Trial 4'!M21,'Trial 5'!M21,'Trial 6'!M21,'Trial 7'!M21,'Trial 8'!M21) -> $202,457 | N27: =SUM(B27:M27) -> $2,451,002 | O27: =AVERAGE('Trial 1'!O21,'Trial 2'!O21,'Trial 3'!O21,'Trial 4'!O21,'Trial 5'!O21,'Trial 6'!O21,'Trial 7'!O21,'Trial 8'!O21) -> $202,143 | P27: =AVERAGE('Trial 1'!P21,'Trial 2'!P21,'Trial 3'!P21,'Trial 4'!P21,'Trial 5'!P21,'Trial 6'!P21,'Trial 7'!P21,'Trial 8'!P21) -> $201,858 | Q27: =AVERAGE('Trial 1'!Q21,'Trial 2'!Q21,'Trial 3'!Q21,'Trial 4'!Q21,'Trial 5'!Q21,'Trial 6'!Q21,'Trial 7'!Q21,'Trial 8'!Q21) -> $201,572 | R27: =AVERAGE('Trial 1'!R21,'Trial 2'!R21,'Trial 3'!R21,'Trial 4'!R21,'Trial 5'!R21,'Trial 6'!R21,'Trial 7'!R21,'Trial 8'!R21) -> $201,300 | S27: =AVERAGE('Trial 1'!S21,'Trial 2'!S21,'Trial 3'!S21,'Trial 4'!S21,'Trial 5'!S21,'Trial 6'!S21,'Trial 7'!S21,'Trial 8'!S21) -> $201,043 | T27: =AVERAGE('Trial 1'!T21,'Trial 2'!T21,'Trial 3'!T21,'Trial 4'!T21,'Trial 5'!T21,'Trial 6'!T21,'Trial 7'!T21,'Trial 8'!T21) -> $200,716 | U27: =AVERAGE('Trial 1'!U21,'Trial 2'!U21,'Trial 3'!U21,'Trial 4'!U21,'Trial 5'!U21,'Trial 6'!U21,'Trial 7'!U21,'Trial 8'!U21) -> $200,459 | V27: =AVERAGE('Trial 1'!V21,'Trial 2'!V21,'Trial 3'!V21,'Trial 4'!V21,'Trial 5'!V21,'Trial 6'!V21,'Trial 7'!V21,'Trial 8'!V21) -> $200,163 | W27: =AVERAGE('Trial 1'!W21,'Trial 2'!W21,'Trial 3'!W21,'Trial 4'!W21,'Trial 5'!W21,'Trial 6'!W21,'Trial 7'!W21,'Trial 8'!W21) -> $199,878 | X27: =AVERAGE('Trial 1'!X21,'Trial 2'!X21,'Trial 3'!X21,'Trial 4'!X21,'Trial 5'!X21,'Trial 6'!X21,'Trial 7'!X21,'Trial 8'!X21) -> $199,651 | Y27: =AVERAGE('Trial 1'!Y21,'Trial 2'!Y21,'Trial 3'!Y21,'Trial 4'!Y21,'Trial 5'!Y21,'Trial 6'!Y21,'Trial 7'!Y21,'Trial 8'!Y21) -> $199,386 | Z27: =AVERAGE('Trial 1'!Z21,'Trial 2'!Z21,'Trial 3'!Z21,'Trial 4'!Z21,'Trial 5'!Z21,'Trial 6'!Z21,'Trial 7'!Z21,'Trial 8'!Z21) -> $199,130 | AA27: =SUM(O27:Z27) -> $2,407,298 | AB27: =AVERAGE('Trial 1'!AB21,'Trial 2'!AB21,'Trial 3'!AB21,'Trial 4'!AB21,'Trial 5'!AB21,'Trial 6'!AB21,'Trial 7'!AB21,'Trial 8'!AB21) -> $198,837 | AC27: =AVERAGE('Trial 1'!AC21,'Trial 2'!AC21,'Trial 3'!AC21,'Trial 4'!AC21,'Trial 5'!AC21,'Trial 6'!AC21,'Trial 7'!AC21,'Trial 8'!AC21) -> $198,598 | AD27: =AVERAGE('Trial 1'!AD21,'Trial 2'!AD21,'Trial 3'!AD21,'Trial 4'!AD21,'Trial 5'!AD21,'Trial 6'!AD21,'Trial 7'!AD21,'Trial 8'!AD21) -> $198,382 | AE27: =AVERAGE('Trial 1'!AE21,'Trial 2'!AE21,'Trial 3'!AE21,'Trial 4'!AE21,'Trial 5'!AE21,'Trial 6'!AE21,'Trial 7'!AE21,'Trial 8'!AE21) -> $198,156 | AF27: =AVERAGE('Trial 1'!AF21,'Trial 2'!AF21,'Trial 3'!AF21,'Trial 4'!AF21,'Trial 5'!AF21,'Trial 6'!AF21,'Trial 7'!AF21,'Trial 8'!AF21) -> $197,927 | AG27: =AVERAGE('Trial 1'!AG21,'Trial 2'!AG21,'Trial 3'!AG21,'Trial 4'!AG21,'Trial 5'!AG21,'Trial 6'!AG21,'Trial 7'!AG21,'Trial 8'!AG21) -> $197,672 | AH27: =AVERAGE('Trial 1'!AH21,'Trial 2'!AH21,'Trial 3'!AH21,'Trial 4'!AH21,'Trial 5'!AH21,'Trial 6'!AH21,'Trial 7'!AH21,'Trial 8'!AH21) -> $197,465 | AI27: =AVERAGE('Trial 1'!AI21,'Trial 2'!AI21,'Trial 3'!AI21,'Trial 4'!AI21,'Trial 5'!AI21,'Trial 6'!AI21,'Trial 7'!AI21,'Trial 8'!AI21) -> $197,279 | AJ27: =AVERAGE('Trial 1'!AJ21,'Trial 2'!AJ21,'Trial 3'!AJ21,'Trial 4'!AJ21,'Trial 5'!AJ21,'Trial 6'!AJ21,'Trial 7'!AJ21,'Trial 8'!AJ21) -> $197,033 | AK27: =AVERAGE('Trial 1'!AK21,'Trial 2'!AK21,'Trial 3'!AK21,'Trial 4'!AK21,'Trial 5'!AK21,'Trial 6'!AK21,'Trial 7'!AK21,'Trial 8'!AK21) -> $196,830 | AL27: =AVERAGE('Trial 1'!AL21,'Trial 2'!AL21,'Trial 3'!AL21,'Trial 4'!AL21,'Trial 5'!AL21,'Trial 6'!AL21,'Trial 7'!AL21,'Trial 8'!AL21) -> $196,638 | AM27: =AVERAGE('Trial 1'!AM21,'Trial 2'!AM21,'Trial 3'!AM21,'Trial 4'!AM21,'Trial 5'!AM21,'Trial 6'!AM21,'Trial 7'!AM21,'Trial 8'!AM21) -> $196,457 | AN27: =SUM(AB27:AM27) -> $2,371,274 | AO27: =AVERAGE('Trial 1'!AO21,'Trial 2'!AO21,'Trial 3'!AO21,'Trial 4'!AO21,'Trial 5'!AO21,'Trial 6'!AO21,'Trial 7'!AO21,'Trial 8'!AO21) -> $196,238 | AP27: =AVERAGE('Trial 1'!AP21,'Trial 2'!AP21,'Trial 3'!AP21,'Trial 4'!AP21,'Trial 5'!AP21,'Trial 6'!AP21,'Trial 7'!AP21,'Trial 8'!AP21) -> $196,044 | AQ27: =AVERAGE('Trial 1'!AQ21,'Trial 2'!AQ21,'Trial 3'!AQ21,'Trial 4'!AQ21,'Trial 5'!AQ21,'Trial 6'!AQ21,'Trial 7'!AQ21,'Trial 8'!AQ21) -> $195,878 | AR27: =AVERAGE('Trial 1'!AR21,'Trial 2'!AR21,'Trial 3'!AR21,'Trial 4'!AR21,'Trial 5'!AR21,'Trial 6'!AR21,'Trial 7'!AR21,'Trial 8'!AR21) -> $195,670 | AS27: =AVERAGE('Trial 1'!AS21,'Trial 2'!AS21,'Trial 3'!AS21,'Trial 4'!AS21,'Trial 5'!AS21,'Trial 6'!AS21,'Trial 7'!AS21,'Trial 8'!AS21) -> $195,481 | AT27: =AVERAGE('Trial 1'!AT21,'Trial 2'!AT21,'Trial 3'!AT21,'Trial 4'!AT21,'Trial 5'!AT21,'Trial 6'!AT21,'Trial 7'!AT21,'Trial 8'!AT21) -> $195,320 | AU27: =AVERAGE('Trial 1'!AU21,'Trial 2'!AU21,'Trial 3'!AU21,'Trial 4'!AU21,'Trial 5'!AU21,'Trial 6'!AU21,'Trial 7'!AU21,'Trial 8'!AU21) -> $195,136 | AV27: =AVERAGE('Trial 1'!AV21,'Trial 2'!AV21,'Trial 3'!AV21,'Trial 4'!AV21,'Trial 5'!AV21,'Trial 6'!AV21,'Trial 7'!AV21,'Trial 8'!AV21) -> $194,948 | AW27: =AVERAGE('Trial 1'!AW21,'Trial 2'!AW21,'Trial 3'!AW21,'Trial 4'!AW21,'Trial 5'!AW21,'Trial 6'!AW21,'Trial 7'!AW21,'Trial 8'!AW21) -> $194,774 | AX27: =AVERAGE('Trial 1'!AX21,'Trial 2'!AX21,'Trial 3'!AX21,'Trial 4'!AX21,'Trial 5'!AX21,'Trial 6'!AX21,'Trial 7'!AX21,'Trial 8'!AX21) -> $194,576 | AY27: =AVERAGE('Trial 1'!AY21,'Trial 2'!AY21,'Trial 3'!AY21,'Trial 4'!AY21,'Trial 5'!AY21,'Trial 6'!AY21,'Trial 7'!AY21,'Trial 8'!AY21) -> $194,397 | AZ27: =AVERAGE('Trial 1'!AZ21,'Trial 2'!AZ21,'Trial 3'!AZ21,'Trial 4'!AZ21,'Trial 5'!AZ21,'Trial 6'!AZ21,'Trial 7'!AZ21,'Trial 8'!AZ21) -> $194,232 | BA27: =SUM(AO27:AZ27) -> $2,342,694 | BB27: =AVERAGE('Trial 1'!BB21,'Trial 2'!BB21,'Trial 3'!BB21,'Trial 4'!BB21,'Trial 5'!BB21,'Trial 6'!BB21,'Trial 7'!BB21,'Trial 8'!BB21) -> $194,035 | BC27: =AVERAGE('Trial 1'!BC21,'Trial 2'!BC21,'Trial 3'!BC21,'Trial 4'!BC21,'Trial 5'!BC21,'Trial 6'!BC21,'Trial 7'!BC21,'Trial 8'!BC21) -> $193,845 | BD27: =AVERAGE('Trial 1'!BD21,'Trial 2'!BD21,'Trial 3'!BD21,'Trial 4'!BD21,'Trial 5'!BD21,'Trial 6'!BD21,'Trial 7'!BD21,'Trial 8'!BD21) -> $193,677 | BE27: =AVERAGE('Trial 1'!BE21,'Trial 2'!BE21,'Trial 3'!BE21,'Trial 4'!BE21,'Trial 5'!BE21,'Trial 6'!BE21,'Trial 7'!BE21,'Trial 8'!BE21) -> $193,519 | BF27: =AVERAGE('Trial 1'!BF21,'Trial 2'!BF21,'Trial 3'!BF21,'Trial 4'!BF21,'Trial 5'!BF21,'Trial 6'!BF21,'Trial 7'!BF21,'Trial 8'!BF21) -> $193,356 | BG27: =AVERAGE('Trial 1'!BG21,'Trial 2'!BG21,'Trial 3'!BG21,'Trial 4'!BG21,'Trial 5'!BG21,'Trial 6'!BG21,'Trial 7'!BG21,'Trial 8'!BG21) -> $193,211 | BH27: =AVERAGE('Trial 1'!BH21,'Trial 2'!BH21,'Trial 3'!BH21,'Trial 4'!BH21,'Trial 5'!BH21,'Trial 6'!BH21,'Trial 7'!BH21,'Trial 8'!BH21) -> $193,068 | BI27: =AVERAGE('Trial 1'!BI21,'Trial 2'!BI21,'Trial 3'!BI21,'Trial 4'!BI21,'Trial 5'!BI21,'Trial 6'!BI21,'Trial 7'!BI21,'Trial 8'!BI21) -> $192,889 | BJ27: =AVERAGE('Trial 1'!BJ21,'Trial 2'!BJ21,'Trial 3'!BJ21,'Trial 4'!BJ21,'Trial 5'!BJ21,'Trial 6'!BJ21,'Trial 7'!BJ21,'Trial 8'!BJ21) -> $192,727 | BK27: =AVERAGE('Trial 1'!BK21,'Trial 2'!BK21,'Trial 3'!BK21,'Trial 4'!BK21,'Trial 5'!BK21,'Trial 6'!BK21,'Trial 7'!BK21,'Trial 8'!BK21) -> $192,595 | BL27: =AVERAGE('Trial 1'!BL21,'Trial 2'!BL21,'Trial 3'!BL21,'Trial 4'!BL21,'Trial 5'!BL21,'Trial 6'!BL21,'Trial 7'!BL21,'Trial 8'!BL21) -> $192,442 | BM27: =AVERAGE('Trial 1'!BM21,'Trial 2'!BM21,'Trial 3'!BM21,'Trial 4'!BM21,'Trial 5'!BM21,'Trial 6'!BM21,'Trial 7'!BM21,'Trial 8'!BM21) -> $192,314 | BN27: =SUM(BB27:BM27) -> $2,317,678 | BO27: =AVERAGE('Trial 1'!BO21,'Trial 2'!BO21,'Trial 3'!BO21,'Trial 4'!BO21,'Trial 5'!BO21,'Trial 6'!BO21,'Trial 7'!BO21,'Trial 8'!BO21) -> $192,168 | BP27: =AVERAGE('Trial 1'!BP21,'Trial 2'!BP21,'Trial 3'!BP21,'Trial 4'!BP21,'Trial 5'!BP21,'Trial 6'!BP21,'Trial 7'!BP21,'Trial 8'!BP21) -> $192,022 | BQ27: =AVERAGE('Trial 1'!BQ21,'Trial 2'!BQ21,'Trial 3'!BQ21,'Trial 4'!BQ21,'Trial 5'!BQ21,'Trial 6'!BQ21,'Trial 7'!BQ21,'Trial 8'!BQ21) -> $191,890 | BR27: =AVERAGE('Trial 1'!BR21,'Trial 2'!BR21,'Trial 3'!BR21,'Trial 4'!BR21,'Trial 5'!BR21,'Trial 6'!BR21,'Trial 7'!BR21,'Trial 8'!BR21) -> $191,779 | BS27: =AVERAGE('Trial 1'!BS21,'Trial 2'!BS21,'Trial 3'!BS21,'Trial 4'!BS21,'Trial 5'!BS21,'Trial 6'!BS21,'Trial 7'!BS21,'Trial 8'!BS21) -> $191,663 | BT27: =AVERAGE('Trial 1'!BT21,'Trial 2'!BT21,'Trial 3'!BT21,'Trial 4'!BT21,'Trial 5'!BT21,'Trial 6'!BT21,'Trial 7'!BT21,'Trial 8'!BT21) -> $191,516 | BU27: =AVERAGE('Trial 1'!BU21,'Trial 2'!BU21,'Trial 3'!BU21,'Trial 4'!BU21,'Trial 5'!BU21,'Trial 6'!BU21,'Trial 7'!BU21,'Trial 8'!BU21) -> $191,419 | BV27: =AVERAGE('Trial 1'!BV21,'Trial 2'!BV21,'Trial 3'!BV21,'Trial 4'!BV21,'Trial 5'!BV21,'Trial 6'!BV21,'Trial 7'!BV21,'Trial 8'!BV21) -> $191,271 | BW27: =AVERAGE('Trial 1'!BW21,'Trial 2'!BW21,'Trial 3'!BW21,'Trial 4'!BW21,'Trial 5'!BW21,'Trial 6'!BW21,'Trial 7'!BW21,'Trial 8'!BW21) -> $191,137 | BX27: =AVERAGE('Trial 1'!BX21,'Trial 2'!BX21,'Trial 3'!BX21,'Trial 4'!BX21,'Trial 5'!BX21,'Trial 6'!BX21,'Trial 7'!BX21,'Trial 8'!BX21) -> $191,037 | BY27: =AVERAGE('Trial 1'!BY21,'Trial 2'!BY21,'Trial 3'!BY21,'Trial 4'!BY21,'Trial 5'!BY21,'Trial 6'!BY21,'Trial 7'!BY21,'Trial 8'!BY21) -> $190,891 | BZ27: =AVERAGE('Trial 1'!BZ21,'Trial 2'!BZ21,'Trial 3'!BZ21,'Trial 4'!BZ21,'Trial 5'!BZ21,'Trial 6'!BZ21,'Trial 7'!BZ21,'Trial 8'!BZ21) -> $190,789 | CA27: =SUM(BO27:BZ27) -> $2,297,581 | CB27: =AVERAGE('Trial 1'!CB21,'Trial 2'!CB21,'Trial 3'!CB21,'Trial 4'!CB21,'Trial 5'!CB21,'Trial 6'!CB21,'Trial 7'!CB21,'Trial 8'!CB21) -> $190,666 | CC27: =AVERAGE('Trial 1'!CC21,'Trial 2'!CC21,'Trial 3'!CC21,'Trial 4'!CC21,'Trial 5'!CC21,'Trial 6'!CC21,'Trial 7'!CC21,'Trial 8'!CC21) -> $190,538 | CD27: =AVERAGE('Trial 1'!CD21,'Trial 2'!CD21,'Trial 3'!CD21,'Trial 4'!CD21,'Trial 5'!CD21,'Trial 6'!CD21,'Trial 7'!CD21,'Trial 8'!CD21) -> $190,408 | CE27: =AVERAGE('Trial 1'!CE21,'Trial 2'!CE21,'Trial 3'!CE21,'Trial 4'!CE21,'Trial 5'!CE21,'Trial 6'!CE21,'Trial 7'!CE21,'Trial 8'!CE21) -> $190,301 | CF27: =AVERAGE('Trial 1'!CF21,'Trial 2'!CF21,'Trial 3'!CF21,'Trial 4'!CF21,'Trial 5'!CF21,'Trial 6'!CF21,'Trial 7'!CF21,'Trial 8'!CF21) -> $190,160 | CG27: =AVERAGE('Trial 1'!CG21,'Trial 2'!CG21,'Trial 3'!CG21,'Trial 4'!CG21,'Trial 5'!CG21,'Trial 6'!CG21,'Trial 7'!CG21,'Trial 8'!CG21) -> $190,039 | CH27: =AVERAGE('Trial 1'!CH21,'Trial 2'!CH21,'Trial 3'!CH21,'Trial 4'!CH21,'Trial 5'!CH21,'Trial 6'!CH21,'Trial 7'!CH21,'Trial 8'!CH21) -> $189,975 | CI27: =AVERAGE('Trial 1'!CI21,'Trial 2'!CI21,'Trial 3'!CI21,'Trial 4'!CI21,'Trial 5'!CI21,'Trial 6'!CI21,'Trial 7'!CI21,'Trial 8'!CI21) -> $189,865 | CJ27: =AVERAGE('Trial 1'!CJ21,'Trial 2'!CJ21,'Trial 3'!CJ21,'Trial 4'!CJ21,'Trial 5'!CJ21,'Trial 6'!CJ21,'Trial 7'!CJ21,'Trial 8'!CJ21) -> $189,767 | CK27: =AVERAGE('Trial 1'!CK21,'Trial 2'!CK21,'Trial 3'!CK21,'Trial 4'!CK21,'Trial 5'!CK21,'Trial 6'!CK21,'Trial 7'!CK21,'Trial 8'!CK21) -> $189,662 | CL27: =AVERAGE('Trial 1'!CL21,'Trial 2'!CL21,'Trial 3'!CL21,'Trial 4'!CL21,'Trial 5'!CL21,'Trial 6'!CL21,'Trial 7'!CL21,'Trial 8'!CL21) -> $189,584 | CM27: =AVERAGE('Trial 1'!CM21,'Trial 2'!CM21,'Trial 3'!CM21,'Trial 4'!CM21,'Trial 5'!CM21,'Trial 6'!CM21,'Trial 7'!CM21,'Trial 8'!CM21) -> $189,465 | CN27: =SUM(CB27:CM27) -> $2,280,431 | CO27: =AVERAGE('Trial 1'!CO21,'Trial 2'!CO21,'Trial 3'!CO21,'Trial 4'!CO21,'Trial 5'!CO21,'Trial 6'!CO21,'Trial 7'!CO21,'Trial 8'!CO21) -> $189,384 | CP27: =AVERAGE('Trial 1'!CP21,'Trial 2'!CP21,'Trial 3'!CP21,'Trial 4'!CP21,'Trial 5'!CP21,'Trial 6'!CP21,'Trial 7'!CP21,'Trial 8'!CP21) -> $189,286 | CQ27: =AVERAGE('Trial 1'!CQ21,'Trial 2'!CQ21,'Trial 3'!CQ21,'Trial 4'!CQ21,'Trial 5'!CQ21,'Trial 6'!CQ21,'Trial 7'!CQ21,'Trial 8'!CQ21) -> $189,190 | CR27: =AVERAGE('Trial 1'!CR21,'Trial 2'!CR21,'Trial 3'!CR21,'Trial 4'!CR21,'Trial 5'!CR21,'Trial 6'!CR21,'Trial 7'!CR21,'Trial 8'!CR21) -> $189,092 | CS27: =AVERAGE('Trial 1'!CS21,'Trial 2'!CS21,'Trial 3'!CS21,'Trial 4'!CS21,'Trial 5'!CS21,'Trial 6'!CS21,'Trial 7'!CS21,'Trial 8'!CS21) -> $188,983 | CT27: =AVERAGE('Trial 1'!CT21,'Trial 2'!CT21,'Trial 3'!CT21,'Trial 4'!CT21,'Trial 5'!CT21,'Trial 6'!CT21,'Trial 7'!CT21,'Trial 8'!CT21) -> $188,833 | CU27: =AVERAGE('Trial 1'!CU21,'Trial 2'!CU21,'Trial 3'!CU21,'Trial 4'!CU21,'Trial 5'!CU21,'Trial 6'!CU21,'Trial 7'!CU21,'Trial 8'!CU21) -> $188,704 | CV27: =AVERAGE('Trial 1'!CV21,'Trial 2'!CV21,'Trial 3'!CV21,'Trial 4'!CV21,'Trial 5'!CV21,'Trial 6'!CV21,'Trial 7'!CV21,'Trial 8'!CV21) -> $188,642 | CW27: =AVERAGE('Trial 1'!CW21,'Trial 2'!CW21,'Trial 3'!CW21,'Trial 4'!CW21,'Trial 5'!CW21,'Trial 6'!CW21,'Trial 7'!CW21,'Trial 8'!CW21) -> $188,527 | CX27: =AVERAGE('Trial 1'!CX21,'Trial 2'!CX21,'Trial 3'!CX21,'Trial 4'!CX21,'Trial 5'!CX21,'Trial 6'!CX21,'Trial 7'!CX21,'Trial 8'!CX21) -> $188,418 | CY27: =AVERAGE('Trial 1'!CY21,'Trial 2'!CY21,'Trial 3'!CY21,'Trial 4'!CY21,'Trial 5'!CY21,'Trial 6'!CY21,'Trial 7'!CY21,'Trial 8'!CY21) -> $188,300 | CZ27: =AVERAGE('Trial 1'!CZ21,'Trial 2'!CZ21,'Trial 3'!CZ21,'Trial 4'!CZ21,'Trial 5'!CZ21,'Trial 6'!CZ21,'Trial 7'!CZ21,'Trial 8'!CZ21) -> $188,210 | DA27: =SUM(CO27:CZ27) -> $2,265,568 | DB27: =AVERAGE('Trial 1'!DB21,'Trial 2'!DB21,'Trial 3'!DB21,'Trial 4'!DB21,'Trial 5'!DB21,'Trial 6'!DB21,'Trial 7'!DB21,'Trial 8'!DB21) -> $188,097 | DC27: =AVERAGE('Trial 1'!DC21,'Trial 2'!DC21,'Trial 3'!DC21,'Trial 4'!DC21,'Trial 5'!DC21,'Trial 6'!DC21,'Trial 7'!DC21,'Trial 8'!DC21) -> $188,012 | DD27: =AVERAGE('Trial 1'!DD21,'Trial 2'!DD21,'Trial 3'!DD21,'Trial 4'!DD21,'Trial 5'!DD21,'Trial 6'!DD21,'Trial 7'!DD21,'Trial 8'!DD21) -> $187,886 | DE27: =AVERAGE('Trial 1'!DE21,'Trial 2'!DE21,'Trial 3'!DE21,'Trial 4'!DE21,'Trial 5'!DE21,'Trial 6'!DE21,'Trial 7'!DE21,'Trial 8'!DE21) -> $187,774 | DF27: =AVERAGE('Trial 1'!DF21,'Trial 2'!DF21,'Trial 3'!DF21,'Trial 4'!DF21,'Trial 5'!DF21,'Trial 6'!DF21,'Trial 7'!DF21,'Trial 8'!DF21) -> $187,686 | DG27: =AVERAGE('Trial 1'!DG21,'Trial 2'!DG21,'Trial 3'!DG21,'Trial 4'!DG21,'Trial 5'!DG21,'Trial 6'!DG21,'Trial 7'!DG21,'Trial 8'!DG21) -> $187,585 | DH27: =AVERAGE('Trial 1'!DH21,'Trial 2'!DH21,'Trial 3'!DH21,'Trial 4'!DH21,'Trial 5'!DH21,'Trial 6'!DH21,'Trial 7'!DH21,'Trial 8'!DH21) -> $187,478 | DI27: =AVERAGE('Trial 1'!DI21,'Trial 2'!DI21,'Trial 3'!DI21,'Trial 4'!DI21,'Trial 5'!DI21,'Trial 6'!DI21,'Trial 7'!DI21,'Trial 8'!DI21) -> $187,367 | DJ27: =AVERAGE('Trial 1'!DJ21,'Trial 2'!DJ21,'Trial 3'!DJ21,'Trial 4'!DJ21,'Trial 5'!DJ21,'Trial 6'!DJ21,'Trial 7'!DJ21,'Trial 8'!DJ21) -> $187,251 | DK27: =AVERAGE('Trial 1'!DK21,'Trial 2'!DK21,'Trial 3'!DK21,'Trial 4'!DK21,'Trial 5'!DK21,'Trial 6'!DK21,'Trial 7'!DK21,'Trial 8'!DK21) -> $187,153 | DL27: =AVERAGE('Trial 1'!DL21,'Trial 2'!DL21,'Trial 3'!DL21,'Trial 4'!DL21,'Trial 5'!DL21,'Trial 6'!DL21,'Trial 7'!DL21,'Trial 8'!DL21) -> $187,050 | DM27: =AVERAGE('Trial 1'!DM21,'Trial 2'!DM21,'Trial 3'!DM21,'Trial 4'!DM21,'Trial 5'!DM21,'Trial 6'!DM21,'Trial 7'!DM21,'Trial 8'!DM21) -> $186,934 | DN27: =SUM(DB27:DM27) -> $2,250,273 | DO27: =AVERAGE('Trial 1'!DO21,'Trial 2'!DO21,'Trial 3'!DO21,'Trial 4'!DO21,'Trial 5'!DO21,'Trial 6'!DO21,'Trial 7'!DO21,'Trial 8'!DO21) -> $186,826 | DP27: =AVERAGE('Trial 1'!DP21,'Trial 2'!DP21,'Trial 3'!DP21,'Trial 4'!DP21,'Trial 5'!DP21,'Trial 6'!DP21,'Trial 7'!DP21,'Trial 8'!DP21) -> $186,749 | DQ27: =AVERAGE('Trial 1'!DQ21,'Trial 2'!DQ21,'Trial 3'!DQ21,'Trial 4'!DQ21,'Trial 5'!DQ21,'Trial 6'!DQ21,'Trial 7'!DQ21,'Trial 8'!DQ21) -> $186,641 | DR27: =AVERAGE('Trial 1'!DR21,'Trial 2'!DR21,'Trial 3'!DR21,'Trial 4'!DR21,'Trial 5'!DR21,'Trial 6'!DR21,'Trial 7'!DR21,'Trial 8'!DR21) -> $186,574 | DS27: =AVERAGE('Trial 1'!DS21,'Trial 2'!DS21,'Trial 3'!DS21,'Trial 4'!DS21,'Trial 5'!DS21,'Trial 6'!DS21,'Trial 7'!DS21,'Trial 8'!DS21) -> $186,484 | DT27: =AVERAGE('Trial 1'!DT21,'Trial 2'!DT21,'Trial 3'!DT21,'Trial 4'!DT21,'Trial 5'!DT21,'Trial 6'!DT21,'Trial 7'!DT21,'Trial 8'!DT21) -> $186,390 | DU27: =AVERAGE('Trial 1'!DU21,'Trial 2'!DU21,'Trial 3'!DU21,'Trial 4'!DU21,'Trial 5'!DU21,'Trial 6'!DU21,'Trial 7'!DU21,'Trial 8'!DU21) -> $186,322 | DV27: =AVERAGE('Trial 1'!DV21,'Trial 2'!DV21,'Trial 3'!DV21,'Trial 4'!DV21,'Trial 5'!DV21,'Trial 6'!DV21,'Trial 7'!DV21,'Trial 8'!DV21) -> $186,237 | DW27: =AVERAGE('Trial 1'!DW21,'Trial 2'!DW21,'Trial 3'!DW21,'Trial 4'!DW21,'Trial 5'!DW21,'Trial 6'!DW21,'Trial 7'!DW21,'Trial 8'!DW21) -> $186,160 | DX27: =AVERAGE('Trial 1'!DX21,'Trial 2'!DX21,'Trial 3'!DX21,'Trial 4'!DX21,'Trial 5'!DX21,'Trial 6'!DX21,'Trial 7'!DX21,'Trial 8'!DX21) -> $186,071 | DY27: =AVERAGE('Trial 1'!DY21,'Trial 2'!DY21,'Trial 3'!DY21,'Trial 4'!DY21,'Trial 5'!DY21,'Trial 6'!DY21,'Trial 7'!DY21,'Trial 8'!DY21) -> $185,980 | DZ27: =AVERAGE('Trial 1'!DZ21,'Trial 2'!DZ21,'Trial 3'!DZ21,'Trial 4'!DZ21,'Trial 5'!DZ21,'Trial 6'!DZ21,'Trial 7'!DZ21,'Trial 8'!DZ21) -> $185,891 | EA27: =SUM(DO27:DZ27) -> $2,236,324 | EB27: =AVERAGE('Trial 1'!EB21,'Trial 2'!EB21,'Trial 3'!EB21,'Trial 4'!EB21,'Trial 5'!EB21,'Trial 6'!EB21,'Trial 7'!EB21,'Trial 8'!EB21) -> $185,769 | EC27: =AVERAGE('Trial 1'!EC21,'Trial 2'!EC21,'Trial 3'!EC21,'Trial 4'!EC21,'Trial 5'!EC21,'Trial 6'!EC21,'Trial 7'!EC21,'Trial 8'!EC21) -> $185,691 | ED27: =AVERAGE('Trial 1'!ED21,'Trial 2'!ED21,'Trial 3'!ED21,'Trial 4'!ED21,'Trial 5'!ED21,'Trial 6'!ED21,'Trial 7'!ED21,'Trial 8'!ED21) -> $185,574 | EE27: =AVERAGE('Trial 1'!EE21,'Trial 2'!EE21,'Trial 3'!EE21,'Trial 4'!EE21,'Trial 5'!EE21,'Trial 6'!EE21,'Trial 7'!EE21,'Trial 8'!EE21) -> $185,469 | EF27: =AVERAGE('Trial 1'!EF21,'Trial 2'!EF21,'Trial 3'!EF21,'Trial 4'!EF21,'Trial 5'!EF21,'Trial 6'!EF21,'Trial 7'!EF21,'Trial 8'!EF21) -> $185,383 | EG27: =AVERAGE('Trial 1'!EG21,'Trial 2'!EG21,'Trial 3'!EG21,'Trial 4'!EG21,'Trial 5'!EG21,'Trial 6'!EG21,'Trial 7'!EG21,'Trial 8'!EG21) -> $185,300 | EH27: =AVERAGE('Trial 1'!EH21,'Trial 2'!EH21,'Trial 3'!EH21,'Trial 4'!EH21,'Trial 5'!EH21,'Trial 6'!EH21,'Trial 7'!EH21,'Trial 8'!EH21) -> $185,191 | EI27: =AVERAGE('Trial 1'!EI21,'Trial 2'!EI21,'Trial 3'!EI21,'Trial 4'!EI21,'Trial 5'!EI21,'Trial 6'!EI21,'Trial 7'!EI21,'Trial 8'!EI21) -> $185,092 | EJ27: =AVERAGE('Trial 1'!EJ21,'Trial 2'!EJ21,'Trial 3'!EJ21,'Trial 4'!EJ21,'Trial 5'!EJ21,'Trial 6'!EJ21,'Trial 7'!EJ21,'Trial 8'!EJ21) -> $184,957 | EK27: =AVERAGE('Trial 1'!EK21,'Trial 2'!EK21,'Trial 3'!EK21,'Trial 4'!EK21,'Trial 5'!EK21,'Trial 6'!EK21,'Trial 7'!EK21,'Trial 8'!EK21) -> $184,859 | EL27: =AVERAGE('Trial 1'!EL21,'Trial 2'!EL21,'Trial 3'!EL21,'Trial 4'!EL21,'Trial 5'!EL21,'Trial 6'!EL21,'Trial 7'!EL21,'Trial 8'!EL21) -> $184,783 | EM27: =AVERAGE('Trial 1'!EM21,'Trial 2'!EM21,'Trial 3'!EM21,'Trial 4'!EM21,'Trial 5'!EM21,'Trial 6'!EM21,'Trial 7'!EM21,'Trial 8'!EM21) -> $184,681 | EN27: =SUM(EB27:EM27) -> $2,222,750
A28: =Labels!B21 -> Capital Investment std dev | B28: =STDEV('Trial 1'!B21,'Trial 2'!B21,'Trial 3'!B21,'Trial 4'!B21,'Trial 5'!B21,'Trial 6'!B21,'Trial 7'!B21,'Trial 8'!B21) -> $0 | C28: =STDEV('Trial 1'!C21,'Trial 2'!C21,'Trial 3'!C21,'Trial 4'!C21,'Trial 5'!C21,'Trial 6'!C21,'Trial 7'!C21,'Trial 8'!C21) -> $39 | D28: =STDEV('Trial 1'!D21,'Trial 2'!D21,'Trial 3'!D21,'Trial 4'!D21,'Trial 5'!D21,'Trial 6'!D21,'Trial 7'!D21,'Trial 8'!D21) -> $55 | E28: =STDEV('Trial 1'!E21,'Trial 2'!E21,'Trial 3'!E21,'Trial 4'!E21,'Trial 5'!E21,'Trial 6'!E21,'Trial 7'!E21,'Trial 8'!E21) -> $71 | F28: =STDEV('Trial 1'!F21,'Trial 2'!F21,'Trial 3'!F21,'Trial 4'!F21,'Trial 5'!F21,'Trial 6'!F21,'Trial 7'!F21,'Trial 8'!F21) -> $78 | G28: =STDEV('Trial 1'!G21,'Trial 2'!G21,'Trial 3'!G21,'Trial 4'!G21,'Trial 5'!G21,'Trial 6'!G21,'Trial 7'!G21,'Trial 8'!G21) -> $103 | H28: =STDEV('Trial 1'!H21,'Trial 2'!H21,'Trial 3'!H21,'Trial 4'!H21,'Trial 5'!H21,'Trial 6'!H21,'Trial 7'!H21,'Trial 8'!H21) -> $125 | I28: =STDEV('Trial 1'!I21,'Trial 2'!I21,'Trial 3'!I21,'Trial 4'!I21,'Trial 5'!I21,'Trial 6'!I21,'Trial 7'!I21,'Trial 8'!I21) -> $127 | J28: =STDEV('Trial 1'!J21,'Trial 2'!J21,'Trial 3'!J21,'Trial 4'!J21,'Trial 5'!J21,'Trial 6'!J21,'Trial 7'!J21,'Trial 8'!J21) -> $140 | K28: =STDEV('Trial 1'!K21,'Trial 2'!K21,'Trial 3'!K21,'Trial 4'!K21,'Trial 5'!K21,'Trial 6'!K21,'Trial 7'!K21,'Trial 8'!K21) -> $114 | L28: =STDEV('Trial 1'!L21,'Trial 2'!L21,'Trial 3'!L21,'Trial 4'!L21,'Trial 5'!L21,'Trial 6'!L21,'Trial 7'!L21,'Trial 8'!L21) -> $138 | M28: =STDEV('Trial 1'!M21,'Trial 2'!M21,'Trial 3'!M21,'Trial 4'!M21,'Trial 5'!M21,'Trial 6'!M21,'Trial 7'!M21,'Trial 8'!M21) -> $171 | N28: =SUM(B28:M28) -> $1,160 | O28: =STDEV('Trial 1'!O21,'Trial 2'!O21,'Trial 3'!O21,'Trial 4'!O21,'Trial 5'!O21,'Trial 6'!O21,'Trial 7'!O21,'Trial 8'!O21) -> $185 | P28: =STDEV('Trial 1'!P21,'Trial 2'!P21,'Trial 3'!P21,'Trial 4'!P21,'Trial 5'!P21,'Trial 6'!P21,'Trial 7'!P21,'Trial 8'!P21) -> $189 | Q28: =STDEV('Trial 1'!Q21,'Trial 2'!Q21,'Trial 3'!Q21,'Trial 4'!Q21,'Trial 5'!Q21,'Trial 6'!Q21,'Trial 7'!Q21,'Trial 8'!Q21) -> $185 | R28: =STDEV('Trial 1'!R21,'Trial 2'!R21,'Trial 3'!R21,'Trial 4'!R21,'Trial 5'!R21,'Trial 6'!R21,'Trial 7'!R21,'Trial 8'!R21) -> $177 | S28: =STDEV('Trial 1'!S21,'Trial 2'!S21,'Trial 3'!S21,'Trial 4'!S21,'Trial 5'!S21,'Trial 6'!S21,'Trial 7'!S21,'Trial 8'!S21) -> $190 | T28: =STDEV('Trial 1'!T21,'Trial 2'!T21,'Trial 3'!T21,'Trial 4'!T21,'Trial 5'!T21,'Trial 6'!T21,'Trial 7'!T21,'Trial 8'!T21) -> $199 | U28: =STDEV('Trial 1'!U21,'Trial 2'!U21,'Trial 3'!U21,'Trial 4'!U21,'Trial 5'!U21,'Trial 6'!U21,'Trial 7'!U21,'Trial 8'!U21) -> $181 | V28: =STDEV('Trial 1'!V21,'Trial 2'!V21,'Trial 3'!V21,'Trial 4'!V21,'Trial 5'!V21,'Trial 6'!V21,'Trial 7'!V21,'Trial 8'!V21) -> $176 | W28: =STDEV('Trial 1'!W21,'Trial 2'!W21,'Trial 3'!W21,'Trial 4'!W21,'Trial 5'!W21,'Trial 6'!W21,'Trial 7'!W21,'Trial 8'!W21) -> $195 | X28: =STDEV('Trial 1'!X21,'Trial 2'!X21,'Trial 3'!X21,'Trial 4'!X21,'Trial 5'!X21,'Trial 6'!X21,'Trial 7'!X21,'Trial 8'!X21) -> $205 | Y28: =STDEV('Trial 1'!Y21,'Trial 2'!Y21,'Trial 3'!Y21,'Trial 4'!Y21,'Trial 5'!Y21,'Trial 6'!Y21,'Trial 7'!Y21,'Trial 8'!Y21) -> $231 | Z28: =STDEV('Trial 1'!Z21,'Trial 2'!Z21,'Trial 3'!Z21,'Trial 4'!Z21,'Trial 5'!Z21,'Trial 6'!Z21,'Trial 7'!Z21,'Trial 8'!Z21) -> $245 | AA28: =SUM(O28:Z28) -> $2,358 | AB28: =STDEV('Trial 1'!AB21,'Trial 2'!AB21,'Trial 3'!AB21,'Trial 4'!AB21,'Trial 5'!AB21,'Trial 6'!AB21,'Trial 7'!AB21,'Trial 8'!AB21) -> $217 | AC28: =STDEV('Trial 1'!AC21,'Trial 2'!AC21,'Trial 3'!AC21,'Trial 4'!AC21,'Trial 5'!AC21,'Trial 6'!AC21,'Trial 7'!AC21,'Trial 8'!AC21) -> $187 | AD28: =STDEV('Trial 1'!AD21,'Trial 2'!AD21,'Trial 3'!AD21,'Trial 4'!AD21,'Trial 5'!AD21,'Trial 6'!AD21,'Trial 7'!AD21,'Trial 8'!AD21) -> $190 | AE28: =STDEV('Trial 1'!AE21,'Trial 2'!AE21,'Trial 3'!AE21,'Trial 4'!AE21,'Trial 5'!AE21,'Trial 6'!AE21,'Trial 7'!AE21,'Trial 8'!AE21) -> $214 | AF28: =STDEV('Trial 1'!AF21,'Trial 2'!AF21,'Trial 3'!AF21,'Trial 4'!AF21,'Trial 5'!AF21,'Trial 6'!AF21,'Trial 7'!AF21,'Trial 8'!AF21) -> $229 | AG28: =STDEV('Trial 1'!AG21,'Trial 2'!AG21,'Trial 3'!AG21,'Trial 4'!AG21,'Trial 5'!AG21,'Trial 6'!AG21,'Trial 7'!AG21,'Trial 8'!AG21) -> $254 | AH28: =STDEV('Trial 1'!AH21,'Trial 2'!AH21,'Trial 3'!AH21,'Trial 4'!AH21,'Trial 5'!AH21,'Trial 6'!AH21,'Trial 7'!AH21,'Trial 8'!AH21) -> $248 | AI28: =STDEV('Trial 1'!AI21,'Trial 2'!AI21,'Trial 3'!AI21,'Trial 4'!AI21,'Trial 5'!AI21,'Trial 6'!AI21,'Trial 7'!AI21,'Trial 8'!AI21) -> $255 | AJ28: =STDEV('Trial 1'!AJ21,'Trial 2'!AJ21,'Trial 3'!AJ21,'Trial 4'!AJ21,'Trial 5'!AJ21,'Trial 6'!AJ21,'Trial 7'!AJ21,'Trial 8'!AJ21) -> $247 | AK28: =STDEV('Trial 1'!AK21,'Trial 2'!AK21,'Trial 3'!AK21,'Trial 4'!AK21,'Trial 5'!AK21,'Trial 6'!AK21,'Trial 7'!AK21,'Trial 8'!AK21) -> $236 | AL28: =STDEV('Trial 1'!AL21,'Trial 2'!AL21,'Trial 3'!AL21,'Trial 4'!AL21,'Trial 5'!AL21,'Trial 6'!AL21,'Trial 7'!AL21,'Trial 8'!AL21) -> $230 | AM28: =STDEV('Trial 1'!AM21,'Trial 2'!AM21,'Trial 3'!AM21,'Trial 4'!AM21,'Trial 5'!AM21,'Trial 6'!AM21,'Trial 7'!AM21,'Trial 8'!AM21) -> $242 | AN28: =SUM(AB28:AM28) -> $2,749 | AO28: =STDEV('Trial 1'!AO21,'Trial 2'!AO21,'Trial 3'!AO21,'Trial 4'!AO21,'Trial 5'!AO21,'Trial 6'!AO21,'Trial 7'!AO21,'Trial 8'!AO21) -> $281 | AP28: =STDEV('Trial 1'!AP21,'Trial 2'!AP21,'Trial 3'!AP21,'Trial 4'!AP21,'Trial 5'!AP21,'Trial 6'!AP21,'Trial 7'!AP21,'Trial 8'!AP21) -> $269 | AQ28: =STDEV('Trial 1'!AQ21,'Trial 2'!AQ21,'Trial 3'!AQ21,'Trial 4'!AQ21,'Trial 5'!AQ21,'Trial 6'!AQ21,'Trial 7'!AQ21,'Trial 8'!AQ21) -> $258 | AR28: =STDEV('Trial 1'!AR21,'Trial 2'!AR21,'Trial 3'!AR21,'Trial 4'!AR21,'Trial 5'!AR21,'Trial 6'!AR21,'Trial 7'!AR21,'Trial 8'!AR21) -> $263 | AS28: =STDEV('Trial 1'!AS21,'Trial 2'!AS21,'Trial 3'!AS21,'Trial 4'!AS21,'Trial 5'!AS21,'Trial 6'!AS21,'Trial 7'!AS21,'Trial 8'!AS21) -> $277 | AT28: =STDEV('Trial 1'!AT21,'Trial 2'!AT21,'Trial 3'!AT21,'Trial 4'!AT21,'Trial 5'!AT21,'Trial 6'!AT21,'Trial 7'!AT21,'Trial 8'!AT21) -> $273 | AU28: =STDEV('Trial 1'!AU21,'Trial 2'!AU21,'Trial 3'!AU21,'Trial 4'!AU21,'Trial 5'!AU21,'Trial 6'!AU21,'Trial 7'!AU21,'Trial 8'!AU21) -> $252 | AV28: =STDEV('Trial 1'!AV21,'Trial 2'!AV21,'Trial 3'!AV21,'Trial 4'!AV21,'Trial 5'!AV21,'Trial 6'!AV21,'Trial 7'!AV21,'Trial 8'!AV21) -> $226 | AW28: =STDEV('Trial 1'!AW21,'Trial 2'!AW21,'Trial 3'!AW21,'Trial 4'!AW21,'Trial 5'!AW21,'Trial 6'!AW21,'Trial 7'!AW21,'Trial 8'!AW21) -> $218 | AX28: =STDEV('Trial 1'!AX21,'Trial 2'!AX21,'Trial 3'!AX21,'Trial 4'!AX21,'Trial 5'!AX21,'Trial 6'!AX21,'Trial 7'!AX21,'Trial 8'!AX21) -> $201 | AY28: =STDEV('Trial 1'!AY21,'Trial 2'!AY21,'Trial 3'!AY21,'Trial 4'!AY21,'Trial 5'!AY21,'Trial 6'!AY21,'Trial 7'!AY21,'Trial 8'!AY21) -> $192 | AZ28: =STDEV('Trial 1'!AZ21,'Trial 2'!AZ21,'Trial 3'!AZ21,'Trial 4'!AZ21,'Trial 5'!AZ21,'Trial 6'!AZ21,'Trial 7'!AZ21,'Trial 8'!AZ21) -> $208 | BA28: =SUM(AO28:AZ28) -> $2,917 | BB28: =STDEV('Trial 1'!BB21,'Trial 2'!BB21,'Trial 3'!BB21,'Trial 4'!BB21,'Trial 5'!BB21,'Trial 6'!BB21,'Trial 7'!BB21,'Trial 8'!BB21) -> $237 | BC28: =STDEV('Trial 1'!BC21,'Trial 2'!BC21,'Trial 3'!BC21,'Trial 4'!BC21,'Trial 5'!BC21,'Trial 6'!BC21,'Trial 7'!BC21,'Trial 8'!BC21) -> $185 | BD28: =STDEV('Trial 1'!BD21,'Trial 2'!BD21,'Trial 3'!BD21,'Trial 4'!BD21,'Trial 5'!BD21,'Trial 6'!BD21,'Trial 7'!BD21,'Trial 8'!BD21) -> $195 | BE28: =STDEV('Trial 1'!BE21,'Trial 2'!BE21,'Trial 3'!BE21,'Trial 4'!BE21,'Trial 5'!BE21,'Trial 6'!BE21,'Trial 7'!BE21,'Trial 8'!BE21) -> $224 | BF28: =STDEV('Trial 1'!BF21,'Trial 2'!BF21,'Trial 3'!BF21,'Trial 4'!BF21,'Trial 5'!BF21,'Trial 6'!BF21,'Trial 7'!BF21,'Trial 8'!BF21) -> $239 | BG28: =STDEV('Trial 1'!BG21,'Trial 2'!BG21,'Trial 3'!BG21,'Trial 4'!BG21,'Trial 5'!BG21,'Trial 6'!BG21,'Trial 7'!BG21,'Trial 8'!BG21) -> $258 | BH28: =STDEV('Trial 1'!BH21,'Trial 2'!BH21,'Trial 3'!BH21,'Trial 4'!BH21,'Trial 5'!BH21,'Trial 6'!BH21,'Trial 7'!BH21,'Trial 8'!BH21) -> $281 | BI28: =STDEV('Trial 1'!BI21,'Trial 2'!BI21,'Trial 3'!BI21,'Trial 4'!BI21,'Trial 5'!BI21,'Trial 6'!BI21,'Trial 7'!BI21,'Trial 8'!BI21) -> $303 | BJ28: =STDEV('Trial 1'!BJ21,'Trial 2'!BJ21,'Trial 3'!BJ21,'Trial 4'!BJ21,'Trial 5'!BJ21,'Trial 6'!BJ21,'Trial 7'!BJ21,'Trial 8'!BJ21) -> $280 | BK28: =STDEV('Trial 1'!BK21,'Trial 2'!BK21,'Trial 3'!BK21,'Trial 4'!BK21,'Trial 5'!BK21,'Trial 6'!BK21,'Trial 7'!BK21,'Trial 8'!BK21) -> $289 | BL28: =STDEV('Trial 1'!BL21,'Trial 2'!BL21,'Trial 3'!BL21,'Trial 4'!BL21,'Trial 5'!BL21,'Trial 6'!BL21,'Trial 7'!BL21,'Trial 8'!BL21) -> $271 | BM28: =STDEV('Trial 1'!BM21,'Trial 2'!BM21,'Trial 3'!BM21,'Trial 4'!BM21,'Trial 5'!BM21,'Trial 6'!BM21,'Trial 7'!BM21,'Trial 8'!BM21) -> $245 | BN28: =SUM(BB28:BM28) -> $3,007 | BO28: =STDEV('Trial 1'!BO21,'Trial 2'!BO21,'Trial 3'!BO21,'Trial 4'!BO21,'Trial 5'!BO21,'Trial 6'!BO21,'Trial 7'!BO21,'Trial 8'!BO21) -> $226 | BP28: =STDEV('Trial 1'!BP21,'Trial 2'!BP21,'Trial 3'!BP21,'Trial 4'!BP21,'Trial 5'!BP21,'Trial 6'!BP21,'Trial 7'!BP21,'Trial 8'!BP21) -> $227 | BQ28: =STDEV('Trial 1'!BQ21,'Trial 2'!BQ21,'Trial 3'!BQ21,'Trial 4'!BQ21,'Trial 5'!BQ21,'Trial 6'!BQ21,'Trial 7'!BQ21,'Trial 8'!BQ21) -> $240 | BR28: =STDEV('Trial 1'!BR21,'Trial 2'!BR21,'Trial 3'!BR21,'Trial 4'!BR21,'Trial 5'!BR21,'Trial 6'!BR21,'Trial 7'!BR21,'Trial 8'!BR21) -> $275 | BS28: =STDEV('Trial 1'!BS21,'Trial 2'!BS21,'Trial 3'!BS21,'Trial 4'!BS21,'Trial 5'!BS21,'Trial 6'!BS21,'Trial 7'!BS21,'Trial 8'!BS21) -> $293 | BT28: =STDEV('Trial 1'!BT21,'Trial 2'!BT21,'Trial 3'!BT21,'Trial 4'!BT21,'Trial 5'!BT21,'Trial 6'!BT21,'Trial 7'!BT21,'Trial 8'!BT21) -> $311 | BU28: =STDEV('Trial 1'!BU21,'Trial 2'!BU21,'Trial 3'!BU21,'Trial 4'!BU21,'Trial 5'!BU21,'Trial 6'!BU21,'Trial 7'!BU21,'Trial 8'!BU21) -> $291 | BV28: =STDEV('Trial 1'!BV21,'Trial 2'!BV21,'Trial 3'!BV21,'Trial 4'!BV21,'Trial 5'!BV21,'Trial 6'!BV21,'Trial 7'!BV21,'Trial 8'!BV21) -> $301 | BW28: =STDEV('Trial 1'!BW21,'Trial 2'!BW21,'Trial 3'!BW21,'Trial 4'!BW21,'Trial 5'!BW21,'Trial 6'!BW21,'Trial 7'!BW21,'Trial 8'!BW21) -> $326 | BX28: =STDEV('Trial 1'!BX21,'Trial 2'!BX21,'Trial 3'!BX21,'Trial 4'!BX21,'Trial 5'!BX21,'Trial 6'!BX21,'Trial 7'!BX21,'Trial 8'!BX21) -> $344 | BY28: =STDEV('Trial 1'!BY21,'Trial 2'!BY21,'Trial 3'!BY21,'Trial 4'!BY21,'Trial 5'!BY21,'Trial 6'!BY21,'Trial 7'!BY21,'Trial 8'!BY21) -> $366 | BZ28: =STDEV('Trial 1'!BZ21,'Trial 2'!BZ21,'Trial 3'!BZ21,'Trial 4'!BZ21,'Trial 5'!BZ21,'Trial 6'!BZ21,'Trial 7'!BZ21,'Trial 8'!BZ21) -> $335 | CA28: =SUM(BO28:BZ28) -> $3,537 | CB28: =STDEV('Trial 1'!CB21,'Trial 2'!CB21,'Trial 3'!CB21,'Trial 4'!CB21,'Trial 5'!CB21,'Trial 6'!CB21,'Trial 7'!CB21,'Trial 8'!CB21) -> $316 | CC28: =STDEV('Trial 1'!CC21,'Trial 2'!CC21,'Trial 3'!CC21,'Trial 4'!CC21,'Trial 5'!CC21,'Trial 6'!CC21,'Trial 7'!CC21,'Trial 8'!CC21) -> $302 | CD28: =STDEV('Trial 1'!CD21,'Trial 2'!CD21,'Trial 3'!CD21,'Trial 4'!CD21,'Trial 5'!CD21,'Trial 6'!CD21,'Trial 7'!CD21,'Trial 8'!CD21) -> $297 | CE28: =STDEV('Trial 1'!CE21,'Trial 2'!CE21,'Trial 3'!CE21,'Trial 4'!CE21,'Trial 5'!CE21,'Trial 6'!CE21,'Trial 7'!CE21,'Trial 8'!CE21) -> $282 | CF28: =STDEV('Trial 1'!CF21,'Trial 2'!CF21,'Trial 3'!CF21,'Trial 4'!CF21,'Trial 5'!CF21,'Trial 6'!CF21,'Trial 7'!CF21,'Trial 8'!CF21) -> $278 | CG28: =STDEV('Trial 1'!CG21,'Trial 2'!CG21,'Trial 3'!CG21,'Trial 4'!CG21,'Trial 5'!CG21,'Trial 6'!CG21,'Trial 7'!CG21,'Trial 8'!CG21) -> $271 | CH28: =STDEV('Trial 1'!CH21,'Trial 2'!CH21,'Trial 3'!CH21,'Trial 4'!CH21,'Trial 5'!CH21,'Trial 6'!CH21,'Trial 7'!CH21,'Trial 8'!CH21) -> $303 | CI28: =STDEV('Trial 1'!CI21,'Trial 2'!CI21,'Trial 3'!CI21,'Trial 4'!CI21,'Trial 5'!CI21,'Trial 6'!CI21,'Trial 7'!CI21,'Trial 8'!CI21) -> $281 | CJ28: =STDEV('Trial 1'!CJ21,'Trial 2'!CJ21,'Trial 3'!CJ21,'Trial 4'!CJ21,'Trial 5'!CJ21,'Trial 6'!CJ21,'Trial 7'!CJ21,'Trial 8'!CJ21) -> $258 | CK28: =STDEV('Trial 1'!CK21,'Trial 2'!CK21,'Trial 3'!CK21,'Trial 4'!CK21,'Trial 5'!CK21,'Trial 6'!CK21,'Trial 7'!CK21,'Trial 8'!CK21) -> $249 | CL28: =STDEV('Trial 1'!CL21,'Trial 2'!CL21,'Trial 3'!CL21,'Trial 4'!CL21,'Trial 5'!CL21,'Trial 6'!CL21,'Trial 7'!CL21,'Trial 8'!CL21) -> $256 | CM28: =STDEV('Trial 1'!CM21,'Trial 2'!CM21,'Trial 3'!CM21,'Trial 4'!CM21,'Trial 5'!CM21,'Trial 6'!CM21,'Trial 7'!CM21,'Trial 8'!CM21) -> $232 | CN28: =SUM(CB28:CM28) -> $3,326 | CO28: =STDEV('Trial 1'!CO21,'Trial 2'!CO21,'Trial 3'!CO21,'Trial 4'!CO21,'Trial 5'!CO21,'Trial 6'!CO21,'Trial 7'!CO21,'Trial 8'!CO21) -> $255 | CP28: =STDEV('Trial 1'!CP21,'Trial 2'!CP21,'Trial 3'!CP21,'Trial 4'!CP21,'Trial 5'!CP21,'Trial 6'!CP21,'Trial 7'!CP21,'Trial 8'!CP21) -> $280 | CQ28: =STDEV('Trial 1'!CQ21,'Trial 2'!CQ21,'Trial 3'!CQ21,'Trial 4'!CQ21,'Trial 5'!CQ21,'Trial 6'!CQ21,'Trial 7'!CQ21,'Trial 8'!CQ21) -> $274 | CR28: =STDEV('Trial 1'!CR21,'Trial 2'!CR21,'Trial 3'!CR21,'Trial 4'!CR21,'Trial 5'!CR21,'Trial 6'!CR21,'Trial 7'!CR21,'Trial 8'!CR21) -> $291 | CS28: =STDEV('Trial 1'!CS21,'Trial 2'!CS21,'Trial 3'!CS21,'Trial 4'!CS21,'Trial 5'!CS21,'Trial 6'!CS21,'Trial 7'!CS21,'Trial 8'!CS21) -> $295 | CT28: =STDEV('Trial 1'!CT21,'Trial 2'!CT21,'Trial 3'!CT21,'Trial 4'!CT21,'Trial 5'!CT21,'Trial 6'!CT21,'Trial 7'!CT21,'Trial 8'!CT21) -> $267 | CU28: =STDEV('Trial 1'!CU21,'Trial 2'!CU21,'Trial 3'!CU21,'Trial 4'!CU21,'Trial 5'!CU21,'Trial 6'!CU21,'Trial 7'!CU21,'Trial 8'!CU21) -> $271 | CV28: =STDEV('Trial 1'!CV21,'Trial 2'!CV21,'Trial 3'!CV21,'Trial 4'!CV21,'Trial 5'!CV21,'Trial 6'!CV21,'Trial 7'!CV21,'Trial 8'!CV21) -> $290 | CW28: =STDEV('Trial 1'!CW21,'Trial 2'!CW21,'Trial 3'!CW21,'Trial 4'!CW21,'Trial 5'!CW21,'Trial 6'!CW21,'Trial 7'!CW21,'Trial 8'!CW21) -> $272 | CX28: =STDEV('Trial 1'!CX21,'Trial 2'!CX21,'Trial 3'!CX21,'Trial 4'!CX21,'Trial 5'!CX21,'Trial 6'!CX21,'Trial 7'!CX21,'Trial 8'!CX21) -> $275 | CY28: =STDEV('Trial 1'!CY21,'Trial 2'!CY21,'Trial 3'!CY21,'Trial 4'!CY21,'Trial 5'!CY21,'Trial 6'!CY21,'Trial 7'!CY21,'Trial 8'!CY21) -> $285 | CZ28: =STDEV('Trial 1'!CZ21,'Trial 2'!CZ21,'Trial 3'!CZ21,'Trial 4'!CZ21,'Trial 5'!CZ21,'Trial 6'!CZ21,'Trial 7'!CZ21,'Trial 8'!CZ21) -> $280 | DA28: =SUM(CO28:CZ28) -> $3,335 | DB28: =STDEV('Trial 1'!DB21,'Trial 2'!DB21,'Trial 3'!DB21,'Trial 4'!DB21,'Trial 5'!DB21,'Trial 6'!DB21,'Trial 7'!DB21,'Trial 8'!DB21) -> $274 | DC28: =STDEV('Trial 1'!DC21,'Trial 2'!DC21,'Trial 3'!DC21,'Trial 4'!DC21,'Trial 5'!DC21,'Trial 6'!DC21,'Trial 7'!DC21,'Trial 8'!DC21) -> $312 | DD28: =STDEV('Trial 1'!DD21,'Trial 2'!DD21,'Trial 3'!DD21,'Trial 4'!DD21,'Trial 5'!DD21,'Trial 6'!DD21,'Trial 7'!DD21,'Trial 8'!DD21) -> $292 | DE28: =STDEV('Trial 1'!DE21,'Trial 2'!DE21,'Trial 3'!DE21,'Trial 4'!DE21,'Trial 5'!DE21,'Trial 6'!DE21,'Trial 7'!DE21,'Trial 8'!DE21) -> $269 | DF28: =STDEV('Trial 1'!DF21,'Trial 2'!DF21,'Trial 3'!DF21,'Trial 4'!DF21,'Trial 5'!DF21,'Trial 6'!DF21,'Trial 7'!DF21,'Trial 8'!DF21) -> $243 | DG28: =STDEV('Trial 1'!DG21,'Trial 2'!DG21,'Trial 3'!DG21,'Trial 4'!DG21,'Trial 5'!DG21,'Trial 6'!DG21,'Trial 7'!DG21,'Trial 8'!DG21) -> $221 | DH28: =STDEV('Trial 1'!DH21,'Trial 2'!DH21,'Trial 3'!DH21,'Trial 4'!DH21,'Trial 5'!DH21,'Trial 6'!DH21,'Trial 7'!DH21,'Trial 8'!DH21) -> $198 | DI28: =STDEV('Trial 1'!DI21,'Trial 2'!DI21,'Trial 3'!DI21,'Trial 4'!DI21,'Trial 5'!DI21,'Trial 6'!DI21,'Trial 7'!DI21,'Trial 8'!DI21) -> $191 | DJ28: =STDEV('Trial 1'!DJ21,'Trial 2'!DJ21,'Trial 3'!DJ21,'Trial 4'!DJ21,'Trial 5'!DJ21,'Trial 6'!DJ21,'Trial 7'!DJ21,'Trial 8'!DJ21) -> $171 | DK28: =STDEV('Trial 1'!DK21,'Trial 2'!DK21,'Trial 3'!DK21,'Trial 4'!DK21,'Trial 5'!DK21,'Trial 6'!DK21,'Trial 7'!DK21,'Trial 8'!DK21) -> $198 | DL28: =STDEV('Trial 1'!DL21,'Trial 2'!DL21,'Trial 3'!DL21,'Trial 4'!DL21,'Trial 5'!DL21,'Trial 6'!DL21,'Trial 7'!DL21,'Trial 8'!DL21) -> $172 | DM28: =STDEV('Trial 1'!DM21,'Trial 2'!DM21,'Trial 3'!DM21,'Trial 4'!DM21,'Trial 5'!DM21,'Trial 6'!DM21,'Trial 7'!DM21,'Trial 8'!DM21) -> $214 | DN28: =SUM(DB28:DM28) -> $2,756 | DO28: =STDEV('Trial 1'!DO21,'Trial 2'!DO21,'Trial 3'!DO21,'Trial 4'!DO21,'Trial 5'!DO21,'Trial 6'!DO21,'Trial 7'!DO21,'Trial 8'!DO21) -> $214 | DP28: =STDEV('Trial 1'!DP21,'Trial 2'!DP21,'Trial 3'!DP21,'Trial 4'!DP21,'Trial 5'!DP21,'Trial 6'!DP21,'Trial 7'!DP21,'Trial 8'!DP21) -> $162 | DQ28: =STDEV('Trial 1'!DQ21,'Trial 2'!DQ21,'Trial 3'!DQ21,'Trial 4'!DQ21,'Trial 5'!DQ21,'Trial 6'!DQ21,'Trial 7'!DQ21,'Trial 8'!DQ21) -> $168 | DR28: =STDEV('Trial 1'!DR21,'Trial 2'!DR21,'Trial 3'!DR21,'Trial 4'!DR21,'Trial 5'!DR21,'Trial 6'!DR21,'Trial 7'!DR21,'Trial 8'!DR21) -> $198 | DS28: =STDEV('Trial 1'!DS21,'Trial 2'!DS21,'Trial 3'!DS21,'Trial 4'!DS21,'Trial 5'!DS21,'Trial 6'!DS21,'Trial 7'!DS21,'Trial 8'!DS21) -> $230 | DT28: =STDEV('Trial 1'!DT21,'Trial 2'!DT21,'Trial 3'!DT21,'Trial 4'!DT21,'Trial 5'!DT21,'Trial 6'!DT21,'Trial 7'!DT21,'Trial 8'!DT21) -> $241 | DU28: =STDEV('Trial 1'!DU21,'Trial 2'!DU21,'Trial 3'!DU21,'Trial 4'!DU21,'Trial 5'!DU21,'Trial 6'!DU21,'Trial 7'!DU21,'Trial 8'!DU21) -> $269 | DV28: =STDEV('Trial 1'!DV21,'Trial 2'!DV21,'Trial 3'!DV21,'Trial 4'!DV21,'Trial 5'!DV21,'Trial 6'!DV21,'Trial 7'!DV21,'Trial 8'!DV21) -> $266 | DW28: =STDEV('Trial 1'!DW21,'Trial 2'!DW21,'Trial 3'!DW21,'Trial 4'!DW21,'Trial 5'!DW21,'Trial 6'!DW21,'Trial 7'!DW21,'Trial 8'!DW21) -> $254 | DX28: =STDEV('Trial 1'!DX21,'Trial 2'!DX21,'Trial 3'!DX21,'Trial 4'!DX21,'Trial 5'!DX21,'Trial 6'!DX21,'Trial 7'!DX21,'Trial 8'!DX21) -> $264 | DY28: =STDEV('Trial 1'!DY21,'Trial 2'!DY21,'Trial 3'!DY21,'Trial 4'!DY21,'Trial 5'!DY21,'Trial 6'!DY21,'Trial 7'!DY21,'Trial 8'!DY21) -> $229 | DZ28: =STDEV('Trial 1'!DZ21,'Trial 2'!DZ21,'Trial 3'!DZ21,'Trial 4'!DZ21,'Trial 5'!DZ21,'Trial 6'!DZ21,'Trial 7'!DZ21,'Trial 8'!DZ21) -> $238 | EA28: =SUM(DO28:DZ28) -> $2,732 | EB28: =STDEV('Trial 1'!EB21,'Trial 2'!EB21,'Trial 3'!EB21,'Trial 4'!EB21,'Trial 5'!EB21,'Trial 6'!EB21,'Trial 7'!EB21,'Trial 8'!EB21) -> $270 | EC28: =STDEV('Trial 1'!EC21,'Trial 2'!EC21,'Trial 3'!EC21,'Trial 4'!EC21,'Trial 5'!EC21,'Trial 6'!EC21,'Trial 7'!EC21,'Trial 8'!EC21) -> $220 | ED28: =STDEV('Trial 1'!ED21,'Trial 2'!ED21,'Trial 3'!ED21,'Trial 4'!ED21,'Trial 5'!ED21,'Trial 6'!ED21,'Trial 7'!ED21,'Trial 8'!ED21) -> $190 | EE28: =STDEV('Trial 1'!EE21,'Trial 2'!EE21,'Trial 3'!EE21,'Trial 4'!EE21,'Trial 5'!EE21,'Trial 6'!EE21,'Trial 7'!EE21,'Trial 8'!EE21) -> $212 | EF28: =STDEV('Trial 1'!EF21,'Trial 2'!EF21,'Trial 3'!EF21,'Trial 4'!EF21,'Trial 5'!EF21,'Trial 6'!EF21,'Trial 7'!EF21,'Trial 8'!EF21) -> $222 | EG28: =STDEV('Trial 1'!EG21,'Trial 2'!EG21,'Trial 3'!EG21,'Trial 4'!EG21,'Trial 5'!EG21,'Trial 6'!EG21,'Trial 7'!EG21,'Trial 8'!EG21) -> $218 | EH28: =STDEV('Trial 1'!EH21,'Trial 2'!EH21,'Trial 3'!EH21,'Trial 4'!EH21,'Trial 5'!EH21,'Trial 6'!EH21,'Trial 7'!EH21,'Trial 8'!EH21) -> $251 | EI28: =STDEV('Trial 1'!EI21,'Trial 2'!EI21,'Trial 3'!EI21,'Trial 4'!EI21,'Trial 5'!EI21,'Trial 6'!EI21,'Trial 7'!EI21,'Trial 8'!EI21) -> $290 | EJ28: =STDEV('Trial 1'!EJ21,'Trial 2'!EJ21,'Trial 3'!EJ21,'Trial 4'!EJ21,'Trial 5'!EJ21,'Trial 6'!EJ21,'Trial 7'!EJ21,'Trial 8'!EJ21) -> $274 | EK28: =STDEV('Trial 1'!EK21,'Trial 2'!EK21,'Trial 3'!EK21,'Trial 4'!EK21,'Trial 5'!EK21,'Trial 6'!EK21,'Trial 7'!EK21,'Trial 8'!EK21) -> $261 | EL28: =STDEV('Trial 1'!EL21,'Trial 2'!EL21,'Trial 3'!EL21,'Trial 4'!EL21,'Trial 5'!EL21,'Trial 6'!EL21,'Trial 7'!EL21,'Trial 8'!EL21) -> $275 | EM28: =STDEV('Trial 1'!EM21,'Trial 2'!EM21,'Trial 3'!EM21,'Trial 4'!EM21,'Trial 5'!EM21,'Trial 6'!EM21,'Trial 7'!EM21,'Trial 8'!EM21) -> $239 | EN28: =SUM(EB28:EM28) -> $2,922
A29: =Labels!B12 -> Capital Depreciation | B29: =AVERAGE('Trial 1'!B20,'Trial 2'!B20,'Trial 3'!B20,'Trial 4'!B20,'Trial 5'!B20,'Trial 6'!B20,'Trial 7'!B20,'Trial 8'!B20) -> $206,222 | C29: =AVERAGE('Trial 1'!C20,'Trial 2'!C20,'Trial 3'!C20,'Trial 4'!C20,'Trial 5'!C20,'Trial 6'!C20,'Trial 7'!C20,'Trial 8'!C20) -> $206,222 | D29: =AVERAGE('Trial 1'!D20,'Trial 2'!D20,'Trial 3'!D20,'Trial 4'!D20,'Trial 5'!D20,'Trial 6'!D20,'Trial 7'!D20,'Trial 8'!D20) -> $206,222 | E29: =AVERAGE('Trial 1'!E20,'Trial 2'!E20,'Trial 3'!E20,'Trial 4'!E20,'Trial 5'!E20,'Trial 6'!E20,'Trial 7'!E20,'Trial 8'!E20) -> $206,219 | F29: =AVERAGE('Trial 1'!F20,'Trial 2'!F20,'Trial 3'!F20,'Trial 4'!F20,'Trial 5'!F20,'Trial 6'!F20,'Trial 7'!F20,'Trial 8'!F20) -> $206,214 | G29: =AVERAGE('Trial 1'!G20,'Trial 2'!G20,'Trial 3'!G20,'Trial 4'!G20,'Trial 5'!G20,'Trial 6'!G20,'Trial 7'!G20,'Trial 8'!G20) -> $206,207 | H29: =AVERAGE('Trial 1'!H20,'Trial 2'!H20,'Trial 3'!H20,'Trial 4'!H20,'Trial 5'!H20,'Trial 6'!H20,'Trial 7'!H20,'Trial 8'!H20) -> $206,198 | I29: =AVERAGE('Trial 1'!I20,'Trial 2'!I20,'Trial 3'!I20,'Trial 4'!I20,'Trial 5'!I20,'Trial 6'!I20,'Trial 7'!I20,'Trial 8'!I20) -> $206,188 | J29: =AVERAGE('Trial 1'!J20,'Trial 2'!J20,'Trial 3'!J20,'Trial 4'!J20,'Trial 5'!J20,'Trial 6'!J20,'Trial 7'!J20,'Trial 8'!J20) -> $206,175 | K29: =AVERAGE('Trial 1'!K20,'Trial 2'!K20,'Trial 3'!K20,'Trial 4'!K20,'Trial 5'!K20,'Trial 6'!K20,'Trial 7'!K20,'Trial 8'!K20) -> $206,160 | L29: =AVERAGE('Trial 1'!L20,'Trial 2'!L20,'Trial 3'!L20,'Trial 4'!L20,'Trial 5'!L20,'Trial 6'!L20,'Trial 7'!L20,'Trial 8'!L20) -> $206,144 | M29: =AVERAGE('Trial 1'!M20,'Trial 2'!M20,'Trial 3'!M20,'Trial 4'!M20,'Trial 5'!M20,'Trial 6'!M20,'Trial 7'!M20,'Trial 8'!M20) -> $206,125 | N29: =SUM(B29:M29) -> $2,474,297 | O29: =AVERAGE('Trial 1'!O20,'Trial 2'!O20,'Trial 3'!O20,'Trial 4'!O20,'Trial 5'!O20,'Trial 6'!O20,'Trial 7'!O20,'Trial 8'!O20) -> $206,105 | P29: =AVERAGE('Trial 1'!P20,'Trial 2'!P20,'Trial 3'!P20,'Trial 4'!P20,'Trial 5'!P20,'Trial 6'!P20,'Trial 7'!P20,'Trial 8'!P20) -> $206,083 | Q29: =AVERAGE('Trial 1'!Q20,'Trial 2'!Q20,'Trial 3'!Q20,'Trial 4'!Q20,'Trial 5'!Q20,'Trial 6'!Q20,'Trial 7'!Q20,'Trial 8'!Q20) -> $206,060 | R29: =AVERAGE('Trial 1'!R20,'Trial 2'!R20,'Trial 3'!R20,'Trial 4'!R20,'Trial 5'!R20,'Trial 6'!R20,'Trial 7'!R20,'Trial 8'!R20) -> $206,035 | S29: =AVERAGE('Trial 1'!S20,'Trial 2'!S20,'Trial 3'!S20,'Trial 4'!S20,'Trial 5'!S20,'Trial 6'!S20,'Trial 7'!S20,'Trial 8'!S20) -> $206,008 | T29: =AVERAGE('Trial 1'!T20,'Trial 2'!T20,'Trial 3'!T20,'Trial 4'!T20,'Trial 5'!T20,'Trial 6'!T20,'Trial 7'!T20,'Trial 8'!T20) -> $205,980 | U29: =AVERAGE('Trial 1'!U20,'Trial 2'!U20,'Trial 3'!U20,'Trial 4'!U20,'Trial 5'!U20,'Trial 6'!U20,'Trial 7'!U20,'Trial 8'!U20) -> $205,950 | V29: =AVERAGE('Trial 1'!V20,'Trial 2'!V20,'Trial 3'!V20,'Trial 4'!V20,'Trial 5'!V20,'Trial 6'!V20,'Trial 7'!V20,'Trial 8'!V20) -> $205,919 | W29: =AVERAGE('Trial 1'!W20,'Trial 2'!W20,'Trial 3'!W20,'Trial 4'!W20,'Trial 5'!W20,'Trial 6'!W20,'Trial 7'!W20,'Trial 8'!W20) -> $205,886 | X29: =AVERAGE('Trial 1'!X20,'Trial 2'!X20,'Trial 3'!X20,'Trial 4'!X20,'Trial 5'!X20,'Trial 6'!X20,'Trial 7'!X20,'Trial 8'!X20) -> $205,852 | Y29: =AVERAGE('Trial 1'!Y20,'Trial 2'!Y20,'Trial 3'!Y20,'Trial 4'!Y20,'Trial 5'!Y20,'Trial 6'!Y20,'Trial 7'!Y20,'Trial 8'!Y20) -> $205,816 | Z29: =AVERAGE('Trial 1'!Z20,'Trial 2'!Z20,'Trial 3'!Z20,'Trial 4'!Z20,'Trial 5'!Z20,'Trial 6'!Z20,'Trial 7'!Z20,'Trial 8'!Z20) -> $205,779 | AA29: =SUM(O29:Z29) -> $2,471,473 | AB29: =AVERAGE('Trial 1'!AB20,'Trial 2'!AB20,'Trial 3'!AB20,'Trial 4'!AB20,'Trial 5'!AB20,'Trial 6'!AB20,'Trial 7'!AB20,'Trial 8'!AB20) -> $205,741 | AC29: =AVERAGE('Trial 1'!AC20,'Trial 2'!AC20,'Trial 3'!AC20,'Trial 4'!AC20,'Trial 5'!AC20,'Trial 6'!AC20,'Trial 7'!AC20,'Trial 8'!AC20) -> $205,701 | AD29: =AVERAGE('Trial 1'!AD20,'Trial 2'!AD20,'Trial 3'!AD20,'Trial 4'!AD20,'Trial 5'!AD20,'Trial 6'!AD20,'Trial 7'!AD20,'Trial 8'!AD20) -> $205,660 | AE29: =AVERAGE('Trial 1'!AE20,'Trial 2'!AE20,'Trial 3'!AE20,'Trial 4'!AE20,'Trial 5'!AE20,'Trial 6'!AE20,'Trial 7'!AE20,'Trial 8'!AE20) -> $205,618 | AF29: =AVERAGE('Trial 1'!AF20,'Trial 2'!AF20,'Trial 3'!AF20,'Trial 4'!AF20,'Trial 5'!AF20,'Trial 6'!AF20,'Trial 7'!AF20,'Trial 8'!AF20) -> $205,575 | AG29: =AVERAGE('Trial 1'!AG20,'Trial 2'!AG20,'Trial 3'!AG20,'Trial 4'!AG20,'Trial 5'!AG20,'Trial 6'!AG20,'Trial 7'!AG20,'Trial 8'!AG20) -> $205,530 | AH29: =AVERAGE('Trial 1'!AH20,'Trial 2'!AH20,'Trial 3'!AH20,'Trial 4'!AH20,'Trial 5'!AH20,'Trial 6'!AH20,'Trial 7'!AH20,'Trial 8'!AH20) -> $205,485 | AI29: =AVERAGE('Trial 1'!AI20,'Trial 2'!AI20,'Trial 3'!AI20,'Trial 4'!AI20,'Trial 5'!AI20,'Trial 6'!AI20,'Trial 7'!AI20,'Trial 8'!AI20) -> $205,438 | AJ29: =AVERAGE('Trial 1'!AJ20,'Trial 2'!AJ20,'Trial 3'!AJ20,'Trial 4'!AJ20,'Trial 5'!AJ20,'Trial 6'!AJ20,'Trial 7'!AJ20,'Trial 8'!AJ20) -> $205,390 | AK29: =AVERAGE('Trial 1'!AK20,'Trial 2'!AK20,'Trial 3'!AK20,'Trial 4'!AK20,'Trial 5'!AK20,'Trial 6'!AK20,'Trial 7'!AK20,'Trial 8'!AK20) -> $205,342 | AL29: =AVERAGE('Trial 1'!AL20,'Trial 2'!AL20,'Trial 3'!AL20,'Trial 4'!AL20,'Trial 5'!AL20,'Trial 6'!AL20,'Trial 7'!AL20,'Trial 8'!AL20) -> $205,292 | AM29: =AVERAGE('Trial 1'!AM20,'Trial 2'!AM20,'Trial 3'!AM20,'Trial 4'!AM20,'Trial 5'!AM20,'Trial 6'!AM20,'Trial 7'!AM20,'Trial 8'!AM20) -> $205,241 | AN29: =SUM(AB29:AM29) -> $2,466,013 | AO29: =AVERAGE('Trial 1'!AO20,'Trial 2'!AO20,'Trial 3'!AO20,'Trial 4'!AO20,'Trial 5'!AO20,'Trial 6'!AO20,'Trial 7'!AO20,'Trial 8'!AO20) -> $205,190 | AP29: =AVERAGE('Trial 1'!AP20,'Trial 2'!AP20,'Trial 3'!AP20,'Trial 4'!AP20,'Trial 5'!AP20,'Trial 6'!AP20,'Trial 7'!AP20,'Trial 8'!AP20) -> $205,137 | AQ29: =AVERAGE('Trial 1'!AQ20,'Trial 2'!AQ20,'Trial 3'!AQ20,'Trial 4'!AQ20,'Trial 5'!AQ20,'Trial 6'!AQ20,'Trial 7'!AQ20,'Trial 8'!AQ20) -> $205,084 | AR29: =AVERAGE('Trial 1'!AR20,'Trial 2'!AR20,'Trial 3'!AR20,'Trial 4'!AR20,'Trial 5'!AR20,'Trial 6'!AR20,'Trial 7'!AR20,'Trial 8'!AR20) -> $205,030 | AS29: =AVERAGE('Trial 1'!AS20,'Trial 2'!AS20,'Trial 3'!AS20,'Trial 4'!AS20,'Trial 5'!AS20,'Trial 6'!AS20,'Trial 7'!AS20,'Trial 8'!AS20) -> $204,975 | AT29: =AVERAGE('Trial 1'!AT20,'Trial 2'!AT20,'Trial 3'!AT20,'Trial 4'!AT20,'Trial 5'!AT20,'Trial 6'!AT20,'Trial 7'!AT20,'Trial 8'!AT20) -> $204,920 | AU29: =AVERAGE('Trial 1'!AU20,'Trial 2'!AU20,'Trial 3'!AU20,'Trial 4'!AU20,'Trial 5'!AU20,'Trial 6'!AU20,'Trial 7'!AU20,'Trial 8'!AU20) -> $204,863 | AV29: =AVERAGE('Trial 1'!AV20,'Trial 2'!AV20,'Trial 3'!AV20,'Trial 4'!AV20,'Trial 5'!AV20,'Trial 6'!AV20,'Trial 7'!AV20,'Trial 8'!AV20) -> $204,806 | AW29: =AVERAGE('Trial 1'!AW20,'Trial 2'!AW20,'Trial 3'!AW20,'Trial 4'!AW20,'Trial 5'!AW20,'Trial 6'!AW20,'Trial 7'!AW20,'Trial 8'!AW20) -> $204,748 | AX29: =AVERAGE('Trial 1'!AX20,'Trial 2'!AX20,'Trial 3'!AX20,'Trial 4'!AX20,'Trial 5'!AX20,'Trial 6'!AX20,'Trial 7'!AX20,'Trial 8'!AX20) -> $204,689 | AY29: =AVERAGE('Trial 1'!AY20,'Trial 2'!AY20,'Trial 3'!AY20,'Trial 4'!AY20,'Trial 5'!AY20,'Trial 6'!AY20,'Trial 7'!AY20,'Trial 8'!AY20) -> $204,630 | AZ29: =AVERAGE('Trial 1'!AZ20,'Trial 2'!AZ20,'Trial 3'!AZ20,'Trial 4'!AZ20,'Trial 5'!AZ20,'Trial 6'!AZ20,'Trial 7'!AZ20,'Trial 8'!AZ20) -> $204,570 | BA29: =SUM(AO29:AZ29) -> $2,458,642 | BB29: =AVERAGE('Trial 1'!BB20,'Trial 2'!BB20,'Trial 3'!BB20,'Trial 4'!BB20,'Trial 5'!BB20,'Trial 6'!BB20,'Trial 7'!BB20,'Trial 8'!BB20) -> $204,509 | BC29: =AVERAGE('Trial 1'!BC20,'Trial 2'!BC20,'Trial 3'!BC20,'Trial 4'!BC20,'Trial 5'!BC20,'Trial 6'!BC20,'Trial 7'!BC20,'Trial 8'!BC20) -> $204,447 | BD29: =AVERAGE('Trial 1'!BD20,'Trial 2'!BD20,'Trial 3'!BD20,'Trial 4'!BD20,'Trial 5'!BD20,'Trial 6'!BD20,'Trial 7'!BD20,'Trial 8'!BD20) -> $204,385 | BE29: =AVERAGE('Trial 1'!BE20,'Trial 2'!BE20,'Trial 3'!BE20,'Trial 4'!BE20,'Trial 5'!BE20,'Trial 6'!BE20,'Trial 7'!BE20,'Trial 8'!BE20) -> $204,322 | BF29: =AVERAGE('Trial 1'!BF20,'Trial 2'!BF20,'Trial 3'!BF20,'Trial 4'!BF20,'Trial 5'!BF20,'Trial 6'!BF20,'Trial 7'!BF20,'Trial 8'!BF20) -> $204,258 | BG29: =AVERAGE('Trial 1'!BG20,'Trial 2'!BG20,'Trial 3'!BG20,'Trial 4'!BG20,'Trial 5'!BG20,'Trial 6'!BG20,'Trial 7'!BG20,'Trial 8'!BG20) -> $204,194 | BH29: =AVERAGE('Trial 1'!BH20,'Trial 2'!BH20,'Trial 3'!BH20,'Trial 4'!BH20,'Trial 5'!BH20,'Trial 6'!BH20,'Trial 7'!BH20,'Trial 8'!BH20) -> $204,129 | BI29: =AVERAGE('Trial 1'!BI20,'Trial 2'!BI20,'Trial 3'!BI20,'Trial 4'!BI20,'Trial 5'!BI20,'Trial 6'!BI20,'Trial 7'!BI20,'Trial 8'!BI20) -> $204,064 | BJ29: =AVERAGE('Trial 1'!BJ20,'Trial 2'!BJ20,'Trial 3'!BJ20,'Trial 4'!BJ20,'Trial 5'!BJ20,'Trial 6'!BJ20,'Trial 7'!BJ20,'Trial 8'!BJ20) -> $203,998 | BK29: =AVERAGE('Trial 1'!BK20,'Trial 2'!BK20,'Trial 3'!BK20,'Trial 4'!BK20,'Trial 5'!BK20,'Trial 6'!BK20,'Trial 7'!BK20,'Trial 8'!BK20) -> $203,931 | BL29: =AVERAGE('Trial 1'!BL20,'Trial 2'!BL20,'Trial 3'!BL20,'Trial 4'!BL20,'Trial 5'!BL20,'Trial 6'!BL20,'Trial 7'!BL20,'Trial 8'!BL20) -> $203,864 | BM29: =AVERAGE('Trial 1'!BM20,'Trial 2'!BM20,'Trial 3'!BM20,'Trial 4'!BM20,'Trial 5'!BM20,'Trial 6'!BM20,'Trial 7'!BM20,'Trial 8'!BM20) -> $203,797 | BN29: =SUM(BB29:BM29) -> $2,449,897 | BO29: =AVERAGE('Trial 1'!BO20,'Trial 2'!BO20,'Trial 3'!BO20,'Trial 4'!BO20,'Trial 5'!BO20,'Trial 6'!BO20,'Trial 7'!BO20,'Trial 8'!BO20) -> $203,729 | BP29: =AVERAGE('Trial 1'!BP20,'Trial 2'!BP20,'Trial 3'!BP20,'Trial 4'!BP20,'Trial 5'!BP20,'Trial 6'!BP20,'Trial 7'!BP20,'Trial 8'!BP20) -> $203,660 | BQ29: =AVERAGE('Trial 1'!BQ20,'Trial 2'!BQ20,'Trial 3'!BQ20,'Trial 4'!BQ20,'Trial 5'!BQ20,'Trial 6'!BQ20,'Trial 7'!BQ20,'Trial 8'!BQ20) -> $203,591 | BR29: =AVERAGE('Trial 1'!BR20,'Trial 2'!BR20,'Trial 3'!BR20,'Trial 4'!BR20,'Trial 5'!BR20,'Trial 6'!BR20,'Trial 7'!BR20,'Trial 8'!BR20) -> $203,522 | BS29: =AVERAGE('Trial 1'!BS20,'Trial 2'!BS20,'Trial 3'!BS20,'Trial 4'!BS20,'Trial 5'!BS20,'Trial 6'!BS20,'Trial 7'!BS20,'Trial 8'!BS20) -> $203,453 | BT29: =AVERAGE('Trial 1'!BT20,'Trial 2'!BT20,'Trial 3'!BT20,'Trial 4'!BT20,'Trial 5'!BT20,'Trial 6'!BT20,'Trial 7'!BT20,'Trial 8'!BT20) -> $203,383 | BU29: =AVERAGE('Trial 1'!BU20,'Trial 2'!BU20,'Trial 3'!BU20,'Trial 4'!BU20,'Trial 5'!BU20,'Trial 6'!BU20,'Trial 7'!BU20,'Trial 8'!BU20) -> $203,312 | BV29: =AVERAGE('Trial 1'!BV20,'Trial 2'!BV20,'Trial 3'!BV20,'Trial 4'!BV20,'Trial 5'!BV20,'Trial 6'!BV20,'Trial 7'!BV20,'Trial 8'!BV20) -> $203,242 | BW29: =AVERAGE('Trial 1'!BW20,'Trial 2'!BW20,'Trial 3'!BW20,'Trial 4'!BW20,'Trial 5'!BW20,'Trial 6'!BW20,'Trial 7'!BW20,'Trial 8'!BW20) -> $203,171 | BX29: =AVERAGE('Trial 1'!BX20,'Trial 2'!BX20,'Trial 3'!BX20,'Trial 4'!BX20,'Trial 5'!BX20,'Trial 6'!BX20,'Trial 7'!BX20,'Trial 8'!BX20) -> $203,100 | BY29: =AVERAGE('Trial 1'!BY20,'Trial 2'!BY20,'Trial 3'!BY20,'Trial 4'!BY20,'Trial 5'!BY20,'Trial 6'!BY20,'Trial 7'!BY20,'Trial 8'!BY20) -> $203,028 | BZ29: =AVERAGE('Trial 1'!BZ20,'Trial 2'!BZ20,'Trial 3'!BZ20,'Trial 4'!BZ20,'Trial 5'!BZ20,'Trial 6'!BZ20,'Trial 7'!BZ20,'Trial 8'!BZ20) -> $202,956 | CA29: =SUM(BO29:BZ29) -> $2,440,147 | CB29: =AVERAGE('Trial 1'!CB20,'Trial 2'!CB20,'Trial 3'!CB20,'Trial 4'!CB20,'Trial 5'!CB20,'Trial 6'!CB20,'Trial 7'!CB20,'Trial 8'!CB20) -> $202,884 | CC29: =AVERAGE('Trial 1'!CC20,'Trial 2'!CC20,'Trial 3'!CC20,'Trial 4'!CC20,'Trial 5'!CC20,'Trial 6'!CC20,'Trial 7'!CC20,'Trial 8'!CC20) -> $202,812 | CD29: =AVERAGE('Trial 1'!CD20,'Trial 2'!CD20,'Trial 3'!CD20,'Trial 4'!CD20,'Trial 5'!CD20,'Trial 6'!CD20,'Trial 7'!CD20,'Trial 8'!CD20) -> $202,739 | CE29: =AVERAGE('Trial 1'!CE20,'Trial 2'!CE20,'Trial 3'!CE20,'Trial 4'!CE20,'Trial 5'!CE20,'Trial 6'!CE20,'Trial 7'!CE20,'Trial 8'!CE20) -> $202,666 | CF29: =AVERAGE('Trial 1'!CF20,'Trial 2'!CF20,'Trial 3'!CF20,'Trial 4'!CF20,'Trial 5'!CF20,'Trial 6'!CF20,'Trial 7'!CF20,'Trial 8'!CF20) -> $202,592 | CG29: =AVERAGE('Trial 1'!CG20,'Trial 2'!CG20,'Trial 3'!CG20,'Trial 4'!CG20,'Trial 5'!CG20,'Trial 6'!CG20,'Trial 7'!CG20,'Trial 8'!CG20) -> $202,519 | CH29: =AVERAGE('Trial 1'!CH20,'Trial 2'!CH20,'Trial 3'!CH20,'Trial 4'!CH20,'Trial 5'!CH20,'Trial 6'!CH20,'Trial 7'!CH20,'Trial 8'!CH20) -> $202,445 | CI29: =AVERAGE('Trial 1'!CI20,'Trial 2'!CI20,'Trial 3'!CI20,'Trial 4'!CI20,'Trial 5'!CI20,'Trial 6'!CI20,'Trial 7'!CI20,'Trial 8'!CI20) -> $202,371 | CJ29: =AVERAGE('Trial 1'!CJ20,'Trial 2'!CJ20,'Trial 3'!CJ20,'Trial 4'!CJ20,'Trial 5'!CJ20,'Trial 6'!CJ20,'Trial 7'!CJ20,'Trial 8'!CJ20) -> $202,296 | CK29: =AVERAGE('Trial 1'!CK20,'Trial 2'!CK20,'Trial 3'!CK20,'Trial 4'!CK20,'Trial 5'!CK20,'Trial 6'!CK20,'Trial 7'!CK20,'Trial 8'!CK20) -> $202,222 | CL29: =AVERAGE('Trial 1'!CL20,'Trial 2'!CL20,'Trial 3'!CL20,'Trial 4'!CL20,'Trial 5'!CL20,'Trial 6'!CL20,'Trial 7'!CL20,'Trial 8'!CL20) -> $202,147 | CM29: =AVERAGE('Trial 1'!CM20,'Trial 2'!CM20,'Trial 3'!CM20,'Trial 4'!CM20,'Trial 5'!CM20,'Trial 6'!CM20,'Trial 7'!CM20,'Trial 8'!CM20) -> $202,073 | CN29: =SUM(CB29:CM29) -> $2,429,766 | CO29: =AVERAGE('Trial 1'!CO20,'Trial 2'!CO20,'Trial 3'!CO20,'Trial 4'!CO20,'Trial 5'!CO20,'Trial 6'!CO20,'Trial 7'!CO20,'Trial 8'!CO20) -> $201,998 | CP29: =AVERAGE('Trial 1'!CP20,'Trial 2'!CP20,'Trial 3'!CP20,'Trial 4'!CP20,'Trial 5'!CP20,'Trial 6'!CP20,'Trial 7'!CP20,'Trial 8'!CP20) -> $201,923 | CQ29: =AVERAGE('Trial 1'!CQ20,'Trial 2'!CQ20,'Trial 3'!CQ20,'Trial 4'!CQ20,'Trial 5'!CQ20,'Trial 6'!CQ20,'Trial 7'!CQ20,'Trial 8'!CQ20) -> $201,848 | CR29: =AVERAGE('Trial 1'!CR20,'Trial 2'!CR20,'Trial 3'!CR20,'Trial 4'!CR20,'Trial 5'!CR20,'Trial 6'!CR20,'Trial 7'!CR20,'Trial 8'!CR20) -> $201,772 | CS29: =AVERAGE('Trial 1'!CS20,'Trial 2'!CS20,'Trial 3'!CS20,'Trial 4'!CS20,'Trial 5'!CS20,'Trial 6'!CS20,'Trial 7'!CS20,'Trial 8'!CS20) -> $201,697 | CT29: =AVERAGE('Trial 1'!CT20,'Trial 2'!CT20,'Trial 3'!CT20,'Trial 4'!CT20,'Trial 5'!CT20,'Trial 6'!CT20,'Trial 7'!CT20,'Trial 8'!CT20) -> $201,622 | CU29: =AVERAGE('Trial 1'!CU20,'Trial 2'!CU20,'Trial 3'!CU20,'Trial 4'!CU20,'Trial 5'!CU20,'Trial 6'!CU20,'Trial 7'!CU20,'Trial 8'!CU20) -> $201,546 | CV29: =AVERAGE('Trial 1'!CV20,'Trial 2'!CV20,'Trial 3'!CV20,'Trial 4'!CV20,'Trial 5'!CV20,'Trial 6'!CV20,'Trial 7'!CV20,'Trial 8'!CV20) -> $201,470 | CW29: =AVERAGE('Trial 1'!CW20,'Trial 2'!CW20,'Trial 3'!CW20,'Trial 4'!CW20,'Trial 5'!CW20,'Trial 6'!CW20,'Trial 7'!CW20,'Trial 8'!CW20) -> $201,393 | CX29: =AVERAGE('Trial 1'!CX20,'Trial 2'!CX20,'Trial 3'!CX20,'Trial 4'!CX20,'Trial 5'!CX20,'Trial 6'!CX20,'Trial 7'!CX20,'Trial 8'!CX20) -> $201,317 | CY29: =AVERAGE('Trial 1'!CY20,'Trial 2'!CY20,'Trial 3'!CY20,'Trial 4'!CY20,'Trial 5'!CY20,'Trial 6'!CY20,'Trial 7'!CY20,'Trial 8'!CY20) -> $201,240 | CZ29: =AVERAGE('Trial 1'!CZ20,'Trial 2'!CZ20,'Trial 3'!CZ20,'Trial 4'!CZ20,'Trial 5'!CZ20,'Trial 6'!CZ20,'Trial 7'!CZ20,'Trial 8'!CZ20) -> $201,164 | DA29: =SUM(CO29:CZ29) -> $2,418,990 | DB29: =AVERAGE('Trial 1'!DB20,'Trial 2'!DB20,'Trial 3'!DB20,'Trial 4'!DB20,'Trial 5'!DB20,'Trial 6'!DB20,'Trial 7'!DB20,'Trial 8'!DB20) -> $201,087 | DC29: =AVERAGE('Trial 1'!DC20,'Trial 2'!DC20,'Trial 3'!DC20,'Trial 4'!DC20,'Trial 5'!DC20,'Trial 6'!DC20,'Trial 7'!DC20,'Trial 8'!DC20) -> $201,010 | DD29: =AVERAGE('Trial 1'!DD20,'Trial 2'!DD20,'Trial 3'!DD20,'Trial 4'!DD20,'Trial 5'!DD20,'Trial 6'!DD20,'Trial 7'!DD20,'Trial 8'!DD20) -> $200,932 | DE29: =AVERAGE('Trial 1'!DE20,'Trial 2'!DE20,'Trial 3'!DE20,'Trial 4'!DE20,'Trial 5'!DE20,'Trial 6'!DE20,'Trial 7'!DE20,'Trial 8'!DE20) -> $200,855 | DF29: =AVERAGE('Trial 1'!DF20,'Trial 2'!DF20,'Trial 3'!DF20,'Trial 4'!DF20,'Trial 5'!DF20,'Trial 6'!DF20,'Trial 7'!DF20,'Trial 8'!DF20) -> $200,777 | DG29: =AVERAGE('Trial 1'!DG20,'Trial 2'!DG20,'Trial 3'!DG20,'Trial 4'!DG20,'Trial 5'!DG20,'Trial 6'!DG20,'Trial 7'!DG20,'Trial 8'!DG20) -> $200,699 | DH29: =AVERAGE('Trial 1'!DH20,'Trial 2'!DH20,'Trial 3'!DH20,'Trial 4'!DH20,'Trial 5'!DH20,'Trial 6'!DH20,'Trial 7'!DH20,'Trial 8'!DH20) -> $200,621 | DI29: =AVERAGE('Trial 1'!DI20,'Trial 2'!DI20,'Trial 3'!DI20,'Trial 4'!DI20,'Trial 5'!DI20,'Trial 6'!DI20,'Trial 7'!DI20,'Trial 8'!DI20) -> $200,543 | DJ29: =AVERAGE('Trial 1'!DJ20,'Trial 2'!DJ20,'Trial 3'!DJ20,'Trial 4'!DJ20,'Trial 5'!DJ20,'Trial 6'!DJ20,'Trial 7'!DJ20,'Trial 8'!DJ20) -> $200,465 | DK29: =AVERAGE('Trial 1'!DK20,'Trial 2'!DK20,'Trial 3'!DK20,'Trial 4'!DK20,'Trial 5'!DK20,'Trial 6'!DK20,'Trial 7'!DK20,'Trial 8'!DK20) -> $200,387 | DL29: =AVERAGE('Trial 1'!DL20,'Trial 2'!DL20,'Trial 3'!DL20,'Trial 4'!DL20,'Trial 5'!DL20,'Trial 6'!DL20,'Trial 7'!DL20,'Trial 8'!DL20) -> $200,308 | DM29: =AVERAGE('Trial 1'!DM20,'Trial 2'!DM20,'Trial 3'!DM20,'Trial 4'!DM20,'Trial 5'!DM20,'Trial 6'!DM20,'Trial 7'!DM20,'Trial 8'!DM20) -> $200,229 | DN29: =SUM(DB29:DM29) -> $2,407,914 | DO29: =AVERAGE('Trial 1'!DO20,'Trial 2'!DO20,'Trial 3'!DO20,'Trial 4'!DO20,'Trial 5'!DO20,'Trial 6'!DO20,'Trial 7'!DO20,'Trial 8'!DO20) -> $200,150 | DP29: =AVERAGE('Trial 1'!DP20,'Trial 2'!DP20,'Trial 3'!DP20,'Trial 4'!DP20,'Trial 5'!DP20,'Trial 6'!DP20,'Trial 7'!DP20,'Trial 8'!DP20) -> $200,071 | DQ29: =AVERAGE('Trial 1'!DQ20,'Trial 2'!DQ20,'Trial 3'!DQ20,'Trial 4'!DQ20,'Trial 5'!DQ20,'Trial 6'!DQ20,'Trial 7'!DQ20,'Trial 8'!DQ20) -> $199,992 | DR29: =AVERAGE('Trial 1'!DR20,'Trial 2'!DR20,'Trial 3'!DR20,'Trial 4'!DR20,'Trial 5'!DR20,'Trial 6'!DR20,'Trial 7'!DR20,'Trial 8'!DR20) -> $199,913 | DS29: =AVERAGE('Trial 1'!DS20,'Trial 2'!DS20,'Trial 3'!DS20,'Trial 4'!DS20,'Trial 5'!DS20,'Trial 6'!DS20,'Trial 7'!DS20,'Trial 8'!DS20) -> $199,833 | DT29: =AVERAGE('Trial 1'!DT20,'Trial 2'!DT20,'Trial 3'!DT20,'Trial 4'!DT20,'Trial 5'!DT20,'Trial 6'!DT20,'Trial 7'!DT20,'Trial 8'!DT20) -> $199,754 | DU29: =AVERAGE('Trial 1'!DU20,'Trial 2'!DU20,'Trial 3'!DU20,'Trial 4'!DU20,'Trial 5'!DU20,'Trial 6'!DU20,'Trial 7'!DU20,'Trial 8'!DU20) -> $199,674 | DV29: =AVERAGE('Trial 1'!DV20,'Trial 2'!DV20,'Trial 3'!DV20,'Trial 4'!DV20,'Trial 5'!DV20,'Trial 6'!DV20,'Trial 7'!DV20,'Trial 8'!DV20) -> $199,595 | DW29: =AVERAGE('Trial 1'!DW20,'Trial 2'!DW20,'Trial 3'!DW20,'Trial 4'!DW20,'Trial 5'!DW20,'Trial 6'!DW20,'Trial 7'!DW20,'Trial 8'!DW20) -> $199,515 | DX29: =AVERAGE('Trial 1'!DX20,'Trial 2'!DX20,'Trial 3'!DX20,'Trial 4'!DX20,'Trial 5'!DX20,'Trial 6'!DX20,'Trial 7'!DX20,'Trial 8'!DX20) -> $199,436 | DY29: =AVERAGE('Trial 1'!DY20,'Trial 2'!DY20,'Trial 3'!DY20,'Trial 4'!DY20,'Trial 5'!DY20,'Trial 6'!DY20,'Trial 7'!DY20,'Trial 8'!DY20) -> $199,356 | DZ29: =AVERAGE('Trial 1'!DZ20,'Trial 2'!DZ20,'Trial 3'!DZ20,'Trial 4'!DZ20,'Trial 5'!DZ20,'Trial 6'!DZ20,'Trial 7'!DZ20,'Trial 8'!DZ20) -> $199,277 | EA29: =SUM(DO29:DZ29) -> $2,396,566 | EB29: =AVERAGE('Trial 1'!EB20,'Trial 2'!EB20,'Trial 3'!EB20,'Trial 4'!EB20,'Trial 5'!EB20,'Trial 6'!EB20,'Trial 7'!EB20,'Trial 8'!EB20) -> $199,197 | EC29: =AVERAGE('Trial 1'!EC20,'Trial 2'!EC20,'Trial 3'!EC20,'Trial 4'!EC20,'Trial 5'!EC20,'Trial 6'!EC20,'Trial 7'!EC20,'Trial 8'!EC20) -> $199,117 | ED29: =AVERAGE('Trial 1'!ED20,'Trial 2'!ED20,'Trial 3'!ED20,'Trial 4'!ED20,'Trial 5'!ED20,'Trial 6'!ED20,'Trial 7'!ED20,'Trial 8'!ED20) -> $199,037 | EE29: =AVERAGE('Trial 1'!EE20,'Trial 2'!EE20,'Trial 3'!EE20,'Trial 4'!EE20,'Trial 5'!EE20,'Trial 6'!EE20,'Trial 7'!EE20,'Trial 8'!EE20) -> $198,958 | EF29: =AVERAGE('Trial 1'!EF20,'Trial 2'!EF20,'Trial 3'!EF20,'Trial 4'!EF20,'Trial 5'!EF20,'Trial 6'!EF20,'Trial 7'!EF20,'Trial 8'!EF20) -> $198,877 | EG29: =AVERAGE('Trial 1'!EG20,'Trial 2'!EG20,'Trial 3'!EG20,'Trial 4'!EG20,'Trial 5'!EG20,'Trial 6'!EG20,'Trial 7'!EG20,'Trial 8'!EG20) -> $198,797 | EH29: =AVERAGE('Trial 1'!EH20,'Trial 2'!EH20,'Trial 3'!EH20,'Trial 4'!EH20,'Trial 5'!EH20,'Trial 6'!EH20,'Trial 7'!EH20,'Trial 8'!EH20) -> $198,717 | EI29: =AVERAGE('Trial 1'!EI20,'Trial 2'!EI20,'Trial 3'!EI20,'Trial 4'!EI20,'Trial 5'!EI20,'Trial 6'!EI20,'Trial 7'!EI20,'Trial 8'!EI20) -> $198,636 | EJ29: =AVERAGE('Trial 1'!EJ20,'Trial 2'!EJ20,'Trial 3'!EJ20,'Trial 4'!EJ20,'Trial 5'!EJ20,'Trial 6'!EJ20,'Trial 7'!EJ20,'Trial 8'!EJ20) -> $198,556 | EK29: =AVERAGE('Trial 1'!EK20,'Trial 2'!EK20,'Trial 3'!EK20,'Trial 4'!EK20,'Trial 5'!EK20,'Trial 6'!EK20,'Trial 7'!EK20,'Trial 8'!EK20) -> $198,475 | EL29: =AVERAGE('Trial 1'!EL20,'Trial 2'!EL20,'Trial 3'!EL20,'Trial 4'!EL20,'Trial 5'!EL20,'Trial 6'!EL20,'Trial 7'!EL20,'Trial 8'!EL20) -> $198,394 | EM29: =AVERAGE('Trial 1'!EM20,'Trial 2'!EM20,'Trial 3'!EM20,'Trial 4'!EM20,'Trial 5'!EM20,'Trial 6'!EM20,'Trial 7'!EM20,'Trial 8'!EM20) -> $198,313 | EN29: =SUM(EB29:EM29) -> $2,385,076
